Workbook

Sheet Instructions
A2: The calculators provided here can be used to predict annual hospital costs (in UK 2012 £) and UK and US health-related quality of life (EQ-5D utility scores) for people with previous cardiovascular disease history
A4: The calculators are based on the regression models presented in the following manuscript:
A5: Kent S., Haynes R., Hopewell J.C., Parish S., Gray, A., Landray M.J., Collins R., Armitage, J., and Mihaylova B. (2016), The Effects of Vascular and Nonvascular Adverse Events and of Extended Release Niacin with Laropiprant on Health and Healthcare Costs, Circulation: Cardiovascular Quality and Outcome, In Press
A7: The study population of HPS2-THRIVE consisted of individuals aged 50 to 80 years with prevopus cardiovascular disease.
A8: Full descriptions of the study population and the HRQoL and annual hospital cost models are provided in the manuscript and supplementary materials.
A10: How to use the calculators
A11: 1. Select appropriate characteristics from drop down lists provided in the light blue shaded cells.
A12: 2. If results do not update automatically, click on the large dark blue rectangle with the term 'RECALCULATE'
A13: 3. Results are presented in the orange shaded cells
A15: Both calculators are set to initially generate results for 'default' person profiles. The default person is a 60-years old female; with a previous MI (more than 4 years previously) and no other history of adverse events; has never smoked; has a BMI of 25 kg/m2; and does not consume alcohol.

Sheet HRQoL Prediction
B1: Select from each of the drop down lists below
A2: Adverse event(s)
A3: Myocardial infarction (MI) | B3: No history of event | C3: =IF(B3=$K$17, 1, IF(B3=$K$18,2, IF(B3=$K$19, 3, IF(B3=$J$20,4,NA)))) -> 1
A4: Coronary revascularisation | B4: No history of event | C4: =IF(B4=$K$17, 1, IF(B4=$K$18,2, IF(B4=$K$19, 3, IF(B4=$J$20,4,NA)))) -> 1
A5: Non-coronary revascularisation | B5: No history of event | C5: =IF(B5=$K$17, 1, IF(B5=$K$18,2, IF(B5=$K$19, 3, NA))) -> 1
A6: Any stroke | B6: No history of event | C6: =IF(B6=$K$17, 1, IF(B6=$K$18,2, IF(B6=$K$19, 3, IF(B6=$J$20,4,NA)))) -> 1
A7: Heart Failure | B7: No history of event | C7: =IF(B7=$K$17, 1, IF(B7=$K$18,2, IF(B7=$K$19, 3, IF(B7=$J$20,4,NA)))) -> 1
A8: Diabetes event (not onset of diabetes) | B8: No history of event | C8: =IF(B8=$K$17, 1, IF(B8=$K$18,2, IF(B8=$K$19, 3, NA))) -> 1
A9: Musculoskeletal | B9: No history of event | C9: =IF(B9=$K$17, 1, IF(B9=$K$18,2, IF(B9=$K$19, 3, NA))) -> 1
A10: Gastrointestinal bleed | B10: No history of event | C10: =IF(B10=$K$17, 1, IF(B10=$K$18,2, IF(B10=$K$19, 3, NA))) -> 1
A11: Other gastrointestinal | B11: No history of event | C11: =IF(B11=$K$17, 1, IF(B11=$K$18,2, IF(B11=$K$19, 3, NA))) -> 1
A12: Other bleed (not gastrointestinal or stroke) | B12: No history of event | C12: =IF(B12=$K$17, 1, IF(B12=$K$18,2, IF(B12=$K$19, 3, NA))) -> 1
A13: Infection | B13: No history of event | C13: =IF(B13=$K$17, 1, IF(B13=$K$18,2, IF(B13=$K$19, 3, NA))) -> 1
A14: Skin | B14: No history of event | C14: =IF(B14=$K$17, 1, IF(B14=$K$18,2, IF(B14=$K$19, 3, NA))) -> 1
A15: Other disease history
A16: Diabetes mellitus | B16: No | C16: =IF(B16=$L$17, 1, IF(B16=$L$18,2, NA)) -> 1 | E16: Health-related quality of life | J16: event 4L | K16: Event histories | L16: disease hsitories | M16: age | N16: smoking | O16: alcohol | P16: bmi | Q16: gender
A17: Cancer | B17: No | C17: =IF(B17=$L$17, 1, IF(B17=$L$18,2, NA)) -> 1 | E17: Perspective | F17: United Kingdom1 | G17: United States2 | J17: No history of event | K17: No history of event | L17: No | M17: 50 to <60 years | N17: Never smoker | O17: Non-drinker | P17: <25 | Q17: Male
A18: Peripheral arterial disease | B18: No | C18: =IF(B18=$L$17, 1, IF(B18=$L$18,2, NA)) -> 1 | E18: Mean EQ-5D utility | F18: ='QoL regression results'!J3 -> 0.817042289 | G18: ='QoL regression results'!K3 -> 0.8611861129 | J18: Event in last year | K18: Event in last year | L18: Yes | M18: ≥60 to <65 years | N18: Former smoker | O18: Current alcohol drinker | P18: ≥25 to <30 | Q18: Female
A19: Coronary heart disease (excluding MI) | B19: Yes | C19: =IF(B19=$L$17, 1, IF(B19=$L$18,2, NA)) -> 2 | E19: Std. Error of mean | F19: ='QoL regression results'!J4 -> 0.01156137433 | G19: ='QoL regression results'!K4 -> 0.008039169944 | J19: Event >1 and ≤4 years previously | K19: Event >1 and ≤4 years previously | M19: ≥65 to <70 years | N19: Current smoker | P19: ≥30
A20: Transient ischameic attack or cerebrovascular accident | B20: No | C20: =IF(B20=$L$17, 1, IF(B20=$L$18,2, NA)) -> 1 | J20: Event >4 years previously | M20: ≥70 to <75 years
A21: Treated hypertension | B21: No | C21: =IF(B21=$L$17, 1, IF(B21=$L$18,2, NA)) -> 1 | E21: Sources for EQ-5D-3L value sets used: | M21: ≥75 to <80 years
A22: Sociodemographic characteristics | E22: 1Dolan P. Modelling valuations for EuroQol health staes. Medical Care. 1997; 35:1095-1108 | M22: ≥80 years
A23: Age (in years) category | B23: ≥65 to <70 years | C23: =IF(B23=$M$17, 1, IF(B23=$M$18,2, IF(B23=$M$19, 3, IF(B23=$M$20,4,ifelse(B23=$M$21,5,ifelse(B23=$M$22,6,NA)))))) -> 3 | E23: 2Shaw JW, Johnson JA and Coons SJ. US valuation of the EQ-5D health states: development and testing of the D1 valuation model. Medical Care. 2005; 43:203-20
A24: Smoking status | B24: Never smoker | C24: =IF(B24=$N$17, 1, IF(B24=$N$18,2, IF(B24=$N$19, 3, NA))) -> 1
A25: Alcohol consumption | B25: Non-drinker | C25: =IF(B25=$O$17, 1, IF(B25=$O$18,2, NA)) -> 1
A26: Body mass index (kg/m2) | B26: <25 | C26: =IF(B26=$P$17, 1, IF(B26=$P$18,2, IF(B26=$P$19, 3, NA))) -> 1
A27: Gender | B27: Female | C27: =IF(B27=$Q$17, 2, IF(B27=$Q$18,1, NA)) -> 1

Sheet Annual Cost Prediction
B1: Select from each of the drop down lists below | H1: Death | I1: nf saes | J1: num_other | K1: smoking | L1: obese | M1: gender
A2: Fatal event in current annual period | B2: Patient survives annual period | D2: =IF($B$2=$H$2,1,IF($B$2=$H$3,2,IF($B$2=$H$4,3,IF($B$2=$H$5,4,NA)))) -> 1 | H2: Patient survives annual period | I2: No | J2: 0 | K2: Never smoker | L2: <30 | M2: Male
A3: Non-fatal adverse event(s) in current annual period | H3: Coronary death | I3: Yes | J3: 1 | K3: Former smoker | L3: ≥30 | M3: Female
A4: Myocardial infarction (MI) | B4: No | D4: =IF(B4=$I$2,1,IF(B4=$I$3,2,NA)) -> 1 | H4: Other vascular death | J4: 2 | K4: Current smoker
A5: Coronary artery bypass graft (CABG) | B5: No | D5: =IF(B5=$I$2,1,IF(B5=$I$3,2,NA)) -> 1 | H5: Nonvascular death | J5: 3
A6: Percutaneous coronary intervention (PCI) | B6: No | D6: =IF(B6=$I$2,1,IF(B6=$I$3,2,NA)) -> 1 | J6: 4
A7: Non-coronary revascularisation | B7: No | D7: =IF(B7=$I$2,1,IF(B7=$I$3,2,NA)) -> 1
A8: Any stroke | B8: No | D8: =IF(B8=$I$2,1,IF(B8=$I$3,2,NA)) -> 1
A9: Heart failure | B9: No | D9: =IF(B9=$I$2,1,IF(B9=$I$3,2,NA)) -> 1
A10: Diabetes event | B10: No | D10: =IF(B10=$I$2,1,IF(B10=$I$3,2,NA)) -> 1
A11: Musculoskeletal | B11: No | D11: =IF(B11=$I$2,1,IF(B11=$I$3,2,NA)) -> 1
A12: Any gastrointestinal | B12: No | D12: =IF(B12=$I$2,1,IF(B12=$I$3,2,NA)) -> 1
A13: Other bleed (excl. gastrointestinal or stroke bleed) | B13: No | D13: =IF(B13=$I$2,1,IF(B13=$I$3,2,NA)) -> 1
A14: Infection | B14: No | D14: =IF(B14=$I$2,1,IF(B14=$I$3,2,NA)) -> 1 | E14: Annual hospital costs (UK 2012 £)
A15: Skin | B15: No | D15: =IF(B15=$I$2,1,IF(B15=$I$3,2,NA)) -> 1 | F15: United Kingdom
A16: Other disease history/events (prior to current annual period) | E16: Mean annual hospital cost | F16: =IF(COUNTIF($D$2:$D$26,0)=0,'Cost regression results'!K4,"Select characteristics") -> 235.3413575
A17: MI, stroke or coronary revascularisation between 1 and 2 years previously | B17: No | D17: =IF(B17=$I$2,1,IF(B17=$I$3,2,NA)) -> 1 | E17: Std. Error of mean cost | F17: =IF(COUNTIF($D$2:$D$26,0)=0,'Cost regression results'!L4,"") -> 15.52627828
A18: Other history of coronary heart disease | B18: Yes | D18: =IF(B18=$I$2,1,IF(B18=$I$3,2,NA)) -> 2
A19: Number of selected previous events/ diseases from: diabetes mellitus, cerebrovascular disease, peripheral arterial disease, and heart failure | B19: 0 | D19: =IF($B$19=$J$2,1,IF($B$19=$J$3,2,IF($B$19=$J$4,3,IF($B$19=$J$5,4,IF($B$19=$J$6,5,NA))))) -> 1
A20: Cancer | B20: No | D20: =IF(B20=$I$2,1,IF(B20=$I$3,2,NA)) -> 1 | E20: Source of costs of hospital admissions used:
A21: Treated hypertension | B21: No | D21: =IF(B21=$I$2,1,IF(B21=$I$3,2,NA)) -> 1 | E21: NHS Reference Costs 2011-12, UK Department of Health
A22: Sociodemographic characteristics
A23: Age in years | B23: 58
A24: Smoking status | B24: Never smoker | D24: =IF(B24=$K$2,1,IF(B24=$K$3,2,IF(B24=$K$4,2,NA))) -> 1
A25: Body mass index (kg/m2) | B25: <30 | D25: =IF(B25=$L$2,1,IF(B25=$L$3,2,NA)) -> 1
A26: Gender | B26: Female | D26: =IF(B26=$M$2,1,IF(B26=$M$3,2,NA)) -> 2

Sheet QoL regression results (hidden)
A1: Regression coefficients | B1: UK | E1: US | J1: Mean utiltiies
B2: Mean | C2: Std Error | E2: Mean | F2: Std Error | H2: Parameter values | J2: UK | K2: US
A3: Intercept [1] | B3: 0.8611758187 | C3: 0.010 | E3: 0.892138721 | F3: 0.007 | H3: 1 | I3: mean | J3: =SUMPRODUCT(--B3:B48,$H$3:$H$48) -> 0.817042289 | K3: =SUMPRODUCT(--E3:E48,$H$3:$H$48) -> 0.8611861129
A4: Myocardial infarction: less than 1 year [2] | B4: -0.04901411554 | C4: 0.028 | E4: 0.002912864037 | F4: 0.019 | H4: =IF('HRQoL Prediction'!$C$3=2,1,0) -> 0 | I4: sd | J4: =STDEV('QoL bootstrapped coef (UK)'!AW2:AW1001) -> 0.01156137433 | K4: =STDEV('QoL bootstrapped coef (US)'!AW2:AW1001) -> 0.008039169944
A5: Myocardial infarction: more than one year, during follow-up [3] | B5: -0.002181144859 | C5: 0.015 | E5: -0.001538461827 | F5: 0.011 | H5: =IF('HRQoL Prediction'!$C$3=3,1,0) -> 0
A6: Myocardial infarction: at study entry [4] | B6: 0.00350771131 | C6: 0.006 | E6: -0.03156670779 | F6: 0.004 | H6: =IF('HRQoL Prediction'!$C$3=4,1,0) -> 0
A7: Coronary revascularisation: less than 1 year [5] | B7: 0.003271918804 | C7: 0.021 | E7: 0.02100215379 | F7: 0.015 | H7: =IF('HRQoL Prediction'!$C$4=2,1,0) -> 0
A8: Coronary revascularisation: more than one year, during follow-up [6] | B8: 0.02329689564 | C8: 0.014 | E8: 0.01571374008 | F8: 0.009 | H8: =IF('HRQoL Prediction'!$C$4=3,1,0) -> 0
A9: Coronary revascularisation: at study entry [7] | B9: 0.03060143583 | C9: 0.008 | E9: -0.001507279758 | F9: 0.006 | H9: =IF('HRQoL Prediction'!$C$4=4,1,0) -> 0
A10: Non-coronary revascularisation: less than 1 year [8] | B10: -0.08273773204 | C10: 0.024 | E10: -0.01414477679 | F10: 0.016 | H10: =IF('HRQoL Prediction'!$C$5=2,1,0) -> 0
A11: Non-coronary revascularisation: more than one year, during follow-up [9] | B11: -0.0220477274 | C11: 0.015 | E11: -0.0565638589 | F11: 0.010 | H11: =IF('HRQoL Prediction'!$C$5=3,1,0) -> 0
A12: Any stroke: less than 1 year [10] | B12: -0.1360448811 | C12: 0.041 | E12: -0.03931969359 | F12: 0.029 | H12: =IF('HRQoL Prediction'!$C$6=2,1,0) -> 0
A13: Any stroke: more than one year, during follow-up [11] | B13: -0.1181280361 | C13: 0.021 | E13: -0.08972838273 | F13: 0.015 | H13: =IF('HRQoL Prediction'!$C$6=3,1,0) -> 0
A14: Any stroke: at study entry [12] | B14: -0.05456712605 | C14: 0.006 | E14: -0.09792942373 | F14: 0.004 | H14: =IF('HRQoL Prediction'!$C$6=4,1,0) -> 0
A15: Heart Failure: less than 1 year [13] | B15: -0.1286786854 | C15: 0.038 | E15: -0.01703641459 | F15: 0.026 | H15: =IF('HRQoL Prediction'!$C$7=2,1,0) -> 0
A16: Heart Failure: more than one year, during follow-up [14] | B16: -0.08280117619 | C16: 0.027 | E16: -0.05790920541 | F16: 0.018 | H16: =IF('HRQoL Prediction'!$C$7=3,1,0) -> 0
A17: Heart Failure: at study entry [15] | B17: -0.02109892445 | C17: 0.007 | E17: -0.09309614609 | F17: 0.005 | H17: =IF('HRQoL Prediction'!$C$7=4,1,0) -> 0
A18: Diabetes event: less than 1 year [16] | B18: -0.0899790013 | C18: 0.050 | E18: -0.05669439095 | F18: 0.033 | H18: =IF('HRQoL Prediction'!$C$8=2,1,0) -> 0
A19: Diabetes event: more than one year, during follow-up [17] | B19: -0.08025679577 | C19: 0.033 | E19: -0.06150434955 | F19: 0.022 | H19: =IF('HRQoL Prediction'!$C$8=3,1,0) -> 0
A20: Musculoskeletal: less than 1 year [18] | B20: -0.1227894316 | C20: 0.022 | E20: -0.0482780838 | F20: 0.015 | H20: =IF('HRQoL Prediction'!$C$9=2,1,0) -> 0
A21: Musculoskeletal: more than one year, during follow-up [19] | B21: -0.06674335244 | C21: 0.015 | E21: -0.08893204012 | F21: 0.010 | H21: =IF('HRQoL Prediction'!$C$9=3,1,0) -> 0
A22: Gastrointestinal bleed: less than 1 year [20] | B22: -0.08063421682 | C22: 0.059 | E22: 0.003164095838 | F22: 0.042 | H22: =IF('HRQoL Prediction'!$C$10=2,1,0) -> 0
A23: Gastrointestinal bleed: more than one year, during follow-up [21] | B23: 0.007103417884 | C23: 0.020 | E23: -0.06851306235 | F23: 0.015 | H23: =IF('HRQoL Prediction'!$C$10=3,1,0) -> 0
A24: Other gastrointestinal: less than 1 year [22] | B24: -0.04292840947 | C24: 0.021 | E24: -0.02727392187 | F24: 0.014 | H24: =IF('HRQoL Prediction'!$C$11=2,1,0) -> 0
A25: Other gastrointestinal: more than one year, during follow-up [23] | B25: -0.03797123301 | C25: 0.013 | E25: -0.02971824438 | F25: 0.009 | H25: =IF('HRQoL Prediction'!$C$11=3,1,0) -> 0
A26: Other bleed (excl. GI or stroke): less than 1 year [24] | B26: 0.003784890821 | C26: 0.031 | E26: -0.002849773449 | F26: 0.021 | H26: =IF('HRQoL Prediction'!$C$12=2,1,0) -> 0
A27: Other bleed (excl. GI or stroke): more than one year, during follow-up [25] | B27: 0.004317709036 | C27: 0.024 | E27: 0.001354869998 | F27: 0.017 | H27: =IF('HRQoL Prediction'!$C$12=3,1,0) -> 0
A28: Infection: less than 1 year [26] | B28: -0.09644851423 | C28: 0.015 | E28: -0.02057932365 | F28: 0.010 | H28: =IF('HRQoL Prediction'!$C$13=2,1,0) -> 0
A29: Infection: more than one year, during follow-up [27] | B29: -0.0308645973 | C29: 0.010 | E29: -0.06860645917 | F29: 0.007 | H29: =IF('HRQoL Prediction'!$C$13=3,1,0) -> 0
A30: Skin: less than 1 year [28] | B30: -0.01798109628 | C30: 0.055 | E30: -0.02318101301 | F30: 0.038 | H30: =IF('HRQoL Prediction'!$C$14=2,1,0) -> 0
A31: Skin: more than one year, during follow-up [29] | B31: -0.03157398498 | C31: 0.043 | E31: -0.01702777033 | F31: 0.029 | H31: =IF('HRQoL Prediction'!$C$14=3,1,0) -> 0
A32: Diabetes mellitus [30] | B32: -0.03500793015 | C32: 0.004 | E32: -0.02522573211 | F32: 0.003 | H32: =IF('HRQoL Prediction'!C16=2,1,0) -> 0
A33: Cancer [31] | B33: -0.01975380985 | C33: 0.008 | E33: -0.01552107809 | F33: 0.005 | H33: =IF('HRQoL Prediction'!C17=2,1,0) -> 0
A34: Pre-existing peripheral arterial disease [32] | B34: -0.0603251862 | C34: 0.006 | E34: -0.04292154344 | F34: 0.004 | H34: =IF('HRQoL Prediction'!C18=2,1,0) -> 0
A35: Pre-existing coronary heart disease (excl. myocardial infarction) [33] | B35: -0.05066388824 | C35: 0.008 | E35: -0.03497251412 | F35: 0.006 | H35: =IF('HRQoL Prediction'!C19=2,1,0) -> 1
A36: Previous transient ischaemic attack or cerebrovascular accident [34] | B36: -0.02661922245 | C36: 0.006 | E36: -0.01868051134 | F36: 0.004 | H36: =IF('HRQoL Prediction'!C20=2,1,0) -> 0
A37: Treated hypertension at baseline [35] | B37: -0.01572508876 | C37: 0.004 | E37: -0.0121804587 | F37: 0.003 | H37: =IF('HRQoL Prediction'!C21=2,1,0) -> 0
A38: Age category (ref:<60 years): ≥ 60, < 65 [36] | B38: 0.0001961946432 | C38: 0.007 | E38: -0.0009716428771 | F38: 0.005 | H38: =IF('HRQoL Prediction'!$C$23=2,1,0) -> 0
A39: Age category (ref:<60 years): ≥ 65, < 70 [37] | B39: 0.006530358542 | C39: 0.006 | E39: 0.004019905983 | F39: 0.005 | H39: =IF('HRQoL Prediction'!$C$23=3,1,0) -> 1
A40: Age category (ref:<60 years): ≥ 70, < 75 [38] | B40: -0.009789417771 | C40: 0.007 | E40: -0.007968433829 | F40: 0.005 | H40: =IF('HRQoL Prediction'!$C$23=4,1,0) -> 0
A41: Age category (ref:<60 years): ≥ 75, < 80 [39] | B41: -0.0210514228 | C41: 0.007 | E41: -0.01757635552 | F41: 0.005 | H41: =IF('HRQoL Prediction'!$C$23=5,1,0) -> 0
A42: Age category (ref:<60 years): ≥ 80 [40] | B42: -0.04199945384 | C42: 0.009 | E42: -0.032698756 | F42: 0.006 | H42: =IF('HRQoL Prediction'!$C$23=6,1,0) -> 0
A43: Smoking status (ref: never): Former [41] | B43: -0.01343255606 | C43: 0.004 | E43: -0.01041502227 | F43: 0.003 | H43: =IF('HRQoL Prediction'!$C$24=2,1,0) -> 0
A44: Smoking status (ref: never): Current [42] | B44: -0.05400096945 | C44: 0.006 | E44: -0.03874545076 | F44: 0.004 | H44: =IF('HRQoL Prediction'!$C$24=3,1,0) -> 0
A45: Current alcohol drinker [43] | B45: 0.02989982026 | C45: 0.004 | E45: 0.02182327607 | F45: 0.003 | H45: =IF('HRQoL Prediction'!$C$25=2,1,0) -> 0
A46: Body mass index (kg/m2) (ref: < 25): ≥ 25, < 30 [44] | B46: -0.01646817194 | C46: 0.004 | E46: -0.01082003664 | F46: 0.003 | H46: =IF('HRQoL Prediction'!$C$26=2,1,0) -> 0
A47: Body mass index (kg/m2) (ref: < 25): ≥ 30 [45] | B47: -0.0635758632 | C47: 0.005 | E47: -0.04334486848 | F47: 0.004 | H47: =IF('HRQoL Prediction'!$C$26=3,1,0) -> 0
A48: Male [46] | B48: 0.04225109827 | C48: 0.005 | E48: 0.03063790034 | F48: 0.004 | H48: =IF('HRQoL Prediction'!$C$27=2,1,0) -> 0

Sheet QoL bootstrapped coef (UK) (hidden)
A1: Iteration | B1: [1] | C1: [2] | D1: [3] | E1: [4] | F1: [5] | G1: [6] | H1: [7] | I1: [8] | J1: [9] | K1: [10] | L1: [11] | M1: [12] | N1: [13] | O1: [14] | P1: [15] | Q1: [16] | R1: [17] | S1: [18] | T1: [19] | U1: [20] | V1: [21] | W1: [22] | X1: [23] | Y1: [24] | Z1: [25] | AA1: [26] | AB1: [27] | AC1: [28] | AD1: [29] | AE1: [30] | AF1: [31] | AG1: [32] | AH1: [33] | AI1: [34] | AJ1: [35] | AK1: [36] | AL1: [37] | AM1: [38] | AN1: [39] | AO1: [40] | AP1: [41] | AQ1: [42] | AR1: [43] | AS1: [44] | AT1: [45] | AU1: [46] | AW1: Mean UK | AY1: =COUNTIF(AW2:AW1001,">1") -> 0
A2: 1 | B2: 0.8693598042 | C2: -0.05772520036 | D2: -0.0145530038 | E2: 0.00243844955 | F2: -0.009915142335 | G2: 0.02152145365 | H2: 0.02475156783 | I2: -0.1077539148 | J2: 0.01495264588 | K2: -0.1183631972 | L2: -0.0976285479 | M2: -0.05846070609 | N2: -0.106403227 | O2: -0.1017640477 | P2: -0.02727764839 | Q2: -0.03673062763 | R2: -0.09998092163 | S2: -0.1376463404 | T2: -0.07879391105 | U2: -0.1519651596 | V2: 0.004228833534 | W2: -0.03897665935 | X2: -0.04539704377 | Y2: -0.01076309104 | Z2: -0.007771381458 | AA2: -0.09352606855 | AB2: -0.03564814475 | AC2: -0.002996488373 | AD2: -0.1327742842 | AE2: -0.03423272171 | AF2: -0.0139841839 | AG2: -0.06921155116 | AH2: -0.04616800608 | AI2: -0.02092154414 | AJ2: -0.01398228207 | AK2: -0.008398165955 | AL2: 0.004470048418 | AM2: -0.02184920497 | AN2: -0.03280245059 | AO2: -0.05552071754 | AP2: -0.01423902348 | AQ2: -0.06095209045 | AR2: 0.03616315028 | AS2: -0.01650608075 | AT2: -0.06852050786 | AU2: 0.0362903862 | AW2: =SUMPRODUCT(B2:AU2,TRANSPOSE('QoL regression results'!$H$3:$H$48)) -> 0.8276618465
A3: 2 | B3: 0.8603233481 | C3: -0.02835080293 | D3: 0.001360059658 | E3: 0.007977514677 | F3: -0.02155968365 | G3: 0.02460670195 | H3: 0.02985341372 | I3: -0.04311147415 | J3: -0.03572639949 | K3: -0.1603563554 | L3: -0.06759836858 | M3: -0.05158541751 | N3: -0.1680623159 | O3: -0.03315145828 | P3: -0.008275975249 | Q3: -0.1127665311 | R3: -0.1134359077 | S3: -0.1488260176 | T3: -0.03994132267 | U3: -0.1546196924 | V3: 0.005798793199 | W3: -0.02985441218 | X3: -0.01957064315 | Y3: -0.0001158587229 | Z3: -0.01451880467 | AA3: -0.07800817302 | AB3: -0.03592749346 | AC3: -0.04676497303 | AD3: -0.1097876743 | AE3: -0.03143094123 | AF3: -0.01444603944 | AG3: -0.05806935311 | AH3: -0.05252418822 | AI3: -0.03146475243 | AJ3: -0.01332140789 | AK3: -0.0009261100681 | AL3: 0.005127139571 | AM3: -0.007216594623 | AN3: -0.02501191705 | AO3: -0.04504946931 | AP3: -0.01960373593 | AQ3: -0.06309971121 | AR3: 0.03094973138 | AS3: -0.01881793464 | AT3: -0.06987263187 | AU3: 0.04445565928 | AW3: =SUMPRODUCT(B3:AU3,TRANSPOSE('QoL regression results'!$H$3:$H$48)) -> 0.8129262995
A4: 3 | B4: 0.8653402432 | C4: -0.0475542554 | D4: -0.01201345117 | E4: -0.004221634904 | F4: 0.0001912181786 | G4: 0.01289387908 | H4: 0.01855997103 | I4: -0.08029707039 | J4: -0.008730115674 | K4: -0.09585836005 | L4: -0.1094268617 | M4: -0.05504883488 | N4: -0.04975168212 | O4: -0.09623368727 | P4: -0.02536027791 | Q4: -0.1483811889 | R4: -0.0682220993 | S4: -0.1428127387 | T4: -0.08263868019 | U4: -0.1099204709 | V4: 0.004031796605 | W4: -0.03797377499 | X4: -0.02729143532 | Y4: -0.016433074 | Z4: -0.01724752183 | AA4: -0.09694813584 | AB4: -0.02510808378 | AC4: 0.00136911416 | AD4: 0.006059583306 | AE4: -0.03396658037 | AF4: -0.02051982605 | AG4: -0.06609551906 | AH4: -0.0337518473 | AI4: -0.01771788137 | AJ4: -0.01218690295 | AK4: -0.006385831329 | AL4: -0.005470056028 | AM4: -0.01637388879 | AN4: -0.03338889382 | AO4: -0.04379362843 | AP4: -0.01409408694 | AQ4: -0.04959884232 | AR4: 0.03117164429 | AS4: -0.02138362304 | AT4: -0.0624902329 | AU4: 0.04716154217 | AW4: =SUMPRODUCT(B4:AU4,TRANSPOSE('QoL regression results'!$H$3:$H$48)) -> 0.8261183399
A5: 4 | B5: 0.8671579437 | C5: -0.04139276579 | D5: -0.01456008723 | E5: -0.005415719037 | F5: -0.01502148923 | G5: 0.02243749056 | H5: 0.0241129661 | I5: -0.04571427337 | J5: -0.03387203088 | K5: -0.1193998087 | L5: -0.08862604473 | M5: -0.05816075181 | N5: -0.06648526071 | O5: -0.09644976632 | P5: -0.02343786846 | Q5: -0.09802430693 | R5: -0.07174280279 | S5: -0.1436439568 | T5: -0.07369755329 | U5: 0.001811345467 | V5: 0.0008950185579 | W5: -0.04150291025 | X5: -0.04194031646 | Y5: 0.01670887442 | Z5: 0.00602179364 | AA5: -0.1005742093 | AB5: -0.02592201205 | AC5: 0.01698599592 | AD5: -0.009256933536 | AE5: -0.0487196099 | AF5: -0.0210269804 | AG5: -0.07001212547 | AH5: -0.03885786911 | AI5: -0.02960697555 | AJ5: -0.01183145599 | AK5: -0.008086123837 | AL5: 0.006566298546 | AM5: -0.009772964982 | AN5: -0.01445979575 | AO5: -0.02968111765 | AP5: -0.01179862981 | AQ5: -0.04385882344 | AR5: 0.01892877895 | AS5: -0.018994391 | AT5: -0.06809798556 | AU5: 0.05430368644 | AW5: =SUMPRODUCT(B5:AU5,TRANSPOSE('QoL regression results'!$H$3:$H$48)) -> 0.8348663732
A6: 5 | B6: 0.8557063975 | C6: -0.0271784772 | D6: 0.01189144812 | E6: 0.02056680637 | F6: -0.004182655432 | G6: 0.02451647915 | H6: 0.02733832846 | I6: -0.1330119804 | J6: -0.007606133521 | K6: -0.1688643679 | L6: -0.1123058737 | M6: -0.04763093339 | N6: -0.1060681297 | O6: -0.1087608116 | P6: -0.01872964884 | Q6: -0.1161471951 | R6: -0.008669766554 | S6: -0.1117302996 | T6: -0.03804968284 | U6: -0.03902104371 | V6: 0.02095747161 | W6: -0.03058541079 | X6: -0.05486075928 | Y6: 0.01382460536 | Z6: 0.009573862077 | AA6: -0.09620357785 | AB6: -0.01600881187 | AC6: -0.02872013712 | AD6: -0.1548944284 | AE6: -0.03334773588 | AF6: -0.02199149861 | AG6: -0.04560034573 | AH6: -0.05334767035 | AI6: -0.02601781788 | AJ6: -0.02011617784 | AK6: 0.002640205896 | AL6: 0.0005725705779 | AM6: -0.01329325075 | AN6: -0.02023624449 | AO6: -0.0554518526 | AP6: -0.01770745765 | AQ6: -0.05712637179 | AR6: 0.0304715104 | AS6: -0.01706492019 | AT6: -0.05973541828 | AU6: 0.0419888972 | AW6: =SUMPRODUCT(B6:AU6,TRANSPOSE('QoL regression results'!$H$3:$H$48)) -> 0.8029312977
A7: 6 | B7: 0.8614443512 | C7: -0.02827289789 | D7: 0.003670623329 | E7: 0.007131566251 | F7: 0.0133566859 | G7: 0.01139704073 | H7: 0.03775171047 | I7: -0.04994192421 | J7: -0.0404771267 | K7: -0.1116043582 | L7: -0.1138848115 | M7: -0.05830835548 | N7: -0.1272190569 | O7: -0.06155514277 | P7: -0.01980464282 | Q7: -0.08944794005 | R7: -0.06792154573 | S7: -0.1150804629 | T7: -0.05612546641 | U7: -0.144311026 | V7: 0.01491338963 | W7: -0.03827527571 | X7: -0.01648774424 | Y7: -0.03091271441 | Z7: 0.009575603025 | AA7: -0.1017451041 | AB7: -0.02811019867 | AC7: -0.1947157779 | AD7: -0.03045771072 | AE7: -0.0273236812 | AF7: -0.02269196799 | AG7: -0.05743562818 | AH7: -0.06292366776 | AI7: -0.03149025113 | AJ7: -0.01740768263 | AK7: -0.004603108906 | AL7: 0.003135794065 | AM7: -0.007803233567 | AN7: -0.01950986639 | AO7: -0.03614498817 | AP7: -0.01169777185 | AQ7: -0.05059140373 | AR7: 0.02716659927 | AS7: -0.01970782767 | AT7: -0.06537251336 | AU7: 0.05125394679 | AW7: =SUMPRODUCT(B7:AU7,TRANSPOSE('QoL regression results'!$H$3:$H$48)) -> 0.8016564775
A8: 7 | B8: 0.8540610288 | C8: -0.02095536613 | D8: 0.005994815994 | E8: 0.003729661669 | F8: -0.0005176944338 | G8: 0.02086805061 | H8: 0.02024452395 | I8: -0.09612490223 | J8: -0.03398683518 | K8: -0.1711723104 | L8: -0.1428903746 | M8: -0.05385120719 | N8: -0.1376328257 | O8: -0.0758345176 | P8: -0.01641198864 | Q8: -0.1340587673 | R8: -0.1306644362 | S8: -0.08676935778 | T8: -0.0738262722 | U8: -0.1220577056 | V8: -0.001393874213 | W8: -0.004441841384 | X8: -0.02484606775 | Y8: 0.007996128561 | Z8: -0.03763184154 | AA8: -0.1018443131 | AB8: -0.03557810904 | AC8: 0.02636238226 | AD8: -0.01802865097 | AE8: -0.03628663585 | AF8: -0.0239065449 | AG8: -0.06073905449 | AH8: -0.04267511201 | AI8: -0.02875614025 | AJ8: -0.01211108957 | AK8: 0.002917632268 | AL8: 0.01011434741 | AM8: -0.005530160038 | AN8: -0.00979521766 | AO8: -0.02803330831 | AP8: -0.01216721214 | AQ8: -0.05087476582 | AR8: 0.03470256861 | AS8: -0.01364331648 | AT8: -0.05522802191 | AU8: 0.0367339467 | AW8: =SUMPRODUCT(B8:AU8,TRANSPOSE('QoL regression results'!$H$3:$H$48)) -> 0.8215002642
A9: 8 | B9: 0.8554110799 | C9: -0.001589517846 | D9: -0.01110183645 | E9: 0.008298532579 | F9: 0.005816437445 | G9: 0.03556667802 | H9: 0.03475538417 | I9: -0.08537441503 | J9: -0.03075392858 | K9: -0.1130743185 | L9: -0.09412416177 | M9: -0.0466423951 | N9: -0.1315539869 | O9: -0.08610429531 | P9: -0.006463117419 | Q9: -0.04610346417 | R9: -0.1180972352 | S9: -0.1153114654 | T9: -0.1022438737 | U9: -0.1189890872 | V9: 0.00888117601 | W9: -0.02237897466 | X9: -0.06513044577 | Y9: -0.0008718572329 | Z9: -0.01519562419 | AA9: -0.1046801441 | AB9: -0.03095633083 | AC9: -0.002097460524 | AD9: -0.0538690288 | AE9: -0.03397420351 | AF9: -0.01546264861 | AG9: -0.05808636496 | AH9: -0.05926198295 | AI9: -0.01378002339 | AJ9: -0.01537740402 | AK9: 0.009292847637 | AL9: 0.01509129289 | AM9: -0.01358783398 | AN9: -0.01948472009 | AO9: -0.05093570398 | AP9: -0.01904702169 | AQ9: -0.05447015325 | AR9: 0.03012704126 | AS9: -0.01747952525 | AT9: -0.06685409515 | AU9: 0.04956121976 | AW9: =SUMPRODUCT(B9:AU9,TRANSPOSE('QoL regression results'!$H$3:$H$48)) -> 0.8112403899
A10: 9 | B10: 0.849185573 | C10: -0.02577352848 | D10: 0.01778146216 | E10: 0.006273702843 | F10: -0.01925139283 | G10: 0.01444347823 | H10: 0.02429869464 | I10: -0.07180746689 | J10: -0.009767980534 | K10: -0.2120044916 | L10: -0.08710711665 | M10: -0.05792178422 | N10: -0.2278156941 | O10: -0.04875899879 | P10: -0.02831274889 | Q10: -0.06205447957 | R10: -0.09699264801 | S10: -0.1542450123 | T10: -0.06092043353 | U10: -0.09691621301 | V10: -0.05805619742 | W10: -0.04237618523 | X10: -0.03010398276 | Y10: 0.05326345856 | Z10: 0.03054794368 | AA10: -0.08809951926 | AB10: -0.04160626088 | AC10: -0.05509111797 | AD10: -0.04582283478 | AE10: -0.03516774332 | AF10: -0.02347143548 | AG10: -0.06716042283 | AH10: -0.04495759545 | AI10: -0.01576261703 | AJ10: -0.01714710333 | AK10: 0.0007363760458 | AL10: 0.01125350838 | AM10: -0.01622599185 | AN10: -0.01955329682 | AO10: -0.03682732816 | AP10: -0.009850781736 | AQ10: -0.05346693778 | AR10: 0.03342735233 | AS10: -0.01271135635 | AT10: -0.06268821344 | AU10: 0.04305875195 | AW10: =SUMPRODUCT(B10:AU10,TRANSPOSE('QoL regression results'!$H$3:$H$48)) -> 0.8154814859
A11: 10 | B11: 0.8655390973 | C11: -0.1067044033 | D11: 0.001741079717 | E11: -0.004734772868 | F11: 0.02885287689 | G11: 0.04148108891 | H11: 0.02696363343 | I11: -0.09690990983 | J11: -0.0229388058 | K11: -0.131156497 | L11: -0.100381062 | M11: -0.04975998149 | N11: -0.1784553087 | O11: -0.1073232087 | P11: -0.01946620144 | Q11: -0.08697262907 | R11: -0.05509033609 | S11: -0.0882903695 | T11: -0.07027370776 | U11: -0.07082086734 | V11: -0.01858723846 | W11: -0.003953311212 | X11: -0.05232308927 | Y11: -0.03225440674 | Z11: -0.01318280547 | AA11: -0.1111087057 | AB11: -0.03631444075 | AC11: 0.01798184381 | AD11: 0.03690285059 | AE11: -0.03574478895 | AF11: -0.005313654019 | AG11: -0.06692903052 | AH11: -0.04722070842 | AI11: -0.03073097371 | AJ11: -0.01713423053 | AK11: -0.005366801559 | AL11: 0.003180387088 | AM11: -0.01507112383 | AN11: -0.03182913114 | AO11: -0.03974222242 | AP11: -0.01571863064 | AQ11: -0.04582982422 | AR11: 0.03334130244 | AS11: -0.02167277439 | AT11: -0.06273307817 | AU11: 0.04912070446 | AW11: =SUMPRODUCT(B11:AU11,TRANSPOSE('QoL regression results'!$H$3:$H$48)) -> 0.821498776
A12: 11 | B12: 0.8456424362 | C12: -0.01858441379 | D12: -0.01297606434 | E12: 0.006794896647 | F12: -0.05730871372 | G12: 0.04221603408 | H12: 0.02335229709 | I12: -0.0555736388 | J12: 0.006241137919 | K12: -0.137599683 | L12: -0.1119220671 | M12: -0.0579159314 | N12: -0.1071679434 | O12: -0.1165673199 | P12: -0.01930138888 | Q12: -0.07992658711 | R12: -0.09675145378 | S12: -0.1609407761 | T12: -0.05551459236 | U12: 0.002694581294 | V12: 0.06932122081 | W12: -0.03478738525 | X12: -0.06014893214 | Y12: 0.0366620731 | Z12: -0.01279218251 | AA12: -0.08452498237 | AB12: -0.04107900696 | AC12: 0.03074974586 | AD12: -0.05582714563 | AE12: -0.03421980645 | AF12: -0.002224599617 | AG12: -0.05678116794 | AH12: -0.04313925121 | AI12: -0.02042423861 | AJ12: -0.0165319456 | AK12: 0.009507028749 | AL12: 0.01084172405 | AM12: -0.0009700172878 | AN12: -0.01537507544 | AO12: -0.03770873073 | AP12: -0.009721471578 | AQ12: -0.04311361339 | AR12: 0.02937380421 | AS12: -0.01134959471 | AT12: -0.06276367603 | AU12: 0.0358381876 | AW12: =SUMPRODUCT(B12:AU12,TRANSPOSE('QoL regression results'!$H$3:$H$48)) -> 0.813344909
A13: 12 | B13: 0.8659755287 | C13: -0.07524249472 | D13: 0.0001386650668 | E13: 0.009339364848 | F13: 0.04733703987 | G13: 0.03228072581 | H13: 0.04585220524 | I13: -0.08457927808 | J13: -0.02951266884 | K13: -0.1417441704 | L13: -0.1023083222 | M13: -0.05151603623 | N13: -0.08088989437 | O13: -0.09468655948 | P13: -0.02459439537 | Q13: -0.026046416 | R13: -0.07990888247 | S13: -0.1183264282 | T13: -0.08734732846 | U13: -0.05142677157 | V13: 0.000742396934 | W13: -0.03687315589 | X13: -0.04183405152 | Y13: -0.01514112526 | Z13: 0.00929401627 | AA13: -0.08996177724 | AB13: -0.01955281196 | AC13: 0.005427615008 | AD13: 0.03206401632 | AE13: -0.03594610824 | AF13: -0.02022636709 | AG13: -0.06256375083 | AH13: -0.06561854307 | AI13: -0.02569804189 | AJ13: -0.01672729921 | AK13: 0.001651967928 | AL13: -0.00717774879 | AM13: -0.01192673466 | AN13: -0.02960006688 | AO13: -0.04826144674 | AP13: -0.0122144482 | AQ13: -0.06554234734 | AR13: 0.03149207563 | AS13: -0.02108695049 | AT13: -0.06899537525 | AU13: 0.04183512516 | AW13: =SUMPRODUCT(B13:AU13,TRANSPOSE('QoL regression results'!$H$3:$H$48)) -> 0.7931792369
A14: 13 | B14: 0.8706847713 | C14: -0.0430232926 | D14: 0.009955182327 | E14: -0.006283207998 | F14: -0.01480901544 | G14: -0.008099379405 | H14: 0.0190069562 | I14: -0.102941226 | J14: -0.02515889343 | K14: -0.08080415174 | L14: -0.1256235889 | M14: -0.05754277821 | N14: -0.1644033222 | O14: -0.1020715971 | P14: -0.01530217798 | Q14: -0.1382937477 | R14: -0.08831593279 | S14: -0.1165344752 | T14: -0.06048307747 | U14: -0.03789703181 | V14: -0.01039345667 | W14: -0.08360868829 | X14: -0.04714073704 | Y14: -0.05060593592 | Z14: -0.01824068541 | AA14: -0.08773142738 | AB14: -0.03250927998 | AC14: 0.0580421705 | AD14: -0.01911345349 | AE14: -0.03234873382 | AF14: -0.01846545008 | AG14: -0.06526429319 | AH14: -0.03647895008 | AI14: -0.02676580201 | AJ14: -0.0207793055 | AK14: -0.00679896604 | AL14: 0.004163259128 | AM14: -0.01080747022 | AN14: -0.02169446472 | AO14: -0.04792138752 | AP14: -0.008304698698 | AQ14: -0.04931090782 | AR14: 0.02683022733 | AS14: -0.01529922356 | AT14: -0.06932085799 | AU14: 0.04277786842 | AW14: =SUMPRODUCT(B14:AU14,TRANSPOSE('QoL regression results'!$H$3:$H$48)) -> 0.8383690804
A15: 14 | B15: 0.8479990927 | C15: -0.06343204561 | D15: 0.01512921064 | E15: 0.004630849573 | F15: -0.001663801924 | G15: 0.0213391392 | H15: 0.02506709175 | I15: -0.1049072291 | J15: 0.0005153441682 | K15: -0.1570415393 | L15: -0.08318289265 | M15: -0.04978594441 | N15: -0.06774596202 | O15: -0.05284748011 | P15: -0.02174533889 | Q15: -0.08527854702 | R15: -0.07468498341 | S15: -0.1230575432 | T15: -0.07416621423 | U15: -0.07281239128 | V15: -0.01182415503 | W15: -0.0294473572 | X15: -0.05946742449 | Y15: -0.02395444621 | Z15: 0.01119197556 | AA15: -0.08222288782 | AB15: -0.0438601105 | AC15: 0.008304017119 | AD15: -0.09469336038 | AE15: -0.03737848081 | AF15: -0.01866115397 | AG15: -0.06543581059 | AH15: -0.04237828503 | AI15: -0.02888121666 | AJ15: -0.01303766711 | AK15: 0.001449314065 | AL15: 0.006160821243 | AM15: -0.009188522617 | AN15: -0.01888635011 | AO15: -0.0371303564 | AP15: -0.01060825861 | AQ15: -0.05178543527 | AR15: 0.02957815312 | AS15: -0.01450131609 | AT15: -0.06096093024 | AU15: 0.045055236 | AW15: =SUMPRODUCT(B15:AU15,TRANSPOSE('QoL regression results'!$H$3:$H$48)) -> 0.8117816289
A16: 15 | B16: 0.8436211705 | C16: -0.08271757862 | D16: -0.001016396816 | E16: 0.01418038993 | F16: 0.008211533144 | G16: 0.02097564986 | H16: 0.02144342296 | I16: -0.1085561015 | J16: -0.01083793134 | K16: -0.1582724742 | L16: -0.1360597517 | M16: -0.0567010825 | N16: -0.1723223918 | O16: -0.1146048983 | P16: -0.02392028872 | Q16: -0.1552167005 | R16: -0.1378026229 | S16: -0.1016600951 | T16: -0.07158576003 | U16: -0.08675754532 | V16: -0.004962471903 | W16: -0.02853201249 | X16: -0.06791050031 | Y16: -0.01725248797 | Z16: 0.04434479106 | AA16: -0.09892586719 | AB16: -0.01937847359 | AC16: 0.009927674394 | AD16: -0.008357178585 | AE16: -0.03647491747 | AF16: -0.02840127304 | AG16: -0.05399211018 | AH16: -0.04176877032 | AI16: -0.02089885938 | AJ16: -0.01745864047 | AK16: 0.00512931278 | AL16: 0.01214599078 | AM16: -0.007777935177 | AN16: -0.01221488942 | AO16: -0.04099498099 | AP16: -0.01549450894 | AQ16: -0.06406299713 | AR16: 0.02855151498 | AS16: -0.008090322102 | AT16: -0.05315471358 | AU16: 0.0460164278 | AW16: =SUMPRODUCT(B16:AU16,TRANSPOSE('QoL regression results'!$H$3:$H$48)) -> 0.8139983909
A17: 16 | B17: 0.8620112361 | C17: -0.04521132058 | D17: 0.01369472641 | E17: 0.001275229266 | F17: -0.00859070088 | G17: 0.01541572615 | H17: 0.03944597792 | I17: -0.1459572644 | J17: -0.02318344847 | K17: -0.1843038355 | L17: -0.08167561435 | M17: -0.04738586547 | N17: -0.06175705888 | O17: -0.09302157829 | P17: -0.01240819013 | Q17: -0.138167831 | R17: -0.03202039585 | S17: -0.122311135 | T17: -0.06091058129 | U17: -0.1129715112 | V17: -0.03258133142 | W17: -0.0428663309 | X17: -0.03515390688 | Y17: -0.01625864459 | Z17: -0.02447970954 | AA17: -0.1072785376 | AB17: -0.03700995055 | AC17: -0.0001429919172 | AD17: -0.00242882973 | AE17: -0.0428224211 | AF17: -0.01093314252 | AG17: -0.05538590444 | AH17: -0.05204889984 | AI17: -0.02991606583 | AJ17: -0.01494122101 | AK17: 0.0005959371928 | AL17: 0.01115978311 | AM17: 0.001928243358 | AN17: -0.02020304651 | AO17: -0.03316395876 | AP17: -0.01490971998 | AQ17: -0.05478455122 | AR17: 0.02774341169 | AS17: -0.01664294159 | AT17: -0.06166562792 | AU17: 0.03840598368 | AW17: =SUMPRODUCT(B17:AU17,TRANSPOSE('QoL regression results'!$H$3:$H$48)) -> 0.8211221194
A18: 17 | B18: 0.8559133161 | C18: -0.03582465441 | D18: 0.01501166937 | E18: 0.01245359585 | F18: 0.008992895991 | G18: 0.0232200113 | H18: 0.02516244789 | I18: -0.04337800154 | J18: -0.03861869743 | K18: -0.1811953573 | L18: -0.1201457859 | M18: -0.04770900833 | N18: -0.1841373185 | O18: -0.0900836024 | P18: -0.02394146477 | Q18: -0.128088188 | R18: -0.08278893526 | S18: -0.1299496555 | T18: -0.02702771135 | U18: -0.009219411533 | V18: -0.00053509587 | W18: -0.01135167561 | X18: -0.02389200768 | Y18: -0.02949437374 | Z18: -0.0123969729 | AA18: -0.1008885393 | AB18: -0.04665924905 | AC18: -0.01269304189 | AD18: -0.01453351811 | AE18: -0.03227139931 | AF18: -0.02115227884 | AG18: -0.05386692475 | AH18: -0.04273897764 | AI18: -0.03339178339 | AJ18: -0.009796128993 | AK18: -0.0002927566641 | AL18: 0.00233429411 | AM18: -0.01072747776 | AN18: -0.02298242825 | AO18: -0.04384266041 | AP18: -0.01248640845 | AQ18: -0.05778490548 | AR18: 0.02806608795 | AS18: -0.02208332277 | AT18: -0.07703591653 | AU18: 0.0420884768 | AW18: =SUMPRODUCT(B18:AU18,TRANSPOSE('QoL regression results'!$H$3:$H$48)) -> 0.8155086325
A19: 18 | B19: 0.8523292466 | C19: -0.05421661359 | D19: -0.003259088725 | E19: 0.00317084405 | F19: -0.001816028207 | G19: 0.03415003652 | H19: 0.03012074342 | I19: -0.06461640374 | J19: -0.02905550874 | K19: -0.06131199613 | L19: -0.1348179335 | M19: -0.05623738857 | N19: -0.1338545386 | O19: -0.06507325638 | P19: -0.02132041606 | Q19: -0.1553994707 | R19: -0.05681606357 | S19: -0.1085195101 | T19: -0.06514908174 | U19: -0.1562759168 | V19: 0.05380174034 | W19: -0.0553232503 | X19: -0.0520451176 | Y19: -0.03392036566 | Z19: -0.006177588623 | AA19: -0.1101071542 | AB19: -0.02406889476 | AC19: -0.07408306513 | AD19: -0.0341147478 | AE19: -0.03944975218 | AF19: -0.01114051825 | AG19: -0.05567480898 | AH19: -0.0571312239 | AI19: -0.02763723877 | AJ19: -0.01463196025 | AK19: 0.007630201431 | AL19: 0.01404034282 | AM19: 0.004697185954 | AN19: -0.01746018095 | AO19: -0.02822688043 | AP19: -0.01442601589 | AQ19: -0.05775539032 | AR19: 0.02654763258 | AS19: -0.01640052456 | AT19: -0.0588944924 | AU19: 0.04773797959 | AW19: =SUMPRODUCT(B19:AU19,TRANSPOSE('QoL regression results'!$H$3:$H$48)) -> 0.8092383655
A20: 19 | B20: 0.8777704258 | C20: -0.06929240979 | D20: -0.01798825625 | E20: 0.007980802823 | F20: -0.003216387769 | G20: 0.003757859084 | H20: 0.02738305768 | I20: -0.08955327916 | J20: -0.008096814154 | K20: -0.1419454667 | L20: -0.1297940058 | M20: -0.05255395423 | N20: -0.1089173263 | O20: -0.09416882993 | P20: -0.01860611722 | Q20: -0.03939016182 | R20: -0.1307485189 | S20: -0.1430228207 | T20: -0.06758513049 | U20: -0.07847234386 | V20: 0.01582551628 | W20: -0.03441816214 | X20: -0.04099943386 | Y20: 0.04957982262 | Z20: 0.007793295887 | AA20: -0.0919952498 | AB20: -0.0289885021 | AC20: -0.09188611726 | AD20: -0.1103679505 | AE20: -0.02899624406 | AF20: -0.02037525901 | AG20: -0.0663052147 | AH20: -0.05064032785 | AI20: -0.02687713631 | AJ20: -0.02044294988 | AK20: -0.001126883236 | AL20: -0.005241182241 | AM20: -0.01122564475 | AN20: -0.02980438729 | AO20: -0.05412459745 | AP20: -0.01029008592 | AQ20: -0.05135184468 | AR20: 0.02644104166 | AS20: -0.02074413848 | AT20: -0.07152350957 | AU20: 0.03966693135 | AW20: =SUMPRODUCT(B20:AU20,TRANSPOSE('QoL regression results'!$H$3:$H$48)) -> 0.8218889157
A21: 20 | B21: 0.8810682741 | C21: -0.06100581913 | D21: 0.0005041064917 | E21: 0.005380613371 | F21: 0.001949545724 | G21: 0.01862200341 | H21: 0.02993616853 | I21: -0.09558803227 | J21: -0.01683807768 | K21: -0.1387349367 | L21: -0.1156112828 | M21: -0.06209413909 | N21: -0.07223281289 | O21: -0.1254279737 | P21: -0.02428776357 | Q21: -0.04595374743 | R21: -0.05552190617 | S21: -0.1060147172 | T21: -0.08341430896 | U21: -0.0414748596 | V21: 0.003668998373 | W21: -0.02877678056 | X21: -0.04662059438 | Y21: -0.08475170211 | Z21: 0.01843752794 | AA21: -0.1013704584 | AB21: -0.04945434789 | AC21: -0.03872031579 | AD21: -0.02651126121 | AE21: -0.03584726007 | AF21: -0.01918019959 | AG21: -0.05974477947 | AH21: -0.05123791427 | AI21: -0.02632078478 | AJ21: -0.008804078582 | AK21: -0.003625411153 | AL21: -0.002663968133 | AM21: -0.0150501002 | AN21: -0.02532884191 | AO21: -0.0518107447 | AP21: -0.01116924431 | AQ21: -0.05374672221 | AR21: 0.02187358043 | AS21: -0.02644843063 | AT21: -0.07262212603 | AU21: 0.0354167462 | AW21: =SUMPRODUCT(B21:AU21,TRANSPOSE('QoL regression results'!$H$3:$H$48)) -> 0.8271663917
A22: 21 | B22: 0.8636035114 | C22: -0.12645615 | D22: -0.008114315245 | E22: -0.005703564732 | F22: 0.01328825835 | G22: 0.03276671533 | H22: 0.03665940674 | I22: -0.07697178887 | J22: -0.02111893158 | K22: -0.151587806 | L22: -0.1170024976 | M22: -0.05340166138 | N22: -0.1408277034 | O22: -0.08959865473 | P22: -0.01849598854 | Q22: -0.07769432887 | R22: -0.06939868794 | S22: -0.1448596551 | T22: -0.06178651021 | U22: 0.04661848113 | V22: 0.01704123981 | W22: -0.02072655351 | X22: -0.06441685929 | Y22: -0.030341116 | Z22: -0.01444977341 | AA22: -0.07243368433 | AB22: -0.02083185977 | AC22: -0.1121209648 | AD22: -0.08057251617 | AE22: -0.03893136787 | AF22: -0.04158414193 | AG22: -0.06606479642 | AH22: -0.05079020947 | AI22: -0.03036381986 | AJ22: -0.01697890207 | AK22: 0.01381548199 | AL22: 0.01845284772 | AM22: -0.006860242274 | AN22: -0.01401404073 | AO22: -0.0422867226 | AP22: -0.0128445999 | AQ22: -0.06053152323 | AR22: 0.02775879896 | AS22: -0.01303609483 | AT22: -0.05505369097 | AU22: 0.03845865283 | AW22: =SUMPRODUCT(B22:AU22,TRANSPOSE('QoL regression results'!$H$3:$H$48)) -> 0.8312661496
A23: 22 | B23: 0.8755077376 | C23: -0.05497688991 | D23: 0.009389191413 | E23: 0.0001160063313 | F23: 0.01888893194 | G23: 0.02758777807 | H23: 0.03489430032 | I23: -0.06624631956 | J23: -0.009242011147 | K23: -0.1731681977 | L23: -0.1123154325 | M23: -0.0566322799 | N23: -0.0679084202 | O23: -0.06902721159 | P23: -0.01804581601 | Q23: -0.1022323767 | R23: -0.03381448078 | S23: -0.1349084302 | T23: -0.09690472101 | U23: -0.07147142397 | V23: -0.02401766014 | W23: -0.06783358061 | X23: -0.04495524541 | Y23: -0.05577173759 | Z23: 0.01549724396 | AA23: -0.09944171121 | AB23: -0.01724864317 | AC23: 0.03413556276 | AD23: -0.02058390593 | AE23: -0.02983260451 | AF23: -0.02310227594 | AG23: -0.06565164569 | AH23: -0.05678666052 | AI23: -0.04064944559 | AJ23: -0.01851668443 | AK23: -0.0126028077 | AL23: 0.0005115264726 | AM23: -0.01903859313 | AN23: -0.02841621187 | AO23: -0.05546842061 | AP23: -0.01789056488 | AQ23: -0.05739312628 | AR23: 0.03346766327 | AS23: -0.01109462273 | AT23: -0.06391289187 | AU23: 0.03876571762 | AW23: =SUMPRODUCT(B23:AU23,TRANSPOSE('QoL regression results'!$H$3:$H$48)) -> 0.8192326035
A24: 23 | B24: 0.8556741024 | C24: -0.06252601936 | D24: 0.00347473337 | E24: -0.001338919284 | F24: 0.002063854672 | G24: 0.01749240758 | H24: 0.03626588052 | I24: -0.04516546295 | J24: -0.02048774711 | K24: -0.1656506614 | L24: -0.1564727565 | M24: -0.06267188331 | N24: -0.1022523702 | O24: -0.066328913 | P24: -0.02325322109 | Q24: -0.02168201671 | R24: -0.07333874777 | S24: -0.1041734508 | T24: -0.06602785523 | U24: -0.1380925941 | V24: -0.008776373157 | W24: -0.04473461524 | X24: -0.03349031618 | Y24: -0.03168248037 | Z24: 0.05104236382 | AA24: -0.06800892979 | AB24: -0.03010683978 | AC24: -0.0674712397 | AD24: -0.03601177013 | AE24: -0.03760534555 | AF24: -0.008957921121 | AG24: -0.06160430477 | AH24: -0.053431408 | AI24: -0.01944578815 | AJ24: -0.01441639967 | AK24: -0.002128414729 | AL24: 0.01124388704 | AM24: -0.01161672408 | AN24: -0.02124278939 | AO24: -0.0480597437 | AP24: -0.01200951629 | AQ24: -0.05828538803 | AR24: 0.037281963 | AS24: -0.01555809444 | AT24: -0.06041819995 | AU24: 0.03937736493 | AW24: =SUMPRODUCT(B24:AU24,TRANSPOSE('QoL regression results'!$H$3:$H$48)) -> 0.8134865815
A25: 24 | B25: 0.8504938698 | C25: -0.05290710158 | D25: -0.005050672662 | E25: 0.007758610748 | F25: 0.002057638283 | G25: 0.01488875919 | H25: 0.02852400445 | I25: -0.08483972362 | J25: -0.02377369023 | K25: -0.1199616931 | L25: -0.0731518288 | M25: -0.05299666686 | N25: -0.09772313486 | O25: -0.07658534657 | P25: -0.01212462569 | Q25: -0.1221898471 | R25: -0.09532057048 | S25: -0.1159039254 | T25: -0.06750533663 | U25: -0.03541903159 | V25: 0.03344810253 | W25: -0.04344516837 | X25: -0.0353180368 | Y25: -0.03400545219 | Z25: 0.04081369203 | AA25: -0.1044552588 | AB25: -0.02426601172 | AC25: -0.00153366125 | AD25: -0.007743174392 | AE25: -0.04844352591 | AF25: -0.02455870649 | AG25: -0.05731971444 | AH25: -0.04853955217 | AI25: -0.03152447058 | AJ25: -0.01323820695 | AK25: 0.004939238247 | AL25: 0.01096140359 | AM25: -0.000735264696 | AN25: -0.01456052477 | AO25: -0.03338045012 | AP25: -0.01750688987 | AQ25: -0.05440620798 | AR25: 0.02841604026 | AS25: -0.01692713408 | AT25: -0.05781651022 | AU25: 0.04441955998 | AW25: =SUMPRODUCT(B25:AU25,TRANSPOSE('QoL regression results'!$H$3:$H$48)) -> 0.8129157212
A26: 25 | B26: 0.8502528421 | C26: -0.06274369386 | D26: 0.01024113374 | E26: 0.009149298625 | F26: 0.003926492904 | G26: 0.01504698396 | H26: 0.02405936014 | I26: -0.05255842754 | J26: 0.00195095164 | K26: -0.07297928789 | L26: -0.117039589 | M26: -0.0429126026 | N26: -0.1231275839 | O26: -0.1304690027 | P26: -0.01013151305 | Q26: -0.06711232941 | R26: -0.05967073963 | S26: -0.1530603441 | T26: -0.04715692674 | U26: -0.02710318089 | V26: 0.007516972143 | W26: -0.02172842251 | X26: -0.02972449597 | Y26: 0.03871205684 | Z26: 0.007640615554 | AA26: -0.1102952841 | AB26: -0.02876306249 | AC26: -0.06377932474 | AD26: -0.01358323195 | AE26: -0.03037609441 | AF26: -0.01285221965 | AG26: -0.05605821134 | AH26: -0.04164925093 | AI26: -0.02464775769 | AJ26: -0.0133228825 | AK26: 0.009331010171 | AL26: 0.01333885609 | AM26: -0.01323491151 | AN26: -0.02626536822 | AO26: -0.04025525321 | AP26: -0.01406423969 | AQ26: -0.05643707069 | AR26: 0.03228594155 | AS26: -0.01712657505 | AT26: -0.06605660655 | AU26: 0.04054489211 | AW26: =SUMPRODUCT(B26:AU26,TRANSPOSE('QoL regression results'!$H$3:$H$48)) -> 0.8219424473
A27: 26 | B27: 0.8585717515 | C27: -0.01355122268 | D27: -0.009899917096 | E27: 0.006950038283 | F27: -0.02686654559 | G27: -0.003494753745 | H27: 0.02616544818 | I27: -0.08769668363 | J27: 0.004171943509 | K27: -0.1699588397 | L27: -0.1024926594 | M27: -0.05106257608 | N27: -0.1539888993 | O27: -0.1498068713 | P27: -0.01490983483 | Q27: -0.07341702369 | R27: -0.1266849573 | S27: -0.1409459075 | T27: -0.09171602688 | U27: -0.02026198024 | V27: 0.008887620427 | W27: -0.0258754569 | X27: -0.04896420719 | Y27: 0.00851464248 | Z27: 0.0253249296 | AA27: -0.09659312905 | AB27: -0.0341774931 | AC27: 0.04015597196 | AD27: -0.08156427129 | AE27: -0.03198287838 | AF27: -0.0009883981465 | AG27: -0.05954088974 | AH27: -0.04585720246 | AI27: -0.01912993955 | AJ27: -0.01228819659 | AK27: 0.0005699595605 | AL27: 0.006690258127 | AM27: -0.01508684926 | AN27: -0.02301875044 | AO27: -0.05176711721 | AP27: -0.006589263753 | AQ27: -0.04756646277 | AR27: 0.0248492142 | AS27: -0.01710979962 | AT27: -0.0686592751 | AU27: 0.0400924467 | AW27: =SUMPRODUCT(B27:AU27,TRANSPOSE('QoL regression results'!$H$3:$H$48)) -> 0.8194048072
A28: 27 | B28: 0.8475662737 | C28: -0.02043130374 | D28: -0.008648479045 | E28: 0.003295915384 | F28: 0.0131313736 | G28: 0.03016090901 | H28: 0.02307484858 | I28: -0.105355204 | J28: -0.01536530222 | K28: -0.1116771217 | L28: -0.109544267 | M28: -0.05110016928 | N28: -0.1256095572 | O28: -0.05938705215 | P28: -0.02440280249 | Q28: -0.08585847339 | R28: -0.09246835999 | S28: -0.102523147 | T28: -0.0667759693 | U28: -0.03623644585 | V28: 0.0122000154 | W28: -0.05868570192 | X28: -0.04076698583 | Y28: 0.03252055665 | Z28: -0.05931189063 | AA28: -0.07965292074 | AB28: -0.02223151747 | AC28: 0.006892880212 | AD28: -0.07046982064 | AE28: -0.02991688468 | AF28: -0.01457229735 | AG28: -0.05747352666 | AH28: -0.04315511654 | AI28: -0.02634912105 | AJ28: -0.01793718259 | AK28: 0.00913472244 | AL28: 0.01532610273 | AM28: -0.003564845095 | AN28: -0.02064584105 | AO28: -0.03578971196 | AP28: -0.009464831022 | AQ28: -0.05416104623 | AR28: 0.03067416365 | AS28: -0.01200473382 | AT28: -0.05942124152 | AU28: 0.03796743539 | AW28: =SUMPRODUCT(B28:AU28,TRANSPOSE('QoL regression results'!$H$3:$H$48)) -> 0.8197372599
A29: 28 | B29: 0.8506226637 | C29: -0.07428213915 | D29: -0.01493900033 | E29: -0.002401317197 | F29: 0.03962289399 | G29: 0.03318233018 | H29: 0.04415724679 | I29: -0.1067659863 | J29: -0.003116131959 | K29: -0.1325942886 | L29: -0.08788792487 | M29: -0.04668175365 | N29: -0.09692108304 | O29: -0.04210482765 | P29: -0.01021914729 | Q29: -0.09025237785 | R29: -0.07916240188 | S29: -0.1397567369 | T29: -0.06578476947 | U29: -0.05781210831 | V29: 0.02892884547 | W29: -0.07654001806 | X29: -0.03161061167 | Y29: 0.0728790138 | Z29: -0.03626188992 | AA29: -0.08224897263 | AB29: -0.02531959644 | AC29: -0.1074185855 | AD29: -0.01189735086 | AE29: -0.03507151633 | AF29: -0.02357615834 | AG29: -0.05901135726 | AH29: -0.05988629935 | AI29: -0.02423857791 | AJ29: -0.01391864332 | AK29: 0.004564695896 | AL29: 0.01481702295 | AM29: -0.0008872999867 | AN29: -0.008658283059 | AO29: -0.03895360475 | AP29: -0.01198439668 | AQ29: -0.05143621858 | AR29: 0.03213937598 | AS29: -0.0237912456 | AT29: -0.06658014993 | AU29: 0.04451050633 | AW29: =SUMPRODUCT(B29:AU29,TRANSPOSE('QoL regression results'!$H$3:$H$48)) -> 0.8055533873
A30: 29 | B30: 0.8749368208 | C30: -0.02175637852 | D30: -0.01316336271 | E30: 0.002205392313 | F30: 0.01214694325 | G30: 0.02911267116 | H30: 0.03614016784 | I30: -0.08927149204 | J30: -0.002832928395 | K30: -0.1614296344 | L30: -0.1076585841 | M30: -0.06746395466 | N30: -0.1154233694 | O30: -0.04992525029 | P30: -0.02260955523 | Q30: -0.08239545937 | R30: -0.1101961206 | S30: -0.119020928 | T30: -0.0656948058 | U30: -0.2499055991 | V30: 0.01313887003 | W30: -0.02019450172 | X30: -0.03585700713 | Y30: 0.02586905306 | Z30: 0.02346046889 | AA30: -0.1004149178 | AB30: -0.02972895433 | AC30: -0.04083832736 | AD30: -0.03494966317 | AE30: -0.03394221337 | AF30: -0.02552046579 | AG30: -0.06519080886 | AH30: -0.06626263522 | AI30: -0.02352568694 | AJ30: -0.02016140774 | AK30: -0.0001765146416 | AL30: 0.006307932998 | AM30: -0.01031388098 | AN30: -0.02072452874 | AO30: -0.04681985604 | AP30: -0.006848595809 | AQ30: -0.05249824506 | AR30: 0.02320181719 | AS30: -0.02074221178 | AT30: -0.06522184806 | AU30: 0.04814093091 | AW30: =SUMPRODUCT(B30:AU30,TRANSPOSE('QoL regression results'!$H$3:$H$48)) -> 0.8149821185
A31: 30 | B31: 0.8582312661 | C31: -0.02193676674 | D31: -0.02533648951 | E31: -0.001098328981 | F31: -0.02043487743 | G31: 0.03151318495 | H31: 0.04176539057 | I31: -0.1200117831 | J31: -0.004879825326 | K31: -0.155948557 | L31: -0.1238233682 | M31: -0.04806673758 | N31: -0.1441409613 | O31: -0.07492784686 | P31: -0.0158141782 | Q31: -0.0930774083 | R31: -0.05946079514 | S31: -0.131680071 | T31: -0.05361759341 | U31: -0.0378648159 | V31: 0.01963427724 | W31: 0.0007843024075 | X31: -0.02621543004 | Y31: -0.01503020072 | Z31: 0.007413428111 | AA31: -0.1185539607 | AB31: -0.01661815627 | AC31: -0.0678509246 | AD31: 0.03645583933 | AE31: -0.02427960433 | AF31: -0.02183903718 | AG31: -0.06807317925 | AH31: -0.05528625016 | AI31: -0.02681194304 | AJ31: -0.01538738344 | AK31: -0.002281143217 | AL31: 0.001208722306 | AM31: -0.02070423642 | AN31: -0.02657499318 | AO31: -0.04953263714 | AP31: -0.004940537439 | AQ31: -0.04698599029 | AR31: 0.03088212243 | AS31: -0.01852919711 | AT31: -0.07000930059 | AU31: 0.04597518872 | AW31: =SUMPRODUCT(B31:AU31,TRANSPOSE('QoL regression results'!$H$3:$H$48)) -> 0.8041537383
A32: 31 | B32: 0.8610749784 | C32: -0.008741070439 | D32: 0.01274367346 | E32: 0.004887085293 | F32: -0.009670977031 | G32: 0.0245244184 | H32: 0.03587741971 | I32: -0.08756757403 | J32: -0.01634546797 | K32: -0.1430406704 | L32: -0.1466386587 | M32: -0.04693404073 | N32: -0.12115274 | O32: -0.0734598065 | P32: -0.01830590926 | Q32: -0.07927676125 | R32: -0.05092449712 | S32: -0.1121814354 | T32: -0.07610732972 | U32: -0.03329214745 | V32: -0.03019110286 | W32: -0.04026111089 | X32: -0.02505816491 | Y32: -0.001858958272 | Z32: -0.03369380557 | AA32: -0.08813240486 | AB32: -0.04585726006 | AC32: -0.1279339043 | AD32: -0.004992709753 | AE32: -0.03186995302 | AF32: -0.01307188532 | AG32: -0.05992267218 | AH32: -0.05880187181 | AI32: -0.02666293373 | AJ32: -0.02084676735 | AK32: -0.002735959867 | AL32: 0.006858155214 | AM32: -0.01225688196 | AN32: -0.02671589377 | AO32: -0.04728548832 | AP32: -0.01432095242 | AQ32: -0.05230639887 | AR32: 0.03134927773 | AS32: -0.01915625719 | AT32: -0.06873327259 | AU32: 0.04896020213 | AW32: =SUMPRODUCT(B32:AU32,TRANSPOSE('QoL regression results'!$H$3:$H$48)) -> 0.8091312618
A33: 32 | B33: 0.8715945373 | C33: -0.04196300561 | D33: -0.0155470269 | E33: 0.001914879099 | F33: -0.01646097051 | G33: 0.03988330212 | H33: 0.04026511702 | I33: -0.07446124412 | J33: -0.0190044821 | K33: -0.130408496 | L33: -0.1475147294 | M33: -0.05654174019 | N33: -0.0477505121 | O33: -0.08925704572 | P33: -0.03020872935 | Q33: -0.03231741695 | R33: -0.1006636307 | S33: -0.1177828221 | T33: -0.04609748497 | U33: -0.09611929134 | V33: 0.01773208755 | W33: -0.06491368965 | X33: -0.02973277156 | Y33: -0.01617988788 | Z33: -0.008762771531 | AA33: -0.103998628 | AB33: -0.04112801153 | AC33: -0.07379198235 | AD33: -0.05114513861 | AE33: -0.02752031334 | AF33: -0.01564585068 | AG33: -0.06191773111 | AH33: -0.05583770022 | AI33: -0.02798429813 | AJ33: -0.02325297297 | AK33: -0.003074881755 | AL33: 0.005889191944 | AM33: -0.0132163584 | AN33: -0.02161288587 | AO33: -0.05086402536 | AP33: -0.01055652581 | AQ33: -0.05488674666 | AR33: 0.02638821956 | AS33: -0.01590834732 | AT33: -0.06914843482 | AU33: 0.0409659801 | AW33: =SUMPRODUCT(B33:AU33,TRANSPOSE('QoL regression results'!$H$3:$H$48)) -> 0.8216460291
A34: 33 | B34: 0.8494868447 | C34: -0.01253384504 | D34: 0.01533122401 | E34: 0.01217240007 | F34: -0.01700301134 | G34: 0.01264337381 | H34: 0.02693061296 | I34: -0.1161861104 | J34: -0.01546648674 | K34: -0.1579223619 | L34: -0.09307209416 | M34: -0.05583918207 | N34: -0.147826433 | O34: -0.05992150825 | P34: -0.01517906411 | Q34: -0.0654259074 | R34: -0.09214960376 | S34: -0.05876658397 | T34: -0.06014260467 | U34: -0.09895830294 | V34: -0.02941512413 | W34: -0.02451178642 | X34: -0.04226882599 | Y34: -0.01269785967 | Z34: 0.01062240974 | AA34: -0.08767017682 | AB34: -0.01916127506 | AC34: -0.03856995762 | AD34: -0.08596678626 | AE34: -0.02958245102 | AF34: -0.02222867966 | AG34: -0.05740617876 | AH34: -0.049645023 | AI34: -0.01943098954 | AJ34: -0.01445368646 | AK34: -0.002629236361 | AL34: 0.00140184194 | AM34: -0.01260811956 | AN34: -0.02372634455 | AO34: -0.05549057143 | AP34: -0.01399411718 | AQ34: -0.04473804933 | AR34: 0.03282666626 | AS34: -0.01765246138 | AT34: -0.06458361084 | AU34: 0.04329288537 | AW34: =SUMPRODUCT(B34:AU34,TRANSPOSE('QoL regression results'!$H$3:$H$48)) -> 0.8012436636
A35: 34 | B35: 0.8537972662 | C35: -0.04996214176 | D35: 0.02157616677 | E35: -0.0005464320868 | F35: -0.007320804333 | G35: 0.002686955571 | H35: 0.03038534035 | I35: -0.1038387344 | J35: -0.02033723601 | K35: -0.06106444335 | L35: -0.1296459603 | M35: -0.05642812546 | N35: -0.2285399851 | O35: -0.1001631643 | P35: -0.02889375909 | Q35: -0.1333716696 | R35: -0.04299553888 | S35: -0.1363519115 | T35: -0.06745499122 | U35: -0.03524951776 | V35: 0.03112581552 | W35: -0.08659592399 | X35: -0.05221176717 | Y35: 0.04155732716 | Z35: -0.02149443436 | AA35: -0.08888490074 | AB35: -0.01232644491 | AC35: 0.004287075698 | AD35: 0.009712532032 | AE35: -0.03532704619 | AF35: -0.0214467132 | AG35: -0.05690890773 | AH35: -0.04464753636 | AI35: -0.02888277138 | AJ35: -0.01782864114 | AK35: -0.003469146419 | AL35: 0.009121996494 | AM35: -0.01296952727 | AN35: -0.02082592896 | AO35: -0.03661031156 | AP35: -0.006918001121 | AQ35: -0.05079371112 | AR35: 0.0313167792 | AS35: -0.009972808692 | AT35: -0.05761521743 | AU35: 0.03710264847 | AW35: =SUMPRODUCT(B35:AU35,TRANSPOSE('QoL regression results'!$H$3:$H$48)) -> 0.8182717263
A36: 35 | B36: 0.881356705 | C36: -0.02460370887 | D36: -0.02988536618 | E36: 0.001151825657 | F36: -0.01434894264 | G36: 0.031021582 | H36: 0.03509517828 | I36: -0.105500356 | J36: -0.007295002791 | K36: -0.1391054491 | L36: -0.08967685825 | M36: -0.06061022916 | N36: -0.07535400178 | O36: -0.1258656827 | P36: -0.01611332813 | Q36: -0.09867774743 | R36: -0.09606363835 | S36: -0.1169900885 | T36: -0.04085701804 | U36: -0.04648073659 | V36: -0.01826004845 | W36: -0.04018565374 | X36: -0.04231133862 | Y36: 0.003796923264 | Z36: -0.02844435073 | AA36: -0.1052002641 | AB36: -0.02963923617 | AC36: -0.06824860938 | AD36: -0.084307266 | AE36: -0.03065628462 | AF36: -0.01385478719 | AG36: -0.06993248654 | AH36: -0.06026011333 | AI36: -0.03629229479 | AJ36: -0.01328689567 | AK36: -0.0138086181 | AL36: 0.0008601427934 | AM36: -0.02146269996 | AN36: -0.02904950505 | AO36: -0.04503510049 | AP36: -0.009020747322 | AQ36: -0.05016808715 | AR36: 0.03557480692 | AS36: -0.01973657739 | AT36: -0.07517397228 | AU36: 0.03544494688 | AW36: =SUMPRODUCT(B36:AU36,TRANSPOSE('QoL regression results'!$H$3:$H$48)) -> 0.8219567344
A37: 36 | B37: 0.8518889657 | C37: -0.1054584283 | D37: -0.02086947971 | E37: 8.923617655e-05 | F37: 0.03696686427 | G37: 0.04163019931 | H37: 0.03079334418 | I37: -0.106016957 | J37: -0.02264316221 | K37: -0.1411091771 | L37: -0.183872673 | M37: -0.05894844709 | N37: -0.1398843305 | O37: -0.08566240395 | P37: -0.02272825513 | Q37: -0.05349875881 | R37: -0.08803398007 | S37: -0.1615971129 | T37: -0.0666779214 | U37: 0.0179363267 | V37: 0.04013840831 | W37: -0.0465076564 | X37: -0.05148702854 | Y37: 0.005110959419 | Z37: 0.009620717782 | AA37: -0.1207399152 | AB37: -0.03824065544 | AC37: 0.09252795886 | AD37: -0.03929881918 | AE37: -0.03440460451 | AF37: -0.008843478308 | AG37: -0.05337164274 | AH37: -0.0484858808 | AI37: -0.02535746075 | AJ37: -0.01445312018 | AK37: 0.00338070186 | AL37: 0.01200062021 | AM37: -0.00503884655 | AN37: -0.01898922258 | AO37: -0.04185244699 | AP37: -0.01464829585 | AQ37: -0.04881793735 | AR37: 0.03633479562 | AS37: -0.01409216131 | AT37: -0.0641431095 | AU37: 0.04278003819 | AW37: =SUMPRODUCT(B37:AU37,TRANSPOSE('QoL regression results'!$H$3:$H$48)) -> 0.8154037051
A38: 37 | B38: 0.8639520116 | C38: -0.06061870876 | D38: 0.01760270003 | E38: 0.008720185139 | F38: 0.014037366 | G38: 0.009075634566 | H38: 0.01695433248 | I38: -0.10495874 | J38: 0.002887498168 | K38: -0.159166657 | L38: -0.108611032 | M38: -0.05617373232 | N38: -0.1073281932 | O38: -0.04319932706 | P38: -0.01508516521 | Q38: -0.1094382765 | R38: -0.132340376 | S38: -0.09076192895 | T38: -0.07762867402 | U38: -0.07284560645 | V38: 0.02918180807 | W38: -0.04597936375 | X38: -0.04999466524 | Y38: -0.02536891346 | Z38: -0.0008907376399 | AA38: -0.1238922005 | AB38: -0.0344357961 | AC38: -0.1096521674 | AD38: -0.03921534759 | AE38: -0.03834601325 | AF38: -0.01663326804 | AG38: -0.0635527636 | AH38: -0.04024301016 | AI38: -0.02103082389 | AJ38: -0.01865317301 | AK38: -0.00476483918 | AL38: 0.001820722619 | AM38: -0.01616563738 | AN38: -0.03471025404 | AO38: -0.03912392603 | AP38: -0.01289201295 | AQ38: -0.06303820153 | AR38: 0.029171044 | AS38: -0.01135970994 | AT38: -0.06502919839 | AU38: 0.03534820856 | AW38: =SUMPRODUCT(B38:AU38,TRANSPOSE('QoL regression results'!$H$3:$H$48)) -> 0.825529724
A39: 38 | B39: 0.8784396348 | C39: -4.892922715e-05 | D39: 0.00927296322 | E39: 0.008529823662 | F39: -0.005075066928 | G39: 0.01396611545 | H39: 0.03542517595 | I39: -0.03832562629 | J39: -0.01776787483 | K39: -0.09376373357 | L39: -0.1330612079 | M39: -0.05237872647 | N39: -0.1596909367 | O39: -0.08951282569 | P39: -0.02182119087 | Q39: -0.145895926 | R39: -0.1122977227 | S39: -0.1254065051 | T39: -0.06820598401 | U39: -0.02505999608 | V39: 0.03634131753 | W39: -0.06495381758 | X39: -0.02447840645 | Y39: 0.05210260068 | Z39: 0.05988199389 | AA39: -0.1021563886 | AB39: -0.02705555522 | AC39: 0.09570379828 | AD39: -0.06082486518 | AE39: -0.03767034853 | AF39: -0.009652513687 | AG39: -0.05850838769 | AH39: -0.06461094289 | AI39: -0.02480732259 | AJ39: -0.02031302986 | AK39: -0.001203642698 | AL39: 0.005161129894 | AM39: -0.01337712909 | AN39: -0.019959576 | AO39: -0.04173692009 | AP39: -0.01601632488 | AQ39: -0.05909076941 | AR39: 0.02617997016 | AS39: -0.01656249472 | AT39: -0.0625733149 | AU39: 0.03789522236 | AW39: =SUMPRODUCT(B39:AU39,TRANSPOSE('QoL regression results'!$H$3:$H$48)) -> 0.8189898218
A40: 39 | B40: 0.8542706636 | C40: -0.03258940226 | D40: 0.00278534906 | E40: -0.001828456497 | F40: -0.02405373596 | G40: 0.02208968125 | H40: 0.01319946683 | I40: -0.05068396318 | J40: -0.02212601202 | K40: -0.143062312 | L40: -0.1315998936 | M40: -0.05032559531 | N40: -0.2004028505 | O40: -0.02549066456 | P40: -0.02527124411 | Q40: -0.08069554653 | R40: -0.0546060307 | S40: -0.1308009368 | T40: -0.05893591032 | U40: -0.1474739031 | V40: -0.001519750807 | W40: -0.04523159647 | X40: -0.04094134271 | Y40: -0.002027051656 | Z40: -0.02315981934 | AA40: -0.1208897737 | AB40: -0.03765188961 | AC40: 0.03760854779 | AD40: -0.007972290703 | AE40: -0.03533417023 | AF40: -0.01518603046 | AG40: -0.05962474924 | AH40: -0.0273051612 | AI40: -0.02636089867 | AJ40: -0.01235991646 | AK40: -0.006556491924 | AL40: 0.01310195748 | AM40: -0.01001899242 | AN40: -0.02347813152 | AO40: -0.04806437389 | AP40: -0.007934363726 | AQ40: -0.04834650471 | AR40: 0.02970842841 | AS40: -0.01170847616 | AT40: -0.07024969602 | AU40: 0.03660280868 | AW40: =SUMPRODUCT(B40:AU40,TRANSPOSE('QoL regression results'!$H$3:$H$48)) -> 0.8400674599
A41: 40 | B41: 0.8583100135 | C41: -0.06935796059 | D41: -0.0006972225657 | E41: 0.01867125188 | F41: 0.05135313587 | G41: 0.02346908322 | H41: 0.03715581125 | I41: -0.08459943934 | J41: -0.01032460223 | K41: -0.131023211 | L41: -0.1353456981 | M41: -0.04451733136 | N41: -0.09016155009 | O41: -0.1232555167 | P41: -0.0256102039 | Q41: -0.0229834261 | R41: -0.09327679428 | S41: -0.1067332453 | T41: -0.06472681181 | U41: -0.04326348631 | V41: 0.004109479781 | W41: -0.04549310039 | X41: -0.01774944428 | Y41: -0.004347104348 | Z41: 0.006231006159 | AA41: -0.07057622218 | AB41: -0.03573571355 | AC41: -0.00789401863 | AD41: 0.07615328093 | AE41: -0.02863846847 | AF41: -0.01597516913 | AG41: -0.06074487847 | AH41: -0.0631226297 | AI41: -0.01736650918 | AJ41: -0.01648901957 | AK41: -0.003102598878 | AL41: -0.003978866238 | AM41: -0.01709141574 | AN41: -0.01981929004 | AO41: -0.04420748328 | AP41: -0.008047165881 | AQ41: -0.0552268589 | AR41: 0.02801814864 | AS41: -0.01706154503 | AT41: -0.06470259498 | AU41: 0.03903326876 | AW41: =SUMPRODUCT(B41:AU41,TRANSPOSE('QoL regression results'!$H$3:$H$48)) -> 0.7912085175
A42: 41 | B42: 0.8573875841 | C42: -0.0721178749 | D42: 0.03109478371 | E42: 0.006496234295 | F42: 0.009240781289 | G42: 0.01237193033 | H42: 0.04507092169 | I42: -0.03085999522 | J42: -0.01813435878 | K42: -0.1263358687 | L42: -0.1199434628 | M42: -0.04390354347 | N42: -0.1388600322 | O42: -0.06829076127 | P42: -0.01938756688 | Q42: -0.01767808162 | R42: -0.07932266687 | S42: -0.1774095164 | T42: -0.07198305056 | U42: -0.04354756199 | V42: 0.01697862106 | W42: -0.03775557567 | X42: -0.02948467305 | Y42: 0.01860157513 | Z42: -0.02714395526 | AA42: -0.08264601386 | AB42: -0.03575629209 | AC42: 0.00478392104 | AD42: 0.04259267105 | AE42: -0.03618771854 | AF42: -0.01447670262 | AG42: -0.05794498059 | AH42: -0.05794944824 | AI42: -0.01766575568 | AJ42: -0.01486388051 | AK42: -0.01051379951 | AL42: 0.0004907289776 | AM42: -0.01676131618 | AN42: -0.02441197286 | AO42: -0.05249889993 | AP42: -0.01637413518 | AQ42: -0.05593851343 | AR42: 0.03471963847 | AS42: -0.01205413119 | AT42: -0.06126160811 | AU42: 0.03918267091 | AW42: =SUMPRODUCT(B42:AU42,TRANSPOSE('QoL regression results'!$H$3:$H$48)) -> 0.7999288648
A43: 42 | B43: 0.835734783 | C43: -0.0483576465 | D43: 0.005793525905 | E43: 0.008986344208 | F43: 0.0202273465 | G43: 0.03542049866 | H43: 0.03373637489 | I43: -0.09418790015 | J43: -0.03391278758 | K43: -0.09618268913 | L43: -0.1309458605 | M43: -0.03845709663 | N43: -0.2194464246 | O43: -0.07145859388 | P43: -0.02695910425 | Q43: -0.0370635969 | R43: -0.1211863056 | S43: -0.1349142493 | T43: -0.07492945237 | U43: 0.01277642136 | V43: 0.007092677668 | W43: -0.04767356794 | X43: -0.04004702873 | Y43: 0.005948388197 | Z43: 0.02204258141 | AA43: -0.09704046022 | AB43: -0.03954730738 | AC43: 0.03358070042 | AD43: -0.04040018339 | AE43: -0.03645403181 | AF43: -0.01511888613 | AG43: -0.05952904247 | AH43: -0.05528095894 | AI43: -0.0291836257 | AJ43: -0.02081789274 | AK43: 0.01003227506 | AL43: 0.02290297298 | AM43: 0.0033951453 | AN43: -0.005421407746 | AO43: -0.02687319994 | AP43: -0.004493905965 | AQ43: -0.04168280788 | AR43: 0.03005106226 | AS43: -0.01949887106 | AT43: -0.06599529652 | AU43: 0.04552491376 | AW43: =SUMPRODUCT(B43:AU43,TRANSPOSE('QoL regression results'!$H$3:$H$48)) -> 0.803356797
A44: 43 | B44: 0.8620847441 | C44: -0.03155419914 | D44: 0.003208179016 | E44: 0.006113751114 | F44: -0.003416316017 | G44: 0.0369471939 | H44: 0.03982326369 | I44: -0.1004749619 | J44: -0.02094627875 | K44: -0.1306345894 | L44: -0.1013419046 | M44: -0.05816045849 | N44: -0.1763626411 | O44: -0.06470682922 | P44: -0.02175142157 | Q44: -0.1283263268 | R44: -0.07179784543 | S44: -0.133076347 | T44: -0.06888371778 | U44: -0.1438247201 | V44: 0.03616608467 | W44: -0.06375477687 | X44: -0.03513609097 | Y44: -0.01738380587 | Z44: 0.003857473828 | AA44: -0.06875970026 | AB44: -0.04386313543 | AC44: -0.0386189675 | AD44: -0.01824638481 | AE44: -0.03000717236 | AF44: -0.02739109098 | AG44: -0.061539809 | AH44: -0.05608328768 | AI44: -0.03549414703 | AJ44: -0.01175800391 | AK44: -0.01315856103 | AL44: -0.004856195664 | AM44: -0.01819145184 | AN44: -0.02370612906 | AO44: -0.05206498282 | AP44: -0.00874189554 | AQ44: -0.04844064195 | AR44: 0.0327202407 | AS44: -0.01812576556 | AT44: -0.07087846104 | AU44: 0.04197117001 | AW44: =SUMPRODUCT(B44:AU44,TRANSPOSE('QoL regression results'!$H$3:$H$48)) -> 0.8011452607
A45: 44 | B45: 0.8652315004 | C45: -0.1121836924 | D45: 0.001292546999 | E45: -0.0009122837458 | F45: 0.04158645573 | G45: 0.03290193156 | H45: 0.04495154643 | I45: -0.1008993937 | J45: -0.01727287042 | K45: -0.1236504927 | L45: -0.1337651494 | M45: -0.05544850974 | N45: -0.1819067977 | O45: -0.09658998543 | P45: -0.01636486849 | Q45: 0.05004575847 | R45: -0.07270443532 | S45: -0.1486942187 | T45: -0.09111277248 | U45: -0.1119066733 | V45: 0.03716065518 | W45: -0.03291382254 | X45: -0.06560867157 | Y45: 0.04152554246 | Z45: 0.05907853448 | AA45: -0.089251124 | AB45: -0.03969799786 | AC45: -0.01555489774 | AD45: -0.0780574283 | AE45: -0.0368358724 | AF45: -0.004355406344 | AG45: -0.06386836417 | AH45: -0.06240460695 | AI45: -0.01558979767 | AJ45: -0.01980775404 | AK45: -0.004003831725 | AL45: 0.007246328062 | AM45: -0.003805756685 | AN45: -0.01848840344 | AO45: -0.04342793047 | AP45: -0.009758339898 | AQ45: -0.05382846661 | AR45: 0.02170053381 | AS45: -0.01404364508 | AT45: -0.0649652114 | AU45: 0.04501788566 | AW45: =SUMPRODUCT(B45:AU45,TRANSPOSE('QoL regression results'!$H$3:$H$48)) -> 0.8100732216
A46: 45 | B46: 0.8848808944 | C46: -0.08315921558 | D46: 0.0176870048 | E46: -0.005613344444 | F46: 0.03089828918 | G46: -0.002476852456 | H46: 0.02449070078 | I46: -0.09094727547 | J46: 0.01300019938 | K46: -0.1058047309 | L46: -0.1251863902 | M46: -0.06263366714 | N46: -0.1219045083 | O46: -0.1297893478 | P46: -0.01294436353 | Q46: -0.1402627714 | R46: -0.106531606 | S46: -0.1426226629 | T46: -0.06677966738 | U46: -0.1124165001 | V46: 0.01836811483 | W46: -0.08255509816 | X46: -0.04430921192 | Y46: 0.01108595636 | Z46: -0.00824097105 | AA46: -0.08906239197 | AB46: -0.01606680928 | AC46: -0.08342928711 | AD46: -0.006321324551 | AE46: -0.03662835386 | AF46: -0.01075905816 | AG46: -0.07278972671 | AH46: -0.04311707796 | AI46: -0.02401040464 | AJ46: -0.01177540725 | AK46: -0.008871023481 | AL46: 6.854626752e-05 | AM46: -0.01688471753 | AN46: -0.02978956634 | AO46: -0.04622859655 | AP46: -0.02330081381 | AQ46: -0.0490305934 | AR46: 0.03591943913 | AS46: -0.0186597202 | AT46: -0.05688098513 | AU46: 0.02974246214 | AW46: =SUMPRODUCT(B46:AU46,TRANSPOSE('QoL regression results'!$H$3:$H$48)) -> 0.8418323627
A47: 46 | B47: 0.8647635804 | C47: -0.09415284167 | D47: -0.005362871163 | E47: -0.0003540602443 | F47: 0.02545894072 | G47: 0.01520299673 | H47: 0.02567542493 | I47: -0.08862091184 | J47: -0.02954322994 | K47: -0.06948559173 | L47: -0.08853000041 | M47: -0.05282648141 | N47: -0.07045796079 | O47: -0.1354199934 | P47: -0.009527128845 | Q47: -0.1251205973 | R47: -0.01814864889 | S47: -0.1532620239 | T47: -0.07017646667 | U47: -0.03335685494 | V47: 0.04071183628 | W47: -0.08530283184 | X47: -0.04122887685 | Y47: 0.04358179727 | Z47: 0.004695027494 | AA47: -0.1164426004 | AB47: -0.02351575266 | AC47: -0.02706178489 | AD47: -0.04140592556 | AE47: -0.02818529188 | AF47: -0.00620674898 | AG47: -0.06596393824 | AH47: -0.03964452234 | AI47: -0.03720083707 | AJ47: -0.01405745335 | AK47: 0.0001629448397 | AL47: -0.001416749434 | AM47: -0.01735101 | AN47: -0.01988118466 | AO47: -0.04453935456 | AP47: -0.01188684227 | AQ47: -0.06157387906 | AR47: 0.02606317081 | AS47: -0.01483795254 | AT47: -0.06534744612 | AU47: 0.04476568506 | AW47: =SUMPRODUCT(B47:AU47,TRANSPOSE('QoL regression results'!$H$3:$H$48)) -> 0.8237023086
A48: 47 | B48: 0.8589674034 | C48: -0.06024528341 | D48: -0.004494936603 | E48: 0.001746420146 | F48: -0.0004915287854 | G48: 0.01365767581 | H48: 0.01515726867 | I48: -0.1106089388 | J48: -0.02404466434 | K48: -0.08733247414 | L48: -0.1079284999 | M48: -0.05671846407 | N48: -0.08215211668 | O48: -0.08447262119 | P48: -0.02267637531 | Q48: -0.02819775524 | R48: -0.1240586606 | S48: -0.09894613157 | T48: -0.0767599147 | U48: -0.1391255212 | V48: -0.02790184427 | W48: -0.06115935344 | X48: -0.0307095305 | Y48: 0.01722252457 | Z48: -0.001422198994 | AA48: -0.08107094244 | AB48: -0.02991982841 | AC48: 0.01019914291 | AD48: -0.02314142068 | AE48: -0.03437787684 | AF48: -0.01981737141 | AG48: -0.05787790391 | AH48: -0.03276658787 | AI48: -0.0240396225 | AJ48: -0.02240553787 | AK48: 0.0005652933068 | AL48: 0.0007375770411 | AM48: -0.01930170249 | AN48: -0.02042168712 | AO48: -0.04394098977 | AP48: -0.01739810523 | AQ48: -0.05238832475 | AR48: 0.02894389471 | AS48: -0.01921723531 | AT48: -0.06255529628 | AU48: 0.05120323468 | AW48: =SUMPRODUCT(B48:AU48,TRANSPOSE('QoL regression results'!$H$3:$H$48)) -> 0.8269383925
A49: 48 | B49: 0.8670964761 | C49: -0.04093242802 | D49: -0.004706824318 | E49: 0.008194452796 | F49: 0.01975283785 | G49: 0.0189520112 | H49: 0.03919797244 | I49: -0.06962977001 | J49: -0.01815177846 | K49: -0.04397448137 | L49: -0.09146348512 | M49: -0.04257776524 | N49: -0.1243876942 | O49: -0.09148258492 | P49: -0.02452131207 | Q49: 0.01270788711 | R49: -0.03402566905 | S49: -0.1112857751 | T49: -0.06789838249 | U49: -0.04488084834 | V49: -0.005449279926 | W49: -0.07830800174 | X49: -0.03633008941 | Y49: 0.01059925686 | Z49: 0.005910579304 | AA49: -0.1080926165 | AB49: -0.02819868483 | AC49: -0.03289869969 | AD49: -0.02065300754 | AE49: -0.02825642837 | AF49: -0.02174417046 | AG49: -0.06241532967 | AH49: -0.05511933799 | AI49: -0.03815264102 | AJ49: -0.01371551867 | AK49: -0.002914823848 | AL49: 0.005638190652 | AM49: -0.01817891593 | AN49: -0.035767428 | AO49: -0.05492331101 | AP49: -0.007611259359 | AQ49: -0.05433740109 | AR49: 0.03181264481 | AS49: -0.01693585169 | AT49: -0.06279003961 | AU49: 0.032278511 | AW49: =SUMPRODUCT(B49:AU49,TRANSPOSE('QoL regression results'!$H$3:$H$48)) -> 0.8176153287
A50: 49 | B50: 0.8558688756 | C50: -0.08160525351 | D50: 0.004699567101 | E50: 0.00132443446 | F50: 0.009982796133 | G50: 0.03899251402 | H50: 0.04942309968 | I50: -0.05793298819 | J50: -0.02921063441 | K50: -0.1200372913 | L50: -0.1161445559 | M50: -0.05823120044 | N50: -0.1470109191 | O50: -0.07026900728 | P50: -0.02875967228 | Q50: -0.07355912336 | R50: -0.07654779033 | S50: -0.1700094989 | T50: -0.0699209772 | U50: -0.06085190019 | V50: -0.009987596162 | W50: -0.0726973738 | X50: -0.01590681355 | Y50: 0.09507619778 | Z50: 0.01413261637 | AA50: -0.1005148836 | AB50: -0.01665577821 | AC50: 0.01952630438 | AD50: 0.003839945929 | AE50: -0.03714771002 | AF50: -0.01256208756 | AG50: -0.05893391237 | AH50: -0.067101353 | AI50: -0.03195802534 | AJ50: -0.01605095207 | AK50: 0.005407089058 | AL50: 0.01061968766 | AM50: -0.01549683929 | AN50: -0.02336641648 | AO50: -0.03398949049 | AP50: -0.01048464952 | AQ50: -0.04468608074 | AR50: 0.02982019498 | AS50: -0.01256833245 | AT50: -0.05571313374 | AU50: 0.04166604562 | AW50: =SUMPRODUCT(B50:AU50,TRANSPOSE('QoL regression results'!$H$3:$H$48)) -> 0.7993872102
A51: 50 | B51: 0.865376225 | C51: -0.04446501481 | D51: -0.0151670022 | E51: 0.0008072985543 | F51: 0.004024602671 | G51: 0.02401580508 | H51: 0.03083185973 | I51: -0.04630617047 | J51: -0.01515994107 | K51: -0.2072426483 | L51: -0.1105902845 | M51: -0.05310008146 | N51: -0.1361875904 | O51: -0.1521857584 | P51: -0.01272562077 | Q51: -0.06600154334 | R51: -0.09677743224 | S51: -0.0995544263 | T51: -0.06477819567 | U51: 0.02314063904 | V51: 0.008817724409 | W51: -0.02295599413 | X51: -0.04041711767 | Y51: -0.02997800093 | Z51: 0.03296389285 | AA51: -0.1134565867 | AB51: -0.03978529489 | AC51: -0.08422775723 | AD51: -0.02012252157 | AE51: -0.02671086173 | AF51: -0.02450390243 | AG51: -0.05767497926 | AH51: -0.05136305968 | AI51: -0.02851625609 | AJ51: -0.01412117591 | AK51: 0.003164894672 | AL51: 0.006438560654 | AM51: -0.008610405917 | AN51: -0.01869990649 | AO51: -0.03574433675 | AP51: -0.01207547874 | AQ51: -0.04654758151 | AR51: 0.02776027256 | AS51: -0.01747127598 | AT51: -0.06429434987 | AU51: 0.0400120025 | AW51: =SUMPRODUCT(B51:AU51,TRANSPOSE('QoL regression results'!$H$3:$H$48)) -> 0.820451726
A52: 51 | B52: 0.8497491342 | C52: -0.03794005617 | D52: -0.001206320884 | E52: 0.009997494603 | F52: 0.03615356133 | G52: 0.02894859545 | H52: 0.03779188898 | I52: -0.07875421582 | J52: -0.02288822934 | K52: -0.01816951236 | L52: -0.1026311676 | M52: -0.0413988273 | N52: -0.1126664452 | O52: -0.05573087096 | P52: -0.02624683829 | Q52: -0.06238157867 | R52: -0.0927433809 | S52: -0.1170910788 | T52: -0.06095314333 | U52: -0.1478396783 | V52: -0.02093248069 | W52: -0.04928815381 | X52: -0.02758240008 | Y52: -0.02561521402 | Z52: -0.008879847391 | AA52: -0.1161246485 | AB52: -0.02800089435 | AC52: -0.05595541271 | AD52: 0.004878811969 | AE52: -0.03536949726 | AF52: -0.00625618483 | AG52: -0.06977297113 | AH52: -0.05705366091 | AI52: -0.03406383988 | AJ52: -0.01471075174 | AK52: 0.001898127268 | AL52: 0.010968505 | AM52: -0.01125047385 | AN52: -0.01878536902 | AO52: -0.05333311685 | AP52: -0.01304280988 | AQ52: -0.04119541778 | AR52: 0.03678815858 | AS52: -0.0107025419 | AT52: -0.06297418236 | AU52: 0.03869967402 | AW52: =SUMPRODUCT(B52:AU52,TRANSPOSE('QoL regression results'!$H$3:$H$48)) -> 0.8036639782
A53: 52 | B53: 0.8607359855 | C53: -0.03432163321 | D53: 0.005422653495 | E53: 0.01409388805 | F53: 0.05311507216 | G53: 0.04553936575 | H53: 0.04102452314 | I53: -0.06041001733 | J53: -0.02602643428 | K53: -0.1352711601 | L53: -0.09873924418 | M53: -0.05957236317 | N53: -0.1345869843 | O53: -0.1008010662 | P53: -0.02145575557 | Q53: -0.07614204955 | R53: -0.1015808732 | S53: -0.1321090852 | T53: -0.071092197 | U53: -0.06185268272 | V53: 0.0007852163429 | W53: -0.03432102746 | X53: -0.01944677999 | Y53: -0.0461561424 | Z53: 0.03654515451 | AA53: -0.0967216379 | AB53: -0.03476385569 | AC53: 0.009037700784 | AD53: -0.06159899918 | AE53: -0.03466085622 | AF53: -0.02456850708 | AG53: -0.05997119717 | AH53: -0.06722636023 | AI53: -0.02813851288 | AJ53: -0.0171966877 | AK53: 0.009023391617 | AL53: 0.01133368988 | AM53: -0.008303581306 | AN53: -0.02181676357 | AO53: -0.03734315021 | AP53: -0.01372775153 | AQ53: -0.06256166757 | AR53: 0.02914336012 | AS53: -0.01606227282 | AT53: -0.0681559681 | AU53: 0.04351443323 | AW53: =SUMPRODUCT(B53:AU53,TRANSPOSE('QoL regression results'!$H$3:$H$48)) -> 0.8048433151
A54: 53 | B54: 0.869578515 | C54: 0.0004009020568 | D54: 0.02230753442 | E54: 0.00180385648 | F54: -0.02343309729 | G54: -0.001314598079 | H54: 0.02392539461 | I54: -0.09751377261 | J54: -0.02236233505 | K54: -0.180085412 | L54: -0.09601375804 | M54: -0.05084659563 | N54: -0.1440571574 | O54: -0.1146953333 | P54: -0.01123945562 | Q54: -0.1504914946 | R54: -0.01690945499 | S54: -0.1022257837 | T54: -0.06146309398 | U54: -0.1353629514 | V54: 0.004083339975 | W54: -0.08969895138 | X54: -0.05106711869 | Y54: 0.02392487767 | Z54: 0.03386483234 | AA54: -0.08282701712 | AB54: -0.01532387766 | AC54: 0.05645691151 | AD54: -0.1426159512 | AE54: -0.03464199835 | AF54: -0.02001403596 | AG54: -0.06028765651 | AH54: -0.04583541334 | AI54: -0.0267061284 | AJ54: -0.01322356014 | AK54: -0.008894176762 | AL54: 0.001769749775 | AM54: -0.01429226822 | AN54: -0.02891500847 | AO54: -0.04279854045 | AP54: -0.01333972906 | AQ54: -0.05133313459 | AR54: 0.03349688689 | AS54: -0.02363679878 | AT54: -0.07343754384 | AU54: 0.04445618321 | AW54: =SUMPRODUCT(B54:AU54,TRANSPOSE('QoL regression results'!$H$3:$H$48)) -> 0.8255128514
A55: 54 | B55: 0.8532782053 | C55: -0.02826730108 | D55: 0.004042578858 | E55: 0.004932292783 | F55: 0.001030304098 | G55: 0.008051640537 | H55: 0.02713390409 | I55: -0.1133690945 | J55: -0.01657333421 | K55: -0.2032708774 | L55: -0.1509575853 | M55: -0.04936793732 | N55: -0.1088721275 | O55: -0.1208779714 | P55: -0.02476993509 | Q55: -0.1298929331 | R55: -0.07304644725 | S55: -0.1299383449 | T55: -0.05187764811 | U55: -0.03069079628 | V55: -0.005724079617 | W55: -0.08824236694 | X55: -0.05455939869 | Y55: 0.002571684333 | Z55: 0.01926870858 | AA55: -0.08804540451 | AB55: -0.04499334481 | AC55: -0.006707966589 | AD55: -0.07846074898 | AE55: -0.03526215872 | AF55: -0.01951220357 | AG55: -0.05731331507 | AH55: -0.04319935572 | AI55: -0.03416573464 | AJ55: -0.01881599144 | AK55: -0.002093316493 | AL55: 0.004008074739 | AM55: -0.005846939825 | AN55: -0.02521015025 | AO55: -0.03989812732 | AP55: -0.01458120921 | AQ55: -0.06210968724 | AR55: 0.02854112316 | AS55: -0.01731857938 | AT55: -0.06597930577 | AU55: 0.05142849106 | AW55: =SUMPRODUCT(B55:AU55,TRANSPOSE('QoL regression results'!$H$3:$H$48)) -> 0.8140869243
A56: 55 | B56: 0.8569210868 | C56: -0.03860085927 | D56: -0.003854596185 | E56: 0.001749872393 | F56: 0.01553883519 | G56: 0.0304191165 | H56: 0.03644086283 | I56: -0.1056763964 | J56: -0.05265257369 | K56: -0.0819260868 | L56: -0.090022583 | M56: -0.04793969464 | N56: -0.1346390722 | O56: -0.08552858242 | P56: -0.02431459908 | Q56: -0.02406786223 | R56: -0.08466158413 | S56: -0.1458208512 | T56: -0.05345802609 | U56: -0.0604539071 | V56: 0.006888289108 | W56: -0.05453182821 | X56: -0.03771188896 | Y56: 0.0105169798 | Z56: -0.02816278061 | AA56: -0.1047116543 | AB56: -0.03371230464 | AC56: -0.01521866739 | AD56: 0.02698710444 | AE56: -0.03405723605 | AF56: -0.01496215864 | AG56: -0.05708932138 | AH56: -0.05407263758 | AI56: -0.03732927861 | AJ56: -0.01323156333 | AK56: 0.01155273414 | AL56: 0.01026668951 | AM56: -0.002056886796 | AN56: -0.01669645161 | AO56: -0.0303216681 | AP56: -0.0111636453 | AQ56: -0.04933149446 | AR56: 0.02761139828 | AS56: -0.01870876866 | AT56: -0.07157982767 | AU56: 0.04150090876 | AW56: =SUMPRODUCT(B56:AU56,TRANSPOSE('QoL regression results'!$H$3:$H$48)) -> 0.8131151387
A57: 56 | B57: 0.8615392887 | C57: -0.03635054315 | D57: -0.008025734768 | E57: 0.0003537029676 | F57: -0.01710003492 | G57: 0.01340829546 | H57: 0.03035126301 | I57: -0.09067315674 | J57: -0.03814184153 | K57: -0.1408744297 | L57: -0.09054108804 | M57: -0.0562093191 | N57: -0.03574922484 | O57: -0.1149316714 | P57: -0.01723220207 | Q57: -0.002149963537 | R57: -0.09328289588 | S57: -0.1484675031 | T57: -0.06230739716 | U57: -0.1047957354 | V57: 0.04435468432 | W57: -0.04967065636 | X57: -0.05212382396 | Y57: -0.0313464922 | Z57: -0.03056817727 | AA57: -0.09848008489 | AB57: -0.0312003724 | AC57: -0.02821510519 | AD57: -0.08256521423 | AE57: -0.02977879999 | AF57: -0.02155899077 | AG57: -0.05875577542 | AH57: -0.05577423957 | AI57: -0.02273374829 | AJ57: -0.02211531947 | AK57: 0.00212041243 | AL57: 0.01108749516 | AM57: -0.0075631639 | AN57: -0.02099238983 | AO57: -0.03560774067 | AP57: -0.0126745583 | AQ57: -0.05159531644 | AR57: 0.03293282931 | AS57: -0.02068981366 | AT57: -0.06007835959 | AU57: 0.04589144429 | AW57: =SUMPRODUCT(B57:AU57,TRANSPOSE('QoL regression results'!$H$3:$H$48)) -> 0.8168525443
A58: 57 | B58: 0.8685337825 | C58: -0.06930973782 | D58: -0.01242855568 | E58: 0.003321141861 | F58: 0.004146651599 | G58: 0.0399546748 | H58: 0.03144387601 | I58: -0.09824665841 | J58: -0.02569664434 | K58: -0.08365879172 | L58: -0.1011091733 | M58: -0.05281960174 | N58: -0.09754520455 | O58: -0.1149955112 | P58: -0.02244072408 | Q58: 0.009533313515 | R58: -0.04490638134 | S58: -0.1443934721 | T58: -0.05562049712 | U58: -0.1139958786 | V58: -0.001955968812 | W58: -0.06924832202 | X58: -0.0383245351 | Y58: 0.08160036239 | Z58: 0.0673089561 | AA58: -0.08140389815 | AB58: -0.02667585522 | AC58: 0.04901088595 | AD58: 0.008021001622 | AE58: -0.03781525723 | AF58: -0.03421991351 | AG58: -0.05768310576 | AH58: -0.05768718657 | AI58: -0.02675295114 | AJ58: -0.01674686615 | AK58: 0.004225679671 | AL58: 0.005823071263 | AM58: -0.0149647717 | AN58: -0.02158462945 | AO58: -0.03823472181 | AP58: -0.0198175864 | AQ58: -0.06362762797 | AR58: 0.02865822048 | AS58: -0.02296739693 | AT58: -0.06394872442 | AU58: 0.04866236466 | AW58: =SUMPRODUCT(B58:AU58,TRANSPOSE('QoL regression results'!$H$3:$H$48)) -> 0.8166696672
A59: 58 | B59: 0.8615406963 | C59: -0.07176545288 | D59: -0.01395787885 | E59: 0.003745736546 | F59: 0.0281889797 | G59: 0.04041026786 | H59: 0.04219222725 | I59: -0.0557397363 | J59: -0.01336490658 | K59: -0.07755330081 | L59: -0.1303585922 | M59: -0.04906767153 | N59: -0.1785794942 | O59: -0.06512284844 | P59: -0.02691760394 | Q59: -0.04626389893 | R59: -0.05746052971 | S59: -0.111977013 | T59: -0.08568397895 | U59: -0.1309359731 | V59: -0.001043951335 | W59: -0.0633549027 | X59: -0.009220976172 | Y59: 0.03106009038 | Z59: 0.02019363789 | AA59: -0.08206462979 | AB59: -0.02935913656 | AC59: 0.01521440871 | AD59: -0.04342730665 | AE59: -0.02757721387 | AF59: -0.002786064357 | AG59: -0.05921881529 | AH59: -0.05692866217 | AI59: -0.03688654773 | AJ59: -0.01951759689 | AK59: -0.000388975134 | AL59: 0.003893652911 | AM59: -0.007671984335 | AN59: -0.02409172946 | AO59: -0.04875737707 | AP59: -0.009895983882 | AQ59: -0.04928252406 | AR59: 0.03094345682 | AS59: -0.01629105073 | AT59: -0.06529267534 | AU59: 0.03161302436 | AW59: =SUMPRODUCT(B59:AU59,TRANSPOSE('QoL regression results'!$H$3:$H$48)) -> 0.808505687
A60: 59 | B60: 0.8388451226 | C60: 0.00337659965 | D60: 0.03304878974 | E60: 0.01833716 | F60: -0.03260598469 | G60: 0.01530100255 | H60: 0.03015027496 | I60: -0.07054141797 | J60: -0.02104845499 | K60: -0.171603673 | L60: -0.1392807934 | M60: -0.04700548385 | N60: -0.1775772536 | O60: -0.1000465741 | P60: -0.02016549624 | Q60: -0.02432391754 | R60: -0.06613881464 | S60: -0.116354373 | T60: -0.07926467551 | U60: -0.1257377236 | V60: 0.00349953 | W60: -0.03082175175 | X60: -0.06768873318 | Y60: 0.02291926372 | Z60: 0.04703447295 | AA60: -0.0875379698 | AB60: -0.02480065149 | AC60: -0.05771970163 | AD60: -0.1009642272 | AE60: -0.03754797024 | AF60: -0.02487294783 | AG60: -0.05661192893 | AH60: -0.05259649094 | AI60: -0.009611438524 | AJ60: -0.01347786258 | AK60: 0.01334239387 | AL60: 0.005227614887 | AM60: -0.005197916624 | AN60: -0.0188131778 | AO60: -0.05047738948 | AP60: -0.01668557861 | AQ60: -0.05991448405 | AR60: 0.02990110665 | AS60: -0.01097739662 | AT60: -0.05309719497 | AU60: 0.04507004776 | AW60: =SUMPRODUCT(B60:AU60,TRANSPOSE('QoL regression results'!$H$3:$H$48)) -> 0.7914762465
A61: 60 | B61: 0.8778944404 | C61: -0.02573571134 | D61: -0.005535631364 | E61: 0.004528398935 | F61: -0.03471033046 | G61: -0.0006749443379 | H61: 0.03000192133 | I61: -0.02904349473 | J61: -0.001754962572 | K61: -0.1133574199 | L61: -0.08321221563 | M61: -0.05432606314 | N61: -0.1117797719 | O61: -0.07994101524 | P61: -0.01440709489 | Q61: -0.03883253512 | R61: -0.1070936813 | S61: -0.1596257522 | T61: -0.05871310903 | U61: -0.01142157803 | V61: 0.00390494623 | W61: -0.06598141468 | X61: -0.04634753779 | Y61: 0.04414159614 | Z61: 0.003575938163 | AA61: -0.08826748332 | AB61: -0.03114621482 | AC61: -0.01697407643 | AD61: -0.0378786037 | AE61: -0.03599437295 | AF61: -0.02393743264 | AG61: -0.06867606258 | AH61: -0.04949939563 | AI61: -0.0218004426 | AJ61: -0.02119006416 | AK61: -0.003225815068 | AL61: 0.007773575645 | AM61: -0.01146882682 | AN61: -0.02612124766 | AO61: -0.05220567418 | AP61: -0.01241558181 | AQ61: -0.05815193786 | AR61: 0.02248951803 | AS61: -0.01689109607 | AT61: -0.06711396141 | AU61: 0.03683109022 | AW61: =SUMPRODUCT(B61:AU61,TRANSPOSE('QoL regression results'!$H$3:$H$48)) -> 0.8361686204
A62: 61 | B62: 0.8332920276 | C62: -0.0172856684 | D62: -0.02390906888 | E62: -0.0001164245341 | F62: 0.002119269775 | G62: 0.01431375092 | H62: 0.03052740746 | I62: -0.09343043574 | J62: -0.02408812048 | K62: -0.1581436929 | L62: -0.115865265 | M62: -0.05127173202 | N62: -0.1783152718 | O62: -0.1143770454 | P62: -0.01185604231 | Q62: -0.07649008985 | R62: -0.08632384573 | S62: -0.1316968073 | T62: -0.06864118802 | U62: -0.0202516217 | V62: 0.00997153331 | W62: -0.02815416514 | X62: -0.02706068542 | Y62: 0.001806571391 | Z62: 0.003933273076 | AA62: -0.09987025593 | AB62: -0.04162852481 | AC62: 0.0597838435 | AD62: -0.03538597953 | AE62: -0.03348775838 | AF62: -0.005798181002 | AG62: -0.05192824821 | AH62: -0.05140734294 | AI62: -0.01680021033 | AJ62: -0.02033327266 | AK62: 0.01428285777 | AL62: 0.01911810038 | AM62: 0.002854405646 | AN62: -0.006068209531 | AO62: -0.02772696694 | AP62: -0.01247863418 | AQ62: -0.05644735886 | AR62: 0.03650356745 | AS62: -0.007904019758 | AT62: -0.05305554335 | AU62: 0.04537485051 | AW62: =SUMPRODUCT(B62:AU62,TRANSPOSE('QoL regression results'!$H$3:$H$48)) -> 0.801002785
A63: 62 | B63: 0.8574059295 | C63: -0.1010251897 | D63: -0.00705235675 | E63: 0.005466956178 | F63: 0.02677532091 | G63: 0.05626874632 | H63: 0.0518644868 | I63: -0.08667696356 | J63: -0.01056710443 | K63: -0.08167799987 | L63: -0.1421761282 | M63: -0.05379726581 | N63: -0.1598786786 | O63: -0.1100813957 | P63: -0.03067902539 | Q63: -0.08666838668 | R63: -0.02398315634 | S63: -0.1313082188 | T63: -0.06768652082 | U63: -0.1503552804 | V63: 0.03470158934 | W63: -0.06748745984 | X63: -0.03523583105 | Y63: 0.0240535012 | Z63: -0.01568450443 | AA63: -0.08822534783 | AB63: -0.02295413773 | AC63: -0.01661913461 | AD63: 0.03628061873 | AE63: -0.03679550775 | AF63: -0.01816269975 | AG63: -0.05558462994 | AH63: -0.06419150298 | AI63: -0.03159550149 | AJ63: -0.01832281255 | AK63: 0.001283309135 | AL63: 0.005524574039 | AM63: -0.007741486151 | AN63: -0.01381639933 | AO63: -0.03016166507 | AP63: -0.01314633667 | AQ63: -0.04889627905 | AR63: 0.03311741052 | AS63: -0.01479145834 | AT63: -0.06638451853 | AU63: 0.03631418463 | AW63: =SUMPRODUCT(B63:AU63,TRANSPOSE('QoL regression results'!$H$3:$H$48)) -> 0.7987390005
A64: 63 | B64: 0.8619771471 | C64: -0.05395120229 | D64: 0.01200836328 | E64: 0.0007041901373 | F64: 0.05163113345 | G64: 0.04111876948 | H64: 0.03147903159 | I64: -0.09616984325 | J64: -0.01258063329 | K64: -0.1466388511 | L64: -0.1248055437 | M64: -0.05667990345 | N64: -0.1793216442 | O64: -0.08209851983 | P64: -0.01921683099 | Q64: -0.06800617909 | R64: -0.1057449107 | S64: -0.1421826924 | T64: -0.07914905811 | U64: -0.09081479785 | V64: 0.006918348193 | W64: -0.0393219112 | X64: -0.05986107712 | Y64: -0.02811041033 | Z64: 0.02058621084 | AA64: -0.1068909257 | AB64: -0.030678563 | AC64: 0.02568475447 | AD64: -0.02632860053 | AE64: -0.03469555658 | AF64: -0.01043896328 | AG64: -0.07274735507 | AH64: -0.05394590161 | AI64: -0.02107953484 | AJ64: -0.01271941353 | AK64: -0.0007434124633 | AL64: -0.004166877147 | AM64: -0.01175173492 | AN64: -0.02851731136 | AO64: -0.04659659516 | AP64: -0.01586543147 | AQ64: -0.05239792959 | AR64: 0.02968038723 | AS64: -0.01257645634 | AT64: -0.05785565939 | AU64: 0.04889246006 | AW64: =SUMPRODUCT(B64:AU64,TRANSPOSE('QoL regression results'!$H$3:$H$48)) -> 0.8038643683
A65: 64 | B65: 0.8657038654 | C65: -0.0254829834 | D65: -0.03456802946 | E65: 0.003885454735 | F65: -0.02325106051 | G65: 0.01381667124 | H65: 0.0204981787 | I65: -0.06102285946 | J65: -0.03427608131 | K65: -0.09896854196 | L65: -0.1000626568 | M65: -0.05822329106 | N65: -0.111518369 | O65: -0.09989104283 | P65: -0.01684674947 | Q65: -0.1062608895 | R65: -0.097308361 | S65: -0.1050319447 | T65: -0.05193047917 | U65: -0.07844929243 | V65: 0.03378418456 | W65: -0.04869303906 | X65: -0.02722251471 | Y65: 0.02327752304 | Z65: 0.01648292283 | AA65: -0.1062911877 | AB65: -0.008654348017 | AC65: 0.01743531901 | AD65: -0.0247849185 | AE65: -0.03729586099 | AF65: -0.02302850336 | AG65: -0.05138217469 | AH65: -0.04119097568 | AI65: -0.02702114399 | AJ65: -0.01973172323 | AK65: -0.008122346853 | AL65: 0.004634480003 | AM65: -0.01437869892 | AN65: -0.02150913761 | AO65: -0.05210659767 | AP65: -0.00972528699 | AQ65: -0.06089038562 | AR65: 0.02817867754 | AS65: -0.01865666312 | AT65: -0.07156107032 | AU65: 0.04995586767 | AW65: =SUMPRODUCT(B65:AU65,TRANSPOSE('QoL regression results'!$H$3:$H$48)) -> 0.8291473697
A66: 65 | B66: 0.8662176692 | C66: -0.06953833849 | D66: 0.01110146313 | E66: -0.001837014034 | F66: -0.005319728422 | G66: 0.02916557568 | H66: 0.0458585417 | I66: -0.07127119846 | J66: -0.01355987453 | K66: -0.09535905707 | L66: -0.1328298162 | M66: -0.06189171464 | N66: -0.07043665327 | O66: -0.1138192843 | P66: -0.02406609385 | Q66: -0.1164112618 | R66: -0.0989349103 | S66: -0.09085832191 | T66: -0.06084987712 | U66: -0.1618628099 | V66: 0.02338173615 | W66: -0.03508825005 | X66: -0.04871984096 | Y66: 0.06303870757 | Z66: 0.006090203177 | AA66: -0.110393825 | AB66: -0.03585717759 | AC66: 0.01220640367 | AD66: 0.02096817539 | AE66: -0.03773777584 | AF66: -0.007664356511 | AG66: -0.06368735398 | AH66: -0.06447123793 | AI66: -0.02817102644 | AJ66: -0.02311990516 | AK66: -0.003746856932 | AL66: 0.0127895318 | AM66: -0.009120074476 | AN66: -0.02177583736 | AO66: -0.04368183889 | AP66: -0.01370372833 | AQ66: -0.04958284657 | AR66: 0.03323080916 | AS66: -0.0198453572 | AT66: -0.0624111161 | AU66: 0.04062383248 | AW66: =SUMPRODUCT(B66:AU66,TRANSPOSE('QoL regression results'!$H$3:$H$48)) -> 0.814535963
A67: 66 | B67: 0.8485333959 | C67: -0.04191179239 | D67: 0.007191803292 | E67: 0.005595390019 | F67: -0.02889100533 | G67: -0.008092346283 | H67: 0.0335114018 | I67: -0.0640105682 | J67: -0.008679310328 | K67: -0.1176749903 | L67: -0.1060043466 | M67: -0.04405746946 | N67: -0.101978314 | O67: -0.07891606462 | P67: -0.02213462001 | Q67: -0.09462050499 | R67: -0.08061080946 | S67: -0.1476040507 | T67: -0.07694461144 | U67: -0.05841261641 | V67: 0.001880618497 | W67: -0.08479215655 | X67: -0.02857594946 | Y67: 0.02624576159 | Z67: 0.01247158706 | AA67: -0.08995459835 | AB67: -0.02060175721 | AC67: -0.008453907895 | AD67: 0.01536822957 | AE67: -0.03831871561 | AF67: -0.003760980041 | AG67: -0.05995402857 | AH67: -0.0517168211 | AI67: -0.03139165254 | AJ67: -0.01477138645 | AK67: 0.0134984053 | AL67: 0.01652796959 | AM67: -0.002914824541 | AN67: -0.007064099949 | AO67: -0.03974889752 | AP67: -0.01060873783 | AQ67: -0.04774906126 | AR67: 0.02954187753 | AS67: -0.02082437153 | AT67: -0.06699768772 | AU67: 0.04311953268 | AW67: =SUMPRODUCT(B67:AU67,TRANSPOSE('QoL regression results'!$H$3:$H$48)) -> 0.8133445444
A68: 67 | B68: 0.841480703 | C68: -0.06282498378 | D68: -0.007400662139 | E68: 0.006356909745 | F68: -0.005381785001 | G68: 0.03597490887 | H68: 0.03137705056 | I68: -0.09560336316 | J68: -0.03676715389 | K68: -0.113198338 | L68: -0.07384608513 | M68: -0.05618083504 | N68: -0.075205152 | O68: -0.06449050815 | P68: -0.01632872056 | Q68: -0.08663612849 | R68: -0.06462316566 | S68: -0.1211748673 | T68: -0.04386448586 | U68: -0.0330098763 | V68: 0.01549062948 | W68: -0.05312772754 | X68: -0.03147161402 | Y68: 0.02133103229 | Z68: -0.004150818672 | AA68: -0.1147630484 | AB68: -0.02874262655 | AC68: -0.1012273326 | AD68: -0.05902210732 | AE68: -0.03276657465 | AF68: -0.01639497592 | AG68: -0.06217689187 | AH68: -0.05229604873 | AI68: -0.03380316651 | AJ68: -0.01201619038 | AK68: 0.005285377994 | AL68: 0.02364119685 | AM68: -0.002629463376 | AN68: -0.01215624836 | AO68: -0.01741374363 | AP68: -0.01860314787 | AQ68: -0.05474212124 | AR68: 0.03569016415 | AS68: -0.01492968731 | AT68: -0.05820470617 | AU68: 0.0438237615 | AW68: =SUMPRODUCT(B68:AU68,TRANSPOSE('QoL regression results'!$H$3:$H$48)) -> 0.8128258511
A69: 68 | B69: 0.8459097616 | C69: -0.03399918307 | D69: 0.02304640608 | E69: 0.01664298452 | F69: 0.02299770502 | G69: 0.01985006643 | H69: 0.02762542868 | I69: -0.1209532204 | J69: -0.03721405181 | K69: -0.1569478218 | L69: -0.1275058714 | M69: -0.05013379694 | N69: -0.1238843412 | O69: -0.1211421634 | P69: -0.01726295027 | Q69: -0.08462610097 | R69: -0.06536838365 | S69: -0.09806013583 | T69: -0.05675965671 | U69: -0.02250806439 | V69: -0.01444339947 | W69: -0.07401910054 | X69: -0.03661589305 | Y69: 0.05084006012 | Z69: -0.0228571265 | AA69: -0.1023094738 | AB69: -0.03204356616 | AC69: 0.1006764229 | AD69: -0.03474930309 | AE69: -0.0309766008 | AF69: -0.02693058056 | AG69: -0.05451768421 | AH69: -0.05664070366 | AI69: -0.02058059059 | AJ69: -0.01442445424 | AK69: 0.01605053646 | AL69: 0.01709683741 | AM69: -0.003748766671 | AN69: -0.0166188616 | AO69: -0.0273955937 | AP69: -0.01466941785 | AQ69: -0.05071801158 | AR69: 0.0294152801 | AS69: -0.02060125306 | AT69: -0.06035367535 | AU69: 0.04156732759 | AW69: =SUMPRODUCT(B69:AU69,TRANSPOSE('QoL regression results'!$H$3:$H$48)) -> 0.8063658953
A70: 69 | B70: 0.8606626575 | C70: -0.08626246843 | D70: 5.159570244e-05 | E70: 0.01092596442 | F70: 0.02420742251 | G70: 0.0328737182 | H70: 0.02800769436 | I70: -0.09109790565 | J70: 0.00790006512 | K70: -0.1401347544 | L70: -0.1281540471 | M70: -0.05553639974 | N70: -0.101803518 | O70: -0.1223659116 | P70: -0.02560782728 | Q70: -0.1057292539 | R70: -0.1084626965 | S70: -0.1105327102 | T70: -0.08156817123 | U70: -0.04752885486 | V70: 0.05185268652 | W70: -0.06247485344 | X70: -0.02246529672 | Y70: -0.01015750235 | Z70: 0.003086646212 | AA70: -0.07999911573 | AB70: -0.03545158019 | AC70: -0.103588199 | AD70: -0.01572261571 | AE70: -0.03346881677 | AF70: -0.01567760991 | AG70: -0.06628782392 | AH70: -0.05307768014 | AI70: -0.02359003627 | AJ70: -0.02107026539 | AK70: -0.001379298335 | AL70: 0.004841102221 | AM70: -0.01178177137 | AN70: -0.02859662359 | AO70: -0.0498974462 | AP70: -0.009725998617 | AQ70: -0.05373504132 | AR70: 0.03320503106 | AS70: -0.01666878034 | AT70: -0.0645124652 | AU70: 0.03994841253 | AW70: =SUMPRODUCT(B70:AU70,TRANSPOSE('QoL regression results'!$H$3:$H$48)) -> 0.8124260796
A71: 70 | B71: 0.8695706153 | C71: -0.03071329443 | D71: 0.01009487061 | E71: 0.0007559438989 | F71: -0.02668319972 | G71: 0.01141282986 | H71: 0.01229285595 | I71: -0.06992090569 | J71: -0.02146191428 | K71: -0.09588102616 | L71: -0.1067814229 | M71: -0.0448349761 | N71: -0.1756524718 | O71: -0.0905048814 | P71: -0.02044675338 | Q71: -0.06140992059 | R71: -0.05648361221 | S71: -0.1214573619 | T71: -0.04507804721 | U71: -0.05153989972 | V71: -0.001871200551 | W71: -0.07266563916 | X71: -0.0442836964 | Y71: 0.01992017664 | Z71: 0.01341259636 | AA71: -0.0834693515 | AB71: -0.03408040508 | AC71: -0.01920464412 | AD71: -0.0351929289 | AE71: -0.03591004659 | AF71: -0.0253060546 | AG71: -0.05883725449 | AH71: -0.03139524224 | AI71: -0.01642416504 | AJ71: -0.01738116987 | AK71: -0.0008184210216 | AL71: 0.004615915449 | AM71: -0.02205686573 | AN71: -0.03042068847 | AO71: -0.0402211306 | AP71: -0.007490721335 | AQ71: -0.04906156682 | AR71: 0.0335668187 | AS71: -0.02306373879 | AT71: -0.06712893614 | AU71: 0.03298310191 | AW71: =SUMPRODUCT(B71:AU71,TRANSPOSE('QoL regression results'!$H$3:$H$48)) -> 0.8427912885
A72: 71 | B72: 0.8671853953 | C72: -0.02158755326 | D72: -0.006971942267 | E72: -0.001452991379 | F72: -0.01551470257 | G72: 0.04045459127 | H72: 0.03950513142 | I72: -0.06295554996 | J72: -0.04505839013 | K72: -0.1382535188 | L72: -0.0979560693 | M72: -0.05224092894 | N72: -0.1278608875 | O72: -0.07130836171 | P72: -0.02397077626 | Q72: -0.07006617848 | R72: -0.02828827996 | S72: -0.1112930433 | T72: -0.0812059149 | U72: -0.06554915279 | V72: 0.0192767021 | W72: -0.05637190179 | X72: -0.02384364235 | Y72: 0.03907315605 | Z72: 0.01733638092 | AA72: -0.1007894107 | AB72: -0.02349392222 | AC72: -0.01874579585 | AD72: -0.04835054282 | AE72: -0.03594522507 | AF72: -0.03195994585 | AG72: -0.06108617211 | AH72: -0.0549710249 | AI72: -0.02137540364 | AJ72: -0.01864570935 | AK72: -0.007617762726 | AL72: -0.001949719821 | AM72: -0.01151150741 | AN72: -0.0188461158 | AO72: -0.04996537857 | AP72: -0.01399155695 | AQ72: -0.05767056759 | AR72: 0.03211102195 | AS72: -0.02188544706 | AT72: -0.07045981017 | AU72: 0.04374029869 | AW72: =SUMPRODUCT(B72:AU72,TRANSPOSE('QoL regression results'!$H$3:$H$48)) -> 0.8102646506
A73: 72 | B73: 0.8742802494 | C73: -0.07845580557 | D73: -0.002996210298 | E73: 0.0106788759 | F73: 0.03133182356 | G73: 0.02661513662 | H73: 0.03344185139 | I73: -0.04633407347 | J73: -0.03493321323 | K73: -0.1028309589 | L73: -0.1623571625 | M73: -0.05327938887 | N73: -0.02688546183 | O73: -0.05805573868 | P73: -0.02273821931 | Q73: -0.003208849562 | R73: -0.1370134301 | S73: -0.09765196646 | T73: -0.05369089543 | U73: 0.009894320329 | V73: -0.01618602517 | W73: 0.01211462545 | X73: -0.03580073979 | Y73: -0.05703927423 | Z73: -0.03299034101 | AA73: -0.09335651084 | AB73: -0.03935510862 | AC73: 0.01986090708 | AD73: -0.01322095763 | AE73: -0.03189648656 | AF73: -0.02978012687 | AG73: -0.05614477156 | AH73: -0.06638723779 | AI73: -0.02685869844 | AJ73: -0.009098292536 | AK73: -0.00391125251 | AL73: -0.0005248395861 | AM73: -0.01330403933 | AN73: -0.02379141 | AO73: -0.04469224744 | AP73: -0.01509195186 | AQ73: -0.05919460779 | AR73: 0.02153357288 | AS73: -0.01742468249 | AT73: -0.07255664705 | AU73: 0.04078472903 | AW73: =SUMPRODUCT(B73:AU73,TRANSPOSE('QoL regression results'!$H$3:$H$48)) -> 0.807368172
A74: 73 | B74: 0.8639683004 | C74: -0.006290043085 | D74: 0.0002703048957 | E74: -0.005642000256 | F74: -0.01257417393 | G74: 0.01079383942 | H74: 0.02919519289 | I74: -0.0866139762 | J74: -0.005336073343 | K74: -0.1386167105 | L74: -0.1147812626 | M74: -0.05439651947 | N74: -0.1633392786 | O74: -0.05942112202 | P74: -0.01513735288 | Q74: -0.1159980518 | R74: -0.1343465083 | S74: -0.1353648755 | T74: -0.0593328215 | U74: -0.07884701437 | V74: 0.04435644919 | W74: -0.04421864495 | X74: -0.03376094615 | Y74: -0.02104775588 | Z74: 0.01178795958 | AA74: -0.07266970855 | AB74: -0.03152650066 | AC74: 0.03633972691 | AD74: -0.07132676543 | AE74: -0.02699616197 | AF74: -0.03098977848 | AG74: -0.06119429794 | AH74: -0.04273407735 | AI74: -0.02955693335 | AJ74: -0.02276208991 | AK74: -0.008096729992 | AL74: 0.009291696519 | AM74: -0.01277934983 | AN74: -0.02870296682 | AO74: -0.04989068592 | AP74: -0.01922883407 | AQ74: -0.05605378595 | AR74: 0.03507448287 | AS74: -0.01192752935 | AT74: -0.06330403564 | AU74: 0.0427255679 | AW74: =SUMPRODUCT(B74:AU74,TRANSPOSE('QoL regression results'!$H$3:$H$48)) -> 0.8305259196
A75: 74 | B75: 0.8529314767 | C75: -0.1324670375 | D75: -0.02124886016 | E75: 0.002274930891 | F75: 0.04093040888 | G75: 0.03001410726 | H75: 0.03427893876 | I75: -0.07156487708 | J75: -0.02020312923 | K75: -0.1451681418 | L75: -0.09439888323 | M75: -0.04983804355 | N75: -0.1180022227 | O75: -0.03590934042 | P75: -0.02690278473 | Q75: -0.09744201616 | R75: -0.04517435331 | S75: -0.1206748109 | T75: -0.06375902783 | U75: -0.1595152346 | V75: 0.005780503136 | W75: -0.03227347768 | X75: -0.02599757066 | Y75: -0.02202170728 | Z75: -0.0466735846 | AA75: -0.08912594194 | AB75: -0.04230957405 | AC75: 0.02104129754 | AD75: -0.02424824239 | AE75: -0.03240621861 | AF75: -0.0165005422 | AG75: -0.06267556646 | AH75: -0.05017998834 | AI75: -0.03013111362 | AJ75: -0.01549946248 | AK75: -0.0006228570228 | AL75: 0.0135525664 | AM75: -0.005113990123 | AN75: -0.02271756374 | AO75: -0.04394582615 | AP75: -0.0171502814 | AQ75: -0.04630856187 | AR75: 0.03124921696 | AS75: -0.01779926282 | AT75: -0.0602767756 | AU75: 0.04300283695 | AW75: =SUMPRODUCT(B75:AU75,TRANSPOSE('QoL regression results'!$H$3:$H$48)) -> 0.8163040548
A76: 75 | B76: 0.8498668932 | C76: -0.0342337511 | D76: 0.02045940648 | E76: 0.008715198975 | F76: -0.00786593359 | G76: -0.01037680463 | H76: 0.02947591408 | I76: -0.1081093217 | J76: -0.02568138855 | K76: -0.1450823182 | L76: -0.1440656207 | M76: -0.04814365287 | N76: -0.08654304604 | O76: -0.07313529597 | P76: -0.02359194327 | Q76: -0.08952250363 | R76: -0.08301971034 | S76: -0.07176107151 | T76: -0.0507379429 | U76: -0.09816251502 | V76: 0.03907094258 | W76: -0.03419446898 | X76: -0.05013175585 | Y76: 0.01248969504 | Z76: 0.01113100817 | AA76: -0.09737908105 | AB76: -0.02985524583 | AC76: 0.006336808471 | AD76: -0.03079036581 | AE76: -0.03553802782 | AF76: -0.01357071299 | AG76: -0.05523326901 | AH76: -0.049188684 | AI76: -0.03865622481 | AJ76: -0.008714830523 | AK76: 0.005597634913 | AL76: 0.01016354945 | AM76: -0.01088380012 | AN76: -0.01650796391 | AO76: -0.044488738 | AP76: -0.01648152032 | AQ76: -0.05815999772 | AR76: 0.03222883487 | AS76: -0.01846578367 | AT76: -0.06053449362 | AU76: 0.04096865628 | AW76: =SUMPRODUCT(B76:AU76,TRANSPOSE('QoL regression results'!$H$3:$H$48)) -> 0.8108417586
A77: 76 | B77: 0.8761353972 | C77: 0.00951507021 | D77: -0.03482064674 | E77: -0.006619095438 | F77: -0.01702586018 | G77: 0.03201056991 | H77: 0.04217612441 | I77: -0.09795265994 | J77: -0.04995097906 | K77: -0.0810859652 | L77: -0.131285119 | M77: -0.0612821495 | N77: -0.1881578893 | O77: -0.09469231273 | P77: -0.03072876793 | Q77: -0.06567590617 | R77: -0.0572513397 | S77: -0.1225900765 | T77: -0.08805032412 | U77: -0.0805356895 | V77: 0.007161939129 | W77: -0.04725067987 | X77: -0.03931168721 | Y77: -0.006590044045 | Z77: -0.01994113593 | AA77: -0.08248393544 | AB77: -0.039736329 | AC77: -0.09253861329 | AD77: -0.06412375588 | AE77: -0.03238105735 | AF77: -0.02384845345 | AG77: -0.05623322442 | AH77: -0.0549110104 | AI77: -0.02724364224 | AJ77: -0.0199804325 | AK77: -0.003583427686 | AL77: 0.005221547248 | AM77: -0.01223775071 | AN77: -0.02678489335 | AO77: -0.0281556384 | AP77: -0.009205782759 | AQ77: -0.05696524602 | AR77: 0.03084536497 | AS77: -0.01957837295 | AT77: -0.06606465092 | AU77: 0.04061110378 | AW77: =SUMPRODUCT(B77:AU77,TRANSPOSE('QoL regression results'!$H$3:$H$48)) -> 0.8264459341
A78: 77 | B78: 0.8509843209 | C78: -0.05581579926 | D78: 0.005249086743 | E78: 0.009057520951 | F78: 0.008785823292 | G78: 0.003200132159 | H78: 0.02423370452 | I78: -0.08719229618 | J78: -0.03300511014 | K78: -0.1658038564 | L78: -0.09800870649 | M78: -0.05438230514 | N78: -0.1445439117 | O78: -0.0542586567 | P78: -0.00291610322 | Q78: -0.126774333 | R78: -0.06984625845 | S78: -0.1471212793 | T78: -0.07263443358 | U78: -0.08958522898 | V78: -0.003692234067 | W78: -0.04693256485 | X78: -0.02584413325 | Y78: 0.02702494153 | Z78: 0.04341946257 | AA78: -0.09965292963 | AB78: -0.03899498726 | AC78: 0.06101837711 | AD78: 0.01599268192 | AE78: -0.02831870414 | AF78: -0.02438251802 | AG78: -0.05629239647 | AH78: -0.0523996457 | AI78: -0.02966890705 | AJ78: -0.01578566626 | AK78: -0.006206970582 | AL78: 0.005385817798 | AM78: -0.01097151886 | AN78: -0.01722388014 | AO78: -0.04897701337 | AP78: -0.01129722665 | AQ78: -0.06268155142 | AR78: 0.03237975234 | AS78: -0.01830143998 | AT78: -0.06889835312 | AU78: 0.04573491963 | AW78: =SUMPRODUCT(B78:AU78,TRANSPOSE('QoL regression results'!$H$3:$H$48)) -> 0.803970493
A79: 78 | B79: 0.8586532155 | C79: -0.05676077811 | D79: 0.004441035502 | E79: 0.002721067122 | F79: 0.02867733474 | G79: 0.03697668041 | H79: 0.04553349907 | I79: -0.05379515951 | J79: -0.02698044092 | K79: -0.1441593552 | L79: -0.1109735864 | M79: -0.05064106331 | N79: -0.05338111182 | O79: -0.0914235119 | P79: -0.03134178444 | Q79: -0.04170293385 | R79: -0.06139395681 | S79: -0.09097530757 | T79: -0.05878779344 | U79: -0.01146018285 | V79: 0.005684171537 | W79: -0.003361467066 | X79: -0.02939053203 | Y79: -0.01737862941 | Z79: 0.03580946169 | AA79: -0.07848183708 | AB79: -0.03400355496 | AC79: -0.02629924926 | AD79: 0.0002927592723 | AE79: -0.03950695197 | AF79: -0.01337856085 | AG79: -0.05989626798 | AH79: -0.06852534397 | AI79: -0.04208294869 | AJ79: -0.01848639487 | AK79: -0.007616358235 | AL79: 0.004540875605 | AM79: -0.01065935954 | AN79: -0.01873259869 | AO79: -0.05077034014 | AP79: -0.008730098274 | AQ79: -0.0465162329 | AR79: 0.03476358906 | AS79: -0.01849875763 | AT79: -0.06077406225 | AU79: 0.04457002342 | AW79: =SUMPRODUCT(B79:AU79,TRANSPOSE('QoL regression results'!$H$3:$H$48)) -> 0.7946687472
A80: 79 | B80: 0.8592119907 | C80: -0.02147123994 | D80: -0.01055598774 | E80: 0.008509904758 | F80: -0.01602491186 | G80: 0.01626846079 | H80: 0.02980811491 | I80: -0.119628652 | J80: -0.01079126092 | K80: -0.1592697024 | L80: -0.1116921406 | M80: -0.05434205688 | N80: -0.1276064048 | O80: -0.07257413045 | P80: -0.02318020497 | Q80: -0.08975165748 | R80: -0.08115168601 | S80: -0.1237255559 | T80: -0.08054874931 | U80: -0.06470024416 | V80: -0.01104296642 | W80: -0.03092720452 | X80: -0.02699127355 | Y80: 0.006596476487 | Z80: 0.00848491594 | AA80: -0.08242277045 | AB80: -0.02643797963 | AC80: -0.03399880537 | AD80: 0.01950258917 | AE80: -0.03403623926 | AF80: -0.02140854515 | AG80: -0.06198436641 | AH80: -0.06166176378 | AI80: -0.03218382721 | AJ80: -0.01341136509 | AK80: 0.001363618524 | AL80: 0.01173982231 | AM80: -0.007764894253 | AN80: -0.01445553932 | AO80: -0.03430803148 | AP80: -0.009498521584 | AQ80: -0.05489090791 | AR80: 0.03420917746 | AS80: -0.01651966998 | AT80: -0.0670465464 | AU80: 0.03428185603 | AW80: =SUMPRODUCT(B80:AU80,TRANSPOSE('QoL regression results'!$H$3:$H$48)) -> 0.8092900492
A81: 80 | B81: 0.856245123 | C81: -0.07133959452 | D81: -0.003901091643 | E81: 0.008920114456 | F81: 0.008096667969 | G81: 0.01812647442 | H81: 0.02256644802 | I81: -0.07175975359 | J81: 0.01553777508 | K81: -0.1503059361 | L81: -0.07823430621 | M81: -0.05099504603 | N81: -0.1494998145 | O81: -0.09303138165 | P81: -0.01528972215 | Q81: -0.1088390757 | R81: -0.05133821482 | S81: -0.1228102337 | T81: -0.08972859693 | U81: -0.06977514985 | V81: -0.02747937011 | W81: -0.03973259102 | X81: -0.02277991455 | Y81: -0.001511047176 | Z81: 0.000612402607 | AA81: -0.1035580385 | AB81: -0.0412169409 | AC81: 0.09208676482 | AD81: -0.001270733087 | AE81: -0.03218928603 | AF81: -0.04014480091 | AG81: -0.05922042743 | AH81: -0.04989607491 | AI81: -0.02676315236 | AJ81: -0.01109618403 | AK81: -0.005162703876 | AL81: 0.008020309093 | AM81: -0.01897906655 | AN81: -0.0223396487 | AO81: -0.04757266088 | AP81: -0.01215865736 | AQ81: -0.05316161305 | AR81: 0.02726386043 | AS81: -0.0135873291 | AT81: -0.05999253044 | AU81: 0.04400583114 | AW81: =SUMPRODUCT(B81:AU81,TRANSPOSE('QoL regression results'!$H$3:$H$48)) -> 0.8143693572
A82: 81 | B82: 0.8663880034 | C82: -0.05288826526 | D82: 0.00848691736 | E82: -0.0006401117653 | F82: -0.01950166295 | G82: 0.03148027315 | H82: 0.04264736593 | I82: -0.06721028829 | J82: -0.0100695313 | K82: -0.0592124502 | L82: -0.104158448 | M82: -0.05688567592 | N82: -0.1140279506 | O82: -0.1367964399 | P82: -0.02354755157 | Q82: -0.1361342026 | R82: -0.0565834314 | S82: -0.144054998 | T82: -0.06057015212 | U82: -0.12174308 | V82: -0.01389769759 | W82: -0.0368748122 | X82: -0.04528359796 | Y82: -0.02358879692 | Z82: 0.04376844789 | AA82: -0.09790823684 | AB82: -0.02633848159 | AC82: 0.01245407692 | AD82: -0.1296141074 | AE82: -0.03946342349 | AF82: -0.03247101023 | AG82: -0.05739564422 | AH82: -0.0527090011 | AI82: -0.02366214789 | AJ82: -0.01436763439 | AK82: -0.01221843575 | AL82: -0.003799382753 | AM82: -0.01665077297 | AN82: -0.01691315642 | AO82: -0.06185806579 | AP82: -0.01767109258 | AQ82: -0.04883222619 | AR82: 0.02789251207 | AS82: -0.01920374837 | AT82: -0.06162970439 | AU82: 0.04522798434 | AW82: =SUMPRODUCT(B82:AU82,TRANSPOSE('QoL regression results'!$H$3:$H$48)) -> 0.8098796196
A83: 82 | B83: 0.8627747479 | C83: -0.04982640965 | D83: -0.01668664883 | E83: 0.006033006052 | F83: 0.007161015272 | G83: 0.008334937833 | H83: 0.01367452491 | I83: -0.01174488492 | J83: -0.01259231644 | K83: -0.08513778751 | L83: -0.1275780042 | M83: -0.06271997644 | N83: -0.1344716145 | O83: -0.08781950344 | P83: -0.02164603428 | Q83: -0.1509899975 | R83: -0.06461156548 | S83: -0.1122440356 | T83: -0.05992850279 | U83: -0.0661755515 | V83: 0.006523444669 | W83: -0.06898766382 | X83: -0.03196650059 | Y83: -0.01687636578 | Z83: 0.04879185603 | AA83: -0.0978210784 | AB83: -0.02364620805 | AC83: -0.07409707911 | AD83: -0.07990502587 | AE83: -0.03322687085 | AF83: -0.02425998945 | AG83: -0.05700962937 | AH83: -0.03349242254 | AI83: -0.02722126406 | AJ83: -0.02201000694 | AK83: 0.004471076241 | AL83: 0.008660076068 | AM83: -0.01745939838 | AN83: -0.02257665775 | AO83: -0.04653166412 | AP83: -0.008974918839 | AQ83: -0.05559032168 | AR83: 0.02426211749 | AS83: -0.0153338329 | AT83: -0.06992278439 | AU83: 0.04534917859 | AW83: =SUMPRODUCT(B83:AU83,TRANSPOSE('QoL regression results'!$H$3:$H$48)) -> 0.8379424014
A84: 83 | B84: 0.8808016293 | C84: -0.01790536251 | D84: -0.01890554535 | E84: -0.006377721898 | F84: -0.04123672708 | G84: 0.02532423701 | H84: 0.03337909512 | I84: -0.08872873545 | J84: -0.03343789885 | K84: -0.1648704379 | L84: -0.1042220229 | M84: -0.05968020733 | N84: -0.12686305 | O84: -0.09374333422 | P84: -0.02041070617 | Q84: -0.08219833645 | R84: -0.1041901373 | S84: -0.1174044101 | T84: -0.04663175934 | U84: -0.09311185919 | V84: 0.01261138582 | W84: -0.03880174148 | X84: -0.03984866185 | Y84: 0.004677222693 | Z84: 0.01461139229 | AA84: -0.0912417356 | AB84: -0.04361993354 | AC84: -0.08995140617 | AD84: -0.09151874355 | AE84: -0.03423312095 | AF84: -0.01743976147 | AG84: -0.06534985838 | AH84: -0.05124714426 | AI84: -0.02764251042 | AJ84: -0.01146754184 | AK84: -0.008219313802 | AL84: 0.0002184190339 | AM84: -0.010527831 | AN84: -0.02203450445 | AO84: -0.03830225529 | AP84: -0.01686146754 | AQ84: -0.05016872677 | AR84: 0.02991016697 | AS84: -0.0264764162 | AT84: -0.067961376 | AU84: 0.04310031004 | AW84: =SUMPRODUCT(B84:AU84,TRANSPOSE('QoL regression results'!$H$3:$H$48)) -> 0.8297729041
A85: 84 | B85: 0.8831922264 | C85: -0.02837922486 | D85: 0.01333704217 | E85: 0.003865588846 | F85: -0.01637117421 | G85: 0.0129731899 | H85: 0.02123651128 | I85: -0.1001232603 | J85: -0.03535148003 | K85: -0.1082511684 | L85: -0.09268645198 | M85: -0.05322697868 | N85: -0.1080211839 | O85: -0.1175201845 | P85: -0.01781983823 | Q85: -0.05624028843 | R85: -0.08857427091 | S85: -0.1499458751 | T85: -0.06667575539 | U85: -0.1474907439 | V85: 0.0005596229171 | W85: -0.01740317256 | X85: -0.06542045821 | Y85: 0.01670623913 | Z85: -3.722521118e-06 | AA85: -0.1042317373 | AB85: -0.034915934 | AC85: -0.02580048824 | AD85: 0.01178556794 | AE85: -0.03336086469 | AF85: -0.01332899451 | AG85: -0.0565010157 | AH85: -0.04538571223 | AI85: -0.03067244129 | AJ85: -0.01581585182 | AK85: -0.01501095669 | AL85: -0.008101814752 | AM85: -0.02483499398 | AN85: -0.03036483813 | AO85: -0.05651570903 | AP85: -0.01628792577 | AQ85: -0.06003382086 | AR85: 0.02969339113 | AS85: -0.02190373992 | AT85: -0.07118111935 | AU85: 0.04034269769 | AW85: =SUMPRODUCT(B85:AU85,TRANSPOSE('QoL regression results'!$H$3:$H$48)) -> 0.8297046994
A86: 85 | B86: 0.8516296617 | C86: -0.06152698629 | D86: 0.002428927828 | E86: 0.008440053968 | F86: 0.02741029716 | G86: 0.02381197106 | H86: 0.03037112485 | I86: -0.1286120182 | J86: -0.004001904417 | K86: -0.1628182823 | L86: -0.08497365024 | M86: -0.05706517016 | N86: -0.08594539311 | O86: -0.08182091281 | P86: 0.0002961137413 | Q86: -0.04245744891 | R86: -0.08521785143 | S86: -0.1446190269 | T86: -0.05474384023 | U86: -0.03617070099 | V86: 0.02133711064 | W86: -0.03717770672 | X86: -0.05954379353 | Y86: -0.0031909245 | Z86: -0.009976122204 | AA86: -0.1129010263 | AB86: -0.04685897422 | AC86: -0.08511391318 | AD86: -0.005349156531 | AE86: -0.0364135647 | AF86: -0.02890836234 | AG86: -0.05946472008 | AH86: -0.0509617988 | AI86: -0.02001973627 | AJ86: -0.01305050897 | AK86: 0.003626188056 | AL86: 0.01107057368 | AM86: -0.01762963136 | AN86: -0.02207874241 | AO86: -0.03532921996 | AP86: -0.01317392517 | AQ86: -0.04873173003 | AR86: 0.03390282858 | AS86: -0.01538705686 | AT86: -0.05968979161 | AU86: 0.04320996754 | AW86: =SUMPRODUCT(B86:AU86,TRANSPOSE('QoL regression results'!$H$3:$H$48)) -> 0.8117384366
A87: 86 | B87: 0.8472059905 | C87: 0.005716757877 | D87: 0.01143071008 | E87: 0.008705269897 | F87: -0.0004937451224 | G87: 0.007386594641 | H87: 0.02758067087 | I87: -0.08586236841 | J87: -0.05561550871 | K87: -0.1745654001 | L87: -0.124476618 | M87: -0.05245923253 | N87: -0.1633438223 | O87: -0.06363895443 | P87: -0.02781588152 | Q87: -0.03924329025 | R87: -0.1058007693 | S87: -0.1544007961 | T87: -0.09871144896 | U87: -0.04780252011 | V87: 0.01300597333 | W87: -0.0291450676 | X87: -0.05131338102 | Y87: 0.00231193028 | Z87: 0.0292627215 | AA87: -0.07176561455 | AB87: -0.03510709654 | AC87: -0.007403394001 | AD87: -0.07376977416 | AE87: -0.0318355912 | AF87: -0.02540232126 | AG87: -0.05566329694 | AH87: -0.03753254166 | AI87: -0.01868939609 | AJ87: -0.01809521741 | AK87: -0.001262348489 | AL87: 0.004542905172 | AM87: -0.01473448964 | AN87: -0.02192593856 | AO87: -0.0418972692 | AP87: -0.01451258092 | AQ87: -0.04932243153 | AR87: 0.03164602007 | AS87: -0.02150770316 | AT87: -0.06385739534 | AU87: 0.05092207108 | AW87: =SUMPRODUCT(B87:AU87,TRANSPOSE('QoL regression results'!$H$3:$H$48)) -> 0.814216354
A88: 87 | B88: 0.8652583158 | C88: -0.01786846207 | D88: -0.0004252233743 | E88: -0.002761078509 | F88: -0.004281352464 | G88: 0.02199205118 | H88: 0.03258453818 | I88: -0.05129387009 | J88: -0.0225399655 | K88: -0.138560107 | L88: -0.1305451697 | M88: -0.05132692664 | N88: -0.1673355072 | O88: -0.07596140134 | P88: -0.01760576467 | Q88: -0.01399489483 | R88: -0.0804826886 | S88: -0.1365424186 | T88: -0.04422012575 | U88: -0.1045325492 | V88: 0.01089428671 | W88: -0.06000008545 | X88: -0.03430420167 | Y88: 0.02182270443 | Z88: 0.01269587974 | AA88: -0.08883278656 | AB88: -0.03109374197 | AC88: -0.1015307859 | AD88: -0.0290193079 | AE88: -0.03154806229 | AF88: -0.0260138978 | AG88: -0.05524065988 | AH88: -0.04564406463 | AI88: -0.03075125305 | AJ88: -0.01499166571 | AK88: 0.002057095887 | AL88: 0.01181643204 | AM88: -0.007756020748 | AN88: -0.02334237407 | AO88: -0.0303670941 | AP88: -0.01675214497 | AQ88: -0.05751995728 | AR88: 0.03233817408 | AS88: -0.01668744466 | AT88: -0.07261711449 | AU88: 0.03908144254 | AW88: =SUMPRODUCT(B88:AU88,TRANSPOSE('QoL regression results'!$H$3:$H$48)) -> 0.8314306832
A89: 88 | B89: 0.882177357 | C89: -0.07828396319 | D89: -0.007816711066 | E89: -0.002307535466 | F89: 0.0014062598 | G89: 0.04552411261 | H89: 0.03345914377 | I89: -0.0348860293 | J89: -0.003958016639 | K89: -0.116575544 | L89: -0.1386483556 | M89: -0.05586337284 | N89: -0.1333416821 | O89: -0.07586435048 | P89: -0.03619334827 | Q89: -0.1117820893 | R89: -0.09530881975 | S89: -0.1401684609 | T89: -0.0347543228 | U89: -0.09089582914 | V89: -0.008181293692 | W89: -0.04317515918 | X89: -0.05075972112 | Y89: -0.003491237702 | Z89: 0.01393658289 | AA89: -0.08457327094 | AB89: -0.04140765762 | AC89: 0.07648604401 | AD89: 0.008091868077 | AE89: -0.03538645118 | AF89: -0.01846726462 | AG89: -0.06140689251 | AH89: -0.05208005221 | AI89: -0.02418415052 | AJ89: -0.02353852829 | AK89: -0.003061766284 | AL89: 0.002802665002 | AM89: -0.01777230175 | AN89: -0.0232017299 | AO89: -0.04704668857 | AP89: -0.01282390592 | AQ89: -0.06153643831 | AR89: 0.03116732491 | AS89: -0.01819857457 | AT89: -0.06434318478 | AU89: 0.03213475852 | AW89: =SUMPRODUCT(B89:AU89,TRANSPOSE('QoL regression results'!$H$3:$H$48)) -> 0.8328999698
A90: 89 | B90: 0.8835689243 | C90: -0.1031624166 | D90: 0.002871781341 | E90: -0.001683538907 | F90: 0.0140621507 | G90: 0.0416618553 | H90: 0.03330184752 | I90: -0.08040110857 | J90: -0.03355076939 | K90: -0.1131460061 | L90: -0.103593966 | M90: -0.05615612812 | N90: -0.1128037246 | O90: -0.0884829428 | P90: -0.02995547041 | Q90: -0.1832288363 | R90: -0.05678754696 | S90: -0.1569897374 | T90: -0.0534762304 | U90: 0.02668283281 | V90: -0.006989568685 | W90: -0.04479739013 | X90: -0.03960822619 | Y90: 0.01508736785 | Z90: -0.004647578259 | AA90: -0.08034467862 | AB90: -0.02147944193 | AC90: 0.03572809673 | AD90: -0.03407425104 | AE90: -0.03642658605 | AF90: -0.01728090143 | AG90: -0.05727402332 | AH90: -0.05048114645 | AI90: -0.03174586289 | AJ90: -0.01384243039 | AK90: -0.0102630175 | AL90: -0.0076134606 | AM90: -0.02601634513 | AN90: -0.03357372775 | AO90: -0.04722562522 | AP90: -0.01368135332 | AQ90: -0.04567159052 | AR90: 0.02480810798 | AS90: -0.01917103903 | AT90: -0.07249248258 | AU90: 0.04237907757 | AW90: =SUMPRODUCT(B90:AU90,TRANSPOSE('QoL regression results'!$H$3:$H$48)) -> 0.8254743173
A91: 90 | B91: 0.8518810451 | C91: -0.05118474241 | D91: -0.01389548078 | E91: 0.008333490324 | F91: 0.01947743978 | G91: 0.03867466899 | H91: 0.04505028483 | I91: -0.08902045239 | J91: -0.009095278386 | K91: -0.1497142713 | L91: -0.1130446715 | M91: -0.04990171273 | N91: -0.1847043115 | O91: -0.08060511587 | P91: -0.02948709813 | Q91: -0.1767937929 | R91: -0.04598203747 | S91: -0.1269002611 | T91: -0.08045190948 | U91: -0.09604216935 | V91: 0.0003045024724 | W91: -0.06651852869 | X91: -0.03981409661 | Y91: 0.0185972583 | Z91: -0.002478669014 | AA91: -0.129668964 | AB91: -0.03011630563 | AC91: 0.08766213804 | AD91: 0.005361419157 | AE91: -0.03542106433 | AF91: -0.03209000613 | AG91: -0.05862983649 | AH91: -0.06760262566 | AI91: -0.0279397955 | AJ91: -0.01971395727 | AK91: -0.006409948198 | AL91: 0.01183567138 | AM91: -0.005616068084 | AN91: -0.01517926827 | AO91: -0.03240188018 | AP91: -0.0145087232 | AQ91: -0.05174121228 | AR91: 0.02605919674 | AS91: -0.01321725821 | AT91: -0.05963014217 | AU91: 0.05051958956 | AW91: =SUMPRODUCT(B91:AU91,TRANSPOSE('QoL regression results'!$H$3:$H$48)) -> 0.7961140908
A92: 91 | B92: 0.8600120867 | C92: -0.05090211046 | D92: 0.007363985242 | E92: -4.336630104e-05 | F92: -0.003408804721 | G92: 0.03368680409 | H92: 0.03959043317 | I92: -0.133206069 | J92: -0.006171828458 | K92: -0.1496487637 | L92: -0.1058833699 | M92: -0.06096501493 | N92: -0.1424310801 | O92: -0.1292326505 | P92: -0.0120278165 | Q92: -0.100847088 | R92: -0.08456642963 | S92: -0.1287896056 | T92: -0.08790953954 | U92: -0.09212186871 | V92: 0.0191666706 | W92: -0.09230045222 | X92: -0.03498436407 | Y92: 0.02282200802 | Z92: -0.002407717708 | AA92: -0.09421672484 | AB92: -0.004786949474 | AC92: -0.02662778568 | AD92: -0.1369830038 | AE92: -0.03751189438 | AF92: -0.01400809113 | AG92: -0.06291635163 | AH92: -0.0621065567 | AI92: -0.03165977774 | AJ92: -0.01241991883 | AK92: 0.001931305241 | AL92: 0.006579992859 | AM92: -0.01149122906 | AN92: -0.01841369127 | AO92: -0.04890074777 | AP92: -0.008456917598 | AQ92: -0.06164593295 | AR92: 0.03557465719 | AS92: -0.01951645395 | AT92: -0.0644320828 | AU92: 0.04155356836 | AW92: =SUMPRODUCT(B92:AU92,TRANSPOSE('QoL regression results'!$H$3:$H$48)) -> 0.8044855229
A93: 92 | B93: 0.8737398075 | C93: 0.002273316427 | D93: 0.01190301311 | E93: -0.0004375878952 | F93: -0.02791970746 | G93: 0.02609008178 | H93: 0.03046421977 | I93: -0.05982351086 | J93: -0.02428520122 | K93: -0.08575973134 | L93: -0.1048910777 | M93: -0.05536546329 | N93: -0.177752946 | O93: -0.1170768706 | P93: -0.02066665246 | Q93: -0.06570175938 | R93: -0.07572148208 | S93: -0.1445090553 | T93: -0.05592983316 | U93: -0.1040083278 | V93: 0.01134843818 | W93: -0.06364362786 | X93: -0.04309194183 | Y93: -0.01362396703 | Z93: 0.02816834198 | AA93: -0.09191490926 | AB93: -0.02362645819 | AC93: -0.07241391843 | AD93: -0.04484674888 | AE93: -0.0398959929 | AF93: -0.01047493839 | AG93: -0.05255692419 | AH93: -0.05141611254 | AI93: -0.02436614968 | AJ93: -0.01235816797 | AK93: -0.01923227785 | AL93: -0.003980690925 | AM93: -0.02376512152 | AN93: -0.03141144345 | AO93: -0.05123748899 | AP93: -0.01294414189 | AQ93: -0.06124421062 | AR93: 0.03329238916 | AS93: -0.01626893598 | AT93: -0.06582228554 | AU93: 0.04382962272 | AW93: =SUMPRODUCT(B93:AU93,TRANSPOSE('QoL regression results'!$H$3:$H$48)) -> 0.818343004
A94: 93 | B94: 0.8561523933 | C94: -0.05074439434 | D94: 0.01530027963 | E94: 0.007274501661 | F94: -0.01178266261 | G94: 0.01070328768 | H94: 0.02085764529 | I94: -0.09142858718 | J94: -0.03032196905 | K94: -0.08167527023 | L94: -0.1238745861 | M94: -0.05928023723 | N94: -0.1446234851 | O94: -0.02252131145 | P94: -0.01922599667 | Q94: -0.08174284414 | R94: -0.06109461835 | S94: -0.137253526 | T94: -0.05835278652 | U94: -0.1069041104 | V94: -0.0107097231 | W94: -0.04347868915 | X94: -0.0401457284 | Y94: 0.01987513153 | Z94: 0.000376774267 | AA94: -0.09470754045 | AB94: -0.03479021967 | AC94: -0.1218373045 | AD94: -0.006889374895 | AE94: -0.03119735305 | AF94: -0.03081186568 | AG94: -0.06470781164 | AH94: -0.04020754772 | AI94: -0.02620932784 | AJ94: -0.02014829817 | AK94: 0.008911355683 | AL94: 0.01845469232 | AM94: 0.00165464079 | AN94: -0.01280453161 | AO94: -0.03661307653 | AP94: -0.01532548104 | AQ94: -0.05458481625 | AR94: 0.0276756765 | AS94: -0.02188564138 | AT94: -0.06029558915 | AU94: 0.03989857172 | AW94: =SUMPRODUCT(B94:AU94,TRANSPOSE('QoL regression results'!$H$3:$H$48)) -> 0.8343995379
A95: 94 | B95: 0.8589600243 | C95: -0.04362592243 | D95: 0.03061871378 | E95: 0.01934144403 | F95: 0.01398011339 | G95: 0.02390620055 | H95: 0.03394898151 | I95: -0.07667464456 | J95: -0.0605875116 | K95: -0.06437587943 | L95: -0.1209246513 | M95: -0.03853210837 | N95: -0.1160628914 | O95: -0.01156629662 | P95: -0.02416384359 | Q95: -0.1336349958 | R95: -0.04895783399 | S95: -0.152363422 | T95: -0.09448481983 | U95: -0.1195596783 | V95: -0.001290537435 | W95: -0.01049307795 | X95: -0.06505600339 | Y95: 0.003834261611 | Z95: -0.03333122797 | AA95: -0.1028601348 | AB95: -0.04454558987 | AC95: 0.06678143726 | AD95: -0.001439400197 | AE95: -0.0356213471 | AF95: -0.01196765088 | AG95: -0.04646730472 | AH95: -0.05388926588 | AI95: -0.02540519347 | AJ95: -0.01329169224 | AK95: -0.0007375453111 | AL95: 0.009787566502 | AM95: -0.01438166673 | AN95: -0.0250172288 | AO95: -0.04329912426 | AP95: -0.01422265981 | AQ95: -0.04719982713 | AR95: 0.02953764764 | AS95: -0.01430956574 | AT95: -0.06235828208 | AU95: 0.03079825174 | AW95: =SUMPRODUCT(B95:AU95,TRANSPOSE('QoL regression results'!$H$3:$H$48)) -> 0.8148583249
A96: 95 | B96: 0.8563640548 | C96: 0.014601125 | D96: 0.002063326293 | E96: 0.01000425484 | F96: -0.02455226956 | G96: 0.006340026232 | H96: 0.02379342131 | I96: -0.08707898124 | J96: -0.02931406789 | K96: -0.1382907107 | L96: -0.06991611899 | M96: -0.05491465882 | N96: -0.1496976949 | O96: -0.09545935401 | P96: -0.02109207095 | Q96: -0.11367218 | R96: -0.07307946983 | S96: -0.1270755348 | T96: -0.04557312056 | U96: -0.0456686657 | V96: 0.01173166295 | W96: -0.03544186132 | X96: -0.03990748818 | Y96: 0.01404466755 | Z96: -0.001845833707 | AA96: -0.1157641914 | AB96: -0.02576039265 | AC96: -0.01114892946 | AD96: -0.06134193565 | AE96: -0.03223811697 | AF96: -0.02331578587 | AG96: -0.06493413781 | AH96: -0.04260438543 | AI96: -0.01829726263 | AJ96: -0.01911710209 | AK96: -0.004682580037 | AL96: 0.003971523702 | AM96: -0.019970742 | AN96: -0.03386603099 | AO96: -0.05461102254 | AP96: -0.01118654513 | AQ96: -0.04647089327 | AR96: 0.03024473518 | AS96: -0.01872170604 | AT96: -0.06759184867 | AU96: 0.04803212179 | AW96: =SUMPRODUCT(B96:AU96,TRANSPOSE('QoL regression results'!$H$3:$H$48)) -> 0.817731193
A97: 96 | B97: 0.8697502657 | C97: -0.02938478815 | D97: -0.001447448343 | E97: -0.002222735751 | F97: -0.01310227961 | G97: 0.01557044129 | H97: 0.02849559538 | I97: -0.1294619916 | J97: -0.03736260318 | K97: -0.1087008966 | L97: -0.114830206 | M97: -0.04961633888 | N97: -0.1625671193 | O97: -0.09205645659 | P97: -0.02537863534 | Q97: -0.01301964877 | R97: -0.08939649292 | S97: -0.1184808125 | T97: -0.0851566354 | U97: -0.06137263887 | V97: 0.02409878999 | W97: -0.06406226069 | X97: -0.03812368577 | Y97: -0.01359712442 | Z97: 0.0209981049 | AA97: -0.1222415647 | AB97: -0.02681785144 | AC97: -0.02972109051 | AD97: -0.001391753163 | AE97: -0.0383734729 | AF97: -0.01660544518 | AG97: -0.05603868294 | AH97: -0.04508659226 | AI97: -0.03700357032 | AJ97: -0.01295792961 | AK97: -0.002056501276 | AL97: 0.01435716858 | AM97: -0.003249260425 | AN97: -0.01691430385 | AO97: -0.04416084631 | AP97: -0.01962008203 | AQ97: -0.06493670232 | AR97: 0.02930946437 | AS97: -0.02152048472 | AT97: -0.07218984099 | AU97: 0.03737012249 | AW97: =SUMPRODUCT(B97:AU97,TRANSPOSE('QoL regression results'!$H$3:$H$48)) -> 0.839020842
A98: 97 | B98: 0.8500198156 | C98: -0.07038922691 | D98: 0.009628265612 | E98: 0.006886214855 | F98: -0.01795938461 | G98: 0.01887903841 | H98: 0.01141320877 | I98: -0.07986279122 | J98: -0.03146174242 | K98: -0.08270424384 | L98: -0.1255326001 | M98: -0.05114251961 | N98: -0.0782994598 | O98: -0.04320647423 | P98: -0.02670614408 | Q98: -0.06151695369 | R98: -0.1000049723 | S98: -0.1037525892 | T98: -0.08881664491 | U98: 0.02910885239 | V98: 0.02499411569 | W98: -0.05254737549 | X98: -0.03943124701 | Y98: -0.01763310035 | Z98: 0.01423491244 | AA98: -0.09168374126 | AB98: -0.03426735579 | AC98: -0.01848126474 | AD98: -0.05725315065 | AE98: -0.03667711877 | AF98: -0.01741918134 | AG98: -0.0538906896 | AH98: -0.03214145489 | AI98: -0.0309853547 | AJ98: -0.006466369903 | AK98: -0.003796857536 | AL98: 0.0009234515834 | AM98: -0.01519393966 | AN98: -0.0243181186 | AO98: -0.03954552234 | AP98: -0.0127851306 | AQ98: -0.06038594889 | AR98: 0.03260522442 | AS98: -0.01712341513 | AT98: -0.0576339383 | AU98: 0.04684376922 | AW98: =SUMPRODUCT(B98:AU98,TRANSPOSE('QoL regression results'!$H$3:$H$48)) -> 0.8188018123
A99: 98 | B99: 0.873621478 | C99: -0.07163943234 | D99: -0.007613187787 | E99: -0.003700742557 | F99: -0.005984466478 | G99: 0.006096922366 | H99: 0.02803436855 | I99: -0.09526066286 | J99: -0.02025603712 | K99: -0.09739543399 | L99: -0.131706305 | M99: -0.05618620749 | N99: -0.1270936604 | O99: -0.07593859493 | P99: -0.01051400779 | Q99: -0.03618163462 | R99: -0.06200102374 | S99: -0.1491072556 | T99: -0.0723790438 | U99: -0.006725117971 | V99: 0.05166048703 | W99: -0.05832251628 | X99: -0.04532074723 | Y99: 0.02025487275 | Z99: -0.02799125886 | AA99: -0.1225438972 | AB99: -0.03058791227 | AC99: 0.04040067025 | AD99: 0.02371054197 | AE99: -0.0371922477 | AF99: -0.0151714751 | AG99: -0.06467016059 | AH99: -0.04656972876 | AI99: -0.0317325847 | AJ99: -0.02004449105 | AK99: -0.005733626594 | AL99: 0.004745220651 | AM99: -0.006818839148 | AN99: -0.02086116589 | AO99: -0.03596222378 | AP99: -0.01217602398 | AQ99: -0.06167763516 | AR99: 0.028601142 | AS99: -0.01522422599 | AT99: -0.06322615509 | AU99: 0.03886093517 | AW99: =SUMPRODUCT(B99:AU99,TRANSPOSE('QoL regression results'!$H$3:$H$48)) -> 0.8317969699
A100: 99 | B100: 0.8407600134 | C100: -0.0003472172312 | D100: 0.02167672568 | E100: 0.01506306366 | F100: -0.01945160791 | G100: 0.004415583041 | H100: 0.03110044833 | I100: -0.06362445553 | J100: -0.0495365061 | K100: -0.2168609442 | L100: -0.08047535492 | M100: -0.04765394892 | N100: -0.1425626074 | O100: -0.09546748301 | P100: -0.03446083946 | Q100: -0.04878872837 | R100: -0.1237015851 | S100: -0.1592629302 | T100: -0.056695305 | U100: -0.07604201776 | V100: -0.002042567486 | W100: -0.07680556169 | X100: -0.04481642289 | Y100: 0.01644936004 | Z100: 0.0004880043928 | AA100: -0.0795519262 | AB100: -0.04708423153 | AC100: -0.06133685766 | AD100: -0.09574420189 | AE100: -0.03502280055 | AF100: -0.01133626227 | AG100: -0.06096836898 | AH100: -0.05453385787 | AI100: -0.02165585413 | AJ100: -0.0118345461 | AK100: 0.001447853653 | AL100: 0.01085882733 | AM100: -0.009356144088 | AN100: -0.02031748482 | AO100: -0.03405262664 | AP100: -0.009745958063 | AQ100: -0.0480669063 | AR100: 0.03249399609 | AS100: -0.01056933818 | AT100: -0.0577611335 | AU100: 0.04380809061 | AW100: =SUMPRODUCT(B100:AU100,TRANSPOSE('QoL regression results'!$H$3:$H$48)) -> 0.7970849829
A101: 100 | B101: 0.8719542825 | C101: -0.0587198687 | D101: -0.02612892421 | E101: 0.00305416485 | F101: 0.01204890211 | G101: 0.04608067397 | H101: 0.04211988638 | I101: -0.08185748964 | J101: -0.006569351474 | K101: -0.1174192563 | L101: -0.09490204365 | M101: -0.05612746748 | N101: -0.1384176884 | O101: -0.08978437422 | P101: -0.02316839398 | Q101: -0.1583977172 | R101: -0.04679340959 | S101: -0.1526844572 | T101: -0.04522968253 | U101: -0.04910557651 | V101: 0.03925064267 | W101: -0.05080575559 | X101: -0.03373918827 | Y101: -0.01326886738 | Z101: 0.00142177774 | AA101: -0.0969973053 | AB101: -0.02207037592 | AC101: 0.09041914698 | AD101: -0.0496540851 | AE101: -0.03093738848 | AF101: -0.02985611989 | AG101: -0.06556875907 | AH101: -0.06214536176 | AI101: -0.02326623263 | AJ101: -0.009998626612 | AK101: -0.0101839187 | AL101: 0.001226031993 | AM101: -0.02061289954 | AN101: -0.03633538476 | AO101: -0.05572383228 | AP101: -0.018524033 | AQ101: -0.0497206737 | AR101: 0.03184887585 | AS101: -0.02047898816 | AT101: -0.07088707009 | AU101: 0.04162838716 | AW101: =SUMPRODUCT(B101:AU101,TRANSPOSE('QoL regression results'!$H$3:$H$48)) -> 0.8110349527
A102: 101 | B102: 0.8554327411 | C102: -0.05313107675 | D102: -0.03307247133 | E102: 0.001302356112 | F102: 0.02614229871 | G102: 0.01609346582 | H102: 0.02281003721 | I102: -0.07505129721 | J102: -0.04097212092 | K102: -0.1087979159 | L102: -0.1249364967 | M102: -0.05335960271 | N102: -0.1432296691 | O102: -0.0483469838 | P102: -0.02441785333 | Q102: -0.0408376667 | R102: -0.06366877298 | S102: -0.1017315546 | T102: -0.05806996287 | U102: -0.02271442773 | V102: -0.0215812252 | W102: -0.03502560989 | X102: -0.03631209216 | Y102: 0.01931136902 | Z102: 0.002951468973 | AA102: -0.09693889893 | AB102: -0.04217528494 | AC102: -0.02333762421 | AD102: -0.04466942362 | AE102: -0.0351203788 | AF102: -0.02081985456 | AG102: -0.05760375118 | AH102: -0.04004999786 | AI102: -0.03023339123 | AJ102: -0.01447978286 | AK102: -0.0101245424 | AL102: -0.0007183464029 | AM102: -0.02102402632 | AN102: -0.02659621723 | AO102: -0.04660956712 | AP102: -0.01822928914 | AQ102: -0.06052655108 | AR102: 0.03894861234 | AS102: -0.01323093455 | AT102: -0.06548362006 | AU102: 0.04537460083 | AW102: =SUMPRODUCT(B102:AU102,TRANSPOSE('QoL regression results'!$H$3:$H$48)) -> 0.8146643968
A103: 102 | B103: 0.8610540647 | C103: -0.03430949795 | D103: 0.01474056273 | E103: 0.008618450851 | F103: -0.01499941586 | G103: 0.02023146638 | H103: 0.03256120225 | I103: -0.0578472835 | J103: -0.006354221449 | K103: -0.0930917628 | L103: -0.1450508479 | M103: -0.05005329973 | N103: -0.1260775479 | O103: -0.0745370804 | P103: -0.01867270933 | Q103: -0.1179728127 | R103: -0.1193681015 | S103: -0.07739540125 | T103: -0.05953418723 | U103: -0.05684958588 | V103: -0.02221719744 | W103: -0.06884384999 | X103: -0.03816236739 | Y103: -0.05332708861 | Z103: 0.02912101577 | AA103: -0.114174815 | AB103: -0.01932527544 | AC103: -0.02405108318 | AD103: -0.07448289619 | AE103: -0.04458513877 | AF103: -0.01468336098 | AG103: -0.05033676099 | AH103: -0.04858653617 | AI103: -0.02017677589 | AJ103: -0.01799616002 | AK103: -0.0015898415 | AL103: -0.001318843672 | AM103: -0.01678171957 | AN103: -0.02732182452 | AO103: -0.0498272987 | AP103: -0.01649181287 | AQ103: -0.06257981939 | AR103: 0.03067963013 | AS103: -0.02189220211 | AT103: -0.06561581542 | AU103: 0.04390870037 | AW103: =SUMPRODUCT(B103:AU103,TRANSPOSE('QoL regression results'!$H$3:$H$48)) -> 0.8111486849
A104: 103 | B104: 0.8709910838 | C104: -0.07463330467 | D104: 0.007281709496 | E104: -0.004323391618 | F104: -0.009662055681 | G104: 0.009152682776 | H104: 0.03486388557 | I104: -0.09319982702 | J104: -0.03532822716 | K104: -0.1821699163 | L104: -0.09669099714 | M104: -0.06667242311 | N104: -0.1171349314 | O104: -0.04496405429 | P104: -0.02091584873 | Q104: -0.04058325602 | R104: -0.05757126935 | S104: -0.1225048905 | T104: -0.05936740486 | U104: 0.07201687177 | V104: -0.03033975609 | W104: -0.02873633946 | X104: -0.05830187548 | Y104: 0.002345042302 | Z104: 0.01405636484 | AA104: -0.09213577582 | AB104: -0.03106143453 | AC104: 0.04935594015 | AD104: -0.02559751112 | AE104: -0.03533367705 | AF104: -0.02909392771 | AG104: -0.06521894337 | AH104: -0.05506036009 | AI104: -0.03376591919 | AJ104: -0.0167724606 | AK104: -0.004311947959 | AL104: 0.007518612898 | AM104: -0.009976196459 | AN104: -0.01019235305 | AO104: -0.03824674201 | AP104: -0.01050115463 | AQ104: -0.05532757185 | AR104: 0.03208829777 | AS104: -0.01619228215 | AT104: -0.06528552016 | AU104: 0.0391677843 | AW104: =SUMPRODUCT(B104:AU104,TRANSPOSE('QoL regression results'!$H$3:$H$48)) -> 0.8234493366
A105: 104 | B105: 0.8602809951 | C105: -0.02428241839 | D105: -0.001976521815 | E105: 0.00971251447 | F105: 0.01352832638 | G105: 0.009687914828 | H105: 0.03331754886 | I105: -0.05968228065 | J105: -0.008662592211 | K105: -0.1205000271 | L105: -0.09381572049 | M105: -0.04605915193 | N105: -0.1846853112 | O105: -0.06979809098 | P105: -0.02330597701 | Q105: -0.1804266405 | R105: -0.08277617239 | S105: -0.1188440011 | T105: -0.05713209611 | U105: -0.08713445784 | V105: 0.01362016657 | W105: -0.04196435821 | X105: -0.04069338331 | Y105: -0.009742433078 | Z105: -0.00829505933 | AA105: -0.1061714518 | AB105: -0.0372536597 | AC105: -0.01574697922 | AD105: -0.07728877346 | AE105: -0.03437166218 | AF105: -0.02429708657 | AG105: -0.06313761691 | AH105: -0.05116829956 | AI105: -0.02870399743 | AJ105: -0.01367520825 | AK105: -0.00568249382 | AL105: -0.002419855985 | AM105: -0.01537280114 | AN105: -0.02022180981 | AO105: -0.04416727549 | AP105: -0.01559745183 | AQ105: -0.05804452462 | AR105: 0.03241161905 | AS105: -0.01369867288 | AT105: -0.06176230728 | AU105: 0.03842515157 | AW105: =SUMPRODUCT(B105:AU105,TRANSPOSE('QoL regression results'!$H$3:$H$48)) -> 0.8066928396
A106: 105 | B106: 0.8507732887 | C106: -0.02162222005 | D106: 0.008138835522 | E106: 0.007839570628 | F106: -0.02066186593 | G106: 0.0256885078 | H106: 0.03658927046 | I106: -0.06751894809 | J106: -0.01581877403 | K106: -0.1834707499 | L106: -0.136380798 | M106: -0.05482324637 | N106: -0.08794960596 | O106: -0.05557181042 | P106: -0.02414086279 | Q106: -0.1645720657 | R106: -0.07983157215 | S106: -0.1359725099 | T106: -0.08366018731 | U106: 0.01212307396 | V106: 0.01754133896 | W106: -0.02755275721 | X106: -0.02349415641 | Y106: -0.009907454739 | Z106: -0.05119987503 | AA106: -0.06886266053 | AB106: -0.01873789992 | AC106: 0.01607208135 | AD106: -0.04527070619 | AE106: -0.03790325831 | AF106: -0.02470174348 | AG106: -0.06932487132 | AH106: -0.05684400717 | AI106: -0.0316931513 | AJ106: -0.01098680759 | AK106: -0.0008878675352 | AL106: 0.01705915206 | AM106: -0.006253209015 | AN106: -0.0133710376 | AO106: -0.03327480429 | AP106: -0.01146294522 | AQ106: -0.04841076431 | AR106: 0.0331272941 | AS106: -0.01528509729 | AT106: -0.06618136469 | AU106: 0.03888546102 | AW106: =SUMPRODUCT(B106:AU106,TRANSPOSE('QoL regression results'!$H$3:$H$48)) -> 0.8109884336
A107: 106 | B107: 0.8558536269 | C107: -0.06404943422 | D107: -0.005514173478 | E107: 0.003910128446 | F107: 0.02391122133 | G107: 0.04420942346 | H107: 0.04031535896 | I107: -0.09343879105 | J107: -0.04663573513 | K107: -0.1982014134 | L107: -0.1050495563 | M107: -0.05110859865 | N107: -0.08061187965 | O107: -0.04770199392 | P107: -0.03029108688 | Q107: -0.09741409382 | R107: -0.09877221101 | S107: -0.123611767 | T107: -0.06809885821 | U107: -0.08035810658 | V107: 0.03801592129 | W107: -0.04308909296 | X107: -0.02916805452 | Y107: 0.02805393613 | Z107: -0.0181173307 | AA107: -0.09196741825 | AB107: -0.04278727654 | AC107: 0.002762095685 | AD107: -0.04176394104 | AE107: -0.03480786094 | AF107: -0.02501185716 | AG107: -0.0621883639 | AH107: -0.06415525839 | AI107: -0.02349502662 | AJ107: -0.02055405661 | AK107: 0.006892282456 | AL107: 0.0104280835 | AM107: -0.007908760509 | AN107: -0.01765846215 | AO107: -0.0391749742 | AP107: -0.01222387812 | AQ107: -0.05551126118 | AR107: 0.03301599432 | AS107: -0.01072689454 | AT107: -0.06121577838 | AU107: 0.04424754218 | AW107: =SUMPRODUCT(B107:AU107,TRANSPOSE('QoL regression results'!$H$3:$H$48)) -> 0.802126452
A108: 107 | B108: 0.8681070791 | C108: -0.004456226264 | D108: -0.002453635733 | E108: 0.00746631405 | F108: -0.01318780115 | G108: 0.0142573861 | H108: 0.01716425047 | I108: -0.1095924114 | J108: -0.01934419024 | K108: -0.1729614014 | L108: -0.114302992 | M108: -0.05600805422 | N108: -0.1251058937 | O108: -0.1330139962 | P108: -0.008119034314 | Q108: -0.04943716019 | R108: -0.1348981544 | S108: -0.1515362696 | T108: -0.07994935439 | U108: 0.0788405763 | V108: 0.00082413992 | W108: -0.0683326242 | X108: -0.04320579513 | Y108: 0.02574577071 | Z108: 0.04160706723 | AA108: -0.1069571329 | AB108: -0.01667594212 | AC108: -0.04360438145 | AD108: -0.1002487567 | AE108: -0.03307872232 | AF108: -0.01361715406 | AG108: -0.06223357922 | AH108: -0.04308581525 | AI108: -0.02041801114 | AJ108: -0.01615239416 | AK108: -0.008863521542 | AL108: -0.001702913461 | AM108: -0.02435482372 | AN108: -0.02421791901 | AO108: -0.04762252126 | AP108: -0.01138646301 | AQ108: -0.05181604061 | AR108: 0.03402509193 | AS108: -0.01765164716 | AT108: -0.06507410049 | AU108: 0.03723430856 | AW108: =SUMPRODUCT(B108:AU108,TRANSPOSE('QoL regression results'!$H$3:$H$48)) -> 0.8233183504
A109: 108 | B109: 0.8703482992 | C109: -0.04457244096 | D109: 0.005726849003 | E109: -4.574046293e-05 | F109: -0.03220324983 | G109: 0.01072119609 | H109: 0.01993576233 | I109: -0.1213312593 | J109: -0.04614733583 | K109: -0.1725743686 | L109: -0.1144127505 | M109: -0.05457263856 | N109: -0.1436920729 | O109: -0.01975332495 | P109: -0.02263357803 | Q109: -0.08448127513 | R109: -0.07238390536 | S109: -0.1101159321 | T109: -0.05752965732 | U109: -0.05894743646 | V109: -0.008812983084 | W109: -0.04270232557 | X109: -0.01951134206 | Y109: 0.009594192498 | Z109: -0.04636968696 | AA109: -0.08155717945 | AB109: -0.03215480775 | AC109: -0.03458918804 | AD109: -0.04523404259 | AE109: -0.03464419827 | AF109: -0.0157825556 | AG109: -0.0563077366 | AH109: -0.0402750829 | AI109: -0.03673540047 | AJ109: -0.0167629434 | AK109: 0.008193752401 | AL109: 0.01099726803 | AM109: -0.002991014481 | AN109: -0.01893711104 | AO109: -0.04486628065 | AP109: -0.01995924891 | AQ109: -0.05930808488 | AR109: 0.03330218931 | AS109: -0.02012568054 | AT109: -0.0769574335 | AU109: 0.0390109423 | AW109: =SUMPRODUCT(B109:AU109,TRANSPOSE('QoL regression results'!$H$3:$H$48)) -> 0.8410704844
A110: 109 | B110: 0.8555951148 | C110: -0.01218010461 | D110: 0.03704947753 | E110: 0.00615586303 | F110: -0.004061372574 | G110: 0.005752824759 | H110: 0.03857502187 | I110: -0.0623554367 | J110: -0.005655636205 | K110: -0.1660722812 | L110: -0.1444517233 | M110: -0.0500460616 | N110: -0.1316941545 | O110: -0.05194819232 | P110: -0.02098018389 | Q110: -0.09161730195 | R110: -0.1210918205 | S110: -0.1039183698 | T110: -0.03391781737 | U110: -0.07993456511 | V110: 0.06643832104 | W110: -0.01642701219 | X110: -0.03317635648 | Y110: 0.01176553261 | Z110: 0.02584497617 | AA110: -0.1091983466 | AB110: -0.007118862894 | AC110: -0.0243387758 | AD110: 0.001331378078 | AE110: -0.03637522905 | AF110: -0.02082797727 | AG110: -0.05212596757 | AH110: -0.06594428873 | AI110: -0.03444654746 | AJ110: -0.01369655821 | AK110: 0.002647927311 | AL110: 0.008440960162 | AM110: -0.00795214169 | AN110: -0.02500995344 | AO110: -0.0425660013 | AP110: -0.005508771805 | AQ110: -0.058241456 | AR110: 0.02125652966 | AS110: -0.01029599222 | AT110: -0.0593467699 | AU110: 0.0441309675 | AW110: =SUMPRODUCT(B110:AU110,TRANSPOSE('QoL regression results'!$H$3:$H$48)) -> 0.7980917862
A111: 110 | B111: 0.8618795614 | C111: -0.04265456304 | D111: -0.005388877256 | E111: 0.00195380013 | F111: -0.01702199336 | G111: 0.02946254104 | H111: 0.021282067 | I111: -0.1105259901 | J111: -0.03739127678 | K111: -0.1111124735 | L111: -0.1175642038 | M111: -0.05926797559 | N111: -0.1104420834 | O111: -0.05717303543 | P111: -0.02496840034 | Q111: -0.07990215233 | R111: -0.1066316361 | S111: -0.1364990046 | T111: -0.06131530667 | U111: -0.01469751332 | V111: 0.01889260598 | W111: -0.01338268048 | X111: -0.05487963986 | Y111: -0.01365758916 | Z111: 0.05760100413 | AA111: -0.0786311353 | AB111: -0.0447583634 | AC111: 0.06010570992 | AD111: -0.05281659219 | AE111: -0.03615545361 | AF111: -0.02000617475 | AG111: -0.05953930569 | AH111: -0.04664536991 | AI111: -0.02815848897 | AJ111: -0.01061198788 | AK111: 0.008245680104 | AL111: 0.0142613631 | AM111: -0.001975716816 | AN111: -0.01935479672 | AO111: -0.02849057445 | AP111: -0.01663373781 | AQ111: -0.05636143713 | AR111: 0.02838410748 | AS111: -0.01593863488 | AT111: -0.06404052907 | AU111: 0.03874767019 | AW111: =SUMPRODUCT(B111:AU111,TRANSPOSE('QoL regression results'!$H$3:$H$48)) -> 0.8294955546
A112: 111 | B112: 0.868116235 | C112: -0.06772722489 | D112: -0.008795048013 | E112: 0.0005024564453 | F112: 0.02758417929 | G112: 0.02048997259 | H112: 0.03030673451 | I112: -0.08993343545 | J112: -0.02455284566 | K112: -0.1477272181 | L112: -0.1330285635 | M112: -0.05498958827 | N112: -0.1220086113 | O112: -0.05140180244 | P112: -0.0345374749 | Q112: -0.1612042036 | R112: -0.1156372003 | S112: -0.1647483906 | T112: -0.08854424645 | U112: -0.07553468075 | V112: 0.02352381815 | W112: -0.03899078325 | X112: -0.05029045814 | Y112: -0.01625983173 | Z112: -0.009374276609 | AA112: -0.09765478518 | AB112: -0.01624962762 | AC112: -0.01738020354 | AD112: -0.03184340955 | AE112: -0.03582600675 | AF112: -0.02360740594 | AG112: -0.05632216206 | AH112: -0.04556544056 | AI112: -0.02108894692 | AJ112: -0.01580830531 | AK112: -0.009169480739 | AL112: -0.005588322561 | AM112: -0.02407849249 | AN112: -0.03844119189 | AO112: -0.05252631869 | AP112: -0.009767951201 | AQ112: -0.05175441051 | AR112: 0.02505604005 | AS112: -0.01002725034 | AT112: -0.05755415474 | AU112: 0.04481898365 | AW112: =SUMPRODUCT(B112:AU112,TRANSPOSE('QoL regression results'!$H$3:$H$48)) -> 0.8169624719
A113: 112 | B113: 0.8763831764 | C113: -0.05464145436 | D113: -0.01430181494 | E113: -0.009604705093 | F113: 0.006546047164 | G113: 0.02268126909 | H113: 0.0330006773 | I113: -0.08413702006 | J113: -0.03468636409 | K113: -0.1281276284 | L113: -0.08688006819 | M113: -0.06715713669 | N113: -0.09467262436 | O113: -0.09827631657 | P113: -0.02383880412 | Q113: -0.1767051643 | R113: -0.06858942108 | S113: -0.09240262763 | T113: -0.063277347 | U113: -0.1501675616 | V113: 0.01494277696 | W113: -0.03990619036 | X113: -0.05119212541 | Y113: 0.01913666151 | Z113: -0.03766866908 | AA113: -0.08239877427 | AB113: -0.03566227941 | AC113: 0.03928596436 | AD113: -0.07518331077 | AE113: -0.0396470878 | AF113: -0.02108514927 | AG113: -0.05424300835 | AH113: -0.05292444807 | AI113: -0.03995547689 | AJ113: -0.01543585765 | AK113: 0.002996605711 | AL113: 0.01087293023 | AM113: -0.002081211919 | AN113: -0.01248667374 | AO113: -0.03811308764 | AP113: -0.009554251249 | AQ113: -0.04959004963 | AR113: 0.02331558085 | AS113: -0.01493101635 | AT113: -0.06115713714 | AU113: 0.03959595627 | AW113: =SUMPRODUCT(B113:AU113,TRANSPOSE('QoL regression results'!$H$3:$H$48)) -> 0.8343316586
A114: 113 | B114: 0.8543174675 | C114: -0.05838402065 | D114: -0.01021625122 | E114: 0.003345156685 | F114: 0.03337110585 | G114: 0.02361632771 | H114: 0.02904602698 | I114: -0.0527922937 | J114: -0.009960375484 | K114: -0.1164916322 | L114: -0.1249776491 | M114: -0.05012137408 | N114: -0.157157864 | O114: -0.06517773879 | P114: -0.03094821266 | Q114: -0.1838923822 | R114: -0.03317657679 | S114: -0.1008412027 | T114: -0.06036055249 | U114: -0.1692394888 | V114: -0.01227112586 | W114: -0.01284804893 | X114: -0.02925219893 | Y114: 0.008438615331 | Z114: 0.01482948078 | AA114: -0.1182299466 | AB114: -0.007227295805 | AC114: 0.01512142043 | AD114: -0.02874847136 | AE114: -0.03482551472 | AF114: -0.02679140075 | AG114: -0.0678941983 | AH114: -0.0461804952 | AI114: -0.02637638712 | AJ114: -0.02142200798 | AK114: 0.004919702067 | AL114: 0.01832811517 | AM114: -0.0032399893 | AN114: -0.01217353835 | AO114: -0.05292897816 | AP114: -0.01945055986 | AQ114: -0.05797207926 | AR114: 0.02828311622 | AS114: -0.0182404461 | AT114: -0.06212035064 | AU114: 0.05193028407 | AW114: =SUMPRODUCT(B114:AU114,TRANSPOSE('QoL regression results'!$H$3:$H$48)) -> 0.8264650874
A115: 114 | B115: 0.8831598198 | C115: -0.03548223429 | D115: -0.002959318415 | E115: -0.006140331494 | F115: 0.002566579611 | G115: 0.02624622696 | H115: 0.03470593561 | I115: -0.1273011533 | J115: -0.03875902421 | K115: -0.09557671582 | L115: -0.1082412652 | M115: -0.05720374917 | N115: -0.1155997126 | O115: -0.09456835611 | P115: -0.02311208547 | Q115: -0.05196559938 | R115: -0.01568836112 | S115: -0.1250780421 | T115: -0.07920450774 | U115: -0.1564325414 | V115: 0.005043176416 | W115: -0.03056462024 | X115: -0.0146777706 | Y115: -0.0259844871 | Z115: -0.03817829968 | AA115: -0.09352399202 | AB115: -0.04309039465 | AC115: 0.02531815757 | AD115: 0.04566814455 | AE115: -0.04839608647 | AF115: -0.01926996919 | AG115: -0.07218702818 | AH115: -0.04841960378 | AI115: -0.03095274192 | AJ115: -0.01673500419 | AK115: -0.001534788321 | AL115: 0.004003465478 | AM115: -0.01069414859 | AN115: -0.03005480515 | AO115: -0.04726690112 | AP115: -0.01873089425 | AQ115: -0.0642176349 | AR115: 0.0256352226 | AS115: -0.01973925489 | AT115: -0.06115826814 | AU115: 0.04347181963 | AW115: =SUMPRODUCT(B115:AU115,TRANSPOSE('QoL regression results'!$H$3:$H$48)) -> 0.8387436815
A116: 115 | B116: 0.8729342464 | C116: -0.0200794232 | D116: -0.01176311131 | E116: 0.0009412565112 | F116: -0.008395299529 | G116: 0.03832667625 | H116: 0.04240369057 | I116: -0.08920934713 | J116: -0.0315855635 | K116: -0.133579852 | L116: -0.08742137391 | M116: -0.05442974525 | N116: -0.1724891806 | O116: -0.09999953245 | P116: -0.01726712491 | Q116: -0.1342015478 | R116: -0.03339410323 | S116: -0.1109245447 | T116: -0.07158145063 | U116: -0.03697986918 | V116: 0.002367654982 | W116: -0.03955155148 | X116: -0.05153385628 | Y116: 0.01428105263 | Z116: 0.0008651090193 | AA116: -0.06965143131 | AB116: -0.03921820199 | AC116: 0.04987655156 | AD116: -0.02020570778 | AE116: -0.03700684949 | AF116: -0.02412765972 | AG116: -0.05895033979 | AH116: -0.05641097496 | AI116: -0.02114235922 | AJ116: -0.02131971341 | AK116: -0.01138058326 | AL116: 0.00553986208 | AM116: -0.01215586566 | AN116: -0.02458507282 | AO116: -0.05117340667 | AP116: -0.0190173071 | AQ116: -0.06296195796 | AR116: 0.03435015534 | AS116: -0.0163921519 | AT116: -0.06379891957 | AU116: 0.03857287201 | AW116: =SUMPRODUCT(B116:AU116,TRANSPOSE('QoL regression results'!$H$3:$H$48)) -> 0.8220631335
A117: 116 | B117: 0.8619663531 | C117: -0.04389928978 | D117: -0.00455089772 | E117: 0.007470293743 | F117: 0.02643193968 | G117: 0.0159374558 | H117: 0.03013054654 | I117: -0.07936422096 | J117: -0.01101700643 | K117: -0.17089057 | L117: -0.1275959022 | M117: -0.05291918769 | N117: -0.1500704318 | O117: -0.05311469085 | P117: -0.02660322108 | Q117: -0.08412663416 | R117: -0.04450566001 | S117: -0.1239149654 | T117: -0.09192582507 | U117: -0.1557751969 | V117: 0.04202289678 | W117: -0.07122814691 | X117: -0.04037576204 | Y117: -0.01034455394 | Z117: -0.008476489431 | AA117: -0.1126033137 | AB117: -0.03064533145 | AC117: -0.01471869787 | AD117: -0.004695477413 | AE117: -0.03604667668 | AF117: -0.0156699379 | AG117: -0.06345367901 | AH117: -0.04779137295 | AI117: -0.02432282967 | AJ117: -0.01640232412 | AK117: -0.01144040154 | AL117: 0.001934757671 | AM117: -0.01984334298 | AN117: -0.02916054945 | AO117: -0.04782724072 | AP117: -0.009932720325 | AQ117: -0.05918286747 | AR117: 0.0245054213 | AS117: -0.006541751081 | AT117: -0.06601888913 | AU117: 0.04775198301 | AW117: =SUMPRODUCT(B117:AU117,TRANSPOSE('QoL regression results'!$H$3:$H$48)) -> 0.8161097378
A118: 117 | B118: 0.8577766543 | C118: -0.1061954064 | D118: -0.02440295372 | E118: -0.002431893056 | F118: 0.01410222785 | G118: 0.04242447754 | H118: 0.04380523748 | I118: -0.1070476711 | J118: -0.03702348038 | K118: -0.09623735434 | L118: -0.1185241197 | M118: -0.05418573419 | N118: -0.07881543237 | O118: -0.1126730585 | P118: -0.01708036181 | Q118: -0.1597852185 | R118: -0.09164635454 | S118: -0.09897187663 | T118: -0.05082210992 | U118: 0.004511871362 | V118: 0.005339908165 | W118: -0.05269431989 | X118: -0.04175849636 | Y118: 0.003002469931 | Z118: 0.04860638992 | AA118: -0.09772672648 | AB118: -0.02554308108 | AC118: 0.04161805398 | AD118: -0.02809662351 | AE118: -0.044931054 | AF118: -0.02101447898 | AG118: -0.06310509949 | AH118: -0.06175463849 | AI118: -0.02813774837 | AJ118: -0.00883606295 | AK118: -0.002943391265 | AL118: 0.01154276879 | AM118: -0.007559136094 | AN118: -0.01725448713 | AO118: -0.03907620306 | AP118: -0.01008734478 | AQ118: -0.05256417426 | AR118: 0.02708676796 | AS118: -0.01462657225 | AT118: -0.06228946794 | AU118: 0.04649272925 | AW118: =SUMPRODUCT(B118:AU118,TRANSPOSE('QoL regression results'!$H$3:$H$48)) -> 0.8075647846
A119: 118 | B119: 0.859196261 | C119: -0.05072317974 | D119: -0.01431581669 | E119: 0.003695487387 | F119: 0.03925742894 | G119: 0.0355992407 | H119: 0.04590451853 | I119: -0.07260708085 | J119: 0.00303032763 | K119: -0.154977078 | L119: -0.1069015119 | M119: -0.05874472839 | N119: -0.1015983185 | O119: -0.1224492014 | P119: -0.03068537236 | Q119: -0.09155375233 | R119: -0.07552217599 | S119: -0.1064566506 | T119: -0.06138882953 | U119: -0.07168392395 | V119: 0.01735562674 | W119: -0.02569555773 | X119: -0.03638405985 | Y119: -0.02503949862 | Z119: -0.01301400538 | AA119: -0.1189030646 | AB119: -0.04502194469 | AC119: -0.04294165368 | AD119: -0.04449382337 | AE119: -0.02611513414 | AF119: -0.01854858199 | AG119: -0.0650030291 | AH119: -0.06245678557 | AI119: -0.0206097463 | AJ119: -0.01742862468 | AK119: 0.005316853971 | AL119: 0.002216390736 | AM119: -0.01542886435 | AN119: -0.02413845861 | AO119: -0.03858348069 | AP119: -0.01151567235 | AQ119: -0.0522155895 | AR119: 0.02673256905 | AS119: -0.008658412691 | AT119: -0.06150715826 | AU119: 0.04364853182 | AW119: =SUMPRODUCT(B119:AU119,TRANSPOSE('QoL regression results'!$H$3:$H$48)) -> 0.7989558662
A120: 119 | B120: 0.8541907289 | C120: -0.0436214671 | D120: 0.02839258346 | E120: 0.002779821298 | F120: 0.01917850435 | G120: 0.005288193903 | H120: 0.03206026992 | I120: -0.06746696453 | J120: -0.01236979402 | K120: -0.09662097772 | L120: -0.1064752697 | M120: -0.05588132581 | N120: -0.05962494195 | O120: -0.05969516013 | P120: -0.01578371435 | Q120: -0.1216291498 | R120: -0.08899404957 | S120: -0.1152533836 | T120: -0.0828399902 | U120: -0.06838574979 | V120: -0.02748211237 | W120: -0.04814515051 | X120: -0.05059455818 | Y120: 0.04551954913 | Z120: 0.01494817741 | AA120: -0.1208535673 | AB120: -0.0302722293 | AC120: 0.08023774313 | AD120: -0.09032358015 | AE120: -0.034819282 | AF120: -0.0228379289 | AG120: -0.06436251898 | AH120: -0.05426988548 | AI120: -0.02641063619 | AJ120: -0.02082094685 | AK120: 0.0003327347387 | AL120: 0.01697572484 | AM120: -0.00251493987 | AN120: -0.02186744954 | AO120: -0.03396278693 | AP120: -0.01019642827 | AQ120: -0.05654572893 | AR120: 0.03167787245 | AS120: -0.01489701194 | AT120: -0.06779116125 | AU120: 0.04535177493 | AW120: =SUMPRODUCT(B120:AU120,TRANSPOSE('QoL regression results'!$H$3:$H$48)) -> 0.8168965683
A121: 120 | B121: 0.862861416 | C121: -0.06995298625 | D121: -0.005504264872 | E121: -0.0007726472824 | F121: 0.01737679038 | G121: 0.05496197014 | H121: 0.03620718574 | I121: -0.0963103637 | J121: -0.04305411647 | K121: -0.2087910801 | L121: -0.1266632447 | M121: -0.05067423954 | N121: -0.1042449106 | O121: -0.1022576471 | P121: -0.02417664878 | Q121: -0.04986242884 | R121: -0.1126703395 | S121: -0.07867762209 | T121: -0.02293037724 | U121: -0.05314029653 | V121: -0.01277217146 | W121: -0.02328226379 | X121: -0.04534497889 | Y121: -0.02732699783 | Z121: 0.03477915552 | AA121: -0.08193790806 | AB121: -0.03267113786 | AC121: 0.05266891278 | AD121: -0.01424989149 | AE121: -0.04048606529 | AF121: -0.01084867748 | AG121: -0.05922571802 | AH121: -0.05473839208 | AI121: -0.02502293598 | AJ121: -0.01670140828 | AK121: -0.00417534228 | AL121: 0.003898026549 | AM121: -0.01117776326 | AN121: -0.03265977422 | AO121: -0.04142248604 | AP121: -0.01107981515 | AQ121: -0.04374364411 | AR121: 0.03253253035 | AS121: -0.01724668897 | AT121: -0.06461165846 | AU121: 0.04462896974 | AW121: =SUMPRODUCT(B121:AU121,TRANSPOSE('QoL regression results'!$H$3:$H$48)) -> 0.8120210505
A122: 121 | B122: 0.8683528121 | C122: -0.07227265686 | D122: 0.008017683778 | E122: 0.004872803198 | F122: 0.0394802287 | G122: 0.02143644852 | H122: 0.0293949226 | I122: -0.06662801569 | J122: -0.02385734508 | K122: -0.1143712557 | L122: -0.1011683883 | M122: -0.05556140435 | N122: -0.05388464767 | O122: -0.04898310372 | P122: -0.0212589048 | Q122: -0.1149547423 | R122: -0.1012224178 | S122: -0.1368680144 | T122: -0.07712957373 | U122: -0.004481600488 | V122: 0.008108785889 | W122: 0.002447294653 | X122: -0.03263123321 | Y122: 0.007449571782 | Z122: 0.002113863011 | AA122: -0.1190369956 | AB122: -0.03421573946 | AC122: -0.08927873803 | AD122: -0.04444604263 | AE122: -0.033736483 | AF122: -0.01356670054 | AG122: -0.05615095421 | AH122: -0.05658199936 | AI122: -0.03263817758 | AJ122: -0.01316705449 | AK122: 0.006764413003 | AL122: 0.01333000356 | AM122: -0.00896424354 | AN122: -0.02441382357 | AO122: -0.04347759655 | AP122: -0.01173038376 | AQ122: -0.06597176531 | AR122: 0.03126620597 | AS122: -0.01959310843 | AT122: -0.0628931536 | AU122: 0.03083827124 | AW122: =SUMPRODUCT(B122:AU122,TRANSPOSE('QoL regression results'!$H$3:$H$48)) -> 0.8251008163
A123: 122 | B123: 0.8739900213 | C123: -0.07238045476 | D123: 0.0001049382513 | E123: 0.003493117655 | F123: 0.003662572702 | G123: 0.03632795258 | H123: 0.04526131627 | I123: -0.06854718876 | J123: -0.05128405283 | K123: -0.05481919887 | L123: -0.110283052 | M123: -0.05437838969 | N123: -0.1029129848 | O123: -0.04570295091 | P123: -0.01740239256 | Q123: -0.1086897455 | R123: -0.1364790041 | S123: -0.1246586468 | T123: -0.08208806893 | U123: -0.09125184626 | V123: -0.0005830082185 | W123: -0.04184217895 | X123: -0.01429235581 | Y123: -0.003420363212 | Z123: -0.01216873046 | AA123: -0.1135933254 | AB123: -0.03511310654 | AC123: 0.1006844856 | AD123: -0.07333419499 | AE123: -0.03283510903 | AF123: -0.029969831 | AG123: -0.05751057166 | AH123: -0.06718310568 | AI123: -0.02880418743 | AJ123: -0.0116741314 | AK123: -0.002199098494 | AL123: 0.006302800573 | AM123: -0.01520475013 | AN123: -0.02371139306 | AO123: -0.04344246167 | AP123: -0.01543078961 | AQ123: -0.0593925365 | AR123: 0.03271349384 | AS123: -0.01926365532 | AT123: -0.0732617722 | AU123: 0.03557057899 | AW123: =SUMPRODUCT(B123:AU123,TRANSPOSE('QoL regression results'!$H$3:$H$48)) -> 0.8131097162
A124: 123 | B124: 0.855821628 | C124: -0.09970390611 | D124: -0.0009507313154 | E124: 0.002424469364 | F124: 0.01284906456 | G124: 0.01715004588 | H124: 0.01212289056 | I124: -0.09186496632 | J124: -0.01832496896 | K124: -0.1815935271 | L124: -0.09290176545 | M124: -0.06167337515 | N124: -0.1229217637 | O124: -0.1127066229 | P124: -0.01226082735 | Q124: -0.06137221974 | R124: -0.01968765543 | S124: -0.1358066409 | T124: -0.04989783294 | U124: 0.01093160282 | V124: 0.02772736654 | W124: -0.04987310545 | X124: -0.02161889684 | Y124: -0.005066136524 | Z124: -0.01300971709 | AA124: -0.09626803562 | AB124: -0.02754495342 | AC124: -0.07873851915 | AD124: -0.06378932647 | AE124: -0.03146755257 | AF124: -0.01974036273 | AG124: -0.06110364256 | AH124: -0.03174032646 | AI124: -0.02502897816 | AJ124: -0.01572316819 | AK124: 0.002636881441 | AL124: 0.005554690878 | AM124: -0.003666786407 | AN124: -0.02739093612 | AO124: -0.04843168783 | AP124: -0.006370459125 | AQ124: -0.05322818936 | AR124: 0.02733098844 | AS124: -0.01447819884 | AT124: -0.06089007022 | AU124: 0.03940655922 | AW124: =SUMPRODUCT(B124:AU124,TRANSPOSE('QoL regression results'!$H$3:$H$48)) -> 0.8296359924
A125: 124 | B125: 0.8628907317 | C125: -0.04939436086 | D125: 0.002866518671 | E125: 0.002358239073 | F125: 0.02031080077 | G125: 0.02351493149 | H125: 0.03393020353 | I125: -0.06990124713 | J125: -0.02436008224 | K125: -0.1669924296 | L125: -0.1377612866 | M125: -0.05189613764 | N125: -0.06232026671 | O125: -0.06932272879 | P125: -0.03335711557 | Q125: -0.1551418502 | R125: -0.09154694598 | S125: -0.1335785957 | T125: -0.06733678123 | U125: -0.05900294266 | V125: -0.004257770569 | W125: -0.04415838284 | X125: -0.02372552839 | Y125: 0.01713232572 | Z125: 0.01018122574 | AA125: -0.1128091119 | AB125: -0.01675963095 | AC125: 0.01808434715 | AD125: -0.03775860404 | AE125: -0.04281107857 | AF125: -0.01137651968 | AG125: -0.06017045647 | AH125: -0.05047548066 | AI125: -0.02896915767 | AJ125: -0.01627788067 | AK125: -0.001303049068 | AL125: 0.005149804483 | AM125: -0.0144985364 | AN125: -0.02352279479 | AO125: -0.04441340002 | AP125: -0.01395543979 | AQ125: -0.04557607849 | AR125: 0.02837302396 | AS125: -0.014940719 | AT125: -0.05902172496 | AU125: 0.0428240122 | AW125: =SUMPRODUCT(B125:AU125,TRANSPOSE('QoL regression results'!$H$3:$H$48)) -> 0.8175650555
A126: 125 | B126: 0.856404203 | C126: -0.02254261715 | D126: 0.004225230525 | E126: 0.005972243426 | F126: 0.01301055853 | G126: 0.00161278326 | H126: 0.03176171506 | I126: -0.06689919706 | J126: -0.02790042093 | K126: -0.07801286646 | L126: -0.1406612192 | M126: -0.06527788109 | N126: -0.1431760037 | O126: -0.02817198306 | P126: -0.0221087651 | Q126: -0.1295573174 | R126: -0.03744647327 | S126: -0.1080509045 | T126: -0.03599112093 | U126: 0.02401541633 | V126: 0.0352036355 | W126: -0.03629109394 | X126: -0.03211246534 | Y126: 0.02447312698 | Z126: 0.01006056692 | AA126: -0.106827235 | AB126: -0.03358418251 | AC126: 0.1051538578 | AD126: 0.005444858576 | AE126: -0.03297212306 | AF126: -0.02953045198 | AG126: -0.06076848404 | AH126: -0.05409599125 | AI126: -0.02346422374 | AJ126: -0.01767007339 | AK126: 0.0006775728577 | AL126: 0.008009414509 | AM126: -0.003573163184 | AN126: -0.008280066571 | AO126: -0.03125653952 | AP126: -0.01375166143 | AQ126: -0.04753372094 | AR126: 0.02603580068 | AS126: -0.01274676502 | AT126: -0.06344393931 | AU126: 0.04365236773 | AW126: =SUMPRODUCT(B126:AU126,TRANSPOSE('QoL regression results'!$H$3:$H$48)) -> 0.8103176263
A127: 126 | B127: 0.8674567777 | C127: -0.03582337784 | D127: 0.01433400765 | E127: -0.002331016414 | F127: 0.007340305464 | G127: 0.006990606161 | H127: 0.03068329358 | I127: -0.08211827292 | J127: -0.05852464662 | K127: -0.1320987115 | L127: -0.1198994506 | M127: -0.05706798663 | N127: -0.09896031724 | O127: -0.07224764287 | P127: -0.02086317172 | Q127: -0.07714258537 | R127: -0.04114359795 | S127: -0.126858357 | T127: -0.044040558 | U127: -0.09170532247 | V127: 0.01147295985 | W127: -0.01805896224 | X127: -0.03816977497 | Y127: -0.004689634707 | Z127: -0.01304013506 | AA127: -0.102671914 | AB127: -0.02795331084 | AC127: -0.01138259556 | AD127: -0.01005066687 | AE127: -0.03852977497 | AF127: -0.0256699952 | AG127: -0.05574883937 | AH127: -0.05663939584 | AI127: -0.03413439522 | AJ127: -0.01750274514 | AK127: 0.003488570629 | AL127: 0.006283663418 | AM127: -0.006434744204 | AN127: -0.008551902698 | AO127: -0.05480640675 | AP127: -0.01909000235 | AQ127: -0.0523123174 | AR127: 0.02701842273 | AS127: -0.01613268332 | AT127: -0.06152967703 | AU127: 0.04666668644 | AW127: =SUMPRODUCT(B127:AU127,TRANSPOSE('QoL regression results'!$H$3:$H$48)) -> 0.8171010453
A128: 127 | B128: 0.8606397965 | C128: -0.07717701779 | D128: -0.01888514216 | E128: 0.001699192942 | F128: -0.004100173332 | G128: 0.02207580983 | H128: 0.01605703975 | I128: -0.09035991099 | J128: -0.02169363675 | K128: -0.1479351164 | L128: -0.1636371885 | M128: -0.06076844509 | N128: -0.1184387129 | O128: -0.05891518708 | P128: -0.02857532242 | Q128: -0.1170168645 | R128: -0.1188144109 | S128: -0.10385342 | T128: -0.04438427497 | U128: -0.0402583978 | V128: 0.01192450939 | W128: -0.04256442053 | X128: -0.04758580904 | Y128: 0.01820409583 | Z128: 0.03296000981 | AA128: -0.0698780172 | AB128: -0.03412442998 | AC128: -0.002950187198 | AD128: -0.03458186689 | AE128: -0.03304244817 | AF128: -0.01623792162 | AG128: -0.0679030338 | AH128: -0.03938319109 | AI128: -0.03315930275 | AJ128: -0.01044325915 | AK128: -0.0007380755207 | AL128: 0.004819838644 | AM128: -0.003750166716 | AN128: -0.02064909459 | AO128: -0.04633998813 | AP128: -0.01730174451 | AQ128: -0.06684507768 | AR128: 0.02742000053 | AS128: -0.01190677803 | AT128: -0.0620798299 | AU128: 0.04407282719 | AW128: =SUMPRODUCT(B128:AU128,TRANSPOSE('QoL regression results'!$H$3:$H$48)) -> 0.826076444
A129: 128 | B129: 0.8582277582 | C129: -0.05128553079 | D129: 0.006351625917 | E129: 0.007300179137 | F129: -0.003852399874 | G129: 0.0134777188 | H129: 0.03124124943 | I129: -0.09555474661 | J129: -0.02240833862 | K129: -0.1365804129 | L129: -0.1391402353 | M129: -0.05354584176 | N129: -0.116244192 | O129: -0.1177037484 | P129: -0.01915245315 | Q129: -0.09238574891 | R129: -0.08392567815 | S129: -0.1201891075 | T129: -0.07205072482 | U129: -0.05473914626 | V129: 0.008830089585 | W129: -0.07742760367 | X129: -0.05320855925 | Y129: -0.008285258439 | Z129: -0.01058499598 | AA129: -0.09361768631 | AB129: -0.03965905766 | AC129: -0.05220001164 | AD129: -0.05855819933 | AE129: -0.02602315521 | AF129: -0.02117565022 | AG129: -0.05733614422 | AH129: -0.04907412038 | AI129: -0.02648147732 | AJ129: -0.02053002529 | AK129: -0.0002790516019 | AL129: 0.003549420805 | AM129: -0.01298434194 | AN129: -0.02606025979 | AO129: -0.0418022993 | AP129: -0.01451351916 | AQ129: -0.05569137554 | AR129: 0.03703800627 | AS129: -0.01821982668 | AT129: -0.06476670461 | AU129: 0.04479102561 | AW129: =SUMPRODUCT(B129:AU129,TRANSPOSE('QoL regression results'!$H$3:$H$48)) -> 0.8127030587
A130: 129 | B130: 0.8568101512 | C130: -0.02171836547 | D130: -0.005906766798 | E130: 0.006326467949 | F130: -0.01658638137 | G130: 0.01731659313 | H130: 0.03172809451 | I130: -0.08397441568 | J130: -0.003520754602 | K130: -0.1011182937 | L130: -0.1088190807 | M130: -0.04821176964 | N130: -0.125731035 | O130: -0.08267912612 | P130: -0.02406739162 | Q130: -0.1043600745 | R130: -0.09338412191 | S130: -0.1034008683 | T130: -0.09393755987 | U130: 0.055182321 | V130: 0.01472912801 | W130: -0.04395875286 | X130: -0.05034600943 | Y130: -0.03678900376 | Z130: 0.01509812411 | AA130: -0.1107762093 | AB130: -0.02116008263 | AC130: -0.03903494186 | AD130: -0.08743234717 | AE130: -0.0294407955 | AF130: -0.01575749369 | AG130: -0.060789642 | AH130: -0.05643230832 | AI130: -0.03191398635 | AJ130: -0.01371734732 | AK130: 0.003478498656 | AL130: 0.005346927277 | AM130: -0.01328510924 | AN130: -0.02518920375 | AO130: -0.03954395259 | AP130: -0.01147399514 | AQ130: -0.04751603006 | AR130: 0.03488230482 | AS130: -0.01658850281 | AT130: -0.06488814154 | AU130: 0.04082058165 | AW130: =SUMPRODUCT(B130:AU130,TRANSPOSE('QoL regression results'!$H$3:$H$48)) -> 0.8057247702
A131: 130 | B131: 0.8579964841 | C131: -0.06269493276 | D131: 0.01434222844 | E131: 0.01043540215 | F131: -0.0228196508 | G131: 0.05241946096 | H131: 0.03562929595 | I131: -0.06023165478 | J131: -0.01684878055 | K131: -0.2001727345 | L131: -0.1024892665 | M131: -0.04431426904 | N131: -0.06924729167 | O131: -0.08259406354 | P131: -0.02146255273 | Q131: -0.1028100922 | R131: -0.07026336319 | S131: -0.1171684162 | T131: -0.08172177824 | U131: -0.1372163773 | V131: 0.01349125858 | W131: -0.01894040167 | X131: -0.01544314691 | Y131: 0.00922065842 | Z131: -0.01517107257 | AA131: -0.06453321388 | AB131: -0.02962396602 | AC131: 0.04024733119 | AD131: -0.04958651669 | AE131: -0.04003589132 | AF131: -0.02989978189 | AG131: -0.06402058788 | AH131: -0.05879240249 | AI131: -0.02109729694 | AJ131: -0.01517807447 | AK131: -0.005020247163 | AL131: 0.008460611326 | AM131: -0.02073918467 | AN131: -0.01567877179 | AO131: -0.05500684505 | AP131: -0.01633337728 | AQ131: -0.04488342517 | AR131: 0.02867406108 | AS131: -0.02029353174 | AT131: -0.07187480959 | AU131: 0.05185134699 | AW131: =SUMPRODUCT(B131:AU131,TRANSPOSE('QoL regression results'!$H$3:$H$48)) -> 0.807664693
A132: 131 | B132: 0.8503269748 | C132: -0.04122936347 | D132: 0.000702588724 | E132: 0.009666601776 | F132: -0.01367434347 | G132: 0.02007612552 | H132: 0.02642219124 | I132: -0.08108427779 | J132: -0.02884002671 | K132: -0.06760800454 | L132: -0.1248218578 | M132: -0.05491388972 | N132: -0.180880619 | O132: -0.08869325332 | P132: -0.02202157263 | Q132: -0.1409916069 | R132: -0.0188043948 | S132: -0.1479620815 | T132: -0.03458869613 | U132: -0.07273270057 | V132: 0.01864339754 | W132: -0.03573280279 | X132: -0.03591730396 | Y132: -0.01452190496 | Z132: 0.01529506036 | AA132: -0.105671887 | AB132: -0.03902003027 | AC132: 0.01414947851 | AD132: -0.09051419738 | AE132: -0.04327876645 | AF132: -0.01004852266 | AG132: -0.06128771334 | AH132: -0.05165999869 | AI132: -0.0252813385 | AJ132: -0.01895932155 | AK132: 0.01145809449 | AL132: 0.01540504258 | AM132: -0.001821526677 | AN132: -0.008266812266 | AO132: -0.02710414225 | AP132: -0.01309408344 | AQ132: -0.04533682668 | AR132: 0.02917245176 | AS132: -0.01465733412 | AT132: -0.05964625274 | AU132: 0.04035986417 | AW132: =SUMPRODUCT(B132:AU132,TRANSPOSE('QoL regression results'!$H$3:$H$48)) -> 0.8140720187
A133: 132 | B133: 0.8709808048 | C133: -0.01689567245 | D133: -0.02069761167 | E133: 0.001455153854 | F133: 0.02772708536 | G133: 0.03177781909 | H133: 0.02405746336 | I133: -0.1211213771 | J133: -0.01932268013 | K133: -0.2475605632 | L133: -0.09815217577 | M133: -0.05455334805 | N133: -0.07050583201 | O133: -0.06854413514 | P133: -0.01796612143 | Q133: -0.02874294857 | R133: -0.02618966716 | S133: -0.1551462122 | T133: -0.08309470433 | U133: -0.004315546502 | V133: 0.01737259109 | W133: -0.07385375462 | X133: -0.03851951916 | Y133: -0.01024963916 | Z133: 0.02698282505 | AA133: -0.1126722921 | AB133: -0.0393927566 | AC133: -0.04640344546 | AD133: -0.01798493859 | AE133: -0.03680001115 | AF133: -0.01331435446 | AG133: -0.05274048123 | AH133: -0.04584261855 | AI133: -0.02854085505 | AJ133: -0.01373150169 | AK133: -0.007822245214 | AL133: 0.002956591112 | AM133: -0.01712899903 | AN133: -0.02414418481 | AO133: -0.04147897192 | AP133: -0.01439271323 | AQ133: -0.05531030804 | AR133: 0.0285770436 | AS133: -0.009740034618 | AT133: -0.05862583608 | AU133: 0.03245127443 | AW133: =SUMPRODUCT(B133:AU133,TRANSPOSE('QoL regression results'!$H$3:$H$48)) -> 0.8280947773
A134: 133 | B134: 0.8724313479 | C134: -0.01405084404 | D134: 0.008983309092 | E134: 0.006541453627 | F134: -0.02184241151 | G134: 0.0172996653 | H134: 0.01645103986 | I134: -0.09565427593 | J134: -0.02064569402 | K134: -0.09752071037 | L134: -0.1503626973 | M134: -0.05818174206 | N134: -0.1060412908 | O134: -0.04789842391 | P134: -0.01206403357 | Q134: -0.0801112576 | R134: -0.1415462629 | S134: -0.1201625024 | T134: -0.05429051897 | U134: -0.1270708951 | V134: 0.03916655451 | W134: -0.06793677246 | X134: -0.07171178788 | Y134: 0.03734963655 | Z134: -0.0231618494 | AA134: -0.09835445996 | AB134: -0.03118129285 | AC134: -0.01250047123 | AD134: -0.008015162291 | AE134: -0.0295323614 | AF134: -0.02703943941 | AG134: -0.06072837553 | AH134: -0.0457228704 | AI134: -0.0265986754 | AJ134: -0.02054624803 | AK134: 0.003235507863 | AL134: 0.009822452701 | AM134: -0.01479597055 | AN134: -0.02583790059 | AO134: -0.04475601198 | AP134: -0.01713080794 | AQ134: -0.06081339153 | AR134: 0.03031359447 | AS134: -0.01844613077 | AT134: -0.06351391187 | AU134: 0.04281213416 | AW134: =SUMPRODUCT(B134:AU134,TRANSPOSE('QoL regression results'!$H$3:$H$48)) -> 0.8365309302
A135: 134 | B135: 0.8730855988 | C135: -0.06815102793 | D135: -0.004980794968 | E135: -0.002316132117 | F135: 0.0244627062 | G135: 0.0366691878 | H135: 0.03897615481 | I135: -0.1128296534 | J135: -0.02505092578 | K135: -0.2006540764 | L135: -0.1207652587 | M135: -0.04912162103 | N135: -0.1287171007 | O135: -0.09323755652 | P135: -0.02352424508 | Q135: -0.08299101727 | R135: -0.09290564269 | S135: -0.09473126022 | T135: -0.05933764861 | U135: -0.1384687454 | V135: 0.02901088658 | W135: -0.03371316612 | X135: -0.05298700783 | Y135: 0.04019951861 | Z135: 0.0253543381 | AA135: -0.1129223191 | AB135: -0.02140521018 | AC135: -0.07482191945 | AD135: -0.07058711005 | AE135: -0.0335761524 | AF135: -0.02006368681 | AG135: -0.05324065827 | AH135: -0.05479796809 | AI135: -0.02124809329 | AJ135: -0.01637540792 | AK135: -0.004182777973 | AL135: -0.0006210333413 | AM135: -0.0198474817 | AN135: -0.03465014267 | AO135: -0.05487942687 | AP135: -0.01997990724 | AQ135: -0.0616194534 | AR135: 0.03449556487 | AS135: -0.02783160695 | AT135: -0.06839294889 | AU135: 0.04716965468 | AW135: =SUMPRODUCT(B135:AU135,TRANSPOSE('QoL regression results'!$H$3:$H$48)) -> 0.8176665974
A136: 135 | B136: 0.8536270037 | C136: -0.05338344152 | D136: 0.005834610935 | E136: 0.006915671668 | F136: -0.01990400699 | G136: 0.008075666064 | H136: 0.03031587004 | I136: -0.07184021987 | J136: -0.0321846237 | K136: -0.1298740904 | L136: -0.1523113315 | M136: -0.05082231325 | N136: -0.08123749084 | O136: -0.07702906607 | P136: -0.02068484611 | Q136: -0.104037431 | R136: -0.05794239052 | S136: -0.09470308321 | T136: -0.08717911249 | U136: -0.1245030874 | V136: 0.00482157537 | W136: -0.03626374007 | X136: -0.02969555739 | Y136: 0.02904918831 | Z136: 0.03380099347 | AA136: -0.09145184488 | AB136: -0.03633098029 | AC136: -0.1182173654 | AD136: -0.01076607642 | AE136: -0.02868223847 | AF136: -0.01585020548 | AG136: -0.05791182926 | AH136: -0.04534894326 | AI136: -0.02182155431 | AJ136: -0.01000019414 | AK136: 0.007506177955 | AL136: 0.007945752027 | AM136: -0.01079631105 | AN136: -0.02374660599 | AO136: -0.04286714988 | AP136: -0.01775381213 | AQ136: -0.05569711737 | AR136: 0.0292276065 | AS136: -0.02226722111 | AT136: -0.06543534855 | AU136: 0.04122017783 | AW136: =SUMPRODUCT(B136:AU136,TRANSPOSE('QoL regression results'!$H$3:$H$48)) -> 0.8162238125
A137: 136 | B137: 0.8609531311 | C137: -0.05161499884 | D137: 0.007593961959 | E137: 0.005001085077 | F137: -0.001538856926 | G137: 0.03078553467 | H137: 0.02300332142 | I137: -0.1361156834 | J137: -0.03156117412 | K137: -0.05430437091 | L137: -0.1356067267 | M137: -0.04884762325 | N137: -0.1180339271 | O137: -0.06910527869 | P137: -0.03430818257 | Q137: -0.1597997085 | R137: -0.09972959036 | S137: -0.1884280847 | T137: -0.02885438163 | U137: -0.05484026078 | V137: -0.01320906539 | W137: -0.03406778136 | X137: -0.03586888941 | Y137: -0.01306015764 | Z137: -0.0002513054571 | AA137: -0.07117817487 | AB137: -0.03286846283 | AC137: -0.03252465954 | AD137: -0.02608019794 | AE137: -0.03273610556 | AF137: -0.0119614569 | AG137: -0.06941772316 | AH137: -0.04395671507 | AI137: -0.02892059192 | AJ137: -0.0186985331 | AK137: -0.0004148359377 | AL137: 0.002584941179 | AM137: -0.01581809578 | AN137: -0.02293032424 | AO137: -0.04411940811 | AP137: -0.006390188708 | AQ137: -0.05457638186 | AR137: 0.02748318963 | AS137: -0.01824827364 | AT137: -0.06180575994 | AU137: 0.04745099659 | AW137: =SUMPRODUCT(B137:AU137,TRANSPOSE('QoL regression results'!$H$3:$H$48)) -> 0.8195813572
A138: 137 | B138: 0.8393785321 | C138: -0.03382403637 | D138: -0.008360301778 | E138: 0.008352431303 | F138: 0.006708717695 | G138: 0.02475802476 | H138: 0.02791713545 | I138: -0.07168891126 | J138: -0.02709648854 | K138: -0.1465357171 | L138: -0.09951325677 | M138: -0.04390750166 | N138: -0.105859375 | O138: -0.05688775642 | P138: -0.02176379333 | Q138: -0.154029886 | R138: -0.04689965863 | S138: -0.1324309858 | T138: -0.07435505136 | U138: -0.01985095206 | V138: 0.02205986036 | W138: -0.06864842516 | X138: -0.01509517456 | Y138: -0.006604247075 | Z138: 0.01375211794 | AA138: -0.09154008775 | AB138: -0.02684045088 | AC138: -0.004330614562 | AD138: -0.1206748397 | AE138: -0.03025080955 | AF138: -0.03256323488 | AG138: -0.05641245913 | AH138: -0.0481298572 | AI138: -0.03697740617 | AJ138: -0.01461253726 | AK138: 0.008494976295 | AL138: 0.01252183991 | AM138: 0.006313651388 | AN138: -0.01928613673 | AO138: -0.0294368077 | AP138: -0.01244116197 | AQ138: -0.05118340344 | AR138: 0.03733067625 | AS138: -0.01229118548 | AT138: -0.06171388935 | AU138: 0.03819032694 | AW138: =SUMPRODUCT(B138:AU138,TRANSPOSE('QoL regression results'!$H$3:$H$48)) -> 0.8037705148
A139: 138 | B139: 0.8687540964 | C139: -0.04366964551 | D139: 0.02131518044 | E139: 0.001564340357 | F139: -0.01261535192 | G139: 0.01442946318 | H139: 0.027689743 | I139: -0.09798993188 | J139: -0.02187682994 | K139: -0.1568912332 | L139: -0.1259121322 | M139: -0.05595323768 | N139: -0.1786979875 | O139: -0.06424221867 | P139: -0.02942197515 | Q139: -0.1111988706 | R139: -0.04520341372 | S139: -0.09314139517 | T139: -0.07813708716 | U139: -0.03893224345 | V139: -0.01212395733 | W139: -0.04874460116 | X139: -0.02906846955 | Y139: -0.02504603793 | Z139: 0.001368039011 | AA139: -0.0809026052 | AB139: -0.0435760686 | AC139: -0.05162516037 | AD139: -0.1129853981 | AE139: -0.03490233984 | AF139: -0.02813790038 | AG139: -0.05877568218 | AH139: -0.04613798471 | AI139: -0.02437953 | AJ139: -0.02573710683 | AK139: 0.00333203516 | AL139: 0.01108706867 | AM139: -0.003909933764 | AN139: -0.02207987642 | AO139: -0.04310763219 | AP139: -0.01925770105 | AQ139: -0.05009181752 | AR139: 0.03463472363 | AS139: -0.01373905351 | AT139: -0.06265208661 | AU139: 0.03522218979 | AW139: =SUMPRODUCT(B139:AU139,TRANSPOSE('QoL regression results'!$H$3:$H$48)) -> 0.8337031803
A140: 139 | B140: 0.8513193187 | C140: -0.07409082066 | D140: -0.01148206169 | E140: 0.006356891476 | F140: 0.02570400603 | G140: 0.02970406384 | H140: 0.0421059067 | I140: -0.08654422049 | J140: -0.04780662015 | K140: -0.1723021177 | L140: -0.1153873453 | M140: -0.05248317618 | N140: -0.1685361362 | O140: -0.1062809974 | P140: -0.008407023873 | Q140: -0.09473671893 | R140: -0.1041527919 | S140: -0.1372454702 | T140: -0.0505444345 | U140: -0.1723411676 | V140: -0.01906951313 | W140: -0.04006772974 | X140: -0.02662528613 | Y140: -0.01872693918 | Z140: -0.01662996739 | AA140: -0.0936563585 | AB140: -0.02336375678 | AC140: -0.01499527038 | AD140: -0.02799332199 | AE140: -0.03873148071 | AF140: -0.02108261708 | AG140: -0.05733524596 | AH140: -0.06429241867 | AI140: -0.02733621163 | AJ140: -0.01438246782 | AK140: 0.005095541693 | AL140: 0.02030951583 | AM140: 0.003004728287 | AN140: -0.003281611419 | AO140: -0.03756483929 | AP140: -0.01589795456 | AQ140: -0.05491201709 | AR140: 0.02321612408 | AS140: -0.01226583036 | AT140: -0.05448089017 | AU140: 0.04495760803 | AW140: =SUMPRODUCT(B140:AU140,TRANSPOSE('QoL regression results'!$H$3:$H$48)) -> 0.8073364159
A141: 140 | B141: 0.8363910322 | C141: -0.0666853338 | D141: -0.003695715438 | E141: 0.009393528064 | F141: 0.01212337678 | G141: 0.005600221635 | H141: 0.03506426674 | I141: -0.07214806531 | J141: -0.02621461044 | K141: -0.1975752904 | L141: -0.1038353144 | M141: -0.05390915444 | N141: -0.1225204323 | O141: -0.06183360315 | P141: -0.0193332016 | Q141: -0.09186237973 | R141: -0.09375446933 | S141: -0.1016637409 | T141: -0.09665903451 | U141: -0.140517424 | V141: 0.002862710517 | W141: -0.01738500827 | X141: -0.03997452933 | Y141: -0.009785914287 | Z141: 0.000545743916 | AA141: -0.1099029734 | AB141: -0.04018826719 | AC141: 0.05106238523 | AD141: -0.007918064465 | AE141: -0.03486037342 | AF141: -0.02006086251 | AG141: -0.05171309657 | AH141: -0.05207242183 | AI141: -0.03276513648 | AJ141: -0.009543554846 | AK141: 0.01839997343 | AL141: 0.01603871105 | AM141: -0.002684429241 | AN141: -0.001898808221 | AO141: -0.02093913063 | AP141: -0.01292856085 | AQ141: -0.05687252867 | AR141: 0.03267163321 | AS141: -0.0171204023 | AT141: -0.0624762394 | AU141: 0.04250179121 | AW141: =SUMPRODUCT(B141:AU141,TRANSPOSE('QoL regression results'!$H$3:$H$48)) -> 0.8003573214
A142: 141 | B142: 0.8513849186 | C142: -0.06067808117 | D142: -0.001067273697 | E142: 0.009352103513 | F142: 0.009252106585 | G142: 0.01548204789 | H142: 0.01225583533 | I142: -0.02494849199 | J142: -0.009203060456 | K142: -0.145367158 | L142: -0.1305926797 | M142: -0.05186086193 | N142: -0.1080638725 | O142: -0.1079377036 | P142: -0.005774422092 | Q142: -0.02421920555 | R142: -0.04899660135 | S142: -0.1302836049 | T142: -0.04904577481 | U142: -0.030029399 | V142: -0.04034567913 | W142: -0.01700640224 | X142: -0.04022498343 | Y142: -0.002440344202 | Z142: 0.01361764822 | AA142: -0.1077004982 | AB142: -0.04220489639 | AC142: -0.01708988993 | AD142: 0.01017652454 | AE142: -0.03655098195 | AF142: -0.02772029388 | AG142: -0.07189455777 | AH142: -0.04309720255 | AI142: -0.02342635239 | AJ142: -0.01969817068 | AK142: 0.004402249725 | AL142: 0.007694688072 | AM142: -0.01101443722 | AN142: -0.02324836152 | AO142: -0.04888510581 | AP142: -0.006855953015 | AQ142: -0.05819749805 | AR142: 0.02952989639 | AS142: -0.01339543689 | AT142: -0.05783790218 | AU142: 0.0499959672 | AW142: =SUMPRODUCT(B142:AU142,TRANSPOSE('QoL regression results'!$H$3:$H$48)) -> 0.8159824042
A143: 142 | B143: 0.8495250262 | C143: -0.02446102496 | D143: -0.003786391446 | E143: -0.005041268916 | F143: 0.02530766389 | G143: 0.02854368213 | H143: 0.03731228924 | I143: -0.07757411768 | J143: -0.01528017658 | K143: -0.05189239278 | L143: -0.06345666214 | M143: -0.05140505877 | N143: -0.1503695945 | O143: -0.05633934935 | P143: -0.01504505022 | Q143: -0.05125557736 | R143: -0.09586567365 | S143: -0.08315600932 | T143: -0.0777268013 | U143: 0.02033961935 | V143: 0.007845527037 | W143: -0.0006948380767 | X143: -0.04367556966 | Y143: -0.00338767847 | Z143: -0.005443059057 | AA143: -0.09596299304 | AB143: -0.03090207816 | AC143: -0.0005867057895 | AD143: -0.0307951701 | AE143: -0.03089172742 | AF143: -0.0101131462 | AG143: -0.06769511884 | AH143: -0.05327749937 | AI143: -0.03008536794 | AJ143: -0.01444871514 | AK143: -0.0006986194265 | AL143: 0.007562624956 | AM143: -0.006165818705 | AN143: -0.01742075963 | AO143: -0.03651418995 | AP143: -0.01274288998 | AQ143: -0.04313467123 | AR143: 0.03521449252 | AS143: -0.00920808126 | AT143: -0.0583418792 | AU143: 0.04130120187 | AW143: =SUMPRODUCT(B143:AU143,TRANSPOSE('QoL regression results'!$H$3:$H$48)) -> 0.8038101518
A144: 143 | B144: 0.839369069 | C144: -0.04978085553 | D144: -0.0146873751 | E144: 0.004014022846 | F144: -0.01619050391 | G144: 0.02001516308 | H144: 0.03642942561 | I144: -0.105807012 | J144: -0.01903674915 | K144: -0.1203575418 | L144: -0.1238526067 | M144: -0.05881892642 | N144: -0.1445487848 | O144: -0.06185325479 | P144: -0.01765943648 | Q144: -0.03771604561 | R144: -0.1464340456 | S144: -0.1232832532 | T144: -0.05969534453 | U144: -0.1002032551 | V144: 0.03498571978 | W144: -0.04091860875 | X144: -0.05963149828 | Y144: 0.002262725015 | Z144: -0.003707380292 | AA144: -0.1205283429 | AB144: -0.02493228488 | AC144: 0.03894570907 | AD144: 0.005841692709 | AE144: -0.03716671594 | AF144: -0.01361678843 | AG144: -0.05878073673 | AH144: -0.0497935399 | AI144: -0.01712396979 | AJ144: -0.01298516862 | AK144: 0.007248019503 | AL144: 0.01258937618 | AM144: -0.003177106877 | AN144: -0.02080132971 | AO144: -0.03168831632 | AP144: -0.01313836535 | AQ144: -0.04995995675 | AR144: 0.02852150065 | AS144: -0.00872780114 | AT144: -0.05658068695 | AU144: 0.04271573103 | AW144: =SUMPRODUCT(B144:AU144,TRANSPOSE('QoL regression results'!$H$3:$H$48)) -> 0.8021649053
A145: 144 | B145: 0.8742318652 | C145: -0.02489591734 | D145: -0.001102578252 | E145: -0.001773448903 | F145: 0.001209520267 | G145: 0.01389027332 | H145: 0.03163485382 | I145: -0.1197667745 | J145: -0.02367961884 | K145: -0.1871043187 | L145: -0.09800368014 | M145: -0.05849098378 | N145: -0.1363362143 | O145: -0.08777717405 | P145: -0.0225916716 | Q145: -0.07453138936 | R145: -0.106063454 | S145: -0.1106826165 | T145: -0.08098081496 | U145: -0.01414979509 | V145: 0.049783079 | W145: -0.06732177145 | X145: -0.05172834592 | Y145: 0.01467498134 | Z145: -0.05051886651 | AA145: -0.1082988317 | AB145: -0.02397058708 | AC145: -0.01979071073 | AD145: -0.01677392492 | AE145: -0.03227912906 | AF145: -0.01660812763 | AG145: -0.054818796 | AH145: -0.05589185473 | AI145: -0.02725733688 | AJ145: -0.02353568471 | AK145: -0.01499604425 | AL145: -0.003808609633 | AM145: -0.01473814342 | AN145: -0.03483352436 | AO145: -0.05486754342 | AP145: -0.01522734476 | AQ145: -0.05313777273 | AR145: 0.03110119013 | AS145: -0.01681114245 | AT145: -0.06035518102 | AU145: 0.04973649813 | AW145: =SUMPRODUCT(B145:AU145,TRANSPOSE('QoL regression results'!$H$3:$H$48)) -> 0.8145314008
A146: 145 | B146: 0.8462345381 | C146: -0.07149579305 | D146: -0.02239678548 | E146: 0.0174877696 | F146: 0.02237487851 | G146: 0.04304709097 | H146: 0.02401071438 | I146: -0.06208082745 | J146: -0.04150148846 | K146: -0.06934451097 | L146: -0.1045370412 | M146: -0.05142025448 | N146: -0.1676378651 | O146: -0.1347005757 | P146: -0.02599824166 | Q146: -0.07838654942 | R146: -0.06580395405 | S146: -0.09332812381 | T146: -0.04266405559 | U146: -0.1173658489 | V146: 0.02714941239 | W146: -0.0568973121 | X146: -0.0118278845 | Y146: 0.0004008054357 | Z146: -0.002475286939 | AA146: -0.08607412322 | AB146: -0.02684860163 | AC146: -0.03110148955 | AD146: -0.03743441975 | AE146: -0.03890875589 | AF146: -0.02063480456 | AG146: -0.05325368806 | AH146: -0.04733122471 | AI146: -0.02122574205 | AJ146: -0.01192422269 | AK146: -0.005541263676 | AL146: 0.0009043584114 | AM146: -0.01449535041 | AN146: -0.02680889853 | AO146: -0.04505400203 | AP146: -0.01061884395 | AQ146: -0.05582528573 | AR146: 0.03184990587 | AS146: -0.01388033579 | AT146: -0.06419750957 | AU146: 0.05009638301 | AW146: =SUMPRODUCT(B146:AU146,TRANSPOSE('QoL regression results'!$H$3:$H$48)) -> 0.7998076718
A147: 146 | B147: 0.8467546006 | C147: -0.01812278195 | D147: 0.01799745701 | E147: 0.01101615748 | F147: -0.00794363535 | G147: 0.01620218334 | H147: 0.02455928789 | I147: -0.08336603723 | J147: -0.00194056561 | K147: -0.07344259447 | L147: -0.1473346349 | M147: -0.05653439687 | N147: -0.09215964421 | O147: -0.07177216619 | P147: -0.01772823739 | Q147: -0.0887485782 | R147: -0.04045313468 | S147: -0.1453122469 | T147: -0.09371038452 | U147: -0.1254521007 | V147: 0.008777959673 | W147: -0.03255472775 | X147: -0.0426261296 | Y147: 0.03252192944 | Z147: 0.0005493318649 | AA147: -0.08811986568 | AB147: -0.0484261417 | AC147: 0.07019029756 | AD147: -0.04807748551 | AE147: -0.02890580119 | AF147: -0.01782082319 | AG147: -0.05477020256 | AH147: -0.04827007737 | AI147: -0.02755282137 | AJ147: -0.01372301736 | AK147: 0.002305748674 | AL147: 0.007722632164 | AM147: -0.008428283546 | AN147: -0.02357896526 | AO147: -0.04899016123 | AP147: -0.01151020387 | AQ147: -0.05759630255 | AR147: 0.02495855492 | AS147: -0.01034001387 | AT147: -0.05735310455 | AU147: 0.04546121704 | AW147: =SUMPRODUCT(B147:AU147,TRANSPOSE('QoL regression results'!$H$3:$H$48)) -> 0.8062071554
A148: 147 | B148: 0.8659517806 | C148: -0.04707681309 | D148: 0.01255328848 | E148: 0.00179319708 | F148: 0.02032481488 | G148: 0.02904075283 | H148: 0.0377822964 | I148: -0.04097881924 | J148: -0.02068687433 | K148: -0.08188577811 | L148: -0.08933803181 | M148: -0.05583448155 | N148: -0.08672435582 | O148: -0.06108304709 | P148: -0.02177029092 | Q148: -0.07916338392 | R148: -0.0827554988 | S148: -0.1251215293 | T148: -0.1071005018 | U148: -0.1049324518 | V148: 0.03329645307 | W148: -0.06105856037 | X148: -0.02981567171 | Y148: -0.05939480213 | Z148: 0.04651627069 | AA148: -0.1025386304 | AB148: -0.03429109769 | AC148: -0.0585621982 | AD148: -0.1398072085 | AE148: -0.04078758253 | AF148: -0.02171803104 | AG148: -0.06266558303 | AH148: -0.05597116008 | AI148: -0.03384765975 | AJ148: -0.01242674928 | AK148: -0.005520247294 | AL148: 0.005688629687 | AM148: -0.01115490001 | AN148: -0.02179580095 | AO148: -0.04470266546 | AP148: -0.008936046797 | AQ148: -0.05871661024 | AR148: 0.02608661847 | AS148: -0.01313268013 | AT148: -0.05950158593 | AU148: 0.03768787573 | AW148: =SUMPRODUCT(B148:AU148,TRANSPOSE('QoL regression results'!$H$3:$H$48)) -> 0.8156692502
A149: 148 | B149: 0.8721788417 | C149: -0.02702320154 | D149: -0.01994062765 | E149: -0.002477513881 | F149: -0.02300820348 | G149: 0.02911998486 | H149: 0.02980537891 | I149: -0.05761049926 | J149: -0.01682702253 | K149: -0.1439240737 | L149: -0.1270203136 | M149: -0.06309734971 | N149: -0.04963952639 | O149: -0.04805466013 | P149: -0.01644426141 | Q149: -0.1184664196 | R149: -0.128006327 | S149: -0.112554954 | T149: -0.05378701198 | U149: -0.1717839235 | V149: -0.03166465258 | W149: -0.0401119899 | X149: -0.05664738063 | Y149: 0.02012888629 | Z149: -0.02968841623 | AA149: -0.09329459866 | AB149: -0.04270641292 | AC149: -0.02715670604 | AD149: -0.01109908275 | AE149: -0.0409414817 | AF149: -0.02808183021 | AG149: -0.06653924888 | AH149: -0.0455060226 | AI149: -0.02365787995 | AJ149: -0.01988028223 | AK149: 0.002062284633 | AL149: 0.01122559357 | AM149: -0.008189617418 | AN149: -0.01855931588 | AO149: -0.04634475635 | AP149: -0.01775441297 | AQ149: -0.05048247568 | AR149: 0.02593148998 | AS149: -0.01764134918 | AT149: -0.0677281098 | AU149: 0.04491241804 | AW149: =SUMPRODUCT(B149:AU149,TRANSPOSE('QoL regression results'!$H$3:$H$48)) -> 0.8378984126
A150: 149 | B150: 0.8570393049 | C150: -0.05834231233 | D150: 0.007388016836 | E150: 0.005997254344 | F150: -0.02826282083 | G150: 0.01211025742 | H150: 0.01213725041 | I150: -0.07014355287 | J150: -0.02316812004 | K150: -0.1697902913 | L150: -0.1183479627 | M150: -0.06421911171 | N150: -0.1041473569 | O150: -0.09115243624 | P150: -0.01722238815 | Q150: -0.01441922388 | R150: -0.1359188707 | S150: -0.1257968838 | T150: -0.08471049205 | U150: -0.02938801613 | V150: 0.001917076569 | W150: -0.03905232747 | X150: -0.0476802033 | Y150: -0.004932516404 | Z150: -0.006150565354 | AA150: -0.09412566761 | AB150: -0.02030327192 | AC150: -0.05888362843 | AD150: 0.002828179855 | AE150: -0.04456389555 | AF150: -0.0453233582 | AG150: -0.05832679037 | AH150: -0.03618529692 | AI150: -0.03043739827 | AJ150: -0.015257196 | AK150: 0.007841736612 | AL150: 0.01754988099 | AM150: 0.003579495355 | AN150: -0.009468015104 | AO150: -0.03369627052 | AP150: -0.01100211637 | AQ150: -0.04383840384 | AR150: 0.02543495945 | AS150: -0.02103846035 | AT150: -0.06421629504 | AU150: 0.0440349478 | AW150: =SUMPRODUCT(B150:AU150,TRANSPOSE('QoL regression results'!$H$3:$H$48)) -> 0.838403889
A151: 150 | B151: 0.8540019471 | C151: -0.05364545499 | D151: 0.01769892557 | E151: -0.001307997416 | F151: 0.01822652495 | G151: 0.006742772899 | H151: 0.03486551275 | I151: -0.1112215701 | J151: -0.0201621338 | K151: -0.07863292933 | L151: -0.1274925055 | M151: -0.05566631339 | N151: -0.1210944069 | O151: -0.02452207862 | P151: -0.01447575497 | Q151: -0.1041164214 | R151: -0.0764401759 | S151: -0.1457913573 | T151: -0.06094797347 | U151: -0.01901563909 | V151: 0.004519291483 | W151: -0.07505950706 | X151: -0.03851834483 | Y151: -0.01790418846 | Z151: 0.02376507532 | AA151: -0.1165007933 | AB151: -0.02508797479 | AC151: 0.05778336406 | AD151: -0.04430182295 | AE151: -0.03014582033 | AF151: -0.005055383063 | AG151: -0.07011602985 | AH151: -0.05166745946 | AI151: -0.02066761714 | AJ151: -0.01626893395 | AK151: 0.006365695188 | AL151: 0.001082786339 | AM151: -0.00979669049 | AN151: -0.01366440595 | AO151: -0.03308215956 | AP151: -0.007171887146 | AQ151: -0.0459361377 | AR151: 0.0321861772 | AS151: -0.01498646174 | AT151: -0.06626611193 | AU151: 0.04226080423 | AW151: =SUMPRODUCT(B151:AU151,TRANSPOSE('QoL regression results'!$H$3:$H$48)) -> 0.803417274
A152: 151 | B152: 0.8748360308 | C152: -0.07258582728 | D152: 0.006006470843 | E152: 0.007393087311 | F152: 0.001285060165 | G152: 0.03501767502 | H152: 0.03300000868 | I152: -0.08869657144 | J152: -0.04733723091 | K152: -0.1097572683 | L152: -0.1203012102 | M152: -0.06341145094 | N152: -0.1271407252 | O152: -0.05864215338 | P152: -0.03486545499 | Q152: -0.1412959514 | R152: -0.0892330475 | S152: -0.1073621317 | T152: -0.07108922876 | U152: -0.01486351647 | V152: 0.02222807594 | W152: -0.02026114131 | X152: -0.04322892358 | Y152: -0.01382117316 | Z152: 0.05750491842 | AA152: -0.1130790511 | AB152: -0.03065970012 | AC152: -0.09326112828 | AD152: -0.0314439795 | AE152: -0.04059681757 | AF152: -0.02846752586 | AG152: -0.05334293088 | AH152: -0.05619566075 | AI152: -0.02867942211 | AJ152: -0.02215144417 | AK152: -0.01078126809 | AL152: -0.0002541836606 | AM152: -0.01415892507 | AN152: -0.02764970296 | AO152: -0.04281014064 | AP152: -0.01282960292 | AQ152: -0.05603465515 | AR152: 0.02779447544 | AS152: -0.009725159184 | AT152: -0.05555506704 | AU152: 0.03462899737 | AW152: =SUMPRODUCT(B152:AU152,TRANSPOSE('QoL regression results'!$H$3:$H$48)) -> 0.8183861864
A153: 152 | B153: 0.8594795698 | C153: 0.05269709339 | D153: -0.01084106818 | E153: -0.002793973506 | F153: -0.03863462554 | G153: 0.02243526346 | H153: 0.02485409542 | I153: -0.1153918127 | J153: -0.01812579214 | K153: -0.1776818437 | L153: -0.1424547926 | M153: -0.05423220428 | N153: -0.1775436335 | O153: -0.08983924999 | P153: -0.01412646058 | Q153: 0.03515675516 | R153: -0.128212068 | S153: -0.09074468143 | T153: -0.05159519187 | U153: -0.1106752223 | V153: -0.005222953298 | W153: -0.05949998105 | X153: -0.03539204965 | Y153: -0.01007914194 | Z153: 0.04631802131 | AA153: -0.06659882171 | AB153: -0.03041218144 | AC153: -0.007790261408 | AD153: -0.02955917846 | AE153: -0.03694011977 | AF153: -0.01753776094 | AG153: -0.06517744257 | AH153: -0.04128256518 | AI153: -0.006068582774 | AJ153: -0.01370699003 | AK153: -0.003203576086 | AL153: 0.005539713892 | AM153: -0.006431734745 | AN153: -0.02626180629 | AO153: -0.03437082537 | AP153: -0.01576236662 | AQ153: -0.05321302677 | AR153: 0.03302157708 | AS153: -0.0172869702 | AT153: -0.06916885537 | AU153: 0.04555163357 | AW153: =SUMPRODUCT(B153:AU153,TRANSPOSE('QoL regression results'!$H$3:$H$48)) -> 0.8237367186
A154: 153 | B154: 0.8580238585 | C154: -0.01744226054 | D154: 0.03253982116 | E154: 0.01160332032 | F154: -0.014441093 | G154: 0.01945860481 | H154: 0.04364599372 | I154: -0.1121622761 | J154: -0.04267659464 | K154: -0.07574415055 | L154: -0.1041558408 | M154: -0.049204807 | N154: -0.1364270921 | O154: -0.1315528406 | P154: -0.02427705842 | Q154: -0.1698711693 | R154: -0.04920806713 | S154: -0.1158928443 | T154: -0.07297141294 | U154: -0.05034895176 | V154: 0.0400281915 | W154: -0.06557883941 | X154: -0.04562370357 | Y154: -0.01125279408 | Z154: -0.02108253847 | AA154: -0.0811738834 | AB154: -0.0412587109 | AC154: -0.01047147058 | AD154: 0.04112557275 | AE154: -0.03670087373 | AF154: -0.01511983871 | AG154: -0.05249644924 | AH154: -0.06194216953 | AI154: -0.03088912178 | AJ154: -0.0193860435 | AK154: 0.004845863928 | AL154: -0.001046988131 | AM154: -0.00386937603 | AN154: -0.01752858652 | AO154: -0.04566789081 | AP154: -0.01329302224 | AQ154: -0.06283837141 | AR154: 0.02576777631 | AS154: -0.01663870031 | AT154: -0.05777789492 | AU154: 0.04054293363 | AW154: =SUMPRODUCT(B154:AU154,TRANSPOSE('QoL regression results'!$H$3:$H$48)) -> 0.7950347008
A155: 154 | B155: 0.8730677148 | C155: -0.05293380232 | D155: -5.71856563e-05 | E155: 0.001848064862 | F155: 0.003336890039 | G155: 0.03346508844 | H155: 0.03277053699 | I155: -0.05446646855 | J155: -0.01866479312 | K155: -0.09406241934 | L155: -0.1000849751 | M155: -0.0483740299 | N155: -0.08307101384 | O155: -0.09264460287 | P155: -0.02338216272 | Q155: -0.08618838971 | R155: -0.1144713923 | S155: -0.1288649017 | T155: -0.08219339905 | U155: -0.08905332423 | V155: 0.00652618773 | W155: -0.06528580427 | X155: -0.03021096457 | Y155: 0.03106025755 | Z155: 0.01567756623 | AA155: -0.09992325373 | AB155: -0.007558488428 | AC155: -0.07193316572 | AD155: 0.07806038623 | AE155: -0.03566527486 | AF155: -0.000789803677 | AG155: -0.06304489295 | AH155: -0.05640983726 | AI155: -0.02622052681 | AJ155: -0.01451272123 | AK155: -0.01755619705 | AL155: -0.003651392944 | AM155: -0.02915098382 | AN155: -0.03737123803 | AO155: -0.05808898468 | AP155: -0.01175622979 | AQ155: -0.05144374142 | AR155: 0.02461870189 | AS155: -0.01701864652 | AT155: -0.06008626449 | AU155: 0.04685381757 | AW155: =SUMPRODUCT(B155:AU155,TRANSPOSE('QoL regression results'!$H$3:$H$48)) -> 0.8130064846
A156: 155 | B156: 0.8557569154 | C156: -0.03199948693 | D156: -0.02131527359 | E156: 0.002973063163 | F156: -0.006093947825 | G156: 0.02073266341 | H156: 0.02461303763 | I156: -0.1051810668 | J156: -0.04286782255 | K156: -0.1248505726 | L156: -0.1110373351 | M156: -0.05085225403 | N156: -0.04486319392 | O156: -0.08548517244 | P156: -0.01987878693 | Q156: -0.08079637226 | R156: -0.09905283131 | S156: -0.1231647349 | T156: -0.08033736226 | U156: -0.06700553502 | V156: -0.01804572193 | W156: -0.04308010269 | X156: -0.03268842565 | Y156: -0.01328232419 | Z156: -0.01768032648 | AA156: -0.07744474191 | AB156: -0.02494494656 | AC156: -0.02728179692 | AD156: -0.05895629308 | AE156: -0.03637656867 | AF156: -0.009014996837 | AG156: -0.06207537933 | AH156: -0.04325354282 | AI156: -0.02329615422 | AJ156: -0.01896932393 | AK156: -0.001344267939 | AL156: 0.005526334768 | AM156: -0.01306450071 | AN156: -0.02242198576 | AO156: -0.04322459471 | AP156: -0.00829094134 | AQ156: -0.046906643 | AR156: 0.02791238154 | AS156: -0.004656801684 | AT156: -0.06197863471 | AU156: 0.04301242836 | AW156: =SUMPRODUCT(B156:AU156,TRANSPOSE('QoL regression results'!$H$3:$H$48)) -> 0.8180297074
A157: 156 | B157: 0.8493669175 | C157: 0.04759573486 | D157: 0.01413910045 | E157: 0.009388846738 | F157: -0.008321941585 | G157: 0.01501394894 | H157: 0.03217637056 | I157: -0.0892390792 | J157: -0.01272754868 | K157: -0.1476123487 | L157: -0.1139484979 | M157: -0.04036648835 | N157: -0.06457863641 | O157: -0.07415936568 | P157: -0.01940450909 | Q157: -0.08640174776 | R157: -0.07302596745 | S157: -0.1405387179 | T157: -0.07413347349 | U157: -0.1239412824 | V157: -0.005078477308 | W157: -0.07296824068 | X157: -0.04356292633 | Y157: 0.02248371009 | Z157: -0.01600296169 | AA157: -0.09934952354 | AB157: -0.02013580815 | AC157: 0.001441861395 | AD157: 0.08817882693 | AE157: -0.03829625618 | AF157: -0.02819844805 | AG157: -0.06556856214 | AH157: -0.05241730716 | AI157: -0.02971483849 | AJ157: -0.01812988665 | AK157: -0.01163597712 | AL157: 0.01025370967 | AM157: -0.006753853804 | AN157: -0.01962666995 | AO157: -0.03094822801 | AP157: -0.009521877001 | AQ157: -0.04378639934 | AR157: 0.03018620619 | AS157: -0.01928097854 | AT157: -0.06075454143 | AU157: 0.04647257714 | AW157: =SUMPRODUCT(B157:AU157,TRANSPOSE('QoL regression results'!$H$3:$H$48)) -> 0.80720332
A158: 157 | B158: 0.874176506 | C158: -0.07973193903 | D158: 0.003652960438 | E158: 0.003291731264 | F158: -0.008023879713 | G158: 0.03252059542 | H158: 0.03007146266 | I158: -0.08912222581 | J158: -0.04540253535 | K158: -0.1949121477 | L158: -0.1481497684 | M158: -0.05717925077 | N158: -0.1016890119 | O158: -0.1122155075 | P158: -0.03514943571 | Q158: -0.01663735443 | R158: -0.07371107124 | S158: -0.1287444745 | T158: -0.052894213 | U158: -0.06708639415 | V158: 0.01839240867 | W158: -0.05325334795 | X158: -0.02699000582 | Y158: 0.03698769655 | Z158: 0.02079498947 | AA158: -0.1037476625 | AB158: -0.0324508588 | AC158: -0.05830695134 | AD158: -0.1270603465 | AE158: -0.03136216599 | AF158: -0.005564338679 | AG158: -0.05839369482 | AH158: -0.05087837727 | AI158: -0.01380582617 | AJ158: -0.01764779651 | AK158: -0.01020256664 | AL158: -0.004010986486 | AM158: -0.02509148528 | AN158: -0.03287777483 | AO158: -0.05200697031 | AP158: -0.01302843029 | AQ158: -0.0553054943 | AR158: 0.03019698619 | AS158: -0.01985470807 | AT158: -0.0617331968 | AU158: 0.04066737114 | AW158: =SUMPRODUCT(B158:AU158,TRANSPOSE('QoL regression results'!$H$3:$H$48)) -> 0.8192871422
A159: 158 | B159: 0.8652050616 | C159: -0.0496138067 | D159: 0.02575702651 | E159: 0.003781100435 | F159: -0.0005531834679 | G159: 0.00903843228 | H159: 0.02573716898 | I159: -0.1075715396 | J159: -0.01677584882 | K159: -0.2674152903 | L159: -0.1285437349 | M159: -0.0560994092 | N159: -0.1876953232 | O159: -0.06413724735 | P159: -0.02649033642 | Q159: -0.1371925379 | R159: -0.06625690991 | S159: -0.09935197261 | T159: -0.04792235669 | U159: -0.1502031401 | V159: 0.02397048324 | W159: -0.04624239236 | X159: -0.03592700367 | Y159: 0.006271167813 | Z159: 0.01626862142 | AA159: -0.1082572028 | AB159: -0.03007332539 | AC159: 0.06059445481 | AD159: 0.008282881517 | AE159: -0.03514414996 | AF159: -0.02990412284 | AG159: -0.06578619504 | AH159: -0.04339721175 | AI159: -0.01240356277 | AJ159: -0.01948676814 | AK159: 0.002056591756 | AL159: 0.005672994433 | AM159: -0.005977324995 | AN159: -0.01762211291 | AO159: -0.03279019822 | AP159: -0.01402305171 | AQ159: -0.0434219145 | AR159: 0.02952600292 | AS159: -0.01350325898 | AT159: -0.05948405665 | AU159: 0.03628036949 | AW159: =SUMPRODUCT(B159:AU159,TRANSPOSE('QoL regression results'!$H$3:$H$48)) -> 0.8274808443
A160: 159 | B160: 0.8638907231 | C160: -0.03763740292 | D160: 0.01443506154 | E160: 0.006301025513 | F160: -0.008831160316 | G160: 0.0002270813345 | H160: 0.02277381859 | I160: -0.1088700214 | J160: -0.04412758105 | K160: -0.1557117441 | L160: -0.08250175056 | M160: -0.06161227453 | N160: -0.1855499798 | O160: -0.05363321928 | P160: -0.01465663563 | Q160: -0.08523964239 | R160: -0.1101659141 | S160: -0.1310779614 | T160: -0.05897921061 | U160: -0.06861395625 | V160: 0.0275051084 | W160: -0.06961040267 | X160: -0.02999519597 | Y160: 0.01583250608 | Z160: 0.01551372772 | AA160: -0.08549391947 | AB160: -0.02786951333 | AC160: -0.04849851737 | AD160: -0.08131054909 | AE160: -0.03533290925 | AF160: -0.02774107349 | AG160: -0.05260362077 | AH160: -0.0372648374 | AI160: -0.02311112823 | AJ160: -0.007034362632 | AK160: -0.01471606601 | AL160: -0.01075650704 | AM160: -0.0226036314 | AN160: -0.03328247715 | AO160: -0.05955655883 | AP160: -0.0161137539 | AQ160: -0.05359309813 | AR160: 0.02595887426 | AS160: -0.01240230813 | AT160: -0.06070292785 | AU160: 0.04244216888 | AW160: =SUMPRODUCT(B160:AU160,TRANSPOSE('QoL regression results'!$H$3:$H$48)) -> 0.8158693786
A161: 160 | B161: 0.8438934667 | C161: -0.03689934181 | D161: 0.01607739743 | E161: 0.002961004446 | F161: 0.003563750081 | G161: 0.03099066291 | H161: 0.04360310638 | I161: -0.0915493906 | J161: -0.05147793663 | K161: -0.2215280049 | L161: -0.1089891473 | M161: -0.05376782471 | N161: -0.1920379448 | O161: -0.09255886785 | P161: -0.02936955878 | Q161: -0.1365418748 | R161: -0.04827091797 | S161: -0.1172538983 | T161: -0.0448784251 | U161: -0.05089580678 | V161: -0.01559938016 | W161: -0.05349877958 | X161: -0.04031990932 | Y161: 0.0182319055 | Z161: 0.06390597173 | AA161: -0.08395178192 | AB161: -0.05386255931 | AC161: -0.1064716783 | AD161: -0.03931748846 | AE161: -0.03651354794 | AF161: -0.014820491 | AG161: -0.0594532766 | AH161: -0.05987525349 | AI161: -0.02810550164 | AJ161: -0.01193274233 | AK161: 0.004306635319 | AL161: 0.010451017 | AM161: -0.006794440407 | AN161: -0.01492579959 | AO161: -0.03670407791 | AP161: -0.009475761481 | AQ161: -0.05430218466 | AR161: 0.02817980346 | AS161: -0.007722050029 | AT161: -0.05522303531 | AU161: 0.04267202297 | AW161: =SUMPRODUCT(B161:AU161,TRANSPOSE('QoL regression results'!$H$3:$H$48)) -> 0.7944692302
A162: 161 | B162: 0.8771606783 | C162: -0.05587529752 | D162: -0.02369694726 | E162: 0.007532763161 | F162: -0.004713132737 | G162: 0.05762860264 | H162: 0.03889868737 | I162: -0.0477346865 | J162: -0.05214623979 | K162: -0.1232848306 | L162: -0.1087391262 | M162: -0.05353943829 | N162: -0.1435961383 | O162: -0.1200682984 | P162: -0.019871622 | Q162: -0.03753285189 | R162: -0.06946643446 | S162: -0.1052658214 | T162: -0.05920852175 | U162: -0.1023083576 | V162: -0.001870486397 | W162: -0.04635602912 | X162: -0.04610146983 | Y162: 0.02237589754 | Z162: -0.005396131096 | AA162: -0.1112842217 | AB162: -0.03632751659 | AC162: -0.03082392733 | AD162: -0.05179386193 | AE162: -0.03785985308 | AF162: -0.009341411092 | AG162: -0.05566191118 | AH162: -0.05936502585 | AI162: -0.02085823966 | AJ162: -0.009958978265 | AK162: -0.008684625151 | AL162: -0.002931488494 | AM162: -0.02463652104 | AN162: -0.02911199332 | AO162: -0.05415496326 | AP162: -0.01763156031 | AQ162: -0.0550969339 | AR162: 0.02786518746 | AS162: -0.01327223992 | AT162: -0.0613414111 | AU162: 0.03242901946 | AW162: =SUMPRODUCT(B162:AU162,TRANSPOSE('QoL regression results'!$H$3:$H$48)) -> 0.814864164
A163: 162 | B163: 0.8773833633 | C163: -0.06009853291 | D163: -0.02424755271 | E163: -0.004229271999 | F163: -0.01385192992 | G163: 0.0395362121 | H163: 0.02119547872 | I163: -0.0817498768 | J163: -0.01563563823 | K163: -0.1800081621 | L163: -0.1523494736 | M163: -0.06654607703 | N163: -0.0942968179 | O163: -0.03578238439 | P163: -0.01313192511 | Q163: -0.1456466319 | R163: -0.1650447654 | S163: -0.1342218017 | T163: -0.07693192494 | U163: 0.005172550791 | V163: 0.004714987724 | W163: -0.05151039046 | X163: -0.04627770976 | Y163: -0.02362771182 | Z163: -0.008553549383 | AA163: -0.09667054769 | AB163: -0.02188981372 | AC163: -0.04366591045 | AD163: 0.03170244861 | AE163: -0.03441960611 | AF163: -0.01431585908 | AG163: -0.06611232188 | AH163: -0.03843354195 | AI163: -0.02657974297 | AJ163: -0.01825792351 | AK163: -0.005559510435 | AL163: 0.00043375688 | AM163: -0.01745500959 | AN163: -0.0190342702 | AO163: -0.0450850329 | AP163: -0.009350708321 | AQ163: -0.05438967862 | AR163: 0.03015115417 | AS163: -0.01094201422 | AT163: -0.06308059696 | AU163: 0.03258414717 | AW163: =SUMPRODUCT(B163:AU163,TRANSPOSE('QoL regression results'!$H$3:$H$48)) -> 0.8393835783
A164: 163 | B164: 0.8520789517 | C164: -0.06827243981 | D164: -0.01401386724 | E164: 0.003776473128 | F164: 0.02189912638 | G164: 0.03230027495 | H164: 0.02589547854 | I164: -0.08331268262 | J164: -0.05944394375 | K164: -0.1951128311 | L164: -0.09869209059 | M164: -0.04580878557 | N164: -0.1673913098 | O164: -0.08253122611 | P164: -0.01803433575 | Q164: 0.02354147352 | R164: -0.08791881248 | S164: -0.1333647032 | T164: -0.06539725711 | U164: -0.1033682781 | V164: 0.01333376519 | W164: -0.05837059856 | X164: -0.0375382594 | Y164: 0.01529558257 | Z164: 0.03346233994 | AA164: -0.09332321069 | AB164: -0.02408943995 | AC164: -0.04713194393 | AD164: -0.06733555618 | AE164: -0.03714432517 | AF164: -0.0206204587 | AG164: -0.05024982082 | AH164: -0.03855813684 | AI164: -0.02991054269 | AJ164: -0.01637519366 | AK164: -0.0002273543477 | AL164: 0.01100031316 | AM164: -0.007028251128 | AN164: -0.01326921522 | AO164: -0.03812042722 | AP164: -0.0152367637 | AQ164: -0.05601613736 | AR164: 0.03070816005 | AS164: -0.01493387284 | AT164: -0.05794956786 | AU164: 0.04116696465 | AW164: =SUMPRODUCT(B164:AU164,TRANSPOSE('QoL regression results'!$H$3:$H$48)) -> 0.824521128
A165: 164 | B165: 0.856804029 | C165: -0.05144193437 | D165: -0.02390175062 | E165: -0.003349219031 | F165: -0.005960675251 | G165: 0.04964654459 | H165: 0.03502816225 | I165: -0.1026169761 | J165: -0.04880169679 | K165: -0.1080649422 | L165: -0.09796152555 | M165: -0.06190056866 | N165: -0.09393969931 | O165: -0.0774197798 | P165: -0.03191249617 | Q165: -0.0988183886 | R165: -0.04469576281 | S165: -0.1113521828 | T165: -0.06358471392 | U165: -0.09724948593 | V165: 0.002585894127 | W165: -0.04643428923 | X165: -0.008738620617 | Y165: -0.01682112634 | Z165: 0.01036744888 | AA165: -0.07985825118 | AB165: -0.02550909201 | AC165: -0.03045000441 | AD165: -0.09778973047 | AE165: -0.04026458056 | AF165: -0.02057560132 | AG165: -0.06810169452 | AH165: -0.05597417983 | AI165: -0.03226201131 | AJ165: -0.01373735731 | AK165: -0.004612314328 | AL165: 0.003487673917 | AM165: -0.01076215033 | AN165: -0.01364634944 | AO165: -0.03832408683 | AP165: -0.01508178323 | AQ165: -0.05190849619 | AR165: 0.03366085895 | AS165: -0.01574910256 | AT165: -0.06523268365 | AU165: 0.04924037379 | AW165: =SUMPRODUCT(B165:AU165,TRANSPOSE('QoL regression results'!$H$3:$H$48)) -> 0.8043175231
A166: 165 | B166: 0.8643193446 | C166: -0.05423781496 | D166: 0.005500121185 | E166: 0.001265183607 | F166: -0.008522849341 | G166: 0.0396636168 | H166: 0.03821950691 | I166: -0.07888047039 | J166: 0.002668495886 | K166: -0.1292187773 | L166: -0.1238200165 | M166: -0.06196445858 | N166: -0.1798962608 | O166: -0.02036572988 | P166: -0.01584912505 | Q166: -0.09097238975 | R166: -0.07535556012 | S166: -0.07948616871 | T166: -0.0820593766 | U166: -0.1659467973 | V166: 0.02509226444 | W166: -0.05765141248 | X166: -0.03758073527 | Y166: 0.01295874239 | Z166: 0.02365390952 | AA166: -0.09774489159 | AB166: -0.01579576859 | AC166: -0.02652486357 | AD166: -0.0890487665 | AE166: -0.03138595243 | AF166: -0.02997092691 | AG166: -0.0622680428 | AH166: -0.06360521257 | AI166: -0.02746066981 | AJ166: -0.01695010802 | AK166: 0.003689877701 | AL166: 0.01313869002 | AM166: -0.003405709057 | AN166: -0.01240712238 | AO166: -0.03787603127 | AP166: -0.0170062918 | AQ166: -0.05197677045 | AR166: 0.03117384187 | AS166: -0.01449956628 | AT166: -0.06145497274 | AU166: 0.0377652282 | AW166: =SUMPRODUCT(B166:AU166,TRANSPOSE('QoL regression results'!$H$3:$H$48)) -> 0.813852822
A167: 166 | B167: 0.8707737966 | C167: -0.04453541032 | D167: -0.004568298348 | E167: 0.002717630586 | F167: 0.02265172944 | G167: 0.0327867948 | H167: 0.02754911603 | I167: -0.09377573539 | J167: -0.03989290767 | K167: -0.1132200101 | L167: -0.1225737678 | M167: -0.05269693261 | N167: -0.08909891893 | O167: -0.07431632488 | P167: -0.01589572446 | Q167: -0.09478263602 | R167: -0.08944748166 | S167: -0.1401963139 | T167: -0.05669571527 | U167: -0.1226238511 | V167: 0.02778182721 | W167: -0.06813937375 | X167: -0.0526338571 | Y167: 0.03128414603 | Z167: 0.01616104093 | AA167: -0.0972803197 | AB167: -0.03644089609 | AC167: -0.0389596207 | AD167: 0.01127462781 | AE167: -0.03924281527 | AF167: -0.02244818602 | AG167: -0.06060229683 | AH167: -0.05651720275 | AI167: -0.02630799874 | AJ167: -0.01590850304 | AK167: -0.003927935342 | AL167: 0.003891309534 | AM167: -0.00374574412 | AN167: -0.02107197745 | AO167: -0.0500715399 | AP167: -0.01453347183 | AQ167: -0.05765484742 | AR167: 0.02013583064 | AS167: -0.01466553015 | AT167: -0.0579062213 | AU167: 0.04640687294 | AW167: =SUMPRODUCT(B167:AU167,TRANSPOSE('QoL regression results'!$H$3:$H$48)) -> 0.8181479034
A168: 167 | B168: 0.8586367768 | C168: -0.06235146545 | D168: 0.0007474767233 | E168: -0.002868500728 | F168: 0.02439571714 | G168: 0.02780627168 | H168: 0.03273853361 | I168: -0.0672849329 | J168: -0.009103292325 | K168: -0.165768706 | L168: -0.1222322075 | M168: -0.06323807951 | N168: -0.1582576347 | O168: -0.05969248617 | P168: -0.02083304205 | Q168: -0.08400512934 | R168: -0.04794038997 | S168: -0.1458648325 | T168: -0.07483099359 | U168: -0.06582155487 | V168: -0.0005719949606 | W168: -0.02944683953 | X168: -0.04188502035 | Y168: 0.02183470662 | Z168: -0.01571720364 | AA168: -0.09429460274 | AB168: -0.03969809166 | AC168: 0.002383534373 | AD168: -0.0131115649 | AE168: -0.04078712089 | AF168: -0.0119776806 | AG168: -0.06584176682 | AH168: -0.05477499114 | AI168: -0.01403053397 | AJ168: -0.008141808663 | AK168: 0.001392318277 | AL168: 0.005067909181 | AM168: -0.009539473133 | AN168: -0.032900132 | AO168: -0.05873674899 | AP168: -0.00790802008 | AQ168: -0.04848263509 | AR168: 0.03014951987 | AS168: -0.02060746005 | AT168: -0.06063692197 | AU168: 0.04922693131 | AW168: =SUMPRODUCT(B168:AU168,TRANSPOSE('QoL regression results'!$H$3:$H$48)) -> 0.8089296948
A169: 168 | B169: 0.8588803053 | C169: -0.06094271225 | D169: -0.02134821977 | E169: -0.00534623155 | F169: 0.004469306381 | G169: 0.02434353944 | H169: 0.03027529124 | I169: -0.06228107965 | J169: -0.04384496678 | K169: -0.1576358672 | L169: -0.09648445707 | M169: -0.05264644256 | N169: -0.1154807013 | O169: -0.05593381323 | P169: -0.03558416215 | Q169: -0.1328014782 | R169: -0.07015078179 | S169: -0.1275776833 | T169: -0.04103484958 | U169: 0.004157594389 | V169: 0.04403786989 | W169: -0.05041808011 | X169: -0.05090471991 | Y169: 0.02257271087 | Z169: 0.007926153078 | AA169: -0.08761264114 | AB169: -0.03967618895 | AC169: -0.008095908266 | AD169: -0.06789884472 | AE169: -0.03698410085 | AF169: -0.01397054157 | AG169: -0.07069664051 | AH169: -0.04493632546 | AI169: -0.0306600654 | AJ169: -0.01297902982 | AK169: 0.006552117739 | AL169: 0.01945652137 | AM169: -0.009310798375 | AN169: -0.01471328619 | AO169: -0.03327103683 | AP169: -0.009870464997 | AQ169: -0.04666424602 | AR169: 0.02774448379 | AS169: -0.01660506901 | AT169: -0.0599717352 | AU169: 0.0410739968 | AW169: =SUMPRODUCT(B169:AU169,TRANSPOSE('QoL regression results'!$H$3:$H$48)) -> 0.8334005012
A170: 169 | B170: 0.8695985039 | C170: -0.03138750101 | D170: -0.0006083591838 | E170: 0.009435616243 | F170: -0.009646029041 | G170: 0.0344679257 | H170: 0.029120199 | I170: -0.08050992771 | J170: -0.01173815697 | K170: -0.1752193856 | L170: -0.1340339556 | M170: -0.05355509301 | N170: -0.1310668538 | O170: -0.158711925 | P170: -0.02460614829 | Q170: -0.116383778 | R170: -0.09299067605 | S170: -0.101155216 | T170: -0.08171644856 | U170: -0.1382016044 | V170: 0.004668046844 | W170: -0.02708932517 | X170: -0.03985705377 | Y170: -0.01697179424 | Z170: -0.03360690864 | AA170: -0.1107166955 | AB170: -0.0339813767 | AC170: -0.04494673884 | AD170: -0.06024663037 | AE170: -0.02715180942 | AF170: -0.01621722023 | AG170: -0.05240997206 | AH170: -0.050993051 | AI170: -0.02262539943 | AJ170: -0.01609367949 | AK170: -0.007940221892 | AL170: -0.0001038620152 | AM170: -0.01666495545 | AN170: -0.02858116177 | AO170: -0.06315998195 | AP170: -0.01116278181 | AQ170: -0.05122034523 | AR170: 0.02709828984 | AS170: -0.01534364362 | AT170: -0.068830136 | AU170: 0.03958360943 | AW170: =SUMPRODUCT(B170:AU170,TRANSPOSE('QoL regression results'!$H$3:$H$48)) -> 0.8185015909
A171: 170 | B171: 0.8602366212 | C171: -0.1125847131 | D171: -0.007236814012 | E171: -0.003228827088 | F171: 0.03784398478 | G171: 0.04887974298 | H171: 0.04415721433 | I171: -0.03055666192 | J171: 0.00774589104 | K171: -0.178674601 | L171: -0.1428608669 | M171: -0.06515002572 | N171: -0.1399710895 | O171: -0.0799078454 | P171: -0.02356135454 | Q171: -0.001668622931 | R171: -0.0590206153 | S171: -0.1122492829 | T171: -0.08894465725 | U171: -0.01807842087 | V171: 0.007010427012 | W171: -0.04178058629 | X171: -0.0284104564 | Y171: -0.02967975037 | Z171: 0.004591273774 | AA171: -0.08362118707 | AB171: -0.03542123346 | AC171: -0.05564758476 | AD171: -0.003929244706 | AE171: -0.0307671607 | AF171: -0.01180972491 | AG171: -0.06705058412 | AH171: -0.05646474342 | AI171: -0.03250948043 | AJ171: -0.02120332634 | AK171: 0.004841036541 | AL171: 0.01686007106 | AM171: -0.005775837911 | AN171: -0.008926933664 | AO171: -0.03624416825 | AP171: -0.01394119099 | AQ171: -0.06067334747 | AR171: 0.0272971792 | AS171: -0.01510801632 | AT171: -0.05612684858 | AU171: 0.03707786052 | AW171: =SUMPRODUCT(B171:AU171,TRANSPOSE('QoL regression results'!$H$3:$H$48)) -> 0.8206319488
A172: 171 | B172: 0.860254423 | C172: 0.02715333821 | D172: -0.01070824585 | E172: 0.005611161435 | F172: 0.0134535959 | G172: 0.03909435303 | H172: 0.03056200871 | I172: -0.09185779509 | J172: -0.05225889369 | K172: -0.2108614157 | L172: -0.1126112779 | M172: -0.05869148427 | N172: -0.09961944845 | O172: -0.07222673254 | P172: -0.02591210081 | Q172: -0.0487058693 | R172: -0.05840985992 | S172: -0.1436929748 | T172: -0.04856031608 | U172: -0.09635927551 | V172: 0.02333921972 | W172: -0.0366562681 | X172: -0.03580410301 | Y172: -0.01829388364 | Z172: -0.0008038412307 | AA172: -0.1155143065 | AB172: -0.03821044435 | AC172: -0.02152963403 | AD172: 0.05274161159 | AE172: -0.03378068177 | AF172: -0.008713191362 | AG172: -0.06213853555 | AH172: -0.0525850519 | AI172: -0.01339074231 | AJ172: -0.01267624421 | AK172: -0.005165130935 | AL172: 0.004680185171 | AM172: -0.008566336496 | AN172: -0.02227041893 | AO172: -0.04680579297 | AP172: -0.01395395309 | AQ172: -0.05737833231 | AR172: 0.02735348125 | AS172: -0.02772900286 | AT172: -0.0661219423 | AU172: 0.0474406789 | AW172: =SUMPRODUCT(B172:AU172,TRANSPOSE('QoL regression results'!$H$3:$H$48)) -> 0.8123495562
A173: 172 | B173: 0.8525028498 | C173: -0.04193878415 | D173: -0.01367301123 | E173: 0.006573286569 | F173: -0.005120480042 | G173: 0.01699486269 | H173: 0.02814483422 | I173: -0.1003325149 | J173: -0.01081566595 | K173: -0.1023237322 | L173: -0.0893422571 | M173: -0.05522296087 | N173: -0.0794989899 | O173: -0.07614462642 | P173: -0.01145692544 | Q173: -0.11315887 | R173: -0.0765574079 | S173: -0.1289752412 | T173: -0.06070173489 | U173: -0.03275299547 | V173: 0.003740244928 | W173: -0.02530891279 | X173: -0.02231675479 | Y173: -0.02066714945 | Z173: 0.001622688417 | AA173: -0.1065020616 | AB173: -0.03288005315 | AC173: -0.002493016858 | AD173: -0.005956371098 | AE173: -0.02938091413 | AF173: -0.006607434251 | AG173: -0.06607658832 | AH173: -0.04889995432 | AI173: -0.02378208186 | AJ173: -0.0158984803 | AK173: 0.004386127282 | AL173: 0.01158175627 | AM173: -0.003649773562 | AN173: -0.02092084482 | AO173: -0.03574596294 | AP173: -0.01230415455 | AQ173: -0.04850063982 | AR173: 0.02314348177 | AS173: -0.01690639142 | AT173: -0.06615653528 | AU173: 0.04680915777 | AW173: =SUMPRODUCT(B173:AU173,TRANSPOSE('QoL regression results'!$H$3:$H$48)) -> 0.8151846518
A174: 173 | B174: 0.8778613345 | C174: -0.07787778592 | D174: 0.005279648462 | E174: 0.005597614964 | F174: 0.05054840984 | G174: 0.03429700648 | H174: 0.04031710732 | I174: -0.05037071003 | J174: -0.0221043373 | K174: -0.09999942845 | L174: -0.1214209007 | M174: -0.04763562905 | N174: -0.1784127178 | O174: -0.06259599434 | P174: -0.02607540604 | Q174: -0.04008839777 | R174: -0.1066720754 | S174: -0.1075334089 | T174: -0.0611124498 | U174: 0.02498252306 | V174: -0.02613476195 | W174: -0.0526638172 | X174: -0.03010276904 | Y174: -0.05083217826 | Z174: -0.03767533853 | AA174: -0.08818343181 | AB174: -0.02813496819 | AC174: 0.06967094249 | AD174: -0.01435282778 | AE174: -0.02761765945 | AF174: -0.01316104072 | AG174: -0.05817865193 | AH174: -0.06975120998 | AI174: -0.02636833661 | AJ174: -0.01793521761 | AK174: -0.004186335442 | AL174: -0.001777433807 | AM174: -0.01997867271 | AN174: -0.03388556257 | AO174: -0.05913804688 | AP174: -0.008804418269 | AQ174: -0.0452901872 | AR174: 0.02474850312 | AS174: -0.01756800631 | AT174: -0.07071120935 | AU174: 0.03963007759 | AW174: =SUMPRODUCT(B174:AU174,TRANSPOSE('QoL regression results'!$H$3:$H$48)) -> 0.8063326907
A175: 174 | B175: 0.8746652684 | C175: -0.0528326565 | D175: 0.001072196727 | E175: 0.009287101574 | F175: -0.00431990649 | G175: 0.02685685405 | H175: 0.02674091672 | I175: -0.05271279925 | J175: -0.02137118585 | K175: -0.1373264744 | L175: -0.1040537585 | M175: -0.05380843413 | N175: -0.1297849221 | O175: -0.1077814728 | P175: -0.01709225407 | Q175: -0.1077998107 | R175: 0.0001646692325 | S175: -0.1414621447 | T175: -0.0659306367 | U175: -0.01570143293 | V175: 0.005200732409 | W175: -0.06857955669 | X175: -0.04773020328 | Y175: -0.05712979806 | Z175: -0.01841225903 | AA175: -0.09592408266 | AB175: -0.03191744723 | AC175: -0.09180337996 | AD175: -0.07519434955 | AE175: -0.03577392694 | AF175: -0.01945578115 | AG175: -0.06680665591 | AH175: -0.05341164406 | AI175: -0.02379478975 | AJ175: -0.01229584918 | AK175: 0.002268216352 | AL175: -0.002617122132 | AM175: -0.01084080271 | AN175: -0.02012763383 | AO175: -0.0440718051 | AP175: -0.01656944797 | AQ175: -0.06193965955 | AR175: 0.02851046998 | AS175: -0.01788262565 | AT175: -0.06124160211 | AU175: 0.03398084978 | AW175: =SUMPRODUCT(B175:AU175,TRANSPOSE('QoL regression results'!$H$3:$H$48)) -> 0.8186365022
A176: 175 | B176: 0.8663404754 | C176: -0.06946545525 | D176: -0.007650034789 | E176: -0.004030090271 | F176: 0.00330958503 | G176: 0.03142128546 | H176: 0.03832555272 | I176: -0.08117130153 | J176: -0.01390764831 | K176: -0.1375305039 | L176: -0.1090314587 | M176: -0.06183796394 | N176: -0.1071336069 | O176: -0.04185596336 | P176: -0.01399283653 | Q176: -0.06586541053 | R176: -0.05491042237 | S176: -0.1075698941 | T176: -0.06472507791 | U176: -0.148315706 | V176: -0.008600245979 | W176: -0.0810493888 | X176: -0.05872018309 | Y176: -0.0001185572773 | Z176: 0.01782359128 | AA176: -0.09247795339 | AB176: -0.01662535045 | AC176: -0.06807782755 | AD176: -0.06595653709 | AE176: -0.03228557874 | AF176: -0.01789206903 | AG176: -0.06613202516 | AH176: -0.0586877142 | AI176: -0.02230299507 | AJ176: -0.01539286976 | AK176: 0.00975074211 | AL176: 0.01548747571 | AM176: -0.0003221384151 | AN176: -0.0137170429 | AO176: -0.04402324425 | AP176: -0.02070410637 | AQ176: -0.06397084415 | AR176: 0.03488984963 | AS176: -0.01854653697 | AT176: -0.05974320679 | AU176: 0.04514586196 | AW176: =SUMPRODUCT(B176:AU176,TRANSPOSE('QoL regression results'!$H$3:$H$48)) -> 0.8231402369
A177: 176 | B177: 0.8631935097 | C177: -0.07548762487 | D177: -0.03114703579 | E177: -0.007427886246 | F177: 0.01166695168 | G177: 0.04718324416 | H177: 0.04418149668 | I177: -0.06525780554 | J177: 0.0006698320362 | K177: -0.1089864915 | L177: -0.1361769154 | M177: -0.05614711386 | N177: -0.1193743066 | O177: -0.03931414643 | P177: -0.0271420912 | Q177: -0.002205917093 | R177: -0.102531914 | S177: -0.1549321357 | T177: -0.06955098268 | U177: -0.1493337472 | V177: -0.007826046523 | W177: -0.02704571569 | X177: -0.03825243703 | Y177: 0.0147365786 | Z177: -0.01235050058 | AA177: -0.1034022839 | AB177: -0.0163232447 | AC177: 0.03936873069 | AD177: -0.04011448688 | AE177: -0.03507647352 | AF177: -0.01017619527 | AG177: -0.06348205953 | AH177: -0.0570118959 | AI177: -0.02201420282 | AJ177: -0.01819394021 | AK177: -0.01162036562 | AL177: 0.01334409225 | AM177: -0.008749602713 | AN177: -0.02922016768 | AO177: -0.04595216176 | AP177: -0.01022773291 | AQ177: -0.0508606371 | AR177: 0.03280364926 | AS177: -0.02272992491 | AT177: -0.0699038762 | AU177: 0.04675754053 | AW177: =SUMPRODUCT(B177:AU177,TRANSPOSE('QoL regression results'!$H$3:$H$48)) -> 0.819525706
A178: 177 | B178: 0.8668698846 | C178: -0.0751078079 | D178: -0.00647231074 | E178: -0.00157274279 | F178: 0.02228564916 | G178: 0.01640762228 | H178: 0.03664890236 | I178: -0.05802617283 | J178: -0.0306794413 | K178: -0.1443451716 | L178: -0.1255626415 | M178: -0.0604818026 | N178: -0.07654063401 | O178: -0.1105394109 | P178: -0.009503932448 | Q178: -0.1180503097 | R178: -0.1055930848 | S178: -0.1244616646 | T178: -0.03204056693 | U178: -0.04155422227 | V178: 0.03297223663 | W178: -0.04052307608 | X178: -0.03825752366 | Y178: -0.0209561611 | Z178: -0.04103349436 | AA178: -0.1017783358 | AB178: -0.04819964719 | AC178: 0.04590541605 | AD178: -0.01171902362 | AE178: -0.02774757547 | AF178: -0.01899332564 | AG178: -0.05958688623 | AH178: -0.05132190949 | AI178: -0.02433489626 | AJ178: -0.01740257807 | AK178: -0.003262073471 | AL178: 0.01402607555 | AM178: -0.001483563315 | AN178: -0.01256688337 | AO178: -0.05374915438 | AP178: -0.01667056221 | AQ178: -0.06254973143 | AR178: 0.02981461502 | AS178: -0.02507888914 | AT178: -0.07003719305 | AU178: 0.04108436151 | AW178: =SUMPRODUCT(B178:AU178,TRANSPOSE('QoL regression results'!$H$3:$H$48)) -> 0.8295740506
A179: 178 | B179: 0.8547895451 | C179: -0.05294710768 | D179: -0.02352058451 | E179: 0.005486492977 | F179: 0.005484136342 | G179: 0.008858430588 | H179: 0.0207907841 | I179: -0.07871940299 | J179: -0.0302593535 | K179: -0.1286189283 | L179: -0.07028794162 | M179: -0.05049879798 | N179: -0.1247266972 | O179: -0.0981484656 | P179: -0.01980175887 | Q179: -0.03255287587 | R179: -0.05421014439 | S179: -0.130733487 | T179: -0.07009257181 | U179: -0.1367935045 | V179: -0.03050903562 | W179: -0.02480203747 | X179: -0.03940194604 | Y179: 0.05198389724 | Z179: 0.02487786139 | AA179: -0.09887865476 | AB179: -0.03335169891 | AC179: 0.007942436962 | AD179: -0.01128499993 | AE179: -0.03820823584 | AF179: -0.01787540263 | AG179: -0.06058883768 | AH179: -0.04258708141 | AI179: -0.02546966742 | AJ179: -0.01884139952 | AK179: 0.001703656007 | AL179: 0.01812527996 | AM179: -0.001825866592 | AN179: -0.01195963991 | AO179: -0.02644983334 | AP179: -0.0151657424 | AQ179: -0.05846767845 | AR179: 0.03063317612 | AS179: -0.01770054643 | AT179: -0.06504178118 | AU179: 0.04240868423 | AW179: =SUMPRODUCT(B179:AU179,TRANSPOSE('QoL regression results'!$H$3:$H$48)) -> 0.8303277437
A180: 179 | B180: 0.8771366593 | C180: -0.06178458197 | D180: 0.009630275532 | E180: 0.003797193762 | F180: 0.005872338744 | G180: 0.03219067175 | H180: 0.04585242859 | I180: -0.09673862833 | J180: -0.0256740408 | K180: -0.2034912968 | L180: -0.1236536634 | M180: -0.05275786269 | N180: -0.1075431388 | O180: -0.07521981816 | P180: -0.02205697121 | Q180: -0.06445459473 | R180: -0.09379236752 | S180: -0.1300083151 | T180: -0.1009896745 | U180: -0.1227055562 | V180: 2.51969426e-05 | W180: -0.05941175597 | X180: -0.04043343187 | Y180: 0.02907936632 | Z180: 0.007960350027 | AA180: -0.07440904337 | AB180: -0.02695677542 | AC180: 0.03177990003 | AD180: -0.0107847066 | AE180: -0.03490546989 | AF180: -0.02941529369 | AG180: -0.05947881044 | AH180: -0.07024306905 | AI180: -0.02486760896 | AJ180: -0.01309029423 | AK180: -0.007611259968 | AL180: 0.006417398971 | AM180: -0.01496181857 | AN180: -0.02069340573 | AO180: -0.05559473241 | AP180: -0.01415811651 | AQ180: -0.06341212389 | AR180: 0.02134519239 | AS180: -0.02212800956 | AT180: -0.07408107487 | AU180: 0.0450385039 | AW180: =SUMPRODUCT(B180:AU180,TRANSPOSE('QoL regression results'!$H$3:$H$48)) -> 0.8133109892
A181: 180 | B181: 0.8499938011 | C181: -0.02461728703 | D181: 0.01821472785 | E181: 0.004321405278 | F181: -0.009840224671 | G181: 0.0172553226 | H181: 0.03108010834 | I181: -0.07591371571 | J181: -0.005716459408 | K181: -0.03213499037 | L181: -0.1038606478 | M181: -0.04939718142 | N181: -0.1097278672 | O181: -0.1102477838 | P181: -0.01191036606 | Q181: -0.0739065306 | R181: -0.09630912703 | S181: -0.1216372126 | T181: -0.08081899629 | U181: -0.1191465741 | V181: -0.0005053136213 | W181: -0.03930804187 | X181: -0.04026469688 | Y181: 0.08094640728 | Z181: -0.003790965259 | AA181: -0.09265456456 | AB181: -0.009991081769 | AC181: -0.06845948391 | AD181: -0.01594435507 | AE181: -0.03060212935 | AF181: -0.01428106349 | AG181: -0.06133653819 | AH181: -0.04919964785 | AI181: -0.02724013687 | AJ181: -0.01374365852 | AK181: 0.006341736038 | AL181: 0.01445872534 | AM181: -0.01004377237 | AN181: -0.01934211154 | AO181: -0.04114718502 | AP181: -0.01600084859 | AQ181: -0.05223875652 | AR181: 0.02893088114 | AS181: -0.02029674396 | AT181: -0.0720041709 | AU181: 0.05143332574 | AW181: =SUMPRODUCT(B181:AU181,TRANSPOSE('QoL regression results'!$H$3:$H$48)) -> 0.8152528785
A182: 181 | B182: 0.8564104272 | C182: -0.03929448605 | D182: 0.02944115229 | E182: 0.0121210624 | F182: -0.03704509697 | G182: -0.01380912507 | H182: 0.02183036481 | I182: -0.09084856843 | J182: 0.01113357388 | K182: -0.127661692 | L182: -0.07909513529 | M182: -0.04758727739 | N182: -0.1658891844 | O182: -0.1178741817 | P182: -0.01686529454 | Q182: -0.03099079089 | R182: -0.05124375295 | S182: -0.1137696126 | T182: -0.05807529231 | U182: -0.04639382625 | V182: 0.07605323338 | W182: -0.06985101926 | X182: -0.03991331457 | Y182: 0.001715522408 | Z182: 0.005176408496 | AA182: -0.08833831521 | AB182: -0.04700368445 | AC182: 0.03165252991 | AD182: 0.002625213617 | AE182: -0.02449745032 | AF182: -0.02148737386 | AG182: -0.06165075253 | AH182: -0.03932880348 | AI182: -0.03306986119 | AJ182: -0.01346577106 | AK182: -0.01459186774 | AL182: -0.00239831226 | AM182: -0.02504498032 | AN182: -0.02640494573 | AO182: -0.05199918379 | AP182: -0.007285192341 | AQ182: -0.05253334638 | AR182: 0.02793653599 | AS182: -0.01513197659 | AT182: -0.06305948375 | AU182: 0.03945719669 | AW182: =SUMPRODUCT(B182:AU182,TRANSPOSE('QoL regression results'!$H$3:$H$48)) -> 0.8146833115
A183: 182 | B183: 0.8522602527 | C183: -0.0650605768 | D183: -0.003526365752 | E183: 0.01084932998 | F183: 0.03373563022 | G183: 0.04668223985 | H183: 0.03685947388 | I183: -0.06136413326 | J183: -0.0335393255 | K183: -0.1825735576 | L183: -0.0921724965 | M183: -0.0551219829 | N183: -0.1189548052 | O183: -0.1019625968 | P183: -0.02404829469 | Q183: -0.09069318018 | R183: -0.08686424507 | S183: -0.1172168554 | T183: -0.05096578361 | U183: -0.08017475922 | V183: -0.01318859794 | W183: -0.07447893078 | X183: -0.06049498205 | Y183: -0.02918515879 | Z183: -0.02874824055 | AA183: -0.0968657343 | AB183: -0.03154052617 | AC183: -0.04086426337 | AD183: 0.04675187051 | AE183: -0.03634973954 | AF183: -0.02887550099 | AG183: -0.05951663264 | AH183: -0.06823732638 | AI183: -0.0261135184 | AJ183: -0.01598995611 | AK183: 0.01613289166 | AL183: 0.01829006311 | AM183: 0.005772026034 | AN183: 0.0002854838888 | AO183: -0.02869406179 | AP183: -0.01252747908 | AQ183: -0.0466412992 | AR183: 0.03032482136 | AS183: -0.01204879409 | AT183: -0.05691723544 | AU183: 0.03449418385 | AW183: =SUMPRODUCT(B183:AU183,TRANSPOSE('QoL regression results'!$H$3:$H$48)) -> 0.8023129894
A184: 183 | B184: 0.8571133063 | C184: -0.01200989803 | D184: 0.01997382682 | E184: 0.003155181313 | F184: -0.0165295506 | G184: 0.01688056094 | H184: 0.03656066267 | I184: -0.05595292993 | J184: 0.007038771856 | K184: -0.1604426931 | L184: -0.0848007192 | M184: -0.05736438297 | N184: -0.1005457881 | O184: -0.08769789301 | P184: -0.01638130106 | Q184: -0.1059518488 | R184: -0.102378465 | S184: -0.1153061573 | T184: -0.05752403122 | U184: -0.1229314531 | V184: -0.008285239477 | W184: -0.01029388717 | X184: -0.0556900872 | Y184: 0.03407879252 | Z184: 0.02420248344 | AA184: -0.08832565898 | AB184: -0.02274150482 | AC184: -0.01353158263 | AD184: -0.03403898363 | AE184: -0.03312856739 | AF184: -0.009238665115 | AG184: -0.07062151703 | AH184: -0.0529353458 | AI184: -0.01931963709 | AJ184: -0.01443763678 | AK184: 0.003163857109 | AL184: 0.01017791239 | AM184: -0.00363011226 | AN184: -0.02233646104 | AO184: -0.05632449704 | AP184: -0.009928929443 | AQ184: -0.04823440528 | AR184: 0.03116041762 | AS184: -0.01911077854 | AT184: -0.0586699289 | AU184: 0.03913983152 | AW184: =SUMPRODUCT(B184:AU184,TRANSPOSE('QoL regression results'!$H$3:$H$48)) -> 0.8143558729
A185: 184 | B185: 0.8430380365 | C185: -0.05623925382 | D185: 0.02026842854 | E185: 0.0092357642 | F185: 0.01348049951 | G185: 0.01616415352 | H185: 0.02363389274 | I185: -0.1159727645 | J185: -0.02627913831 | K185: -0.1433537331 | L185: -0.1340644656 | M185: -0.04488030822 | N185: -0.06207856602 | O185: -0.1078152085 | P185: -0.0189245796 | Q185: -0.06090748745 | R185: -0.06717804839 | S185: -0.1244927123 | T185: -0.06985751223 | U185: -0.09089713488 | V185: 0.006933656051 | W185: -0.07548318414 | X185: -0.03925693581 | Y185: -0.03143074515 | Z185: -0.01407314695 | AA185: -0.09868883131 | AB185: -0.03762499348 | AC185: 0.03170437424 | AD185: -0.0637855036 | AE185: -0.03115037429 | AF185: -0.02913480767 | AG185: -0.05793799649 | AH185: -0.04203404926 | AI185: -0.02332569559 | AJ185: -0.01305382901 | AK185: 0.010166462 | AL185: 0.005078929381 | AM185: -0.004454679017 | AN185: -0.01782761873 | AO185: -0.041005899 | AP185: -0.01768284931 | AQ185: -0.05824793553 | AR185: 0.03128595425 | AS185: -0.01543875767 | AT185: -0.0648376209 | AU185: 0.05074588254 | AW185: =SUMPRODUCT(B185:AU185,TRANSPOSE('QoL regression results'!$H$3:$H$48)) -> 0.8060829166
A186: 185 | B186: 0.8587070702 | C186: -0.1030334774 | D186: 0.04665611068 | E186: 0.007987007679 | F186: 0.005544451599 | G186: 0.008349185789 | H186: 0.03393323234 | I186: -0.06936769402 | J186: -0.01631709461 | K186: -0.1342005738 | L186: -0.06272476264 | M186: -0.04878584049 | N186: -0.1010885409 | O186: -0.101803827 | P186: -0.01666872441 | Q186: -0.04670823488 | R186: -0.07966697059 | S186: -0.1435657367 | T186: -0.0568141704 | U186: -0.07154467636 | V186: -0.003520646532 | W186: -0.04555796119 | X186: -0.02132311629 | Y186: -0.04749359437 | Z186: -0.06747966192 | AA186: -0.1336197374 | AB186: -0.02683844805 | AC186: -0.152680498 | AD186: -0.002090338772 | AE186: -0.03944311074 | AF186: -0.02024480114 | AG186: -0.06303308757 | AH186: -0.05520324791 | AI186: -0.03105570982 | AJ186: -0.01190211542 | AK186: -0.003789882641 | AL186: -0.002466281739 | AM186: -0.02318395656 | AN186: -0.03384195168 | AO186: -0.04409649608 | AP186: -0.01572706944 | AQ186: -0.06802989603 | AR186: 0.03119626994 | AS186: -0.01098306045 | AT186: -0.05366948844 | AU186: 0.04867486707 | AW186: =SUMPRODUCT(B186:AU186,TRANSPOSE('QoL regression results'!$H$3:$H$48)) -> 0.8010375406
A187: 186 | B187: 0.8574227514 | C187: -0.03640486584 | D187: 0.01514421979 | E187: 0.003712888236 | F187: -0.01105764929 | G187: 0.001984292713 | H187: 0.01695777404 | I187: -0.08696248103 | J187: -0.0197898904 | K187: -0.08664864883 | L187: -0.1310135439 | M187: -0.05579713548 | N187: -0.07480356547 | O187: -0.05274930849 | P187: -0.02833639484 | Q187: -0.09982229445 | R187: -0.1129539197 | S187: -0.1442615449 | T187: -0.05729697607 | U187: -0.1606243244 | V187: -0.01040032765 | W187: -0.05153842794 | X187: -0.01289966229 | Y187: 0.001194585758 | Z187: -0.00737856039 | AA187: -0.1020193183 | AB187: -0.01585862581 | AC187: -0.09135918443 | AD187: -0.02080777468 | AE187: -0.02933296124 | AF187: -0.002386865775 | AG187: -0.06317871751 | AH187: -0.03204529133 | AI187: -0.03089006921 | AJ187: -0.01186462778 | AK187: -0.01061009681 | AL187: 0.003465065823 | AM187: -0.008700545547 | AN187: -0.02039790394 | AO187: -0.0450222604 | AP187: -0.01302500597 | AQ187: -0.04409282826 | AR187: 0.02415204131 | AS187: -0.01514014345 | AT187: -0.06614349374 | AU187: 0.04533761347 | AW187: =SUMPRODUCT(B187:AU187,TRANSPOSE('QoL regression results'!$H$3:$H$48)) -> 0.8288425259
A188: 187 | B188: 0.8576906574 | C188: -0.01628298096 | D188: 0.01524706362 | E188: 0.006387497095 | F188: -0.005231927393 | G188: 0.02667524932 | H188: 0.04814408793 | I188: -0.1078235304 | J188: -0.01780384214 | K188: -0.1545048083 | L188: -0.09876906379 | M188: -0.05684253288 | N188: -0.1180994588 | O188: -0.1051282913 | P188: -0.03110017821 | Q188: -0.0390054147 | R188: -0.06692673132 | S188: -0.1137339815 | T188: -0.05507195715 | U188: -0.1594968763 | V188: 0.007951677839 | W188: -0.0417875684 | X188: -0.03983009336 | Y188: 0.01969854976 | Z188: -0.0006255092763 | AA188: -0.07827163032 | AB188: -0.0241759519 | AC188: -0.07216204151 | AD188: -0.04462499948 | AE188: -0.04121079141 | AF188: -0.02166143578 | AG188: -0.06049326421 | AH188: -0.06629148798 | AI188: -0.02336789257 | AJ188: -0.01155641145 | AK188: -0.003436043885 | AL188: 0.002253340573 | AM188: -0.009425094197 | AN188: -0.02132111414 | AO188: -0.03782407153 | AP188: -0.0161521936 | AQ188: -0.05041930723 | AR188: 0.03344171649 | AS188: -0.009755062 | AT188: -0.06563157872 | AU188: 0.03832643068 | AW188: =SUMPRODUCT(B188:AU188,TRANSPOSE('QoL regression results'!$H$3:$H$48)) -> 0.79365251
A189: 188 | B189: 0.8579985843 | C189: -0.037120067 | D189: -0.003296461061 | E189: 0.003044168507 | F189: -0.04184189141 | G189: 0.003612505976 | H189: 0.01012644058 | I189: -0.0831949058 | J189: -0.005586379658 | K189: -0.2679935297 | L189: -0.1525307916 | M189: -0.06202347958 | N189: -0.1643014217 | O189: -0.06139004127 | P189: -0.02084108894 | Q189: -0.142753183 | R189: -0.09425002263 | S189: -0.06158066402 | T189: -0.05409177853 | U189: -0.02803604076 | V189: 0.03380674414 | W189: -0.07620409478 | X189: -0.05738671085 | Y189: 0.001869687764 | Z189: 0.01335155233 | AA189: -0.104839989 | AB189: -0.02251659567 | AC189: -0.05786184246 | AD189: -0.05684785589 | AE189: -0.0332782413 | AF189: -0.02617283237 | AG189: -0.06591717774 | AH189: -0.03268878378 | AI189: -0.03332261945 | AJ189: -0.01252856959 | AK189: 0.005517659385 | AL189: 0.01514212196 | AM189: 0.006047094612 | AN189: -0.01335150186 | AO189: -0.04021479259 | AP189: -0.01971827512 | AQ189: -0.05819364934 | AR189: 0.03181470686 | AS189: -0.02319463993 | AT189: -0.06912889535 | AU189: 0.04544163315 | AW189: =SUMPRODUCT(B189:AU189,TRANSPOSE('QoL regression results'!$H$3:$H$48)) -> 0.8404519224
A190: 189 | B190: 0.872848106 | C190: -0.04689910575 | D190: -0.01458386684 | E190: 0.0009201296008 | F190: -0.02431044209 | G190: 0.02639091947 | H190: 0.0391053681 | I190: -0.07994212747 | J190: -0.02795189804 | K190: -0.148199663 | L190: -0.133591679 | M190: -0.0531020331 | N190: -0.0975957971 | O190: -0.07812229818 | P190: -0.00925935738 | Q190: -0.1416551995 | R190: -0.08465838301 | S190: -0.09819765006 | T190: -0.06207557625 | U190: -0.1128412297 | V190: 0.009027901367 | W190: -0.0357919044 | X190: -0.03631429838 | Y190: 0.0594754037 | Z190: -0.02301039813 | AA190: -0.1134435158 | AB190: -0.01649526208 | AC190: -0.01677472724 | AD190: -0.01352744121 | AE190: -0.03726688004 | AF190: -0.02697023322 | AG190: -0.05861723447 | AH190: -0.06199162377 | AI190: -0.03111458017 | AJ190: -0.01090435516 | AK190: -0.008413637086 | AL190: 0.00449856513 | AM190: -0.01382609955 | AN190: -0.03163528132 | AO190: -0.05123011817 | AP190: -0.008754474364 | AQ190: -0.05579170284 | AR190: 0.02553752003 | AS190: -0.01901606617 | AT190: -0.07140410248 | AU190: 0.04404135367 | AW190: =SUMPRODUCT(B190:AU190,TRANSPOSE('QoL regression results'!$H$3:$H$48)) -> 0.8153550474
A191: 190 | B191: 0.8734297873 | C191: -0.04770196116 | D191: -0.002094103328 | E191: -0.004979461838 | F191: -0.01413057704 | G191: 0.03886326218 | H191: 0.02055876734 | I191: -0.06570300697 | J191: -0.02535474298 | K191: -0.1059668567 | L191: -0.0992897588 | M191: -0.06051733342 | N191: -0.1496710102 | O191: -0.1142614686 | P191: -0.01666090734 | Q191: -0.09683629636 | R191: -0.105294241 | S191: -0.1023048902 | T191: -0.07685353829 | U191: -0.1359041757 | V191: 0.0005346263033 | W191: -0.0538284326 | X191: -0.02767911181 | Y191: -0.001274894756 | Z191: 0.02765671602 | AA191: -0.07937012819 | AB191: -0.03662565065 | AC191: 0.03189399598 | AD191: -0.08813043582 | AE191: -0.0395002764 | AF191: -0.01892748649 | AG191: -0.05864377594 | AH191: -0.04016199447 | AI191: -0.02898203348 | AJ191: -0.01592910606 | AK191: -0.002529231632 | AL191: 0.008985279514 | AM191: -0.01462797155 | AN191: -0.02579665379 | AO191: -0.04002820967 | AP191: -0.01596721483 | AQ191: -0.05483968971 | AR191: 0.033085208 | AS191: -0.0210859471 | AT191: -0.06291434555 | AU191: 0.03854225601 | AW191: =SUMPRODUCT(B191:AU191,TRANSPOSE('QoL regression results'!$H$3:$H$48)) -> 0.8422530723
A192: 191 | B192: 0.8572892793 | C192: -0.04546995238 | D192: -0.007940473102 | E192: -0.001427607603 | F192: -0.004080177606 | G192: 0.01929660765 | H192: 0.02124670529 | I192: -0.06873309734 | J192: -0.02426896487 | K192: -0.1498171 | L192: -0.08926924412 | M192: -0.05728083353 | N192: -0.1061863829 | O192: -0.1006843573 | P192: -0.01354831267 | Q192: -0.07028951957 | R192: -0.08807855689 | S192: -0.1221925784 | T192: -0.06488065935 | U192: -0.01374500423 | V192: -0.006096477373 | W192: -0.07867498003 | X192: -0.05677739438 | Y192: -0.001963599412 | Z192: 0.006736741751 | AA192: -0.08870796587 | AB192: -0.02634272114 | AC192: -0.0897664648 | AD192: -0.03270382478 | AE192: -0.03426837324 | AF192: -0.0157411156 | AG192: -0.06085171608 | AH192: -0.04000654428 | AI192: -0.02585216993 | AJ192: -0.01740923208 | AK192: 0.004230363184 | AL192: 0.01066709563 | AM192: -0.01103760524 | AN192: -0.02317469217 | AO192: -0.04940014942 | AP192: -0.01181623702 | AQ192: -0.0607726368 | AR192: 0.02647891315 | AS192: -0.01821105467 | AT192: -0.06815819978 | AU192: 0.0576297038 | AW192: =SUMPRODUCT(B192:AU192,TRANSPOSE('QoL regression results'!$H$3:$H$48)) -> 0.8279498306
A193: 192 | B193: 0.8689522642 | C193: -0.09954318224 | D193: -0.02267926982 | E193: 0.001999769488 | F193: 0.003033742765 | G193: 0.02887636086 | H193: 0.03141601784 | I193: -0.07688191826 | J193: -0.00795726727 | K193: -0.1461978119 | L193: -0.09376865257 | M193: -0.05677715844 | N193: -0.1200953018 | O193: -0.08712607735 | P193: -0.03042164356 | Q193: -0.07869721953 | R193: -0.08541037921 | S193: -0.1177307188 | T193: -0.06278393341 | U193: -0.05529886808 | V193: 0.01822656277 | W193: -0.0870384296 | X193: -0.02884344829 | Y193: 0.01966646822 | Z193: 0.02723704683 | AA193: -0.1009108816 | AB193: -0.03066443407 | AC193: 0.04565406013 | AD193: -0.02289276259 | AE193: -0.03135484233 | AF193: -0.02739003471 | AG193: -0.05222963566 | AH193: -0.05147627486 | AI193: -0.02764306131 | AJ193: -0.02243265095 | AK193: -0.003351928044 | AL193: 0.003252801673 | AM193: -0.01048237278 | AN193: -0.02282618422 | AO193: -0.0464867538 | AP193: -0.01099327937 | AQ193: -0.05687182864 | AR193: 0.03508220773 | AS193: -0.02062323306 | AT193: -0.06622095396 | AU193: 0.03758193251 | AW193: =SUMPRODUCT(B193:AU193,TRANSPOSE('QoL regression results'!$H$3:$H$48)) -> 0.8207287911
A194: 193 | B194: 0.8783749742 | C194: -0.07633892677 | D194: -0.02571676578 | E194: -0.007283752393 | F194: 0.0007088750023 | G194: 0.03213197386 | H194: 0.02577366963 | I194: -0.1220464561 | J194: -0.02721796775 | K194: -0.1112599968 | L194: -0.1137974877 | M194: -0.05517097815 | N194: -0.1603727157 | O194: -0.08373852189 | P194: -0.01562519702 | Q194: -0.1046783427 | R194: -0.05640519115 | S194: -0.1167230214 | T194: -0.07901895312 | U194: -0.08533656526 | V194: 0.01248459718 | W194: -0.05010982966 | X194: -0.02565790591 | Y194: 0.01622257738 | Z194: -0.005966291193 | AA194: -0.09836339104 | AB194: -0.03553219466 | AC194: -0.00620406755 | AD194: 0.0130474745 | AE194: -0.03291546024 | AF194: -0.02042084245 | AG194: -0.06239280209 | AH194: -0.04518221617 | AI194: -0.02661780232 | AJ194: -0.0182625059 | AK194: -0.00776437424 | AL194: -0.001365055577 | AM194: -0.01566534187 | AN194: -0.02097009034 | AO194: -0.03810759893 | AP194: -0.01475579514 | AQ194: -0.05688509797 | AR194: 0.03099547538 | AS194: -0.01642749506 | AT194: -0.06258184528 | AU194: 0.04324446032 | AW194: =SUMPRODUCT(B194:AU194,TRANSPOSE('QoL regression results'!$H$3:$H$48)) -> 0.8318277025
A195: 194 | B195: 0.8645805957 | C195: -0.01684496445 | D195: 0.0006378869426 | E195: 0.00915469853 | F195: -0.00211170823 | G195: 0.02499153636 | H195: 0.03669419891 | I195: -0.05690971233 | J195: -0.0003501202968 | K195: -0.1415642646 | L195: -0.1104440966 | M195: -0.05692389666 | N195: -0.1527771676 | O195: -0.06203280482 | P195: -0.02715148697 | Q195: -0.1188926691 | R195: -0.08140587244 | S195: -0.09860498501 | T195: -0.07439422762 | U195: -0.07142539368 | V195: 0.01240882457 | W195: -0.04368933375 | X195: -0.0329261309 | Y195: -0.01579250923 | Z195: -0.000615357967 | AA195: -0.1019477761 | AB195: -0.04814902106 | AC195: -0.05463025309 | AD195: -0.0741870376 | AE195: -0.0320110865 | AF195: -0.02769366116 | AG195: -0.06911351391 | AH195: -0.07008988818 | AI195: -0.02609132298 | AJ195: -0.004255115096 | AK195: -0.01230146212 | AL195: -0.001397162167 | AM195: -0.01480258406 | AN195: -0.02754412356 | AO195: -0.05912640613 | AP195: -0.01299873767 | AQ195: -0.04789482271 | AR195: 0.02329556016 | AS195: -0.01621337907 | AT195: -0.06815084422 | AU195: 0.05305537873 | AW195: =SUMPRODUCT(B195:AU195,TRANSPOSE('QoL regression results'!$H$3:$H$48)) -> 0.7930935453
A196: 195 | B196: 0.8581592287 | C196: -0.05699611173 | D196: -0.001353152031 | E196: 0.009802366718 | F196: 0.002478870127 | G196: 0.02425831679 | H196: 0.03018603642 | I196: -0.08720702824 | J196: -0.03257955564 | K196: -0.1679026089 | L196: -0.1063317758 | M196: -0.04982840082 | N196: -0.1622547166 | O196: -0.09276755013 | P196: -0.01477110819 | Q196: -0.154433831 | R196: -0.06593508039 | S196: -0.1220892318 | T196: -0.07921413733 | U196: -0.07487726177 | V196: -0.0007938995683 | W196: -0.0466744515 | X196: -0.03480492914 | Y196: 0.02346306973 | Z196: 0.0163669207 | AA196: -0.06035660591 | AB196: -0.03464304109 | AC196: -0.1084497719 | AD196: 0.03168809321 | AE196: -0.02529405958 | AF196: -0.02640292376 | AG196: -0.05520906557 | AH196: -0.04917111174 | AI196: -0.01927995371 | AJ196: -0.0128700763 | AK196: -0.001379479656 | AL196: -0.003048295141 | AM196: -0.02378933372 | AN196: -0.01975331014 | AO196: -0.04074550278 | AP196: -0.01589857093 | AQ196: -0.05741663885 | AR196: 0.03503331881 | AS196: -0.01756168665 | AT196: -0.0627714515 | AU196: 0.0407233193 | AW196: =SUMPRODUCT(B196:AU196,TRANSPOSE('QoL regression results'!$H$3:$H$48)) -> 0.8059398218
A197: 196 | B197: 0.8846787499 | C197: -0.05096636465 | D197: 0.001495009604 | E197: 0.001486000829 | F197: 0.01544751699 | G197: 0.02206790631 | H197: 0.03872656348 | I197: -0.07516556626 | J197: -0.02634974713 | K197: -0.1952005121 | L197: -0.1085349132 | M197: -0.06273968525 | N197: -0.08517564827 | O197: -0.06900075635 | P197: -0.01394656664 | Q197: -0.07870823848 | R197: -0.1239222426 | S197: -0.1098283008 | T197: -0.08564708985 | U197: -0.1030838586 | V197: 0.03047880667 | W197: -0.04680296841 | X197: -0.03783082603 | Y197: 0.02566204482 | Z197: -0.03793542503 | AA197: -0.09148673199 | AB197: -0.02205300243 | AC197: 0.1117774998 | AD197: 0.01453365453 | AE197: -0.03466605845 | AF197: -0.01973913372 | AG197: -0.05773897058 | AH197: -0.05852181549 | AI197: -0.03259727741 | AJ197: -0.01872567423 | AK197: -0.01151369075 | AL197: -0.004874223736 | AM197: -0.01647525588 | AN197: -0.02316857785 | AO197: -0.04849676459 | AP197: -0.01510648228 | AQ197: -0.05368980904 | AR197: 0.02206534466 | AS197: -0.01039396964 | AT197: -0.0609226732 | AU197: 0.03501542231 | AW197: =SUMPRODUCT(B197:AU197,TRANSPOSE('QoL regression results'!$H$3:$H$48)) -> 0.8212827106
A198: 197 | B198: 0.8570618699 | C198: -0.02430311672 | D198: -0.03829591552 | E198: 0.009969491716 | F198: -0.04835668119 | G198: 0.0520424939 | H198: 0.03263949579 | I198: -0.08628587866 | J198: -0.04727593607 | K198: -0.1003995336 | L198: -0.1241777332 | M198: -0.04899638551 | N198: -0.1824576088 | O198: -0.09382328366 | P198: -0.01787270278 | Q198: 0.02336368513 | R198: -0.06350198593 | S198: -0.1233118423 | T198: -0.04063573555 | U198: -0.06650643253 | V198: 0.01802398618 | W198: -0.03742704974 | X198: -0.06398375865 | Y198: -0.02945337998 | Z198: 0.01048438216 | AA198: -0.1037934719 | AB198: -0.02524575754 | AC198: -0.01298928559 | AD198: -0.02848784268 | AE198: -0.02720322792 | AF198: -0.01996099647 | AG198: -0.05144784787 | AH198: -0.05112366469 | AI198: -0.02407465803 | AJ198: -0.02080755971 | AK198: -0.006780031323 | AL198: 0.001035393199 | AM198: -0.02095706153 | AN198: -0.02410017651 | AO198: -0.04004363864 | AP198: -0.004744754154 | AQ198: -0.05869968157 | AR198: 0.02968857135 | AS198: -0.01605201916 | AT198: -0.06576893603 | AU198: 0.04314936386 | AW198: =SUMPRODUCT(B198:AU198,TRANSPOSE('QoL regression results'!$H$3:$H$48)) -> 0.8069735984
A199: 198 | B199: 0.8429956927 | C199: -0.05169310475 | D199: -0.0166360578 | E199: 0.01028930613 | F199: 0.03193139385 | G199: 0.03756412137 | H199: 0.0336026467 | I199: -0.06328866378 | J199: -0.02969346378 | K199: -0.1346169059 | L199: -0.09620562013 | M199: -0.04526442776 | N199: -0.1108116197 | O199: -0.1196815031 | P199: -0.0219412187 | Q199: -0.07659800452 | R199: -0.09474798169 | S199: -0.1440073774 | T199: -0.06604949422 | U199: -0.1530193028 | V199: 0.01251297616 | W199: -0.06073927773 | X199: -0.003575327097 | Y199: -0.004008058969 | Z199: 0.002388587269 | AA199: -0.08102748587 | AB199: -0.03062142286 | AC199: 0.07295286896 | AD199: 0.01676764595 | AE199: -0.03381977963 | AF199: -0.01464807636 | AG199: -0.05816343438 | AH199: -0.05141926564 | AI199: -0.01911296572 | AJ199: -0.01768163815 | AK199: 0.009619361039 | AL199: 0.01423187666 | AM199: 0.007007892765 | AN199: -0.01198030801 | AO199: -0.03761526614 | AP199: -0.01107985639 | AQ199: -0.04755659235 | AR199: 0.03007872708 | AS199: -0.01317434075 | AT199: -0.06104991472 | AU199: 0.03950017603 | AW199: =SUMPRODUCT(B199:AU199,TRANSPOSE('QoL regression results'!$H$3:$H$48)) -> 0.8058083038
A200: 199 | B200: 0.8393302554 | C200: -0.03945708211 | D200: 0.02651235198 | E200: 0.01848891029 | F200: 0.01531978784 | G200: 0.02901363541 | H200: 0.03608669787 | I200: -0.08421127424 | J200: -0.0009355760429 | K200: -0.1504742911 | L200: -0.1410849641 | M200: -0.04606777421 | N200: -0.1219049553 | O200: -0.08120881018 | P200: -0.01141036189 | Q200: -0.1249864776 | R200: -0.1418778011 | S200: -0.1132045718 | T200: -0.05421172764 | U200: -0.1035712478 | V200: 0.01794775527 | W200: -0.06736018297 | X200: -0.0605560448 | Y200: 0.009036337929 | Z200: -0.01139833079 | AA200: -0.09825805954 | AB200: -0.009176819563 | AC200: -0.07744793193 | AD200: -0.05396051918 | AE200: -0.03113078111 | AF200: -0.02533242021 | AG200: -0.046255978 | AH200: -0.05722752576 | AI200: -0.01845779706 | AJ200: -0.01454297494 | AK200: -0.006987352987 | AL200: 0.005784852173 | AM200: -0.007442451799 | AN200: -0.02224384308 | AO200: -0.03220426237 | AP200: -0.004585654415 | AQ200: -0.05104000635 | AR200: 0.0289434724 | AS200: -0.01661638305 | AT200: -0.06179495885 | AU200: 0.04244871909 | AW200: =SUMPRODUCT(B200:AU200,TRANSPOSE('QoL regression results'!$H$3:$H$48)) -> 0.7878875818
... 801 more rows

Sheet QoL bootstrapped coef (US) (hidden)
A1: Iteration | B1: [1] | C1: [2] | D1: [3] | E1: [4] | F1: [5] | G1: [6] | H1: [7] | I1: [8] | J1: [9] | K1: [10] | L1: [11] | M1: [12] | N1: [13] | O1: [14] | P1: [15] | Q1: [16] | R1: [17] | S1: [18] | T1: [19] | U1: [20] | V1: [21] | W1: [22] | X1: [23] | Y1: [24] | Z1: [25] | AA1: [26] | AB1: [27] | AC1: [28] | AD1: [29] | AE1: [30] | AF1: [31] | AG1: [32] | AH1: [33] | AI1: [34] | AJ1: [35] | AK1: [36] | AL1: [37] | AM1: [38] | AN1: [39] | AO1: [40] | AP1: [41] | AQ1: [42] | AR1: [43] | AS1: [44] | AT1: [45] | AU1: [46] | AW1: Mean US
A2: 1 | B2: 0.8975126758 | C2: 0.001949874486 | D2: -0.009571753306 | E2: -0.03763479511 | F2: 0.01686887171 | G2: 0.01414641765 | H2: -0.01044253762 | I2: 0.01128829112 | J2: -0.0737073657 | K2: -0.04242711414 | L2: -0.08870087763 | M2: -0.08580268929 | N2: -0.02137936546 | O2: -0.07050958405 | P2: -0.07773395876 | Q2: -0.06990170003 | R2: -0.02626215838 | S2: -0.05599243274 | T2: -0.07366791662 | U2: -0.008868090054 | V2: -0.1189724767 | W2: -0.03226097638 | X2: -0.02919267131 | Y2: -0.01153974818 | Z2: -0.009675454288 | AA2: -0.02362511716 | AB2: -0.06672178344 | AC2: -0.09048525931 | AD2: -0.006521416633 | AE2: -0.02467200476 | AF2: -0.01176303184 | AG2: -0.04898052215 | AH2: -0.03179777772 | AI2: -0.01469117061 | AJ2: -0.01059210065 | AK2: -0.006939575055 | AL2: 0.002706642777 | AM2: -0.01630905877 | AN2: -0.02560281923 | AO2: -0.04238301557 | AP2: -0.0107594339 | AQ2: -0.04340749178 | AR2: 0.02632807313 | AS2: -0.01094768374 | AT2: -0.04666292348 | AU2: 0.02640821012 | AW2: =SUMPRODUCT(B2:AU2,TRANSPOSE('QoL regression results'!$H$3:$H$48)) -> 0.8684215409
A3: 2 | B3: 0.8911769731 | C3: 0.00571544087 | D3: 0.00201858215 | E3: -0.01747399611 | F3: 0.02020665753 | G3: 0.01555682118 | H3: -0.01834621749 | I3: -0.02292619196 | J3: -0.02953204476 | K3: -0.03802152723 | L3: -0.08246133848 | M3: -0.1147170634 | N3: -0.007499731486 | O3: -0.02507657309 | P3: -0.1197629136 | Q3: -0.07861474597 | R3: -0.07661975718 | S3: -0.02900962176 | T3: -0.05260051062 | U3: -0.01424094373 | V3: -0.1208502897 | W3: -0.01475249004 | X3: -0.03116410958 | Y3: -0.01618297152 | Z3: -0.001131022718 | AA3: -0.02319020642 | AB3: -0.0544455328 | AC3: -0.07521472546 | AD3: -0.03712673648 | AE3: -0.0229053022 | AF3: -0.01188282555 | AG3: -0.04128284621 | AH3: -0.03632066153 | AI3: -0.02201190066 | AJ3: -0.009954780879 | AK3: -0.002064245406 | AL3: 0.002981911712 | AM3: -0.005994720884 | AN3: -0.02035129697 | AO3: -0.03560218766 | AP3: -0.01456481192 | AQ3: -0.0446556832 | AR3: 0.0229669689 | AS3: -0.01245587516 | AT3: -0.04749804976 | AU3: 0.03221791048 | AW3: =SUMPRODUCT(B3:AU3,TRANSPOSE('QoL regression results'!$H$3:$H$48)) -> 0.8578382232
A4: 3 | B4: 0.8948482168 | C4: -0.002641716991 | D4: -0.008102935077 | E4: -0.03081982633 | F4: 0.01278375237 | G4: 0.008389414838 | H4: -0.003655061343 | I4: -0.005246999032 | J4: -0.05501305162 | K4: -0.03979627196 | L4: -0.08633556472 | M4: -0.07026515276 | N4: -0.02007668554 | O4: -0.06679724768 | P4: -0.03940989918 | Q4: -0.04902523994 | R4: -0.1001352149 | S4: -0.05916661208 | T4: -0.08377388683 | U4: -0.01140989487 | V4: -0.08923011964 | W4: -0.01970099591 | X4: -0.02907963124 | Y4: -0.01827466585 | Z4: -0.01191983409 | AA4: -0.01617772137 | AB4: -0.06880715168 | AC4: 0.001856735783 | AD4: -0.003485113298 | AE4: -0.02454284766 | AF4: -0.01631068836 | AG4: -0.04677488627 | AH4: -0.02337237794 | AI4: -0.01267232581 | AJ4: -0.009617006476 | AK4: -0.00546317844 | AL4: -0.004439007625 | AM4: -0.01240722913 | AN4: -0.02622607597 | AO4: -0.03402172438 | AP4: -0.01077434893 | AQ4: -0.03559487948 | AR4: 0.02280217336 | AS4: -0.0143586221 | AT4: -0.04254609526 | AU4: 0.03402679815 | AW4: =SUMPRODUCT(B4:AU4,TRANSPOSE('QoL regression results'!$H$3:$H$48)) -> 0.8670368312
A5: 4 | B5: 0.8958995181 | C5: -0.003373653375 | D5: -0.009702117472 | E5: -0.02644448027 | F5: 0.01660741004 | G5: 0.01472287004 | H5: -0.0136531516 | I5: -0.02188409451 | J5: -0.03127440941 | K5: -0.04218278003 | L5: -0.0874560805 | M5: -0.08644235901 | N5: -0.01848860866 | O5: -0.06688203612 | P5: -0.05083236358 | Q5: -0.05131044313 | R5: -0.06678488156 | S5: -0.05256815812 | T5: -0.0707495509 | U5: -0.01092244112 | V5: -0.01019118089 | W5: -0.03027864587 | X5: -0.03422920501 | Y5: -0.001690483379 | Z5: 0.01062671461 | AA5: -0.01640949673 | AB5: -0.07062428802 | AC5: -0.008337882828 | AD5: 0.007391671595 | AE5: -0.03475263053 | AF5: -0.01652084161 | AG5: -0.04949972903 | AH5: -0.02691415165 | AI5: -0.02055824413 | AJ5: -0.009123192036 | AK5: -0.006891671919 | AL5: 0.003912576559 | AM5: -0.007832950375 | AN5: -0.01302396279 | AO5: -0.02443676071 | AP5: -0.008957633891 | AQ5: -0.03143344549 | AR5: 0.01436822549 | AS5: -0.01279346956 | AT5: -0.04656156531 | AU5: 0.03915699451 | AW5: =SUMPRODUCT(B5:AU5,TRANSPOSE('QoL regression results'!$H$3:$H$48)) -> 0.872897943
A6: 5 | B6: 0.8882565254 | C6: 0.0149106155 | D6: 0.008324113121 | E6: -0.01659243692 | F6: 0.01860827495 | G6: 0.01674672941 | H6: -0.006142306225 | I6: -0.004452047805 | J6: -0.09078335117 | K6: -0.03442256003 | L6: -0.07785198017 | M6: -0.1205652905 | N6: -0.01531547599 | O6: -0.07508487952 | P6: -0.07755514648 | Q6: -0.009246264743 | R6: -0.07882616564 | S6: -0.02861256202 | T6: -0.08576408155 | U6: 0.01073637365 | V6: -0.03907595886 | W6: -0.03894361731 | X6: -0.02105151126 | Y6: 0.0007628753013 | Z6: 0.008931590164 | AA6: -0.01039581668 | AB6: -0.0692369287 | AC6: -0.1052355525 | AD6: -0.0245536501 | AE6: -0.02415198188 | AF6: -0.01723917614 | AG6: -0.03277393689 | AH6: -0.03671301786 | AI6: -0.01842328839 | AJ6: -0.01537478221 | AK6: 0.0008494049708 | AL6: -2.297023106e-05 | AM6: -0.01038623402 | AN6: -0.01680003781 | AO6: -0.04175482008 | AP6: -0.0134722984 | AQ6: -0.04091567404 | AR6: 0.02218499724 | AS6: -0.01117695813 | AT6: -0.04070787137 | AU6: 0.03044000122 | AW6: =SUMPRODUCT(B6:AU6,TRANSPOSE('QoL regression results'!$H$3:$H$48)) -> 0.8515205373
A7: 6 | B7: 0.8926150212 | C7: 0.005411935365 | D7: 0.002603641235 | E7: -0.01763705629 | F7: 0.02598532745 | G7: 0.007238482231 | H7: 0.005197493565 | I7: -0.02646433786 | J7: -0.03402039724 | K7: -0.04189245767 | L7: -0.08688635147 | M7: -0.08115164273 | N7: -0.01604942388 | O7: -0.04385121211 | P7: -0.09203261321 | Q7: -0.04848414662 | R7: -0.06133124725 | S7: -0.04089432108 | T7: -0.08542010747 | U7: 0.008668877946 | V7: -0.1135579528 | W7: -0.01273347051 | X7: -0.02429047114 | Y7: 0.0009222049033 | Z7: -0.02291607375 | AA7: -0.0186745934 | AB7: -0.07190759069 | AC7: -0.02247564348 | AD7: -0.1405895889 | AE7: -0.01984117478 | AF7: -0.01768487612 | AG7: -0.04099294575 | AH7: -0.04362757651 | AI7: -0.02206040893 | AJ7: -0.013570871 | AK7: -0.004420971411 | AL7: 0.001519457416 | AM7: -0.006613020038 | AN7: -0.01651951462 | AO7: -0.02874383327 | AP7: -0.009405290179 | AQ7: -0.03648403802 | AR7: 0.01994673782 | AS7: -0.01302696772 | AT7: -0.04453279069 | AU7: 0.03698001673 | AW7: =SUMPRODUCT(B7:AU7,TRANSPOSE('QoL regression results'!$H$3:$H$48)) -> 0.8505069021
A8: 7 | B8: 0.8874726873 | C8: 0.003371415721 | D8: 0.002735867622 | E8: -0.01244018455 | F8: 0.01408711567 | G8: 0.01440674112 | H8: -0.004026101729 | I8: -0.02365822957 | J8: -0.06581617138 | K8: -0.03772313062 | L8: -0.06299282023 | M8: -0.122108636 | N8: -0.01374133061 | O8: -0.05326997967 | P8: -0.09922284504 | Q8: -0.09018489686 | R8: -0.09063489335 | S8: -0.0542888 | T8: -0.1054834705 | U8: 0.02800449841 | V8: -0.09781598343 | W8: -0.01783654995 | X8: -0.0348291433 | Y8: -0.03273877385 | Z8: 0.004834565298 | AA8: -0.02382488077 | AB8: -0.07184798224 | AC8: -0.0141582043 | AD8: 0.0139968954 | AE8: -0.02639267978 | AF8: -0.01796173722 | AG8: -0.04249756853 | AH8: -0.02917336583 | AI8: -0.02090479434 | AJ8: -0.01021264118 | AK8: 0.0009235401209 | AL8: 0.006377065425 | AM8: -0.005242151402 | AN8: -0.009854153015 | AO8: -0.02185247856 | AP8: -0.009751132832 | AQ8: -0.0368939709 | AR8: 0.02481894477 | AS8: -0.00889858112 | AT8: -0.03776949266 | AU8: 0.02689061843 | AW8: =SUMPRODUCT(B8:AU8,TRANSPOSE('QoL regression results'!$H$3:$H$48)) -> 0.8646763869
A9: 8 | B9: 0.8877586905 | C9: 0.006169961662 | D9: -0.007673600097 | E9: 0.0005142879905 | F9: 0.02377587039 | G9: 0.02390473359 | H9: 0.0002835887483 | I9: -0.01993819761 | J9: -0.05845593916 | K9: -0.0339009587 | L9: -0.0758934117 | M9: -0.08212589388 | N9: -0.006648031074 | O9: -0.06002329993 | P9: -0.09498792103 | Q9: -0.08182778083 | R9: -0.03245977242 | S9: -0.07252514416 | T9: -0.07214593651 | U9: 0.008335430791 | V9: -0.09564524678 | W9: -0.04611549705 | X9: -0.02836689053 | Y9: -0.01677852939 | Z9: -0.002628731905 | AA9: -0.02022110112 | AB9: -0.07371242211 | AC9: -0.03799742345 | AD9: -0.00590566228 | AE9: -0.02469234256 | AF9: -0.01245804873 | AG9: -0.04128362913 | AH9: -0.0406884457 | AI9: -0.009857021768 | AJ9: -0.01174535747 | AK9: 0.005341645606 | AL9: 0.01012678424 | AM9: -0.01054545421 | AN9: -0.01637533984 | AO9: -0.03892117727 | AP9: -0.01415007049 | AQ9: -0.03876586824 | AR9: 0.02215348214 | AS9: -0.01152330374 | AT9: -0.04559973522 | AU9: 0.03558752696 | AW9: =SUMPRODUCT(B9:AU9,TRANSPOSE('QoL regression results'!$H$3:$H$48)) -> 0.8571970291
A10: 9 | B10: 0.883233425 | C10: 0.004692130902 | D10: 0.01224782826 | E10: -0.01544071393 | F10: 0.01630960942 | G10: 0.00771966005 | H10: -0.01636917207 | I10: -0.005479566812 | J10: -0.04902230087 | K10: -0.0421314548 | L10: -0.0886465105 | M10: -0.150223653 | N10: -0.02168662202 | O10: -0.03534393676 | P10: -0.1605703846 | Q10: -0.06739930085 | R10: -0.04306374085 | S10: -0.0432365201 | T10: -0.06560238977 | U10: -0.01762070079 | V10: -0.08003092487 | W10: -0.02296624496 | X10: -0.08119504924 | Y10: 0.01592888853 | Z10: 0.03557946412 | AA10: -0.02658759095 | AB10: -0.06192345403 | AC10: -0.03266388997 | AD10: -0.04297163251 | AE10: -0.02555871232 | AF10: -0.01754118151 | AG10: -0.0470926183 | AH10: -0.03055338626 | AI10: -0.01121694379 | AJ10: -0.01281533808 | AK10: -0.001034950596 | AL10: 0.007154932812 | AM10: -0.01244403974 | AN10: -0.01663707396 | AO10: -0.02948230899 | AP10: -0.007353240866 | AQ10: -0.03780092013 | AR10: 0.02451347162 | AS10: -0.008298956573 | AT10: -0.0427417744 | AU10: 0.03120992752 | AW10: =SUMPRODUCT(B10:AU10,TRANSPOSE('QoL regression results'!$H$3:$H$48)) -> 0.8598349715
A11: 10 | B11: 0.8950686417 | C11: -0.002646585672 | D11: -0.0001519252325 | E11: -0.07068534087 | F11: 0.01838585191 | G11: 0.02788002779 | H11: 0.01607462511 | I11: -0.01488409317 | J11: -0.06637249902 | K11: -0.03556193864 | L11: -0.06384468757 | M11: -0.09452871545 | N11: -0.01559749058 | O11: -0.07423896513 | P11: -0.1270915022 | Q11: -0.03972037428 | R11: -0.05947902936 | S11: -0.05071354183 | T11: -0.07809670735 | U11: 0.02749984787 | V11: -0.06157111194 | W11: -0.03781055334 | X11: -0.04579007383 | Y11: -0.01528820622 | Z11: -0.0240302506 | AA11: -0.02386861744 | AB11: -0.07835536074 | AC11: 0.02238338596 | AD11: 0.008116496092 | AE11: -0.02595640044 | AF11: -0.004784011558 | AG11: -0.04687304033 | AH11: -0.0319028633 | AI11: -0.02172827822 | AJ11: -0.01335072203 | AK11: -0.005062423178 | AL11: 0.001583528373 | AM11: -0.01184116369 | AN11: -0.02529700462 | AO11: -0.03053178837 | AP11: -0.01191027321 | AQ11: -0.03332777521 | AR11: 0.02412878656 | AS11: -0.01468976352 | AT11: -0.04312295129 | AU11: 0.03544530356 | AW11: =SUMPRODUCT(B11:AU11,TRANSPOSE('QoL regression results'!$H$3:$H$48)) -> 0.8647493068
A12: 11 | B12: 0.8811908336 | C12: 0.004966332134 | D12: -0.006720508496 | E12: -0.01084615366 | F12: 0.01623358859 | G12: 0.03016535495 | H12: -0.04249423342 | I12: 0.004451148311 | J12: -0.03808163863 | K12: -0.04218511138 | L12: -0.08278065129 | M12: -0.09898229612 | N12: -0.01578670639 | O12: -0.08016559227 | P12: -0.07846313852 | Q12: -0.06778076978 | R12: -0.05479572787 | S12: -0.0411905001 | T12: -0.08705846562 | U12: -0.02234782482 | V12: -0.009566381035 | W12: -0.04088238752 | X12: 0.0158279265 | Y12: -0.0151341839 | Z12: 0.02430146222 | AA12: -0.02800269135 | AB12: -0.06021671645 | AC12: -0.03931382501 | AD12: 0.01701601983 | AE12: -0.02487304646 | AF12: -0.003673769466 | AG12: -0.04066096728 | AH12: -0.03054358724 | AI12: -0.01452828748 | AJ12: -0.0124187606 | AK12: 0.005826797528 | AL12: 0.007149607315 | AM12: -0.001569006783 | AN12: -0.01355651086 | AO12: -0.02956611244 | AP12: -0.007822331637 | AQ12: -0.03089307527 | AR12: 0.02145227029 | AS12: -0.006878025089 | AT12: -0.04218932649 | AU12: 0.02582391333 | AW12: =SUMPRODUCT(B12:AU12,TRANSPOSE('QoL regression results'!$H$3:$H$48)) -> 0.8577968537
A13: 12 | B13: 0.8953408801 | C13: 0.006868352023 | D13: -0.000144983118 | E13: -0.04942975073 | F13: 0.03161072223 | G13: 0.02174087697 | H13: 0.02866731015 | I13: -0.01872482933 | J13: -0.05773515471 | K13: -0.0372938782 | L13: -0.08632705568 | M13: -0.1018075966 | N13: -0.01948225012 | O13: -0.06577895667 | P13: -0.06066838826 | Q13: -0.05662407244 | R13: -0.01917250323 | S13: -0.06202791151 | T13: -0.07855939526 | U13: 0.005504954492 | V13: -0.0478517543 | W13: -0.03026433279 | X13: -0.03253234262 | Y13: 0.0006543284331 | Z13: -0.01285747437 | AA13: -0.01242842958 | AB13: -0.06398821517 | AC13: 0.01916672774 | AD13: -0.0006700025186 | AE13: -0.02586152049 | AF13: -0.01588310235 | AG13: -0.04450116752 | AH13: -0.045188569 | AI13: -0.01791266323 | AJ13: -0.0127624685 | AK13: 4.658167203e-05 | AL13: -0.005590368033 | AM13: -0.009416625047 | AN13: -0.02359841474 | AO13: -0.03721008549 | AP13: -0.009471744316 | AQ13: -0.04664330712 | AR13: 0.02313636565 | AS13: -0.01421408688 | AT13: -0.04717964404 | AU13: 0.03032189314 | AW13: =SUMPRODUCT(B13:AU13,TRANSPOSE('QoL regression results'!$H$3:$H$48)) -> 0.8445619431
A14: 13 | B14: 0.8987950897 | C14: -0.003842416052 | D14: 0.006032530706 | E14: -0.02757742428 | F14: 0.0128131669 | G14: -0.006404736727 | H14: -0.01463826334 | I14: -0.0153354477 | J14: -0.07056471228 | K14: -0.04167477734 | L14: -0.1206646423 | M14: -0.05988724507 | N14: -0.01305189996 | O14: -0.0706806801 | P14: -0.1174544165 | Q14: -0.06192348958 | R14: -0.09339701952 | S14: -0.04338283753 | T14: -0.09684170669 | U14: 0.01028780848 | V14: -0.03828083433 | W14: -0.03400297609 | X14: -0.04121745223 | Y14: -0.01888827395 | Z14: -0.03616932611 | AA14: -0.02199410718 | AB14: -0.06331970046 | AC14: -0.01488431646 | AD14: 0.03611692459 | AE14: -0.02295739952 | AF14: -0.01468617389 | AG14: -0.04671643431 | AH14: -0.02506366758 | AI14: -0.01812302571 | AJ14: -0.01570690314 | AK14: -0.00602744729 | AL14: 0.002324528289 | AM14: -0.00880374634 | AN14: -0.01794792773 | AO14: -0.03742007082 | AP14: -0.006703357315 | AQ14: -0.03574847875 | AR14: 0.0196645832 | AS14: -0.01005400468 | AT14: -0.04759848399 | AU14: 0.03111398207 | AW14: =SUMPRODUCT(B14:AU14,TRANSPOSE('QoL regression results'!$H$3:$H$48)) -> 0.8760559505
A15: 14 | B15: 0.8824034275 | C15: 0.003573089397 | D15: 0.01013361615 | E15: -0.04137050625 | F15: 0.01692655788 | G15: 0.01359870215 | H15: -0.004557819148 | I15: 0.001741568424 | J15: -0.07150705987 | K15: -0.0364360966 | L15: -0.08181951049 | M15: -0.1123992168 | N15: -0.01723329521 | O15: -0.03813260177 | P15: -0.05153904565 | Q15: -0.05327025377 | R15: -0.05836760475 | S15: -0.05257416529 | T15: -0.06398961532 | U15: 0.002456097494 | V15: -0.06297991334 | W15: -0.04273220654 | X15: -0.04195072555 | Y15: 0.002044427064 | Z15: -0.0181498447 | AA15: -0.02893320525 | AB15: -0.05876236336 | AC15: -0.06516629692 | AD15: 0.001349780175 | AE15: -0.02698189608 | AF15: -0.01474173226 | AG15: -0.04625533444 | AH15: -0.02878168334 | AI15: -0.0201567011 | AJ15: -0.01003929255 | AK15: -0.0002797077305 | AL15: 0.003687278753 | AM15: -0.007532831871 | AN15: -0.01597376997 | AO15: -0.02941785297 | AP15: -0.008071733459 | AQ15: -0.03684665714 | AR15: 0.02181380484 | AS15: -0.009475547403 | AT15: -0.04145031157 | AU15: 0.03253380776 | AW15: =SUMPRODUCT(B15:AU15,TRANSPOSE('QoL regression results'!$H$3:$H$48)) -> 0.857309023
A16: 15 | B16: 0.8798688478 | C16: 0.0105679633 | D16: -0.001588639807 | E16: -0.05433731118 | F16: 0.01483798035 | G16: 0.01419203092 | H16: 0.001936335839 | I16: -0.007115561944 | J16: -0.07433442694 | K16: -0.04035840656 | L16: -0.08124220793 | M16: -0.113225078 | N16: -0.01923610653 | O16: -0.07904089706 | P16: -0.1228635985 | Q16: -0.09479938369 | R16: -0.1046475227 | S16: -0.052142135 | T16: -0.1014758197 | U16: 0.01833116068 | V16: -0.07284469682 | W16: -0.04750072241 | X16: -0.0367852775 | Y16: 0.02568125119 | Z16: -0.01258819097 | AA16: -0.01267592297 | AB16: -0.07057001307 | AC16: -0.007736434327 | AD16: 0.002490630985 | AE16: -0.02630295793 | AF16: -0.02122362936 | AG16: -0.03827453498 | AH16: -0.028525156 | AI16: -0.01491940655 | AJ16: -0.01371536531 | AK16: 0.002484537105 | AL16: 0.007973795765 | AM16: -0.006624061831 | AN16: -0.01135159299 | AO16: -0.0314189226 | AP16: -0.01191948767 | AQ16: -0.04575791742 | AR16: 0.02071812799 | AS16: -0.004817715928 | AT16: -0.03617462738 | AU16: 0.0331364289 | AW16: =SUMPRODUCT(B16:AU16,TRANSPOSE('QoL regression results'!$H$3:$H$48)) -> 0.8593174875
A17: 16 | B17: 0.8921064034 | C17: 0.001329931909 | D17: 0.008553505771 | E17: -0.0289517859 | F17: 0.02678743219 | G17: 0.009005206172 | H17: -0.01007145115 | I17: -0.01419732712 | J17: -0.0996799302 | K17: -0.03466546914 | L17: -0.08871751177 | M17: -0.1311445241 | N17: -0.01051665133 | O17: -0.06468480915 | P17: -0.04760090978 | Q17: -0.02489983852 | R17: -0.09337858195 | S17: -0.04317670103 | T17: -0.06399666664 | U17: 0.002572774698 | V17: -0.09138842156 | W17: -0.02637817124 | X17: -0.05735314138 | Y17: -0.0234740055 | Z17: -0.01194411511 | AA17: -0.02386926301 | AB17: -0.07628006 | AC17: -0.003788907255 | AD17: -0.004541301475 | AE17: -0.03071682832 | AF17: -0.009425457488 | AG17: -0.03924425733 | AH17: -0.03537889447 | AI17: -0.02082320821 | AJ17: -0.01144770212 | AK17: -0.0009833083387 | AL17: 0.007277580252 | AM17: 0.0002043873721 | AN17: -0.0169406785 | AO17: -0.02684852925 | AP17: -0.01120492378 | AQ17: -0.0390811726 | AR17: 0.02043817801 | AS17: -0.01101124876 | AT17: -0.04215966048 | AU17: 0.02822388774 | AW17: =SUMPRODUCT(B17:AU17,TRANSPOSE('QoL regression results'!$H$3:$H$48)) -> 0.8640050892
A18: 17 | B18: 0.8885951393 | C18: 0.009072949295 | D18: 0.01039362352 | E18: -0.02234682926 | F18: 0.01758535656 | G18: 0.01564830519 | H18: 0.003193800115 | I18: -0.02609534545 | J18: -0.02974616124 | K18: -0.03428092497 | L18: -0.06860282037 | M18: -0.1289901065 | N18: -0.0188524361 | O18: -0.06273040604 | P18: -0.1309327788 | Q18: -0.0581733921 | R18: -0.08670891721 | S18: -0.02150405872 | T18: -0.09332222691 | U18: 0.00163363748 | V18: -0.01799432377 | W18: -0.01705995605 | X18: -0.03390672949 | Y18: -0.01474376602 | Z18: -0.02148502451 | AA18: -0.03096353079 | AB18: -0.07044831997 | AC18: -0.01185872972 | AD18: -0.01335792031 | AE18: -0.02362251886 | AF18: -0.01599268064 | AG18: -0.03800763279 | AH18: -0.02950695153 | AI18: -0.02388014483 | AJ18: -0.008064819161 | AK18: -0.001392078893 | AL18: 0.001011623683 | AM18: -0.008622106058 | AN18: -0.01915211039 | AO18: -0.03336530642 | AP18: -0.009809461823 | AQ18: -0.04140141469 | AR18: 0.02045329194 | AS18: -0.01493076493 | AT18: -0.05278067912 | AU18: 0.03054687082 | AW18: =SUMPRODUCT(B18:AU18,TRANSPOSE('QoL regression results'!$H$3:$H$48)) -> 0.8600998114
A19: 18 | B19: 0.8862780188 | C19: 0.002653217453 | D19: -0.001828055883 | E19: -0.03536812157 | F19: 0.02058961318 | G19: 0.02420117568 | H19: -0.00577545428 | I19: -0.01884363989 | J19: -0.04431656165 | K19: -0.04060345162 | L19: -0.09927808995 | M19: -0.04652696547 | N19: -0.01739333854 | O19: -0.0462354527 | P19: -0.09655314902 | Q19: -0.04108801995 | R19: -0.1048577107 | S19: -0.04769873141 | T19: -0.1000585258 | U19: 0.01308127094 | V19: -0.1220219006 | W19: -0.03648635207 | X19: 0.0047756863 | Y19: -0.01025500272 | Z19: -0.024102792 | AA19: -0.01698543138 | AB19: -0.07852559111 | AC19: -0.02488439969 | AD19: -0.05622904178 | AE19: -0.02819684854 | AF19: -0.009893905118 | AG19: -0.04027887315 | AH19: -0.0396873862 | AI19: -0.01916949606 | AJ19: -0.01149956671 | AK19: 0.004509327319 | AL19: 0.009446873157 | AM19: 0.002327349167 | AN19: -0.01484260497 | AO19: -0.02316602968 | AP19: -0.01143820975 | AQ19: -0.04163080107 | AR19: 0.01934414314 | AS19: -0.01058889823 | AT19: -0.03981734579 | AU19: 0.03439713807 | AW19: =SUMPRODUCT(B19:AU19,TRANSPOSE('QoL regression results'!$H$3:$H$48)) -> 0.8560375058
A20: 19 | B20: 0.9038336999 | C20: 0.006033375862 | D20: -0.01166704349 | E20: -0.04534552748 | F20: 0.01918169334 | G20: 0.002383853742 | H20: -0.005280305482 | I20: -0.005434000146 | J20: -0.06100562102 | K20: -0.03767301296 | L20: -0.08421819393 | M20: -0.1020276307 | N20: -0.01533281599 | O20: -0.06544379286 | P20: -0.07950644519 | Q20: -0.09037084147 | R20: -0.02809967552 | S20: -0.0491672754 | T20: -0.09558091934 | U20: -0.01277776272 | V20: -0.06698375629 | W20: -0.02866452853 | X20: -0.02210222303 | Y20: -0.0004204247328 | Z20: 0.03277290223 | AA20: -0.01924332494 | AB20: -0.06540701081 | AC20: -0.07561329142 | AD20: -0.06870880816 | AE20: -0.02111354188 | AF20: -0.01619429777 | AG20: -0.04688803323 | AH20: -0.035488013 | AI20: -0.01908915416 | AJ20: -0.01549066182 | AK20: -0.001743279226 | AL20: -0.004157607392 | AM20: -0.008942812849 | AN20: -0.02365975595 | AO20: -0.04094205187 | AP20: -0.008308434006 | AQ20: -0.03693876682 | AR20: 0.01947159438 | AS20: -0.01386480792 | AT20: -0.0488684838 | AU20: 0.02874604816 | AW20: =SUMPRODUCT(B20:AU20,TRANSPOSE('QoL regression results'!$H$3:$H$48)) -> 0.8641880795
A21: 20 | B21: 0.9060214645 | C21: 0.004326206423 | D21: -0.000345705567 | E21: -0.03978418588 | F21: 0.02079024226 | G21: 0.01268601703 | H21: -0.00229117239 | I21: -0.01032673614 | J21: -0.06525477086 | K21: -0.04434505377 | L21: -0.08147138037 | M21: -0.09976858457 | N21: -0.01937636355 | O21: -0.08616261954 | P21: -0.05468668177 | Q21: -0.04047429688 | R21: -0.03238729232 | S21: -0.05968416794 | T21: -0.08970015381 | U21: 0.0155173409 | V21: -0.04081178497 | W21: -0.03327970077 | X21: -0.02821623017 | Y21: 0.007081346525 | Z21: -0.06136583957 | AA21: -0.03333070981 | AB21: -0.07237232773 | AC21: -0.01981781207 | AD21: -0.03154559874 | AE21: -0.02576098793 | AF21: -0.01504689076 | AG21: -0.04232797905 | AH21: -0.03527532788 | AI21: -0.01838768932 | AJ21: -0.007455392282 | AK21: -0.003525660847 | AL21: -0.002409734605 | AM21: -0.01177468661 | AN21: -0.02056153901 | AO21: -0.03920458881 | AP21: -0.008868122832 | AQ21: -0.03882579788 | AR21: 0.01614110413 | AS21: -0.01802539339 | AT21: -0.04984363747 | AU21: 0.02586017655 | AW21: =SUMPRODUCT(B21:AU21,TRANSPOSE('QoL regression results'!$H$3:$H$48)) -> 0.868336402
A22: 21 | B22: 0.8937842709 | C22: -0.003617503285 | D22: -0.004844952579 | E22: -0.08397977947 | F22: 0.02547659579 | G22: 0.02264476799 | H22: 0.006417467891 | I22: -0.01387400114 | J22: -0.05225966889 | K22: -0.03865105536 | L22: -0.0777024905 | M22: -0.1086373014 | N22: -0.01518236408 | O22: -0.06254001361 | P22: -0.1013384273 | Q22: -0.04947084731 | R22: -0.05345183796 | S22: -0.04512098475 | T22: -0.09072122526 | U22: -0.01030403329 | V22: 0.02150532748 | W22: -0.04502426573 | X22: -0.01764624096 | Y22: -0.01620088595 | Z22: -0.02266871318 | AA22: -0.01334817099 | AB22: -0.05183081956 | AC22: -0.0558199542 | AD22: -0.08290759884 | AE22: -0.02814841002 | AF22: -0.03072683647 | AG22: -0.04678286732 | AH22: -0.03538146948 | AI22: -0.02128893319 | AJ22: -0.01301744483 | AK22: 0.008773643202 | AL22: 0.01250258895 | AM22: -0.005761695858 | AN22: -0.01257552586 | AO22: -0.03257197422 | AP22: -0.01010898007 | AQ22: -0.04314931873 | AR22: 0.02043230367 | AS22: -0.008291356437 | AT22: -0.03725844832 | AU22: 0.02782985592 | AW22: =SUMPRODUCT(B22:AU22,TRANSPOSE('QoL regression results'!$H$3:$H$48)) -> 0.8709053904
A23: 22 | B23: 0.9017653636 | C23: 0.0006021540363 | D23: 0.005934636937 | E23: -0.03558818269 | F23: 0.02357242695 | G23: 0.01822265853 | H23: 0.009001311842 | I23: -0.004445847691 | J23: -0.0452909064 | K23: -0.04101666091 | L23: -0.1078381953 | M23: -0.1234673145 | N23: -0.01489794323 | O23: -0.04883147993 | P23: -0.05177546387 | Q23: -0.02606771918 | R23: -0.06956124243 | S23: -0.06826303886 | T23: -0.08580849302 | U23: -0.004588130414 | V23: -0.06203131484 | W23: -0.03283378735 | X23: -0.05116100179 | Y23: 0.005077934925 | Z23: -0.04022393406 | AA23: -0.01079100166 | AB23: -0.07077878963 | AC23: -0.01585892044 | AD23: 0.01941269901 | AE23: -0.02142325081 | AF23: -0.017871422 | AG23: -0.04664285376 | AH23: -0.03881210844 | AI23: -0.02807405517 | AJ23: -0.01404665031 | AK23: -0.01008054208 | AL23: -0.0002436783564 | AM23: -0.01447059045 | AN23: -0.02277411644 | AO23: -0.04263713718 | AP23: -0.01340845588 | AQ23: -0.04100884987 | AR23: 0.0243746685 | AS23: -0.007043624945 | AT23: -0.04360580177 | AU23: 0.02835646027 | AW23: =SUMPRODUCT(B23:AU23,TRANSPOSE('QoL regression results'!$H$3:$H$48)) -> 0.8627095768
A24: 23 | B24: 0.8887201826 | C24: -0.000126875797 | D24: 0.001372577658 | E24: -0.0407754381 | F24: 0.02525760147 | G24: 0.01221588007 | H24: -0.002314553377 | I24: -0.01347103859 | J24: -0.0308232242 | K24: -0.04419524668 | L24: -0.09135242277 | M24: -0.1183190965 | N24: -0.01849828771 | O24: -0.04705109509 | P24: -0.07506366046 | Q24: -0.05216754001 | R24: -0.01636491489 | S24: -0.04826655826 | T24: -0.1135167165 | U24: 0.01470404861 | V24: -0.1091590423 | W24: -0.02432806036 | X24: -0.04096154945 | Y24: 0.03042971062 | Z24: -0.02453955719 | AA24: -0.02031061188 | AB24: -0.04926271863 | AC24: -0.02612844046 | AD24: -0.05161265679 | AE24: -0.02717099134 | AF24: -0.00755908781 | AG24: -0.04343998233 | AH24: -0.0368298556 | AI24: -0.01394557269 | AJ24: -0.01155934573 | AK24: -0.002605171726 | AL24: 0.007121053717 | AM24: -0.009512946615 | AN24: -0.01787142312 | AO24: -0.03650755336 | AP24: -0.00967630113 | AQ24: -0.04213229239 | AR24: 0.02662108672 | AS24: -0.01012670555 | AT24: -0.0412342748 | AU24: 0.02849099653 | AW24: =SUMPRODUCT(B24:AU24,TRANSPOSE('QoL regression results'!$H$3:$H$48)) -> 0.8590113807
A25: 24 | B25: 0.8844427408 | C25: 0.005633381792 | D25: -0.002987803435 | E25: -0.0342708357 | F25: 0.01940947564 | G25: 0.009474830713 | H25: -0.002621883369 | I25: -0.0141584033 | J25: -0.05793736328 | K25: -0.03899825973 | L25: -0.09138198549 | M25: -0.0868428079 | N25: -0.01064732387 | O25: -0.05380444426 | P25: -0.07208319475 | Q25: -0.06685953779 | R25: -0.08279802352 | S25: -0.04806600989 | T25: -0.05891920012 | U25: 0.009065467794 | V25: -0.03652790026 | W25: -0.02552728418 | X25: -0.01051389307 | Y25: 0.02317867662 | Z25: -0.02468735957 | AA25: -0.01602218623 | AB25: -0.07412032513 | AC25: -0.007333725811 | AD25: -0.00554414334 | AE25: -0.03435516232 | AF25: -0.01932482236 | AG25: -0.04135175837 | AH25: -0.03361575545 | AI25: -0.02163912939 | AJ25: -0.01003708212 | AK25: 0.002208098698 | AL25: 0.00709426766 | AM25: -0.001529324389 | AN25: -0.01298240804 | AO25: -0.02736719593 | AP25: -0.0130631735 | AQ25: -0.03871128234 | AR25: 0.02091643192 | AS25: -0.01105539337 | AT25: -0.03911460819 | AU25: 0.03212474119 | AW25: =SUMPRODUCT(B25:AU25,TRANSPOSE('QoL regression results'!$H$3:$H$48)) -> 0.857921253
A26: 25 | B26: 0.8845381269 | C26: 0.006648273646 | D26: 0.008003497444 | E26: -0.04102277447 | F26: 0.01677375077 | G26: 0.01011384818 | H26: -0.0001375391647 | I26: 0.001280486412 | J26: -0.03601041387 | K26: -0.03118267312 | L26: -0.07320674466 | M26: -0.05450902689 | N26: -0.009013637881 | O26: -0.08942515959 | P26: -0.08933146046 | Q26: -0.04302256495 | R26: -0.04641108758 | S26: -0.03507905486 | T26: -0.09004969079 | U26: -0.0180969355 | V26: -0.0306452785 | W26: -0.02110034069 | X26: -0.02841022753 | Y26: -0.0005411574512 | Z26: 0.02564466914 | AA26: -0.01863412705 | AB26: -0.07754358825 | AC26: -0.01122878261 | AD26: -0.04907445381 | AE26: -0.02233169113 | AF26: -0.010694 | AG26: -0.03964852761 | AH26: -0.0290624755 | AI26: -0.01786819455 | AJ26: -0.01043371894 | AK26: 0.00553431036 | AL26: 0.008836102116 | AM26: -0.01022271804 | AN26: -0.02138492477 | AO26: -0.03095332407 | AP26: -0.01093211429 | AQ26: -0.04030386548 | AR26: 0.02354147813 | AS26: -0.0112221378 | AT26: -0.04493857591 | AU26: 0.02937035005 | AW26: =SUMPRODUCT(B26:AU26,TRANSPOSE('QoL regression results'!$H$3:$H$48)) -> 0.8643117535
A27: 26 | B27: 0.8900497574 | C27: 0.005321574372 | D27: -0.00614088968 | E27: -0.007307565511 | F27: 0.0182722654 | G27: -0.00305950547 | H27: -0.02143404406 | I27: 0.003420797164 | J27: -0.06011517246 | K27: -0.03686472057 | L27: -0.07726347509 | M27: -0.121266981 | N27: -0.01251256258 | O27: -0.1021961871 | P27: -0.1102995174 | Q27: -0.08749254596 | R27: -0.05048169861 | S27: -0.06549729889 | T27: -0.08059632592 | U27: -0.007931643126 | V27: -0.02580582223 | W27: -0.03416403826 | X27: -0.02801242861 | Y27: 0.01197922246 | Z27: 0.004343147558 | AA27: -0.02236916716 | AB27: -0.06840924614 | AC27: -0.05642937545 | AD27: 0.02360258327 | AE27: -0.02322719227 | AF27: -0.002419732416 | AG27: -0.04202491232 | AH27: -0.03197747594 | AI27: -0.01375911577 | AJ27: -0.009612535953 | AK27: -0.0008022848008 | AL27: 0.004153084944 | AM27: -0.01171498474 | AN27: -0.01903630645 | AO27: -0.03932832223 | AP27: -0.005432795861 | AQ27: -0.03409675838 | AR27: 0.018333495 | AS27: -0.0112126694 | AT27: -0.04682362381 | AU27: 0.0289825391 | AW27: =SUMPRODUCT(B27:AU27,TRANSPOSE('QoL regression results'!$H$3:$H$48)) -> 0.8622253664
A28: 27 | B28: 0.8826556788 | C28: 0.002751716561 | D28: -0.006526340596 | E28: -0.01218215409 | F28: 0.01542881314 | G28: 0.02033889743 | H28: 0.00482263636 | I28: -0.009077809523 | J28: -0.07189978731 | K28: -0.03710422463 | L28: -0.1006931518 | M28: -0.08115863628 | N28: -0.01938438558 | O28: -0.04234532425 | P28: -0.09096339106 | Q28: -0.06485077059 | R28: -0.05874854588 | S28: -0.04792647139 | T28: -0.08342887069 | U28: 0.01757873296 | V28: -0.03710613803 | W28: -0.02978906777 | X28: -0.02747924757 | Y28: -0.04815240014 | Z28: 0.02148038692 | AA28: -0.01504100675 | AB28: -0.05742335029 | AC28: -0.04905672287 | AD28: 0.000348675976 | AE28: -0.02153884382 | AF28: -0.01200673395 | AG28: -0.04132568026 | AH28: -0.02946293946 | AI28: -0.01815621358 | AJ28: -0.01369895009 | AK28: 0.005219853775 | AL28: 0.01017425659 | AM28: -0.003661032632 | AN28: -0.01711808963 | AO28: -0.02869256951 | AP28: -0.007590393159 | AQ28: -0.03884951331 | AR28: 0.02232429988 | AS28: -0.007623816155 | AT28: -0.04049346393 | AU28: 0.02757488 | AW28: =SUMPRODUCT(B28:AU28,TRANSPOSE('QoL regression results'!$H$3:$H$48)) -> 0.8633669959
A29: 28 | B29: 0.8846255528 | C29: -0.001616378519 | D29: -0.009286690681 | E29: -0.04873776649 | F29: 0.02988179602 | G29: 0.0220833226 | H29: 0.02277426613 | I29: -0.0001781973298 | J29: -0.0725941709 | K29: -0.03486898077 | L29: -0.1127645478 | M29: -0.09555859092 | N29: -0.009416172932 | O29: -0.03095799703 | P29: -0.07150023986 | Q29: -0.0561032645 | R29: -0.06176920082 | S29: -0.04660511541 | T29: -0.06654831714 | U29: -0.01024911805 | V29: -0.05236873305 | W29: -0.02342099171 | X29: -0.01572820067 | Y29: -0.03169640694 | Z29: 0.04996575698 | AA29: -0.01719077355 | AB29: -0.05932453868 | AC29: -0.01011752946 | AD29: -0.07957842149 | AE29: -0.02505636377 | AF29: -0.01882223769 | AG29: -0.04285778908 | AH29: -0.04145788384 | AI29: -0.01642416945 | AJ29: -0.01036750959 | AK29: 0.00199159471 | AL29: 0.009826783962 | AM29: -0.001667234713 | AN29: -0.008654197972 | AO29: -0.03165096037 | AP29: -0.009145771536 | AQ29: -0.03650965696 | AR29: 0.02363223036 | AS29: -0.01588487579 | AT29: -0.0451926784 | AU29: 0.03223130064 | AW29: =SUMPRODUCT(B29:AU29,TRANSPOSE('QoL regression results'!$H$3:$H$48)) -> 0.8529944529
A30: 29 | B30: 0.9017332892 | C30: 0.002079591599 | D30: -0.00885798345 | E30: -0.01316064675 | F30: 0.02478330588 | G30: 0.01949811594 | H30: 0.004371467331 | I30: -0.00146180681 | J30: -0.06110262983 | K30: -0.04817188624 | L30: -0.07303567218 | M30: -0.1154394624 | N30: -0.01821012633 | O30: -0.03613498421 | P30: -0.08399395965 | Q30: -0.07661940089 | R30: -0.05652757416 | S30: -0.04772448172 | T30: -0.07718911479 | U30: 0.002892442656 | V30: -0.1882554138 | W30: -0.02556312731 | X30: -0.02664884272 | Y30: 0.01080299302 | Z30: 0.0166504894 | AA30: -0.01964319098 | AB30: -0.07107466815 | AC30: -0.02540724938 | AD30: -0.03294503791 | AE30: -0.02465973309 | AF30: -0.0196342507 | AG30: -0.04591395724 | AH30: -0.04574925994 | AI30: -0.01689110599 | AJ30: -0.01538343343 | AK30: -0.001254280532 | AL30: 0.003833532003 | AM30: -0.008377919351 | AN30: -0.01733519371 | AO30: -0.0360144619 | AP30: -0.00576229613 | AQ30: -0.03764395921 | AR30: 0.01720467993 | AS30: -0.01391891483 | AT30: -0.0444626144 | AU30: 0.03470020535 | AW30: =SUMPRODUCT(B30:AU30,TRANSPOSE('QoL regression results'!$H$3:$H$48)) -> 0.8598175612
A31: 30 | B31: 0.8902043055 | C31: -0.000345105022 | D31: -0.01719441585 | E31: -0.01308128575 | F31: 0.02919821705 | G31: 0.02186849987 | H31: -0.01704205332 | I31: -0.003511028872 | J31: -0.08183179124 | K31: -0.03439800473 | L31: -0.05934929677 | M31: -0.111603328 | N31: -0.01328143822 | O31: -0.05264392043 | P31: -0.1037426382 | Q31: -0.04278838021 | R31: -0.06359802567 | S31: -0.04028028649 | T31: -0.09351006816 | U31: -0.0009676228797 | V31: -0.03825804484 | W31: -0.01826631738 | X31: -0.01960776401 | Y31: -0.0006269115023 | Z31: -0.01176605245 | AA31: -0.01040340846 | AB31: -0.08405494868 | AC31: 0.02205777331 | AD31: -0.05191742074 | AE31: -0.01804151012 | AF31: -0.01682864742 | AG31: -0.04772060179 | AH31: -0.03845423143 | AI31: -0.01952900099 | AJ31: -0.01220862407 | AK31: -0.002580755833 | AL31: 0.0003222858367 | AM31: -0.01558155042 | AN31: -0.02162051944 | AO31: -0.03714553262 | AP31: -0.004433734126 | AQ31: -0.0338345693 | AR31: 0.02247772663 | AS31: -0.0122393067 | AT31: -0.04777311996 | AU31: 0.03311985748 | AW31: =SUMPRODUCT(B31:AU31,TRANSPOSE('QoL regression results'!$H$3:$H$48)) -> 0.8520723599
A32: 31 | B32: 0.8923066275 | C32: 0.004129100463 | D32: 0.007386907276 | E32: -0.004181629503 | F32: 0.02473483004 | G32: 0.016559223 | H32: -0.01014564789 | I32: -0.01086497484 | J32: -0.05960575299 | K32: -0.03328819161 | L32: -0.08694017535 | M32: -0.1027433783 | N32: -0.01499411168 | O32: -0.05164644062 | P32: -0.0880153436 | Q32: -0.03722029685 | R32: -0.05452340406 | S32: -0.05507678219 | T32: -0.1098862668 | U32: 0.01187656785 | V32: -0.03502334524 | W32: -0.01905971259 | X32: -0.05713008447 | Y32: -0.0299526572 | Z32: -0.002643498336 | AA32: -0.0307303657 | AB32: -0.06315111778 | AC32: -0.005531440526 | AD32: -0.09393394682 | AE32: -0.02322755466 | AF32: -0.01028321205 | AG32: -0.04216072281 | AH32: -0.04024692577 | AI32: -0.01897337737 | AJ32: -0.01617409293 | AK32: -0.003053474434 | AL32: 0.004154184897 | AM32: -0.009928792331 | AN32: -0.02169178219 | AO32: -0.03574272306 | AP32: -0.01114049067 | AQ32: -0.03782396621 | AR32: 0.02259174272 | AS32: -0.01276456675 | AT32: -0.04715938325 | AU32: 0.0353670083 | AW32: =SUMPRODUCT(B32:AU32,TRANSPOSE('QoL regression results'!$H$3:$H$48)) -> 0.8562138866
A33: 32 | B33: 0.8996653559 | C33: 0.001856355778 | D33: -0.01107015072 | E33: -0.02695141625 | F33: 0.02776334074 | G33: 0.02809294029 | H33: -0.01540272058 | I33: -0.01214913103 | J33: -0.05074721546 | K33: -0.04048499736 | L33: -0.1058733193 | M33: -0.0940624913 | N33: -0.02374135941 | O33: -0.06216211673 | P33: -0.03794652017 | Q33: -0.07059141126 | R33: -0.02340395997 | S33: -0.03424618305 | T33: -0.1089955455 | U33: 0.005169532915 | V33: -0.07946718354 | W33: -0.02119818124 | X33: -0.02010808857 | Y33: -0.01226117074 | Z33: -0.01344978338 | AA33: -0.0283031152 | AB33: -0.07417744342 | AC33: -0.0362055245 | AD33: -0.05604905675 | AE33: -0.01989696207 | AF33: -0.01284610163 | AG33: -0.04429596232 | AH33: -0.03862510576 | AI33: -0.01942621018 | AJ33: -0.01765982298 | AK33: -0.003063317478 | AL33: 0.003689409428 | AM33: -0.01040446085 | AN33: -0.01782129805 | AO33: -0.03885725925 | AP33: -0.008655527214 | AQ33: -0.0396051228 | AR33: 0.01927846491 | AS33: -0.01037066882 | AT33: -0.04721031937 | AU33: 0.02976654409 | AW33: =SUMPRODUCT(B33:AU33,TRANSPOSE('QoL regression results'!$H$3:$H$48)) -> 0.8647296596
A34: 33 | B34: 0.8839276272 | C34: 0.009240912202 | D34: 0.008297696596 | E34: -0.006735813422 | F34: 0.01812238638 | G34: 0.007265068263 | H34: -0.01566752999 | I34: -0.009153721647 | J34: -0.07927682879 | K34: -0.03981596873 | L34: -0.07660490024 | M34: -0.1130128875 | N34: -0.01267384489 | O34: -0.04274054258 | P34: -0.1060408884 | Q34: -0.06452947666 | R34: -0.04527894652 | S34: -0.04310689551 | T34: -0.07055779759 | U34: 0.04763192537 | V34: -0.08147549658 | W34: -0.03180053111 | X34: -0.05879485931 | Y34: 0.001658233198 | Z34: -0.01060734832 | AA34: -0.01212501805 | AB34: -0.06278838575 | AC34: -0.05936648564 | AD34: -0.03141794067 | AE34: -0.02139236062 | AF34: -0.01667356545 | AG34: -0.04058796788 | AH34: -0.03327723571 | AI34: -0.0135858885 | AJ34: -0.01146914542 | AK34: -0.003384442169 | AL34: 0.0001627826661 | AM34: -0.01030864559 | AN34: -0.01945804402 | AO34: -0.04202752855 | AP34: -0.01053899945 | AQ34: -0.03241299091 | AR34: 0.02358970754 | AS34: -0.01178009215 | AT34: -0.04452389812 | AU34: 0.03128522715 | AW34: =SUMPRODUCT(B34:AU34,TRANSPOSE('QoL regression results'!$H$3:$H$48)) -> 0.8508131741
A35: 34 | B35: 0.8871990915 | C35: -0.0001134188214 | D35: 0.01578116989 | E35: -0.03221619078 | F35: 0.02073464785 | G35: 0.001686635083 | H35: -0.009462117309 | I35: -0.01250574834 | J35: -0.07117242619 | K35: -0.04125389072 | L35: -0.1192020326 | M35: -0.04629772727 | N35: -0.02277588471 | O35: -0.0693756886 | P35: -0.1611396959 | Q35: -0.03149812307 | R35: -0.09019167391 | S35: -0.04864982701 | T35: -0.09848612655 | U35: -0.004318938081 | V35: -0.03640798641 | W35: -0.03706389914 | X35: -0.01501473084 | Y35: -0.02114781256 | Z35: 0.02851918766 | AA35: -0.008593573892 | AB35: -0.06449022407 | AC35: 0.004279047055 | AD35: -0.001473893627 | AE35: -0.02507716345 | AF35: -0.01709087212 | AG35: -0.04140184437 | AH35: -0.03119108183 | AI35: -0.01968209929 | AJ35: -0.01358000398 | AK35: -0.003391426802 | AL35: 0.006010640619 | AM35: -0.01002040639 | AN35: -0.01722081169 | AO35: -0.02952418977 | AP35: -0.00586714865 | AQ35: -0.03658334296 | AR35: 0.02288428752 | AS35: -0.006088789187 | AT35: -0.03906166961 | AU35: 0.02706840219 | AW35: =SUMPRODUCT(B35:AU35,TRANSPOSE('QoL regression results'!$H$3:$H$48)) -> 0.8620186503
A36: 35 | B36: 0.9058591431 | C36: 0.001409920073 | D36: -0.02137761703 | E36: -0.0150259928 | F36: 0.02390401503 | G36: 0.02024956687 | H36: -0.0135167338 | I36: -0.003748887405 | J36: -0.07200488175 | K36: -0.04354604478 | L36: -0.08711368957 | M36: -0.100060621 | N36: -0.01334403302 | O36: -0.08636906893 | P36: -0.05672716574 | Q36: -0.06746698155 | R36: -0.06730528468 | S36: -0.02968495924 | T36: -0.07132907069 | U36: 0.006911384176 | V36: -0.04435293572 | W36: -0.03085605554 | X36: -0.04696201423 | Y36: -0.02634407028 | Z36: 0.001566710761 | AA36: -0.01905263783 | AB36: -0.07441706466 | AC36: -0.05828254507 | AD36: -0.05219213835 | AE36: -0.02205315653 | AF36: -0.0114208902 | AG36: -0.04917685341 | AH36: -0.04127683683 | AI36: -0.02513689721 | AJ36: -0.01035359861 | AK36: -0.0111176527 | AL36: -3.317685311e-05 | AM36: -0.0163549072 | AN36: -0.02319087035 | AO36: -0.03502942012 | AP36: -0.007092826179 | AQ36: -0.03606236837 | AR36: 0.02594937441 | AS36: -0.01330651424 | AT36: -0.05161571995 | AU36: 0.02603854013 | AW36: =SUMPRODUCT(B36:AU36,TRANSPOSE('QoL regression results'!$H$3:$H$48)) -> 0.8645491294
A37: 36 | B37: 0.8859132721 | C37: 0.000574039594 | D37: -0.01318428731 | E37: -0.06977175573 | F37: 0.02169863839 | G37: 0.03027433613 | H37: 0.02250494337 | I37: -0.01578560511 | J37: -0.07239715665 | K37: -0.04197526911 | L37: -0.09489035502 | M37: -0.1013730847 | N37: -0.01839749515 | O37: -0.05986346677 | P37: -0.1007735629 | Q37: -0.06182924031 | R37: -0.03724621666 | S37: -0.04976574304 | T37: -0.1347385031 | U37: -0.02276475166 | V37: 0.001215609459 | W37: -0.03451878515 | X37: -0.001952753789 | Y37: 0.0009707521933 | Z37: 0.001706442542 | AA37: -0.02658557589 | AB37: -0.08587099902 | AC37: -0.02830014598 | AD37: 0.0602102249 | AE37: -0.02496262768 | AF37: -0.008116503995 | AG37: -0.03817487007 | AH37: -0.034189228 | AI37: -0.01835380403 | AJ37: -0.01143498506 | AK37: 0.001671126158 | AL37: 0.00797086535 | AM37: -0.004538220541 | AN37: -0.01625974165 | AO37: -0.03171050113 | AP37: -0.01149909405 | AQ37: -0.03521656883 | AR37: 0.02609313987 | AS37: -0.008949926698 | AT37: -0.04337070308 | AU37: 0.0307941114 | AW37: =SUMPRODUCT(B37:AU37,TRANSPOSE('QoL regression results'!$H$3:$H$48)) -> 0.8596949095
A38: 37 | B38: 0.8942158645 | C38: 0.006360008436 | D38: 0.01174908273 | E38: -0.03942661279 | F38: 0.01146975995 | G38: 0.005791322093 | H38: 0.005314080144 | I38: 0.003376459537 | J38: -0.07138467067 | K38: -0.0406666742 | L38: -0.09465715434 | M38: -0.1138652343 | N38: -0.01300119533 | O38: -0.03173900304 | P38: -0.07855047683 | Q38: -0.09144255449 | R38: -0.07446888787 | S38: -0.05551751296 | T38: -0.08148305181 | U38: 0.02559333857 | V38: -0.0630034097 | W38: -0.03564816465 | X38: -0.01290280431 | Y38: -0.006494989433 | Z38: -0.01882568055 | AA38: -0.02379014664 | AB38: -0.08789813414 | AC38: -0.02829263348 | AD38: -0.08113442875 | AE38: -0.02738395427 | AF38: -0.01367187883 | AG38: -0.04556015389 | AH38: -0.02756878287 | AI38: -0.01445928687 | AJ38: -0.01424804347 | AK38: -0.004324040812 | AL38: 0.0008013299473 | AM38: -0.01240531164 | AN38: -0.02686904003 | AO38: -0.03084190726 | AP38: -0.01000489832 | AQ38: -0.04517273016 | AR38: 0.02136438062 | AS38: -0.0071860058 | AT38: -0.04422380188 | AU38: 0.02571218662 | AW38: =SUMPRODUCT(B38:AU38,TRANSPOSE('QoL regression results'!$H$3:$H$48)) -> 0.8674484116
A39: 38 | B39: 0.9045250185 | C39: 0.006526569585 | D39: 0.007109750003 | E39: 0.001684060847 | F39: 0.0243377144 | G39: 0.009837286701 | H39: -0.007106550462 | I39: -0.01134351034 | J39: -0.02654432637 | K39: -0.0376616787 | L39: -0.1023665503 | M39: -0.06881542039 | N39: -0.01770576505 | O39: -0.06224770063 | P39: -0.1142035302 | Q39: -0.07791434889 | R39: -0.09838966413 | S39: -0.04970799854 | T39: -0.09993031938 | U39: 0.002705353291 | V39: -0.02919993227 | W39: -0.01735520232 | X39: -0.01336222018 | Y39: 0.0367792239 | Z39: 0.03602577309 | AA39: -0.01867844826 | AB39: -0.07251287996 | AC39: -0.0426268855 | AD39: 0.06244786242 | AE39: -0.02687020493 | AF39: -0.008734240068 | AG39: -0.04201811564 | AH39: -0.04512053241 | AI39: -0.01731325723 | AJ39: -0.01547416767 | AK39: -0.001798858118 | AL39: 0.003205765988 | AM39: -0.01048017508 | AN39: -0.01684432944 | AO39: -0.03271485739 | AP39: -0.01241181589 | AQ39: -0.04253646594 | AR39: 0.01916589334 | AS39: -0.01092945008 | AT39: -0.04272980433 | AU39: 0.02774874631 | AW39: =SUMPRODUCT(B39:AU39,TRANSPOSE('QoL regression results'!$H$3:$H$48)) -> 0.8626102521
A40: 39 | B40: 0.8873510207 | C40: -0.0009641692968 | D40: 0.001840922509 | E40: -0.02035340647 | F40: 0.008933916782 | G40: 0.01491772927 | H40: -0.02044003706 | I40: -0.01443913541 | J40: -0.03485263203 | K40: -0.03642989046 | L40: -0.09210398303 | M40: -0.1027517706 | N40: -0.01996721304 | O40: -0.01998141394 | P40: -0.1419362506 | Q40: -0.0392986375 | R40: -0.05531507951 | S40: -0.04324655178 | T40: -0.09667430742 | U40: -0.001348750459 | V40: -0.1157953678 | W40: -0.02931832861 | X40: -0.03741913587 | Y40: -0.02228120195 | Z40: -0.002957509692 | AA40: -0.02535789166 | AB40: -0.08498206577 | AC40: -0.00745378734 | AD40: 0.02187105232 | AE40: -0.02561770391 | AF40: -0.01195803661 | AG40: -0.04241330435 | AH40: -0.01862264366 | AI40: -0.01868156732 | AJ40: -0.009683868094 | AK40: -0.005681865723 | AL40: 0.008670158051 | AM40: -0.008013425859 | AN40: -0.019259523 | AO40: -0.03687551628 | AP40: -0.006467385965 | AQ40: -0.03487005319 | AR40: 0.0215450656 | AS40: -0.007524003823 | AT40: -0.04800779888 | AU40: 0.02667377652 | AW40: =SUMPRODUCT(B40:AU40,TRANSPOSE('QoL regression results'!$H$3:$H$48)) -> 0.8773985351
A41: 40 | B41: 0.890536345 | C41: 0.01348905307 | D41: -0.001162789352 | E41: -0.04545375375 | F41: 0.02572626649 | G41: 0.01622895598 | H41: 0.03119117233 | I41: -0.006223767098 | J41: -0.05781759907 | K41: -0.03192391683 | L41: -0.09153158114 | M41: -0.09441136607 | N41: -0.02034273747 | O41: -0.08465372917 | P41: -0.06704235842 | Q41: -0.06546056191 | R41: -0.01715760344 | S41: -0.04704006867 | T41: -0.1020574646 | U41: 0.0134526738 | V41: -0.04207705713 | W41: -0.01326594678 | X41: -0.03018769386 | Y41: -0.001563226353 | Z41: -0.005338150568 | AA41: -0.02425880652 | AB41: -0.05121125276 | AC41: 0.04849395559 | AD41: -0.009988731793 | AE41: -0.02074197309 | AF41: -0.01275956674 | AG41: -0.0432190566 | AH41: -0.04363013727 | AI41: -0.01234400294 | AJ41: -0.01302129663 | AK41: -0.003291300528 | AL41: -0.003458616826 | AM41: -0.01336053079 | AN41: -0.01687652865 | AO41: -0.03397213156 | AP41: -0.006759167959 | AQ41: -0.03982066747 | AR41: 0.02054591802 | AS41: -0.01125799659 | AT41: -0.04433333106 | AU41: 0.02841632849 | AW41: =SUMPRODUCT(B41:AU41,TRANSPOSE('QoL regression results'!$H$3:$H$48)) -> 0.8434475909
A42: 41 | B42: 0.8895187263 | C42: 0.004469924144 | D42: 0.02314661574 | E42: -0.04725658846 | F42: 0.03137489593 | G42: 0.008469923586 | H42: 0.003147545634 | I42: -0.01195034833 | J42: -0.02113233476 | K42: -0.03234278632 | L42: -0.08769788925 | M42: -0.09119530008 | N42: -0.01567832004 | O42: -0.04828717598 | P42: -0.100141784 | Q42: -0.05598209442 | R42: -0.01363468168 | S42: -0.052044169 | T42: -0.09083125217 | U42: -0.03409977789 | V42: -0.04227801189 | W42: -0.0206520257 | X42: -0.0204542137 | Y42: -0.02520716193 | Z42: 0.01067765844 | AA42: -0.02356509125 | AB42: -0.05815259268 | AC42: 0.02617105163 | AD42: -0.001123210088 | AE42: -0.0263807481 | AF42: -0.0119067734 | AG42: -0.04131499269 | AH42: -0.04063840197 | AI42: -0.01275748281 | AJ42: -0.01131040422 | AK42: -0.008331757002 | AL42: -0.0001465309207 | AM42: -0.0125968787 | AN42: -0.02006319663 | AO42: -0.04003536382 | AP42: -0.01247556865 | AQ42: -0.03980855629 | AR42: 0.02538959292 | AS42: -0.007570383467 | AT42: -0.04140104718 | AU42: 0.02845389438 | AW42: =SUMPRODUCT(B42:AU42,TRANSPOSE('QoL regression results'!$H$3:$H$48)) -> 0.8487337935
A43: 42 | B43: 0.8743982012 | C43: 0.006602057538 | D43: 0.004375693874 | E43: -0.03104675027 | F43: 0.02315159712 | G43: 0.02430481381 | H43: 0.01066654453 | I43: -0.02219382266 | J43: -0.06435334095 | K43: -0.0282045053 | L43: -0.09570491938 | M43: -0.07046024626 | N43: -0.02108003939 | O43: -0.05037779354 | P43: -0.1548978611 | Q43: -0.08353266917 | R43: -0.02642828028 | S43: -0.0540723988 | T43: -0.09844295311 | U43: -0.002392579746 | V43: -0.002434500737 | W43: -0.02835532974 | X43: -0.03020694656 | Y43: 0.009910884308 | Z43: 0.001999225415 | AA43: -0.02673291304 | AB43: -0.06907242999 | AC43: -0.02904531088 | AD43: 0.01899169647 | AE43: -0.02621438148 | AF43: -0.01217135875 | AG43: -0.04258636016 | AH43: -0.03825712432 | AI43: -0.02049235064 | AJ43: -0.01563522706 | AK43: 0.005840641106 | AL43: 0.01554975847 | AM43: 0.001246632267 | AN43: -0.006666566918 | AO43: -0.02197411914 | AP43: -0.003960450455 | AQ43: -0.02995124441 | AR43: 0.02197815951 | AS43: -0.0130033188 | AT43: -0.04504658262 | AU43: 0.03293547999 | AW43: =SUMPRODUCT(B43:AU43,TRANSPOSE('QoL regression results'!$H$3:$H$48)) -> 0.8516908353
A44: 43 | B44: 0.8927671561 | C44: 0.004449700632 | D44: 0.003250480159 | E44: -0.01971785249 | F44: 0.02709954772 | G44: 0.02519275162 | H44: -0.006871588982 | I44: -0.01250615849 | J44: -0.06876202783 | K44: -0.04265513579 | L44: -0.1052032523 | M44: -0.09422217799 | N44: -0.01774687097 | O44: -0.04594884451 | P44: -0.1255478335 | Q44: -0.05086089209 | R44: -0.08690696265 | S44: -0.04934151391 | T44: -0.0766089853 | U44: -0.002929196468 | V44: -0.1132139406 | W44: -0.02517780689 | X44: -0.009784586226 | Y44: -0.003112091136 | Z44: -0.01298546392 | AA44: -0.0300357023 | AB44: -0.05020614047 | AC44: -0.01431621244 | AD44: -0.03143463839 | AE44: -0.02144844917 | AF44: -0.02118746762 | AG44: -0.04439195245 | AH44: -0.03887083084 | AI44: -0.0243912868 | AJ44: -0.009157470726 | AK44: -0.01034637265 | AL44: -0.003939148656 | AM44: -0.01380695006 | AN44: -0.01930710495 | AO44: -0.04051452849 | AP44: -0.006969752968 | AQ44: -0.03468398244 | AR44: 0.02403329418 | AS44: -0.01188003488 | AT44: -0.0481434366 | AU44: 0.03044598117 | AW44: =SUMPRODUCT(B44:AU44,TRANSPOSE('QoL regression results'!$H$3:$H$48)) -> 0.8499571766
A45: 44 | B45: 0.8950643295 | C45: -0.0002663135899 | D45: 0.002623557819 | E45: -0.07445730663 | F45: 0.03125288214 | G45: 0.02314836816 | H45: 0.02544650945 | I45: -0.01134642475 | J45: -0.06893570473 | K45: -0.03998156277 | L45: -0.08327359542 | M45: -0.08940192336 | N45: -0.01360614729 | O45: -0.06711266428 | P45: -0.1292151229 | Q45: -0.05139585578 | R45: 0.03115245601 | S45: -0.06548848543 | T45: -0.09676760824 | U45: -0.01712091716 | V45: -0.09063515659 | W45: -0.04541535648 | X45: -0.007574025754 | Y45: 0.03619109793 | Z45: 0.02574947431 | AA45: -0.02709467124 | AB45: -0.06411164297 | AC45: -0.05408034565 | AD45: -0.01531893271 | AE45: -0.02670365349 | AF45: -0.005011877989 | AG45: -0.04536537431 | AH45: -0.04370923357 | AI45: -0.01132850712 | AJ45: -0.01497801045 | AK45: -0.003630870948 | AL45: 0.004655846631 | AM45: -0.00368750692 | AN45: -0.01571482481 | AO45: -0.03336510942 | AP45: -0.0079097302 | AQ45: -0.03859951839 | AR45: 0.01613920098 | AS45: -0.009006755464 | AT45: -0.04410533614 | AU45: 0.03244392406 | AW45: =SUMPRODUCT(B45:AU45,TRANSPOSE('QoL regression results'!$H$3:$H$48)) -> 0.8560109425
A46: 45 | B46: 0.9088361882 | C46: -0.003539363671 | D46: 0.0129920407 | E46: -0.05487256733 | F46: 0.0166771625 | G46: -0.002228317548 | H46: 0.01668850877 | I46: 0.01014763604 | J46: -0.06225684572 | K46: -0.04536952189 | L46: -0.1180499289 | M46: -0.07713097264 | N46: -0.01147970343 | O46: -0.08906187212 | P46: -0.08849337672 | Q46: -0.07420218266 | R46: -0.09484539922 | S46: -0.04779152046 | T46: -0.094586161 | U46: -0.01156636717 | V46: -0.09099580741 | W46: -0.03132558132 | X46: -0.01976148118 | Y46: -0.01185340276 | Z46: 0.00723023871 | AA46: -0.01086568029 | AB46: -0.06415318058 | AC46: -0.006400793805 | AD46: -0.06278183312 | AE46: -0.02610703167 | AF46: -0.009916674329 | AG46: -0.05194604363 | AH46: -0.03012074787 | AI46: -0.0164569539 | AJ46: -0.009273357035 | AK46: -0.007238235796 | AL46: -0.0004912081197 | AM46: -0.01293597553 | AN46: -0.02348512245 | AO46: -0.03631631225 | AP46: -0.01743316664 | AQ46: -0.03552915346 | AR46: 0.02608072162 | AS46: -0.01237360859 | AT46: -0.03861277966 | AU46: 0.02197272315 | AW46: =SUMPRODUCT(B46:AU46,TRANSPOSE('QoL regression results'!$H$3:$H$48)) -> 0.8782242322
A47: 46 | B47: 0.8943327893 | C47: -0.0001187571673 | D47: -0.002033529689 | E47: -0.06239928171 | F47: 0.01725649141 | G47: 0.009971157507 | H47: 0.0132416691 | I47: -0.01803008383 | J47: -0.06062951885 | K47: -0.03922260663 | L47: -0.1167227671 | M47: -0.05211834697 | N47: -0.008813248821 | O47: -0.09276308621 | P47: -0.05344958398 | Q47: -0.01566077683 | R47: -0.08476184765 | S47: -0.04958898281 | T47: -0.07033319031 | U47: -0.0196622671 | V47: -0.03506911923 | W47: -0.02966802478 | X47: -0.005679342508 | Y47: -0.002679812696 | Z47: 0.02999493951 | AA47: -0.01586674313 | AB47: -0.08284534675 | AC47: -0.02973614479 | AD47: -0.02339621868 | AE47: -0.02013729353 | AF47: -0.007020919782 | AG47: -0.04774369698 | AH47: -0.02777646992 | AI47: -0.02534077701 | AJ47: -0.01054837486 | AK47: -0.000862559283 | AL47: -0.001388037217 | AM47: -0.0128836176 | AN47: -0.01647950047 | AO47: -0.03555247561 | AP47: -0.00928242669 | AQ47: -0.04376361605 | AR47: 0.01957427994 | AS47: -0.009479830668 | AT47: -0.04418974486 | AU47: 0.03251069287 | AW47: =SUMPRODUCT(B47:AU47,TRANSPOSE('QoL regression results'!$H$3:$H$48)) -> 0.8651682822
A48: 47 | B48: 0.8904502085 | C48: 0.001814736481 | D48: -0.004551534212 | E48: -0.03947188486 | F48: 0.0100597784 | G48: 0.008269467572 | H48: -0.004783702524 | I48: -0.01487302226 | J48: -0.0756038659 | K48: -0.04084303132 | L48: -0.1033109409 | M48: -0.06439482813 | N48: -0.01810699094 | O48: -0.0590046591 | P48: -0.06138418717 | Q48: -0.08597702359 | R48: -0.02060149765 | S48: -0.0542413052 | T48: -0.07991401102 | U48: 0.01685849346 | V48: -0.1098897336 | W48: -0.02335232728 | X48: -0.05485004384 | Y48: -0.006951731692 | Z48: 0.009830345929 | AA48: -0.01971083162 | AB48: -0.05832894365 | AC48: -0.01754643818 | AD48: 0.002700975219 | AE48: -0.02461704143 | AF48: -0.01552325511 | AG48: -0.04131471022 | AH48: -0.0220431787 | AI48: -0.01652777646 | AJ48: -0.01684903026 | AK48: -0.0009139573095 | AL48: -0.0002214505731 | AM48: -0.0147521068 | AN48: -0.01703652177 | AO48: -0.03449236313 | AP48: -0.01300612819 | AQ48: -0.03763131869 | AR48: 0.02121243103 | AS48: -0.0129497491 | AT48: -0.04300340176 | AU48: 0.03694317499 | AW48: =SUMPRODUCT(B48:AU48,TRANSPOSE('QoL regression results'!$H$3:$H$48)) -> 0.8681855792
A49: 48 | B49: 0.896180601 | C49: 0.005957276808 | D49: -0.003649137735 | E49: -0.02633447919 | F49: 0.02645694003 | G49: 0.01194986911 | H49: 0.009213877925 | I49: -0.009908210502 | J49: -0.04759560935 | K49: -0.03160915901 | L49: -0.1133249226 | M49: -0.03453403135 | N49: -0.01948107098 | O49: -0.06359211969 | P49: -0.09014965926 | Q49: -0.02592348703 | R49: 0.006435883553 | S49: -0.04773410147 | T49: -0.0713791241 | U49: 0.01079176423 | V49: -0.04322117689 | W49: -0.02759082837 | X49: -0.0415261878 | Y49: -0.001710963773 | Z49: 0.004737774744 | AA49: -0.01886675518 | AB49: -0.07699314641 | AC49: -0.01591015145 | AD49: -0.02747333376 | AE49: -0.0201248477 | AF49: -0.01702326501 | AG49: -0.04508613034 | AH49: -0.03772703164 | AI49: -0.02587341064 | AJ49: -0.0105384926 | AK49: -0.003319662365 | AL49: 0.003517640218 | AM49: -0.01381989118 | AN49: -0.02779438857 | AO49: -0.04262917861 | AP49: -0.006217613743 | AQ49: -0.03890289756 | AR49: 0.02342529915 | AS49: -0.01111345521 | AT49: -0.04286175052 | AU49: 0.02373690794 | AW49: =SUMPRODUCT(B49:AU49,TRANSPOSE('QoL regression results'!$H$3:$H$48)) -> 0.8619712096
